{"text_format":"1","workbook":"xlsx","n_sheets":36,"sheets":["Sheet1","Cover","REVISION","REFERENCE","Notes","ESDV-2102","ESDV-2101","ESDV-2113","ESDV-2272","BDV-2110","BDV-2134A","BDV-2134B","BDV-2134C","BDV-2132A","BDV-2132B","BDV-2132C","BDV-2141","BDV-2151","XV-2112","XV-2121A","XV-2121B","XV-2121C","XV-2122A","XV-2122B","XV-2122C","XV-2131A","XV-2131B","XV-2131C","XV-2133A","XV-2133B","XV-2133C","XV-2142","XV-2143","XV-2144","XV-2271","XV-2301"],"not_rendered":{"charts":0,"images":7,"macros":0,"external_links":6,"defined_names":1389,"comments":0,"pivot_tables":0},"unopened":[],"bounds":{"document_bytes":16777216,"sheet_cells":100000,"rows_first":2000,"rows_last":500,"rows_between":2000,"halvings":0,"cell_chars":16384,"cell_head_chars":4096},"cells_cut":0,"cells_raw":0,"read":"whole","date_system":"1900"}

{"sheet":"Sheet1","index":0,"n_rows":42,"n_cols":23,"rows_kept":42,"cut":false,"hidden":true,"merged":[]}
[null,"TAG NO","END CONNECTION","LINE NO.","P&ID NO.","CLASS","Body","Packing","Seat","TYPE","Stem","PFP","6FA","SIL"," SOLENOID VALVE TAG","PST","SIL Level","Volume Tank","FAIL ACTION","NACE","Trim","Ball","Des. Temp."]
[6,{"$f":"INDEX(ListSheets,A2)","v":"ESDV-2102"},{"$f":"INDIRECT(\"'\"&B2&\"'!\"&\"h32\")","v":"ASTM A216 Gr. WCB"},{"$f":"INDIRECT(\"'\"&B2&\"'!\"&\"E25\")","v":"   IN"},{"$f":"INDIRECT(\"'\"&B2&\"'!\"&\"h11\")","v":"BK-GCS-PEDCO-120-PR-PI-0003-D08"},{"$f":"RIGHT((LEFT(D2,(FIND(CHAR(160),SUBSTITUTE(D2,\"-\",CHAR(160),4))-1))),(LEN(LEFT(D2,(FIND(CHAR(160),SUBSTITUTE(D2,\"-\",CHAR(160),4))-1)))-(FIND(CHAR(160),SUBSTITUTE((LEFT(D2,(FIND(CHAR(160),SUBSTITUTE(D2,\"-\",CHAR(160),4))-1))),\"-\",CHAR(160),3)))))","v":{"$error":"#VALUE!"}},{"$f":"INDIRECT(\"'\"&B2&\"'!\"&\"h30\")","v":"As per PMS"},{"$f":"INDIRECT(\"'\"&B2&\"'!\"&\"h39\")","v":"Standard"},{"$f":"INDIRECT(\"'\"&B2&\"'!\"&\"k48\")","v":0},{"$f":"INDIRECT(\"'\"&B2&\"'!\"&\"h26\")","v":0},{"$f":"INDIRECT(\"'\"&B2&\"'!\"&\"k50\")","v":"316 SS+RPTFE"},{"$f":"INDIRECT(\"'\"&B2&\"'!\"&\"q62\")","v":0},{"$f":"INDIRECT(\"'\"&B2&\"'!\"&\"q63\")","v":0},{"$f":"INDIRECT(\"'\"&B2&\"'!\"&\"q64\")","v":"Yes"},{"$f":"INDIRECT(\"'\"&B2&\"'!\"&\"H53\")","v":"ANSI Class VI"},{"$f":"INDIRECT(\"'\"&B2&\"'!\"&\"q65\")","v":"Yes"},{"$f":"INDIRECT(\"'\"&B2&\"'!\"&\"U65\")","v":0},{"$f":"INDIRECT(\"'\"&B2&\"'!\"&\"h64\")","v":"Yes"},{"$f":"INDIRECT(\"'\"&B2&\"'!\"&\"q25\")","v":"Single Acting , Spring Return "},{"$f":"INDIRECT(\"'\"&B2&\"'!\"&\"H41\")","v":"RPTFE"},{"$f":"INDIRECT(\"'\"&B2&\"'!\"&\"K42\")","v":0},{"$f":"INDIRECT(\"'\"&B2&\"'!\"&\"H47\")","v":"BALANCED"},{"$f":"INDIRECT(\"'\"&B2&\"'!\"&\"H47\")","v":"BALANCED"}]
[7,{"$f":"INDEX(ListSheets,A3)","v":"ESDV-2101"},{"$f":"INDIRECT(\"'\"&B3&\"'!\"&\"h34\")","v":"6\"  /300#"},{"$f":"INDIRECT(\"'\"&B3&\"'!\"&\"E27\")","v":"GAS-111-0001-AN07-6\"-PT"},{"$f":"INDIRECT(\"'\"&B3&\"'!\"&\"h11\")","v":"BK-GCS-PEDCO-120-PR-PI-0002_D08"},{"$f":"RIGHT((LEFT(D3,(FIND(CHAR(160),SUBSTITUTE(D3,\"-\",CHAR(160),4))-1))),(LEN(LEFT(D3,(FIND(CHAR(160),SUBSTITUTE(D3,\"-\",CHAR(160),4))-1)))-(FIND(CHAR(160),SUBSTITUTE((LEFT(D3,(FIND(CHAR(160),SUBSTITUTE(D3,\"-\",CHAR(160),4))-1))),\"-\",CHAR(160),3)))))","v":"AN07"},{"$f":"INDIRECT(\"'\"&B3&\"'!\"&\"h32\")","v":"ASTM A216 Gr. WCB"},{"$f":"INDIRECT(\"'\"&B3&\"'!\"&\"h41\")","v":"PTFE"},{"$f":"INDIRECT(\"'\"&B3&\"'!\"&\"k50\")","v":"316 SS+PTFE"},{"$f":"INDIRECT(\"'\"&B3&\"'!\"&\"h28\")","v":"Full Bore Ball Valve/Trunnion Mounted"},{"$f":"INDIRECT(\"'\"&B3&\"'!\"&\"k52\")","v":"316 SS"},{"$f":"INDIRECT(\"'\"&B3&\"'!\"&\"q64\")","v":"Yes"},{"$f":"INDIRECT(\"'\"&B3&\"'!\"&\"q65\")","v":"Yes"},{"$f":"INDIRECT(\"'\"&B3&\"'!\"&\"q66\")","v":"Yes"},{"$f":"INDIRECT(\"'\"&B3&\"'!\"&\"H55\")","v":"ESOV-2101"},{"$f":"INDIRECT(\"'\"&B3&\"'!\"&\"q67\")","v":"Yes"},{"$f":"INDIRECT(\"'\"&B3&\"'!\"&\"U67\")","v":1},{"$f":"INDIRECT(\"'\"&B3&\"'!\"&\"h66\")","v":"No"},{"$f":"INDIRECT(\"'\"&B3&\"'!\"&\"q27\")","v":"Fail to Close"},{"$f":"INDIRECT(\"'\"&B3&\"'!\"&\"H43\")","v":"Yes"},{"$f":"INDIRECT(\"'\"&B3&\"'!\"&\"K44\")","v":"316 SS+PTFE"},{"$f":"INDIRECT(\"'\"&B3&\"'!\"&\"H49\")","v":"316 SS"},{"$f":"INDIRECT(\"'\"&B3&\"'!\"&\"O22\")","v":85}]
[8,{"$f":"INDEX(ListSheets,A4)","v":"ESDV-2113"},"2\"  /300#",{"$f":"INDIRECT(\"'\"&B4&\"'!\"&\"E27\")","v":"CDH-111-0019-AS00-2\"-NP"},{"$f":"INDIRECT(\"'\"&B4&\"'!\"&\"h11\")","v":"BK-GCS-PEDCO-120-PR-PI-0005-D09"},"AS00",{"$f":"INDIRECT(\"'\"&B4&\"'!\"&\"h32\")","v":"ASTM A351 GR.CF3M"},{"$f":"INDIRECT(\"'\"&B4&\"'!\"&\"h41\")","v":"PTFE"},{"$f":"INDIRECT(\"'\"&B4&\"'!\"&\"k50\")","v":"316 SS+PTFE"},{"$f":"INDIRECT(\"'\"&B4&\"'!\"&\"h28\")","v":"Full Bore Ball Valve/Floating Type"},{"$f":"INDIRECT(\"'\"&B4&\"'!\"&\"k52\")","v":"316 SS"},{"$f":"INDIRECT(\"'\"&B4&\"'!\"&\"q64\")","v":"No"},{"$f":"INDIRECT(\"'\"&B4&\"'!\"&\"q65\")","v":"Yes"},{"$f":"INDIRECT(\"'\"&B4&\"'!\"&\"q66\")","v":"Yes"},{"$f":"INDIRECT(\"'\"&B4&\"'!\"&\"H55\")","v":"ESOV-2113"},{"$f":"INDIRECT(\"'\"&B4&\"'!\"&\"q67\")","v":"No"},{"$f":"INDIRECT(\"'\"&B4&\"'!\"&\"U67\")","v":3},{"$f":"INDIRECT(\"'\"&B4&\"'!\"&\"h66\")","v":"No"},{"$f":"INDIRECT(\"'\"&B4&\"'!\"&\"q27\")","v":"Fail to Close"},{"$f":"INDIRECT(\"'\"&B4&\"'!\"&\"H43\")","v":"Yes"},{"$f":"INDIRECT(\"'\"&B4&\"'!\"&\"K44\")","v":"316 SS+PTFE"},{"$f":"INDIRECT(\"'\"&B4&\"'!\"&\"H49\")","v":"316 SS"},{"$f":"INDIRECT(\"'\"&B4&\"'!\"&\"O22\")","v":85}]
[9,{"$f":"INDEX(ListSheets,A5)","v":"ESDV-2272"},"3\"  /300#","GAS-111-0004-AN07-3\"-PT",{"$f":"INDIRECT(\"'\"&B5&\"'!\"&\"h11\")","v":"BK-GCS-PEDCO-120-PR-PI-0022-D09"},"AN07","ASTM A216 Gr. WCB","PTFE","316 SS+PTFE","Full Bore Ball Valve/Trunnion Mounted","316 SS","No","Yes","Yes","ESOV-2272","No",3,"No","Fail to Close","Yes","316 SS+PTFE","316 SS",85]
[10,{"$f":"INDEX(ListSheets,A6)","v":"BDV-2110"},{"$f":"INDIRECT(\"'\"&B6&\"'!\"&\"h34\")","v":"3\"/300#"},"GAS-111-0225-AN07-3\"-PT",{"$f":"INDIRECT(\"'\"&B6&\"'!\"&\"h11\")","v":"BK-GCS-PEDCO-120-PR-PI-0005-D09"},"AN07","ASTM A216 Gr. WCB","PTFE","316 SS+PTFE","Full Bore Ball Valve/Trunnion Mounted","316 SS","No","Yes","Yes","BSOV-2110","Yes","1A","Yes","Fail to Open","Yes","316 SS+PTFE","316 SS",85]
[11,{"$f":"INDEX(ListSheets,A7)","v":"BDV-2134A"},{"$f":"INDIRECT(\"'\"&B7&\"'!\"&\"h34\")","v":"2\" /300#"},"GAS-111-0160A-CN05-2\"-PT",{"$f":"INDIRECT(\"'\"&B7&\"'!\"&\"h11\")","v":"BK-GCS-PEDCO-120-PR-PI-0009-D09 (1/3)"},"CN05","ASTM A216 Gr. WCB","RPTFE","316 SS+RPTFE","Full Bore Ball Valve/ Floating Type","316 SS","No","Yes","Yes","BSOV-2134A","No","2A","Yes","Fail to Open","Yes","316 SS+RPTFE","316 SS",155]
[12,{"$f":"INDEX(ListSheets,A8)","v":"BDV-2134B"},"2\" /300#","GAS-111-0160B-CN05-2\"-PT",{"$f":"INDIRECT(\"'\"&B8&\"'!\"&\"h11\")","v":"BK-GCS-PEDCO-120-PR-PI-0009-D09 (2/3)"},"CN05","ASTM A216 Gr. WCB","RPTFE","316 SS+RPTFE","Full Bore Ball Valve/ Floating Type","316 SS","No","Yes","Yes","BSOV-2134B","No","2A","Yes","Fail to Open","Yes","316 SS+RPTFE","316 SS",155]
[13,{"$f":"INDEX(ListSheets,A9)","v":"BDV-2134C"},"2\" /300#","GAS-111-0160C-CN05-2\"-PT",{"$f":"INDIRECT(\"'\"&B9&\"'!\"&\"h11\")","v":"BK-GCS-PEDCO-120-PR-PI-0009-D09 (3/3)"},"CN05","ASTM A216 Gr. WCB","RPTFE","316 SS+RPTFE","Full Bore Ball Valve/ Floating Type","316 SS","No","Yes","Yes","BSOV-2134C","No","2A","Yes","Fail to Open","Yes","316 SS+RPTFE","316 SS",155]
[14,{"$f":"INDEX(ListSheets,A10)","v":"BDV-2132A"},"1 1/2\" /600#","GAS-111-0054A-FS00-1 1/2\"-IS",{"$f":"INDIRECT(\"'\"&B10&\"'!\"&\"h11\")","v":"BK-GCS-PEDCO-120-PR-PI-0011-D09 (1/3)"},"FS00","ASTM A182 GR.F316L","RPTFE","316 SS+RPTFE","Full Bore Ball Valve/ Floating Type","316 SS","No","Yes","Yes","BSOV-2132A , PSOV-2132A","No","2A","Yes","Fail to Open","Yes","316 SS+RPTFE","316 SS",175]
[15,{"$f":"INDEX(ListSheets,A11)","v":"BDV-2132B"},"1 1/2\" /600#","GAS-111-0054B-FS00-1 1/2\"-IS",{"$f":"INDIRECT(\"'\"&B11&\"'!\"&\"h11\")","v":"BK-GCS-PEDCO-120-PR-PI-0011-D09 (2/3)"},"FS00","ASTM A182 GR.F316L","RPTFE","316 SS+RPTFE","Full Bore Ball Valve/ Floating Type","316 SS","No","Yes","Yes","BSOV-2132B , PSOV-2132B","No","2A","Yes","Fail to Open","Yes","316 SS+RPTFE","316 SS",175]
[16,{"$f":"INDEX(ListSheets,A12)","v":"BDV-2132C"},"1 1/2\" /600#","GAS-111-0054C-FS00-1 1/2\"-IS",{"$f":"INDIRECT(\"'\"&B12&\"'!\"&\"h11\")","v":"BK-GCS-PEDCO-120-PR-PI-0011-D09 (3/3)"},"FS00","ASTM A182 GR.F316L","RPTFE","316 SS+RPTFE","Full Bore Ball Valve/ Floating Type","316 SS","No","Yes","Yes","BSOV-2132C , PSOV-2132C","No","2A","Yes","Fail to Open","Yes","316 SS+RPTFE","316 SS",175]
[17,{"$f":"INDEX(ListSheets,A13)","v":"BDV-2141"},"1 1/2\" /600#","GAS-111-0065-FN05-1 1/2\"-IS",{"$f":"INDIRECT(\"'\"&B13&\"'!\"&\"h11\")","v":"BK-GCS-PEDCO-120-PR-PI-0012-D09"},"FN05","ASTM A105","RPTFE","316 SS+RPTFE","Full Bore Ball Valve/ Floating Type","316 SS","No","Yes","Yes","BSOV-2141","Yes","1A","Yes","Fail to Open","Yes","316 SS+RPTFE","316 SS",175]
[18,{"$f":"INDEX(ListSheets,A14)","v":"BDV-2151"},"3\" /600#","GAS-111-0071-FN05-3\"-IS",{"$f":"INDIRECT(\"'\"&B14&\"'!\"&\"h11\")","v":"BK-GCS-PEDCO-120-PR-PI-0013-D08 (1/3)"},"FN05","ASTM A216 Gr. WCB","RPTFE","316 SS+RPTFE","Full Bore Ball Valve/Trunnion Mounted","316 SS","No","Yes","Yes","BSOV-2151","Yes","1A","Yes","Fail to Open","Yes","316 SS+RPTFE","316 SS",175]
[19,{"$f":"INDEX(ListSheets,A15)","v":"XV-2112"},"4\"/300#","CDH-112-0118-CN07-4\"-PT",{"$f":"INDIRECT(\"'\"&B15&\"'!\"&\"h11\")","v":"BK-GCS-PEDCO-120-PR-PI-0004-D09 (2/2)"},"CN07","ASTM A216 Gr. WCB","RPTFE","316 SS+RPTFE","Full Bore Ball Valve/Trunnion Mounted","316 SS","No","Yes","Yes","ESOV-2112","No",3,"No","Fail to Close","Yes","316 SS+RPTFE","316 SS",155]
[20,{"$f":"INDEX(ListSheets,A16)","v":"XV-2121A"},"8\"/300#","GAS-111-0026A-AN07-8\"-PT",{"$f":"INDIRECT(\"'\"&B16&\"'!\"&\"h11\")","v":"BK-GCS-PEDCO-120-PR-PI-0006-D09 (1/3)"},"AN07","ASTM A216 Gr. WCB","PTFE","316 SS+PTFE","Full Bore Ball Valve/Trunnion Mounted","316 SS","No","Yes","Yes","PSOV-2121A , ESOV-2121A","No",2,"No","Fail to Close","Yes","316 SS+PTFE","316 SS",85]
[21,{"$f":"INDEX(ListSheets,A17)","v":"XV-2121B"},"8\"/300#","GAS-111-0026B-AN07-8\"-PT",{"$f":"INDIRECT(\"'\"&B17&\"'!\"&\"h11\")","v":"BK-GCS-PEDCO-120-PR-PI-0006-D09 (2/3)"},"AN07","ASTM A216 Gr. WCB","PTFE","316 SS+PTFE","Full Bore Ball Valve/Trunnion Mounted","316 SS","No","Yes","Yes","PSOV-2121B, ESOV-2121B","No",2,"No","Fail to Close","Yes","316 SS+PTFE","316 SS",85]
[22,{"$f":"INDEX(ListSheets,A18)","v":"XV-2121C"},"8\"/300#","GAS-111-0026C-AN07-8\"-PT",{"$f":"INDIRECT(\"'\"&B18&\"'!\"&\"h11\")","v":"BK-GCS-PEDCO-120-PR-PI-0006-D09 (3/3)"},"AN07","ASTM A216 Gr. WCB","PTFE","316 SS+PTFE","Full Bore Ball Valve/Trunnion Mounted","316 SS","No","Yes","Yes","PSOV-2121C, ESOV-2121C","No",2,"No","Fail to Close","Yes","316 SS+PTFE","316 SS",85]
[23,{"$f":"INDEX(ListSheets,A19)","v":"XV-2122A"},"2\"/300#","CDH-112-0021A-CS00-2\"-NP",{"$f":"INDIRECT(\"'\"&B19&\"'!\"&\"h11\")","v":"BK-GCS-PEDCO-120-PR-PI-0006-D09 (1/3)"},"CS00","ASTM A351 GR.CF3M","RPTFE","316 SS+RPTFE","Full Bore Ball Valve/Floating Type","316 SS","No","Yes","Yes","PSOV-2122A , ESOV-2122A","No",3,"No","Fail to Close","Yes","316 SS+RPTFE","316 SS",155]
[24,{"$f":"INDEX(ListSheets,A20)","v":"XV-2122B"},"2\"/300#","CDH-112-0021B-CS00-2\"-NP",{"$f":"INDIRECT(\"'\"&B20&\"'!\"&\"h11\")","v":"BK-GCS-PEDCO-120-PR-PI-0006-D09 (2/3)"},"CS00","ASTM A351 GR.CF3M","RPTFE","316 SS+RPTFE","Full Bore Ball Valve/Floating Type","316 SS","No","Yes","Yes","PSOV-2122B , ESOV-2122B","No",3,"No","Fail to Close","Yes","316 SS+RPTFE","316 SS",155]
[25,{"$f":"INDEX(ListSheets,A21)","v":"XV-2122C"},"2\"/300#","CDH-112-0021C-CS00-2\"-NP",{"$f":"INDIRECT(\"'\"&B21&\"'!\"&\"h11\")","v":"BK-GCS-PEDCO-120-PR-PI-0006-D09 (3/3)"},"CS00","ASTM A351 GR.CF3M","RPTFE","316 SS+RPTFE","Full Bore Ball Valve/Floating Type","316 SS","No","Yes","Yes","PSOV-2122C , ESOV-2122C","No",3,"No","Fail to Close","Yes","316 SS+RPTFE","316 SS",155]
[26,{"$f":"INDEX(ListSheets,A22)","v":"XV-2131A"},"2\"/300#","CDH-111-0023A-CS00-2\"-NP",{"$f":"INDIRECT(\"'\"&B22&\"'!\"&\"h11\")","v":"BK-GCS-PEDCO-120-PR-PI-0009-D09 (1 of 3)"},"CS00","ASTM A351 GR.CF3M","RPTFE","316 SS+RPTFE","Full Bore Ball Valve/Floating Type","316 SS","No","Yes","Yes","PSOV-2131A , ESOV-2131A","No",3,"No","Fail to Close","Yes","316 SS+RPTFE","316 SS",155]
[27,{"$f":"INDEX(ListSheets,A23)","v":"XV-2131B"},"2\"/300#","CDH-111-0023B-CS00-2\"-NP",{"$f":"INDIRECT(\"'\"&B23&\"'!\"&\"h11\")","v":"BK-GCS-PEDCO-120-PR-PI-0009-D09 (2 of 3)"},"CS00","ASTM A351 GR.CF3M","RPTFE","316 SS+RPTFE","Full Bore Ball Valve/Floating Type","316 SS","No","Yes","Yes","PSOV-2131B, ESOV-2131B","No",3,"No","Fail to Close","Yes","316 SS+RPTFE","316 SS",155]
[28,{"$f":"INDEX(ListSheets,A24)","v":"XV-2131C"},"2\"/300#","CDH-111-0023C-CS00-2\"-NP",{"$f":"INDIRECT(\"'\"&B24&\"'!\"&\"h11\")","v":"BK-GCS-PEDCO-120-PR-PI-0009-D09 (3 of 3)"},"CS00","ASTM A351 GR.CF3M","RPTFE","316 SS+RPTFE","Full Bore Ball Valve/Floating Type","316 SS","No","Yes","Yes","PSOV-2131C, ESOV-2131C","No",3,"No","Fail to Close","Yes","316 SS+RPTFE","316 SS",155]
[29,{"$f":"INDEX(ListSheets,A25)","v":"XV-2133A"},"6\"/600#","GAS-111-0055A-FS00-6\"-IS",{"$f":"INDIRECT(\"'\"&B25&\"'!\"&\"h11\")","v":"BK-GCS-PEDCO-120-PR-PI-0011-D09 (1 of 3)"},"FS00","ASTM A351 GR.CF3M","RPTFE","316 SS+RPTFE","Full Bore Ball Valve/Trunnion Mounted","316 SS","No","Yes","Yes","PSOV-2133A, ESOV-2133A","No",2,"No","Fail to Close","Yes","316 SS+RPTFE","316 SS",175]
[30,{"$f":"INDEX(ListSheets,A26)","v":"XV-2133B"},"6\"/600#","GAS-111-0055B-FS00-6\"-IS",{"$f":"INDIRECT(\"'\"&B26&\"'!\"&\"h11\")","v":"BK-GCS-PEDCO-120-PR-PI-0011-D09 (2 of 3)"},"FS00","ASTM A351 GR.CF3M","RPTFE","316 SS+RPTFE","Full Bore Ball Valve/Trunnion Mounted","316 SS","No","Yes","Yes","PSOV-2133B, ESOV-2133B","No",2,"No","Fail to Close","Yes","316 SS+RPTFE","316 SS",175]
[31,{"$f":"INDEX(ListSheets,A27)","v":"XV-2133C"},"6\"/600#","GAS-111-0055C-FS00-6\"-IS",{"$f":"INDIRECT(\"'\"&B27&\"'!\"&\"h11\")","v":"BK-GCS-PEDCO-120-PR-PI-0011-D09 (3 of 3)"},"FS00","ASTM A351 GR.CF3M","RPTFE","316 SS+RPTFE","Full Bore Ball Valve/Trunnion Mounted","316 SS","No","Yes","Yes","PSOV-2133C, ESOV-2133C","No",2,"No","Fail to Close","Yes","316 SS+RPTFE","316 SS",175]
[32,{"$f":"INDEX(ListSheets,A28)","v":"XV-2142"},"6\" /600#","GAS-111-0066-FN05-6\"-IS",{"$f":"INDIRECT(\"'\"&B28&\"'!\"&\"h11\")","v":"BK-GCS-PEDCO-120-PR-PI-0012-D09"},"FN05","ASTM A216 Gr. WCB","RPTFE","316 SS+RPTFE","Full Bore Ball Valve/Trunnion Mounted","316 SS","No","Yes","Yes","PSOV-2142, ESOV-2142","Yes",1,"No","Fail to Close","Yes","316 SS+RPTFE","316 SS",175]
[33,{"$f":"INDEX(ListSheets,A29)","v":"XV-2143"},"2\"  /600#","GAS-111-0366-FN05-2\"-IS",{"$f":"INDIRECT(\"'\"&B29&\"'!\"&\"h11\")","v":"BK-GCS-PEDCO-120-PR-PI-0012-D09"},"FN05","ASTM A216 Gr. WCB","RPTFE","316 SS+RPTFE","Full Bore Ball Valve/Trunnion Mounted","316 SS","No","Yes","Yes","ESOV-2143, PSOV-2143","Yes",1,"No","Fail to Close","Yes","316 SS+RPTFE","316 SS",175]
[34,{"$f":"INDEX(ListSheets,A30)","v":"XV-2144"},"2\" /600#","CDH-112-0025-FS00-2\"-NP",{"$f":"INDIRECT(\"'\"&B30&\"'!\"&\"h11\")","v":"BK-GCS-PEDCO-120-PR-PI-0012-D09"},"FS00","ASTM A351 GR.CF3M","RPTFE","316 SS+RPTFE","Full Bore Ball Valve/Floating Type","316 SS","No","Yes","Yes","PSOV-2144, ESOV-2144","No",3,"No","Fail to Close","Yes","316 SS+RPTFE","316 SS",175]
[35,{"$f":"INDEX(ListSheets,A31)","v":"XV-2271"},"2\" /300#","CDH-112-0004-AN07-2\"-PT",{"$f":"INDIRECT(\"'\"&B31&\"'!\"&\"h11\")","v":"BK-GCS-PEDCO-120-PR-PI-0022-D08"},"AN07","ASTM A216 Gr. WCB","PTFE","316 SS+PTFE","Full Bore Ball Valve/Floating Type","316 SS","No","Yes","Yes","PSOV-2271, ESOV-2271","No",3,"No","Fail to Close","Yes","316 SS+PTFE","316 SS",85]
[36,{"$f":"INDEX(ListSheets,A32)","v":"XV-2301"},"3\" /300#","PTW-112-0007-AN04-3\"-PT",{"$f":"INDIRECT(\"'\"&B32&\"'!\"&\"h11\")","v":"BK-GCS-PEDCO-120-SA-PI-0001-D05 (1/8)"},"AN04","ASTM A216 Gr. WCB","PTFE","316 SS+PTFE","Full Bore Ball Valve/Trunnion Mounted","316 SS","No","Yes","No","PSOV-2301","No","N/A","No","Fail to Close","No","316 SS+PTFE","316 SS",85]
[37,{"$f":"INDEX(ListSheets,A33)","v":{"$error":"#REF!"}},{"$error":"#REF!"},{"$error":"#REF!"},{"$f":"INDIRECT(\"'\"&B33&\"'!\"&\"h11\")","v":{"$error":"#REF!"}},{"$error":"#REF!"},{"$error":"#REF!"},{"$error":"#REF!"},{"$error":"#REF!"},{"$error":"#REF!"},{"$error":"#REF!"},{"$error":"#REF!"},{"$error":"#REF!"},{"$error":"#REF!"},{"$error":"#REF!"},{"$error":"#REF!"},{"$error":"#REF!"},{"$error":"#REF!"},{"$error":"#REF!"},{"$error":"#REF!"},{"$error":"#REF!"},{"$error":"#REF!"},{"$error":"#REF!"}]
[38,{"$f":"INDEX(ListSheets,A34)","v":{"$error":"#REF!"}},{"$error":"#REF!"},{"$error":"#REF!"},{"$f":"INDIRECT(\"'\"&B34&\"'!\"&\"h11\")","v":{"$error":"#REF!"}},{"$error":"#REF!"},{"$error":"#REF!"},{"$error":"#REF!"},{"$error":"#REF!"},{"$error":"#REF!"},{"$error":"#REF!"},{"$error":"#REF!"},{"$error":"#REF!"},{"$error":"#REF!"},{"$error":"#REF!"},{"$error":"#REF!"},{"$error":"#REF!"},{"$error":"#REF!"},{"$error":"#REF!"},{"$error":"#REF!"},{"$error":"#REF!"},{"$error":"#REF!"},{"$error":"#REF!"}]
[39,{"$f":"INDEX(ListSheets,A35)","v":{"$error":"#REF!"}},{"$error":"#REF!"},{"$error":"#REF!"},{"$f":"INDIRECT(\"'\"&B35&\"'!\"&\"h11\")","v":{"$error":"#REF!"}},{"$error":"#REF!"},{"$error":"#REF!"},{"$error":"#REF!"},{"$error":"#REF!"},{"$error":"#REF!"},{"$error":"#REF!"},{"$error":"#REF!"},{"$error":"#REF!"},{"$error":"#REF!"},{"$error":"#REF!"},{"$error":"#REF!"},{"$error":"#REF!"},{"$error":"#REF!"},{"$error":"#REF!"},{"$error":"#REF!"},{"$error":"#REF!"},{"$error":"#REF!"},{"$error":"#REF!"}]
[40,{"$f":"INDEX(ListSheets,A36)","v":{"$error":"#REF!"}},{"$error":"#REF!"},{"$error":"#REF!"},{"$f":"INDIRECT(\"'\"&B36&\"'!\"&\"h11\")","v":{"$error":"#REF!"}},{"$error":"#REF!"},{"$error":"#REF!"},{"$error":"#REF!"},{"$error":"#REF!"},{"$error":"#REF!"},{"$error":"#REF!"},{"$error":"#REF!"},{"$error":"#REF!"},{"$error":"#REF!"},{"$error":"#REF!"},{"$error":"#REF!"},{"$error":"#REF!"},{"$error":"#REF!"},{"$error":"#REF!"},{"$error":"#REF!"},{"$error":"#REF!"},{"$error":"#REF!"},{"$error":"#REF!"}]
[41,{"$f":"INDEX(ListSheets,A37)","v":{"$error":"#REF!"}},{"$error":"#REF!"},{"$error":"#REF!"},{"$f":"INDIRECT(\"'\"&B37&\"'!\"&\"h11\")","v":{"$error":"#REF!"}},{"$error":"#REF!"},{"$error":"#REF!"},{"$error":"#REF!"},{"$error":"#REF!"},{"$error":"#REF!"},{"$error":"#REF!"},{"$error":"#REF!"},{"$error":"#REF!"},{"$error":"#REF!"},{"$error":"#REF!"},{"$error":"#REF!"},{"$error":"#REF!"},{"$error":"#REF!"},{"$error":"#REF!"},{"$error":"#REF!"},{"$error":"#REF!"},{"$error":"#REF!"},{"$error":"#REF!"}]
[42,{"$f":"INDEX(ListSheets,A38)","v":{"$error":"#REF!"}},{"$error":"#REF!"},{"$error":"#REF!"},{"$f":"INDIRECT(\"'\"&B38&\"'!\"&\"h11\")","v":{"$error":"#REF!"}},{"$error":"#REF!"},{"$error":"#REF!"},{"$error":"#REF!"},{"$error":"#REF!"},{"$error":"#REF!"},{"$error":"#REF!"},{"$error":"#REF!"},{"$error":"#REF!"},{"$error":"#REF!"},{"$error":"#REF!"},{"$error":"#REF!"},{"$error":"#REF!"},{"$error":"#REF!"},{"$error":"#REF!"},{"$error":"#REF!"},{"$error":"#REF!"},{"$error":"#REF!"},{"$error":"#REF!"}]
[43,{"$f":"INDEX(ListSheets,A39)","v":{"$error":"#REF!"}},{"$error":"#REF!"},{"$error":"#REF!"},{"$f":"INDIRECT(\"'\"&B39&\"'!\"&\"h11\")","v":{"$error":"#REF!"}},{"$error":"#REF!"},{"$error":"#REF!"},{"$error":"#REF!"},{"$error":"#REF!"},{"$error":"#REF!"},{"$error":"#REF!"},{"$error":"#REF!"},{"$error":"#REF!"},{"$error":"#REF!"},{"$error":"#REF!"},{"$error":"#REF!"},{"$error":"#REF!"},{"$error":"#REF!"},{"$error":"#REF!"},{"$error":"#REF!"},{"$error":"#REF!"},{"$error":"#REF!"},{"$error":"#REF!"}]
[44,{"$f":"INDEX(ListSheets,A40)","v":{"$error":"#REF!"}},{"$error":"#REF!"},{"$error":"#REF!"},{"$f":"INDIRECT(\"'\"&B40&\"'!\"&\"h11\")","v":{"$error":"#REF!"}},{"$error":"#REF!"},{"$error":"#REF!"},{"$error":"#REF!"},{"$error":"#REF!"},{"$error":"#REF!"},{"$error":"#REF!"},{"$error":"#REF!"},{"$error":"#REF!"},{"$error":"#REF!"},{"$error":"#REF!"},{"$error":"#REF!"},{"$error":"#REF!"},{"$error":"#REF!"},{"$error":"#REF!"},{"$error":"#REF!"},{"$error":"#REF!"},{"$error":"#REF!"},{"$error":"#REF!"}]
[45,{"$f":"INDEX(ListSheets,A41)","v":{"$error":"#REF!"}},{"$error":"#REF!"},{"$error":"#REF!"},{"$f":"INDIRECT(\"'\"&B41&\"'!\"&\"h11\")","v":{"$error":"#REF!"}},{"$error":"#REF!"},{"$error":"#REF!"},{"$error":"#REF!"},{"$error":"#REF!"},{"$error":"#REF!"},{"$error":"#REF!"},{"$error":"#REF!"},{"$error":"#REF!"},{"$error":"#REF!"},{"$error":"#REF!"},{"$error":"#REF!"},{"$error":"#REF!"},{"$error":"#REF!"},{"$error":"#REF!"},{"$error":"#REF!"},{"$error":"#REF!"},{"$error":"#REF!"},{"$error":"#REF!"}]
[46,{"$f":"INDEX(ListSheets,A42)","v":{"$error":"#REF!"}},{"$error":"#REF!"},{"$error":"#REF!"},{"$f":"INDIRECT(\"'\"&B42&\"'!\"&\"h11\")","v":{"$error":"#REF!"}},{"$error":"#REF!"},{"$error":"#REF!"},{"$error":"#REF!"},{"$error":"#REF!"},{"$error":"#REF!"},{"$error":"#REF!"},{"$error":"#REF!"},{"$error":"#REF!"},{"$error":"#REF!"},{"$error":"#REF!"},{"$error":"#REF!"},{"$error":"#REF!"},{"$error":"#REF!"},{"$error":"#REF!"},{"$error":"#REF!"},{"$error":"#REF!"},{"$error":"#REF!"},{"$error":"#REF!"}]

{"sheet":"Cover","index":1,"n_rows":70,"n_cols":37,"rows_kept":70,"cut":false,"hidden":false,"merged":[[62,8,62,47],[73,20,73,23],[73,24,73,27],[73,28,73,32],[73,33,73,38],[67,8,67,47],[68,8,68,47],[64,8,64,47],[65,8,65,47],[66,8,66,47],[63,8,63,47],[69,8,69,47],[9,18,9,19],[9,24,9,25],[60,8,60,47],[57,36,58,47],[61,8,61,47],[57,31,58,35],[49,36,50,47],[45,10,46,14],[10,0,10,48],[45,36,46,47],[47,26,48,30],[47,31,48,35],[47,36,48,47],[45,1,46,9],[47,1,48,9],[45,15,46,20],[2,1,7,13],[9,14,9,15],[9,16,9,17],[8,14,8,15],[2,32,7,47],[8,24,8,25],[8,26,8,28],[8,29,8,31],[9,20,9,21],[9,22,9,23],[8,22,8,23],[6,14,7,31],[9,29,9,31],[2,14,5,31],[8,32,9,33],[8,34,9,34],[47,10,48,14],[47,21,48,25],[45,26,46,30],[45,31,46,35],[18,1,44,47],[47,15,48,20],[45,21,46,25],[53,31,54,35],[55,31,56,35],[49,15,50,20],[51,15,52,20],[57,15,58,20],[57,21,58,25],[57,26,58,30],[53,15,54,20],[53,21,54,25],[51,21,52,25],[51,26,52,30],[51,31,52,35],[49,26,50,30],[49,31,50,35],[49,21,50,25],[57,1,58,9],[53,26,54,30],[55,1,56,9],[55,10,56,14],[55,15,56,20],[55,21,56,25],[55,26,56,30],[57,10,58,14],[53,1,54,9],[53,10,54,14],[8,35,9,36],[8,37,9,47],[55,36,56,47],[51,36,52,47],[11,1,17,47],[9,1,9,13],[8,16,8,17],[8,1,8,13],[8,20,8,21],[9,26,9,28],[8,18,8,19],[53,36,54,47],[51,1,52,9],[49,1,50,9],[49,10,50,14],[51,10,52,14]]}
[]
[]
["\n\n","\n\n\n\n\nNISOC",null,null,null,null,null,null,null,null,null,null,null,null,"نگهداشت و افزایش تولید میدان نفتی بینک \nسطح‌الارض \n\nاحداث رديف تراكم گاز در ايستگاه جمع آوري بينك "]
[]
[]
[]
[null,null,null,null,null,null,null,null,null,null,null,null,null,null,"Data Sheets For ON/OFF & Shutdown Valves"]
[]
[null,"شماره پیمان:",null,null,null,null,null,null,null,null,null,null,null,null,"پروژه ",null,"بسته کاری",null,"صادرکننده",null,"تسهیلات",null,"رشته ",null,"نوع مدرک ",null,"سریال",null,null,"نسخه"]
[null,"9184 – 073 - 053",null,null,null,null,null,null,null,null,null,null,null,null,"BK",null,"GCS",null,"PEDCO",null,"120",null,"IN",null,"DT",null,"0010",null,null,"D04"]
["."]
[null,"طرح نگهداشت و افزایش تولید 27 مخزن"]
[]
[]
[]
[]
[]
[]
[null,"DATA SHEETS FOR ON/OFF & SHUTDOWN VALVES\n\nنگهداشت و افزایش تولید میدان نفتی بینک"]
[]
[]
[]
[]
[]
[]
[]
[]
[]
[]
[]
[]
[]
[]
[]
[]
[]
[]
[]
[]
[]
[]
[]
[]
[]
[]
[]
[]
[null,"D04",null,null,null,null,null,null,null,null,"JAN.2025",null,null,null,null,"AFC",null,null,null,null,null,"P.Hajisadeghi",null,null,null,null,"M.Fakharian",null,null,null,null,"S.Faramarzpour"]
[]
[null,"D03",null,null,null,null,null,null,null,null,"NOV.2024",null,null,null,null,"AFC",null,null,null,null,null,"P.Hajisadeghi",null,null,null,null,"M.Fakharian",null,null,null,null,"M.Sadeghian"]
[]
[null,"D02",null,null,null,null,null,null,null,null,"AUG.2024",null,null,null,null,"AFC",null,null,null,null,null,"P.Hajisadeghi",null,null,null,null,"M.Fakharian",null,null,null,null,"M.Sadeghian"]
[]
[null,"D01",null,null,null,null,null,null,null,null,"OCT.2022",null,null,null,null,"IFA",null,null,null,null,null,"P.Hajisadeghi",null,null,null,null,"M.Fakharian",null,null,null,null,"M.Mehrshad"]
[]
[null,"D00",null,null,null,null,null,null,null,null,"MAY.2022",null,null,null,null,"IFC",null,null,null,null,null,"P.Hajisadeghi",null,null,null,null,"M.Fakharian",null,null,null,null,"M.Mehrshad"]
[]
[null,"Rev.",null,null,null,null,null,null,null,null,"Date",null,null,null,null,"Purpose of Issue / Status",null,null,null,null,null,"Prepared by:",null,null,null,null,"Checked by:",null,null,null,null,"Approved by:",null,null,null,null,"CLIENT Approval"]
[]
[null,"Class: 1",null,null,null,null,null,null,null,null,null,null,null,null,null,"CLIENT Doc. Number:    F9Z-708931"]
[null,"status:",null,null,null,null,null,null,"IDC: Inter-Discipline Check"]
[null,null,null,null,null,null,null,null,"IFC: Issued For Comment "]
[null,null,null,null,null,null,null,null,"IFA: Issued For Approval"]
[null,null,null,null,null,null,null,null,"AFD: Approved For Design "]
[null,null,null,null,null,null,null,null,"AFC: Approved For Construction "]
[null,null,null,null,null,null,null,null,"AFP: Approved For Purchase"]
[null,null,null,null,null,null,null,null,"AFQ: Approved For Quotation "]
[null,null,null,null,null,null,null,null,"IFI: Issued For Information"]
[null,null,null,null,null,null,null,null,"AB-R: As-Built for CLIENT Review "]
[null,null,null,null,null,null,null,null,"AB-A: As-Built –Approved "]

{"sheet":"REVISION","index":2,"n_rows":75,"n_cols":37,"rows_kept":75,"cut":false,"hidden":false,"merged":[[0,0,5,10],[74,5,74,7],[74,30,74,32],[65,5,65,7],[64,5,64,7],[67,5,67,7],[66,5,66,7],[69,5,69,7],[68,5,68,7],[71,5,71,7],[70,5,70,7],[73,5,73,7],[72,5,72,7],[68,11,68,13],[69,11,69,13],[70,11,70,13],[68,8,68,10],[69,8,69,10],[70,8,70,10],[72,8,72,10],[69,30,69,32],[70,30,70,32],[71,30,71,32],[72,30,72,32],[73,30,73,32],[39,5,39,7],[39,17,39,19],[40,17,40,19],[39,14,39,16],[40,14,40,16],[40,11,40,13],[43,5,43,7],[42,5,42,7],[41,5,41,7],[41,11,41,13],[42,11,42,13],[43,11,43,13],[41,17,41,19],[42,17,42,19],[43,17,43,19],[39,11,39,13],[39,8,39,10],[41,14,41,16],[42,14,42,16],[43,14,43,16],[40,5,40,7],[55,5,55,7],[44,5,44,7],[38,5,38,7],[37,5,37,7],[37,17,37,19],[38,17,38,19],[37,14,37,16],[38,14,38,16],[37,11,37,13],[38,11,38,13],[37,8,37,10],[38,8,38,10],[36,5,36,7],[35,5,35,7],[35,17,35,19],[36,17,36,19],[35,14,35,16],[36,14,36,16],[35,8,35,10],[36,8,36,10],[35,11,35,13],[36,11,36,13],[31,14,31,16],[32,14,32,16],[31,8,31,10],[32,8,32,10],[34,5,34,7],[33,5,33,7],[33,17,33,19],[34,17,34,19],[33,14,33,16],[34,14,34,16],[33,8,33,10],[34,8,34,10],[33,11,33,13],[34,11,34,13],[34,33,34,35],[31,30,31,32],[43,33,43,35],[12,5,12,7],[14,5,14,7],[13,5,13,7],[16,5,16,7],[15,5,15,7],[18,5,18,7],[17,5,17,7],[20,5,20,7],[23,5,23,7],[26,5,26,7],[25,5,25,7],[26,17,26,19],[28,5,28,7],[27,5,27,7],[27,17,27,19],[28,17,28,19],[27,14,27,16],[28,14,28,16],[32,5,32,7],[31,5,31,7],[31,17,31,19],[42,33,42,35],[35,33,35,35],[36,33,36,35],[37,33,37,35],[38,33,38,35],[39,33,39,35],[35,30,35,32],[36,30,36,32],[40,33,40,35],[41,33,41,35],[37,30,37,32],[38,30,38,32],[39,30,39,32],[40,30,40,32],[41,30,41,32],[42,30,42,32],[31,33,31,35],[30,30,30,32],[30,27,30,29],[29,17,29,19],[30,17,30,19],[29,30,29,32],[33,33,33,35],[26,33,26,35],[27,33,27,35],[28,33,28,35],[29,33,29,35],[30,33,30,35],[31,27,31,29],[32,33,32,35],[32,17,32,19],[27,21,27,23],[28,21,28,23],[29,24,29,26],[30,24,30,26],[29,27,29,29],[32,30,32,32],[33,30,33,32],[26,36,26,39],[27,36,27,39],[28,36,28,39],[29,14,29,16],[19,5,19,7],[22,5,22,7],[21,5,21,7],[24,5,24,7],[30,14,30,16],[29,11,29,13],[30,11,30,13],[30,8,30,10],[27,11,27,13],[28,11,28,13],[26,14,26,16],[30,5,30,7],[29,5,29,7],[23,24,23,26],[24,24,24,26],[25,24,25,26],[26,24,26,26],[25,17,25,19],[13,1,13,4],[14,1,14,4],[15,1,15,4],[16,1,16,4],[17,1,17,4],[18,1,18,4],[19,1,19,4],[20,1,20,4],[21,1,21,4],[22,1,22,4],[23,1,23,4],[24,1,24,4],[25,1,25,4],[26,1,26,4],[27,1,27,4],[28,1,28,4],[29,1,29,4],[30,1,30,4],[11,5,11,7],[11,27,11,29],[12,27,12,29],[13,27,13,29],[0,11,3,28],[4,11,5,28],[6,11,6,12],[6,13,6,14],[7,26,7,28],[10,27,10,29],[8,1,9,39],[10,5,10,7],[10,30,10,32],[11,30,11,32],[10,21,10,23],[10,24,10,26],[11,24,11,26],[12,24,12,26],[13,24,13,26],[11,21,11,23],[12,21,12,23],[13,21,13,23],[10,33,10,35],[11,33,11,35],[45,5,45,7],[57,5,57,7],[56,5,56,7],[59,5,59,7],[65,8,65,10],[66,8,66,10],[67,8,67,10],[58,5,58,7],[61,5,61,7],[60,5,60,7],[63,5,63,7],[62,5,62,7],[63,8,63,10],[47,5,47,7],[46,5,46,7],[49,5,49,7],[48,5,48,7],[51,5,51,7],[50,5,50,7],[53,5,53,7],[52,5,52,7],[54,5,54,7],[62,11,62,13],[63,11,63,13],[64,11,64,13],[65,11,65,13],[66,11,66,13],[67,11,67,13],[51,8,51,10],[52,8,52,10],[62,8,62,10],[57,17,57,19],[58,17,58,19],[56,14,56,16],[57,14,57,16],[58,14,58,16],[50,11,50,13],[51,11,51,13],[52,11,52,13],[53,11,53,13],[54,11,54,13],[50,14,50,16],[51,14,51,16],[52,14,52,16],[53,14,53,16],[54,14,54,16],[55,14,55,16],[60,17,60,19],[61,17,61,19],[62,17,62,19],[63,17,63,19],[64,17,64,19],[65,17,65,19],[44,14,44,16],[45,14,45,16],[46,14,46,16],[47,14,47,16],[48,14,48,16],[49,14,49,16],[45,17,45,19],[46,17,46,19],[47,17,47,19],[48,17,48,19],[49,17,49,19],[50,17,50,19],[51,17,51,19],[52,17,52,19],[53,17,53,19],[54,17,54,19],[55,17,55,19],[56,17,56,19],[53,36,53,39],[54,36,54,39],[55,36,55,39],[56,36,56,39],[57,36,57,39],[40,36,40,39],[41,36,41,39],[42,36,42,39],[43,36,43,39],[44,36,44,39],[45,36,45,39],[46,36,46,39],[47,36,47,39],[48,36,48,39],[49,36,49,39],[50,36,50,39],[12,33,12,35],[13,33,13,35],[14,33,14,35],[15,33,15,35],[16,33,16,35],[17,33,17,35],[18,33,18,35],[13,36,13,39],[44,33,44,35],[37,36,37,39],[38,36,38,39],[39,36,39,39],[29,36,29,39],[30,36,30,39],[19,33,19,35],[20,33,20,35],[21,33,21,35],[22,33,22,35],[23,33,23,35],[24,33,24,35],[25,33,25,35],[23,36,23,39],[24,36,24,39],[25,36,25,39],[45,33,45,35],[46,33,46,35],[47,33,47,35],[53,33,53,35],[54,33,54,35],[55,33,55,35],[56,33,56,35],[14,36,14,39],[15,36,15,39],[16,36,16,39],[17,36,17,39],[18,36,18,39],[19,36,19,39],[20,36,20,39],[21,36,21,39],[22,36,22,39],[31,36,31,39],[32,36,32,39],[33,36,33,39],[34,36,34,39],[35,36,35,39],[36,36,36,39],[51,36,51,39],[52,36,52,39],[57,33,57,35],[48,33,48,35],[49,33,49,35],[50,33,50,35],[51,33,51,35],[52,33,52,35],[72,33,72,35],[73,33,73,35],[74,33,74,35],[66,33,66,35],[67,33,67,35],[68,33,68,35],[69,33,69,35],[13,30,13,32],[14,30,14,32],[15,30,15,32],[49,30,49,32],[50,30,50,32],[43,30,43,32],[44,30,44,32],[45,30,45,32],[46,30,46,32],[16,30,16,32],[17,30,17,32],[18,30,18,32],[19,30,19,32],[20,30,20,32],[21,30,21,32],[22,30,22,32],[34,30,34,32],[48,30,48,32],[23,30,23,32],[24,30,24,32],[25,30,25,32],[26,30,26,32],[27,30,27,32],[28,30,28,32],[65,30,65,32],[66,30,66,32],[67,30,67,32],[68,30,68,32],[51,30,51,32],[52,30,52,32],[53,30,53,32],[54,30,54,32],[71,33,71,35],[70,33,70,35],[63,30,63,32],[64,30,64,32],[57,30,57,32],[58,30,58,32],[59,30,59,32],[62,33,62,35],[63,33,63,35],[64,33,64,35],[65,33,65,35],[58,33,58,35],[59,33,59,35],[60,33,60,35],[61,33,61,35],[55,30,55,32],[51,27,51,29],[52,27,52,29],[35,27,35,29],[36,27,36,29],[37,27,37,29],[44,27,44,29],[45,27,45,29],[14,27,14,29],[15,27,15,29],[16,27,16,29],[17,27,17,29],[18,27,18,29],[19,27,19,29],[23,27,23,29],[24,27,24,29],[25,27,25,29],[22,27,22,29],[46,27,46,29],[47,27,47,29],[48,27,48,29],[49,27,49,29],[20,27,20,29],[21,27,21,29],[50,27,50,29],[38,27,38,29],[39,27,39,29],[26,27,26,29],[32,27,32,29],[27,27,27,29],[28,27,28,29],[33,27,33,29],[34,27,34,29],[42,27,42,29],[43,27,43,29],[40,27,40,29],[41,27,41,29],[74,27,74,29],[53,27,53,29],[54,27,54,29],[55,27,55,29],[56,27,56,29],[57,27,57,29],[69,27,69,29],[70,27,70,29],[71,27,71,29],[72,27,72,29],[62,27,62,29],[63,27,63,29],[64,27,64,29],[65,27,65,29],[58,27,58,29],[59,27,59,29],[60,27,60,29],[61,27,61,29],[66,27,66,29],[67,27,67,29],[68,27,68,29],[73,27,73,29],[14,24,14,26],[15,24,15,26],[16,24,16,26],[17,24,17,26],[18,24,18,26],[19,24,19,26],[20,24,20,26],[21,24,21,26],[22,24,22,26],[35,24,35,26],[27,24,27,26],[28,24,28,26],[36,24,36,26],[37,24,37,26],[38,24,38,26],[39,24,39,26],[40,24,40,26],[41,24,41,26],[31,24,31,26],[32,24,32,26],[33,24,33,26],[34,24,34,26],[42,24,42,26],[43,24,43,26],[44,24,44,26],[45,24,45,26],[46,24,46,26],[47,24,47,26],[70,24,70,26],[53,24,53,26],[54,24,54,26],[55,24,55,26],[56,24,56,26],[57,24,57,26],[58,24,58,26],[59,24,59,26],[60,24,60,26],[61,24,61,26],[48,24,48,26],[49,24,49,26],[50,24,50,26],[51,24,51,26],[52,24,52,26],[14,21,14,23],[15,21,15,23],[42,21,42,23],[16,21,16,23],[17,21,17,23],[18,21,18,23],[19,21,19,23],[20,21,20,23],[21,21,21,23],[22,21,22,23],[23,21,23,23],[24,21,24,23],[25,21,25,23],[31,21,31,23],[32,21,32,23],[26,21,26,23],[29,21,29,23],[30,21,30,23],[33,21,33,23],[34,21,34,23],[35,21,35,23],[36,21,36,23],[37,21,37,23],[38,21,38,23],[71,24,71,26],[72,24,72,26],[73,24,73,26],[74,24,74,26],[66,24,66,26],[67,24,67,26],[68,24,68,26],[69,24,69,26],[50,21,50,23],[62,24,62,26],[63,24,63,26],[64,24,64,26],[65,24,65,26],[53,21,53,23],[54,21,54,23],[55,21,55,23],[56,21,56,23],[51,21,51,23],[52,21,52,23],[39,21,39,23],[40,21,40,23],[41,21,41,23],[44,21,44,23],[43,21,43,23],[59,17,59,19],[44,17,44,19],[71,17,71,19],[62,21,62,23],[63,21,63,23],[64,21,64,23],[65,21,65,23],[66,21,66,23],[67,21,67,23],[68,21,68,23],[69,21,69,23],[71,21,71,23],[57,21,57,23],[58,21,58,23],[59,21,59,23],[60,21,60,23],[61,21,61,23],[70,17,70,19],[45,21,45,23],[46,21,46,23],[47,21,47,23],[48,21,48,23],[49,21,49,23],[70,21,70,23],[72,21,72,23],[73,21,73,23],[74,21,74,23],[10,17,10,19],[11,17,11,19],[12,17,12,19],[13,17,13,19],[14,17,14,19],[15,17,15,19],[72,17,72,19],[16,17,16,19],[17,17,17,19],[18,17,18,19],[19,17,19,19],[20,17,20,19],[21,17,21,19],[22,17,22,19],[23,17,23,19],[24,17,24,19],[68,17,68,19],[69,17,69,19],[66,17,66,19],[67,17,67,19],[73,17,73,19],[74,17,74,19],[10,14,10,16],[11,14,11,16],[12,14,12,16],[13,14,13,16],[14,14,14,16],[15,14,15,16],[16,14,16,16],[74,14,74,16],[17,14,17,16],[18,14,18,16],[19,14,19,16],[20,14,20,16],[21,14,21,16],[22,14,22,16],[23,14,23,16],[24,14,24,16],[25,14,25,16],[68,14,68,16],[69,14,69,16],[59,14,59,16],[60,14,60,16],[10,11,10,13],[11,11,11,13],[12,11,12,13],[13,11,13,13],[14,11,14,13],[15,11,15,13],[19,11,19,13],[20,11,20,13],[21,11,21,13],[65,14,65,16],[66,14,66,16],[67,14,67,16],[59,11,59,13],[44,11,44,13],[45,11,45,13],[46,11,46,13],[47,11,47,13],[48,11,48,13],[49,11,49,13],[60,11,60,13],[61,11,61,13],[72,14,72,16],[73,14,73,16],[70,14,70,16],[71,14,71,16],[63,14,63,16],[64,14,64,16],[16,11,16,13],[17,11,17,13],[18,11,18,13],[22,11,22,13],[23,11,23,13],[24,11,24,13],[25,11,25,13],[26,11,26,13],[31,11,31,13],[32,11,32,13],[71,11,71,13],[72,11,72,13],[55,11,55,13],[56,11,56,13],[57,11,57,13],[58,11,58,13],[61,14,61,16],[62,14,62,16],[73,11,73,13],[74,11,74,13],[10,8,10,10],[11,8,11,10],[12,8,12,10],[13,8,13,10],[14,8,14,10],[15,8,15,10],[57,8,57,10],[26,8,26,10],[27,8,27,10],[16,8,16,10],[17,8,17,10],[18,8,18,10],[19,8,19,10],[20,8,20,10],[21,8,21,10],[28,8,28,10],[29,8,29,10],[71,8,71,10],[22,8,22,10],[23,8,23,10],[24,8,24,10],[25,8,25,10],[73,8,73,10],[74,8,74,10],[40,8,40,10],[41,8,41,10],[42,8,42,10],[43,8,43,10],[44,8,44,10],[45,8,45,10],[46,8,46,10],[47,8,47,10],[48,8,48,10],[53,8,53,10],[54,8,54,10],[55,8,55,10],[56,8,56,10],[58,8,58,10],[59,8,59,10],[60,8,60,10],[61,8,61,10],[49,8,49,10],[50,8,50,10],[64,8,64,10],[31,1,31,4],[32,1,32,4],[33,1,33,4],[34,1,34,4],[35,1,35,4],[36,1,36,4],[37,1,37,4],[67,1,67,4],[68,1,68,4],[65,1,65,4],[66,1,66,4],[38,1,38,4],[39,1,39,4],[40,1,40,4],[41,1,41,4],[42,1,42,4],[43,1,43,4],[44,1,44,4],[45,1,45,4],[46,1,46,4],[47,1,47,4],[48,1,48,4],[69,1,69,4],[70,1,70,4],[71,1,71,4],[72,1,72,4],[73,1,73,4],[74,1,74,4],[49,1,49,4],[50,1,50,4],[51,1,51,4],[52,1,52,4],[53,1,53,4],[54,1,54,4],[55,1,55,4],[56,1,56,4],[57,1,57,4],[58,1,58,4],[59,1,59,4],[60,1,60,4],[61,1,61,4],[62,1,62,4],[63,1,63,4],[64,1,64,4],[6,1,6,10],[7,1,7,10],[10,1,10,4],[11,1,11,4],[12,1,12,4],[10,36,10,39],[11,36,11,39],[12,36,12,39],[6,17,6,18],[6,19,6,20],[6,21,6,22],[6,23,6,25],[6,26,6,28],[7,11,7,12],[7,13,7,14],[7,15,7,16],[7,17,7,18],[7,19,7,20],[7,21,7,22],[7,23,7,25],[6,15,6,16],[12,30,12,32],[6,29,7,30],[6,31,7,31],[6,32,7,33],[6,34,7,39],[72,36,72,39],[73,36,73,39],[74,36,74,39],[58,36,58,39],[59,36,59,39],[60,36,60,39],[61,36,61,39],[62,36,62,39],[63,36,63,39],[64,36,64,39],[65,36,65,39],[66,36,66,39],[67,36,67,39],[68,36,68,39],[69,36,69,39],[70,36,70,39],[71,36,71,39],[56,30,56,32],[60,30,60,32],[61,30,61,32],[62,30,62,32],[47,30,47,32]]}
["\n\n\n\nNISOC",null,null,null,null,null,null,null,null,null,null,"نگهداشت و افزایش تولید میدان نفتی بینک \nسطح‌الارض \n\nاحداث رديف تراكم گاز در ايستگاه جمع آوري بينك "]
[]
[]
[]
[null,null,null,null,null,null,null,null,null,null,null,{"$f":"CONCATENATE(Cover!O7)","v":"Data Sheets For ON/OFF & Shutdown Valves"}]
[]
[null,"شماره پیمان:",null,null,null,null,null,null,null,null,null,"پروژه ",null,"بسته کاری",null,"صادرکننده",null,"تسهیلات",null,"رشته ",null,"نوع مدرک ",null,"سریال",null,null,"نسخه"]
[null,"9184 – 073 - 053",null,null,null,null,null,null,null,null,null,"BK",null,"GCS",null,"PEDCO",null,"120",null,{"$f":"Cover!W10","v":"IN"},null,{"$f":"Cover!Y10","v":"DT"},null,{"$f":"Cover!AA10","v":"0010"},null,null,{"$f":"Cover!AD10","v":"D04"}]
[null,"REVISION RECORD SHEET"]
[]
[null,"Page",null,null,null,"D00",null,null,"D01",null,null,"D02",null,null,"D03",null,null,"D04",null,null,null,"Page",null,null,"D00",null,null,"D01",null,null,"D02",null,null,"D03",null,null,"D04"]
[null,1,null,null,null,"X",null,null,"X",null,null,"X",null,null,"X",null,null,"X",null,null,null,65]
[null,2,null,null,null,"X",null,null,"X",null,null,"X",null,null,"X",null,null,"X",null,null,null,66]
[null,3,null,null,null,"X",null,null,"X",null,null,"X",null,null,null,null,null,null,null,null,null,67]
[null,4,null,null,null,"X",null,null,"X",null,null,"X",null,null,"X",null,null,null,null,null,null,68]
[null,5,null,null,null,"X",null,null,"X",null,null,"X",null,null,"X",null,null,null,null,null,null,69]
[null,6,null,null,null,"X",null,null,"X",null,null,"X",null,null,"X",null,null,null,null,null,null,70]
[null,7,null,null,null,"X",null,null,"X",null,null,"X",null,null,"X",null,null,null,null,null,null,71]
[null,8,null,null,null,"X",null,null,"X",null,null,"X",null,null,"X",null,null,null,null,null,null,72]
[null,9,null,null,null,"X",null,null,"X",null,null,"X",null,null,"X",null,null,null,null,null,null,73]
[null,10,null,null,null,"X",null,null,"X",null,null,"X",null,null,"X",null,null,null,null,null,null,74]
[null,11,null,null,null,"X",null,null,"X",null,null,"X",null,null,"X",null,null,null,null,null,null,75]
[null,12,null,null,null,"X",null,null,"X",null,null,"X",null,null,"X",null,null,null,null,null,null,76]
[null,13,null,null,null,"X",null,null,"X",null,null,"X",null,null,"X",null,null,null,null,null,null,77]
[null,14,null,null,null,"X",null,null,"X",null,null,"X",null,null,"X",null,null,null,null,null,null,78]
[null,15,null,null,null,"X",null,null,"X",null,null,"X",null,null,"X",null,null,null,null,null,null,79]
[null,16,null,null,null,"X",null,null,"X",null,null,"X",null,null,"X",null,null,null,null,null,null,80]
[null,17,null,null,null,"X",null,null,"X",null,null,"X",null,null,"X",null,null,null,null,null,null,81]
[null,18,null,null,null,"X",null,null,"X",null,null,"X",null,null,"X",null,null,null,null,null,null,82]
[null,19,null,null,null,"X",null,null,"X",null,null,"X",null,null,"X",null,null,null,null,null,null,83]
[null,20,null,null,null,"X",null,null,"X",null,null,"X",null,null,"X",null,null,null,null,null,null,84]
[null,21,null,null,null,"X",null,null,"X",null,null,"X",null,null,"X",null,null,null,null,null,null,85]
[null,22,null,null,null,"X",null,null,"X",null,null,"X",null,null,"X",null,null,null,null,null,null,86]
[null,23,null,null,null,"X",null,null,"X",null,null,"X",null,null,"X",null,null,null,null,null,null,87]
[null,24,null,null,null,"X",null,null,"X",null,null,"X",null,null,"X",null,null,null,null,null,null,88]
[null,25,null,null,null,"X",null,null,"X",null,null,"X",null,null,"X",null,null,null,null,null,null,89]
[null,26,null,null,null,"X",null,null,"X",null,null,"X",null,null,"X",null,null,null,null,null,null,90]
[null,27,null,null,null,"X",null,null,"X",null,null,"X",null,null,"X",null,null,null,null,null,null,91]
[null,28,null,null,null,"X",null,null,"X",null,null,"X",null,null,"X",null,null,null,null,null,null,92]
[null,29,null,null,null,"X",null,null,"X",null,null,"X",null,null,"X",null,null,null,null,null,null,93]
[null,30,null,null,null,"X",null,null,"X",null,null,"X",null,null,"X",null,null,null,null,null,null,94]
[null,31,null,null,null,"X",null,null,"X",null,null,"X",null,null,"X",null,null,null,null,null,null,95]
[null,32,null,null,null,"X",null,null,"X",null,null,"X",null,null,"X",null,null,null,null,null,null,96]
[null,33,null,null,null,"X",null,null,"X",null,null,"X",null,null,"X",null,null,null,null,null,null,97]
[null,34,null,null,null,"X",null,null,"X",null,null,"X",null,null,"X",null,null,null,null,null,null,98]
[null,35,null,null,null,"X",null,null,"X",null,null,"X",null,null,"X",null,null,null,null,null,null,99]
[null,36,null,null,null,"X",null,null,"X",null,null,"X",null,null,"X",null,null,null,null,null,null,100]
[null,37,null,null,null,"X",null,null,"X",null,null,"X",null,null,"X",null,null,null,null,null,null,101]
[null,38,null,null,null,null,null,null,null,null,null,"X",null,null,"X",null,null,null,null,null,null,102]
[null,39,null,null,null,null,null,null,null,null,null,"X",null,null,"X",null,null,null,null,null,null,103]
[null,40,null,null,null,null,null,null,null,null,null,"X",null,null,"X",null,null,null,null,null,null,104]
[null,41,null,null,null,null,null,null,null,null,null,"X",null,null,"X",null,null,null,null,null,null,105]
[null,42,null,null,null,null,null,null,null,null,null,"X",null,null,"X",null,null,null,null,null,null,106]
[null,43,null,null,null,null,null,null,null,null,null,"X",null,null,"X",null,null,null,null,null,null,107]
[null,44,null,null,null,null,null,null,null,null,null,"X",null,null,"X",null,null,null,null,null,null,108]
[null,45,null,null,null,null,null,null,null,null,null,null,null,null,null,null,null,null,null,null,null,109]
[null,46,null,null,null,null,null,null,null,null,null,null,null,null,null,null,null,null,null,null,null,110]
[null,47,null,null,null,null,null,null,null,null,null,null,null,null,null,null,null,null,null,null,null,111]
[null,48,null,null,null,null,null,null,null,null,null,null,null,null,null,null,null,null,null,null,null,112]
[null,49,null,null,null,null,null,null,null,null,null,null,null,null,null,null,null,null,null,null,null,113]
[null,50,null,null,null,null,null,null,null,null,null,null,null,null,null,null,null,null,null,null,null,114]
[null,51,null,null,null,null,null,null,null,null,null,null,null,null,null,null,null,null,null,null,null,115]
[null,52,null,null,null,null,null,null,null,null,null,null,null,null,null,null,null,null,null,null,null,116]
[null,53,null,null,null,null,null,null,null,null,null,null,null,null,null,null,null,null,null,null,null,117]
[null,54,null,null,null,null,null,null,null,null,null,null,null,null,null,null,null,null,null,null,null,118]
[null,55,null,null,null,null,null,null,null,null,null,null,null,null,null,null,null,null,null,null,null,119]
[null,56,null,null,null,null,null,null,null,null,null,null,null,null,null,null,null,null,null,null,null,120]
[null,57,null,null,null,null,null,null,null,null,null,null,null,null,null,null,null,null,null,null,null,121]
[null,58,null,null,null,null,null,null,null,null,null,null,null,null,null,null,null,null,null,null,null,122]
[null,59,null,null,null,null,null,null,null,null,null,null,null,null,null,null,null,null,null,null,null,123]
[null,60,null,null,null,null,null,null,null,null,null,null,null,null,null,null,null,null,null,null,null,124]
[null,61,null,null,null,null,null,null,null,null,null,null,null,null,null,null,null,null,null,null,null,125]
[null,62,null,null,null,null,null,null,null,null,null,null,null,null,null,null,null,null,null,null,null,126]
[null,63,null,null,null,null,null,null,null,null,null,null,null,null,null,null,null,null,null,null,null,127]
[null,64,null,null,null,null,null,null,null,null,null,null,null,null,null,null,null,null,null,null,null,128]

{"sheet":"REFERENCE","index":3,"n_rows":45,"n_cols":26,"rows_kept":45,"cut":false,"hidden":false,"merged":[[10,2,10,17],[18,2,18,19],[19,2,19,19],[20,2,20,19],[18,22,18,34],[19,22,19,34],[20,22,20,34],[11,22,11,35],[11,2,11,17],[10,22,10,35],[13,2,13,17],[13,22,13,35],[14,2,14,17],[14,22,14,35],[16,2,16,17],[16,22,16,35],[44,2,44,21],[44,22,44,34],[43,22,43,34],[43,2,43,19],[42,22,42,34],[42,2,42,19],[41,22,41,34],[41,2,41,19],[40,22,40,34],[40,2,40,19],[39,22,39,34],[39,2,39,19],[38,22,38,34],[38,2,38,19],[37,22,37,34],[37,2,37,19],[36,22,36,34],[36,2,36,19],[35,22,35,34],[35,2,35,19],[34,22,34,34],[34,2,34,19],[33,22,33,34],[33,2,33,19],[32,22,32,34],[32,2,32,19],[31,22,31,34],[31,2,31,19],[30,22,30,34],[30,2,30,19],[29,22,29,34],[29,2,29,19],[28,22,28,34],[28,2,28,19],[27,22,27,34],[27,2,27,19],[26,22,26,34],[26,2,26,19],[25,22,25,34],[25,2,25,19],[12,22,12,35],[24,22,24,34],[24,2,24,19],[12,2,12,17],[23,22,23,34],[23,2,23,19],[22,22,22,34],[22,2,22,19],[21,22,21,34],[21,2,21,19],[15,2,15,17],[15,22,15,35],[7,25,7,27],[8,0,8,38],[6,20,6,21],[6,22,6,24],[6,25,6,27],[7,0,7,9],[7,10,7,11],[7,12,7,13],[7,14,7,15],[7,16,7,17],[7,18,7,19],[0,0,5,9],[0,10,3,27],[0,28,5,38],[4,10,5,27],[6,0,6,9],[6,10,6,11],[6,12,6,13],[6,14,6,15],[6,16,6,17],[6,18,6,19],[6,28,7,29],[6,30,7,30],[6,31,7,32],[6,33,7,38],[7,20,7,21],[7,22,7,24]]}
["\n\n\n\nNISOC",null,null,null,null,null,null,null,null,null,"نگهداشت و افزایش تولید میدان نفتی بینک \nسطح‌الارض \n\nاحداث رديف تراكم گاز در ايستگاه جمع آوري بينك "]
[]
[]
[]
[null,null,null,null,null,null,null,null,null,null,{"$f":"CONCATENATE(Cover!O7)","v":"Data Sheets For ON/OFF & Shutdown Valves"}]
[]
["شماره پیمان:",null,null,null,null,null,null,null,null,null,"پروژه ",null,"بسته کاری",null,"صادرکننده",null,"تسهیلات",null,"رشته ",null,"نوع مدرک ",null,"سریال",null,null,"نسخه"]
["9184 – 073 - 053",null,null,null,null,null,null,null,null,null,"BK",null,"GCS",null,"PEDCO",null,"120",null,{"$f":"Cover!W10","v":"IN"},null,{"$f":"Cover!Y10","v":"DT"},null,{"$f":"Cover!AA10","v":"0010"},null,null,{"$f":"Cover!AD10","v":"D04"}]
[]
[null,"REFERENCE DOCUMENTS :"]
[null,null,"Specification For Instrumentation",null,null,null,null,null,null,null,null,null,null,null,null,null,null,null,null,null,null,null,"BK-GNRAL-PEDCO-000-IN-SP-0001"]
[null,null,"Process Basis Of Design",null,null,null,null,null,null,null,null,null,null,null,null,null,null,null,null,null,null,null,"BK-GNRAL-PEDCO-000-PR-DB-0001"]
[null,null,"Piping Material Specification ",null,null,null,null,null,null,null,null,null,null,null,null,null,null,null,null,null,null,null,"BK-GCS-PEDCO-120-PI-SP-0001"]
[null,null,"Instrument & Control System Design Criteria",null,null,null,null,null,null,null,null,null,null,null,null,null,null,null,null,null,null,null,"BK-GCS-PEDCO-120-IN-DC-0002"]
[null,null,"Specification For Hazardous Area Classification",null,null,null,null,null,null,null,null,null,null,null,null,null,null,null,null,null,null,null,"BK-GNRAL-PEDCO-000-SA-SP-0002"]
[null,null,"Specification For On-off /Shut Down Valves(ESDV/MOV)",null,null,null,null,null,null,null,null,null,null,null,null,null,null,null,null,null,null,null,"BK-GNRAL-PEDCO-000-IN-SP-0006"]
[null,null,"Specification For Painting",null,null,null,null,null,null,null,null,null,null,null,null,null,null,null,null,null,null,null,"BK-GNRAL-PEDCO-000-PI-SP-0006"]
[]
[null,null,"Symbol & Legend For PFD and P&ID",null,null,null,null,null,null,null,null,null,null,null,null,null,null,null,null,null,null,null,"BK-GCS-PEDCO-120-PR-PI-0001"]
[null,null,"P&ID - Gas Compression Inlet Gas Pipeline (Binak)",null,null,null,null,null,null,null,null,null,null,null,null,null,null,null,null,null,null,null,"BK-GCS-PEDCO-120-PR-PI-0002"]
[null,null,"P&ID - Gas Compression Inlet Gas Pipeline (Golkhari)",null,null,null,null,null,null,null,null,null,null,null,null,null,null,null,null,null,null,null,"BK-GCS-PEDCO-120-PR-PI-0003"]
[null,null,"P&ID - Slug Catcher System",null,null,null,null,null,null,null,null,null,null,null,null,null,null,null,null,null,null,null,"BK-GCS-PEDCO-120-PR-PI-0004"]
[null,null,"P&ID - Gas Compression Inlet Knock Out Drum",null,null,null,null,null,null,null,null,null,null,null,null,null,null,null,null,null,null,null,"BK-GCS-PEDCO-120-PR-PI-0005"]
[null,null,"P&ID - 1st Stage Gas Compression Suction Drums",null,null,null,null,null,null,null,null,null,null,null,null,null,null,null,null,null,null,null,"BK-GCS-PEDCO-120-PR-PI-0006"]
[null,null,"P&ID - 1st Stage Gas Compression Compressors",null,null,null,null,null,null,null,null,null,null,null,null,null,null,null,null,null,null,null,"BK-GCS-PEDCO-120-PR-PI-0007"]
[null,null,"P&ID - 1st Stage Gas Compression  Air Coolers",null,null,null,null,null,null,null,null,null,null,null,null,null,null,null,null,null,null,null,"BK-GCS-PEDCO-120-PR-PI-0008"]
[null,null,"P&ID - 2nd Stage Gas Compression Suction Drums",null,null,null,null,null,null,null,null,null,null,null,null,null,null,null,null,null,null,null,"BK-GCS-PEDCO-120-PR-PI-0009"]
[null,null,"P&ID - 2nd Stage Gas Compression Compressors",null,null,null,null,null,null,null,null,null,null,null,null,null,null,null,null,null,null,null,"BK-GCS-PEDCO-120-PR-PI-0010"]
[null,null,"P&ID - 2nd Stage Gas Compression  Air Coolers",null,null,null,null,null,null,null,null,null,null,null,null,null,null,null,null,null,null,null,"BK-GCS-PEDCO-120-PR-PI-0011"]
[null,null,"P&ID - 2nd Stage Gas Compression Discharge Drum ",null,null,null,null,null,null,null,null,null,null,null,null,null,null,null,null,null,null,null,"BK-GCS-PEDCO-120-PR-PI-0012"]
[null,null,"P&ID - Gas Compression Dehydration Package",null,null,null,null,null,null,null,null,null,null,null,null,null,null,null,null,null,null,null,"BK-GCS-PEDCO-120-PR-PI-0013"]
[null,null,"P&ID - Lean Glycol Storage Tank ",null,null,null,null,null,null,null,null,null,null,null,null,null,null,null,null,null,null,null,"BK-GCS-PEDCO-120-PR-PI-0014"]
[null,null,"P&ID - Instrument & Plant Air System ",null,null,null,null,null,null,null,null,null,null,null,null,null,null,null,null,null,null,null,"BK-GCS-PEDCO-120-PR-PI-0015"]
[null,null,"P&ID - Nitrogen Generation System",null,null,null,null,null,null,null,null,null,null,null,null,null,null,null,null,null,null,null,"BK-GCS-PEDCO-120-PR-PI-0016"]
[null,null,"P&ID - Close Drain System",null,null,null,null,null,null,null,null,null,null,null,null,null,null,null,null,null,null,null,"BK-GCS-PEDCO-120-PR-PI-0017"]
[null,null,"P&ID - Corrosion Inhibitor Package ",null,null,null,null,null,null,null,null,null,null,null,null,null,null,null,null,null,null,null,"BK-GCS-PEDCO-120-PR-PI-0018"]
[null,null,"P&ID - Methanol Injection Package",null,null,null,null,null,null,null,null,null,null,null,null,null,null,null,null,null,null,null,"BK-GCS-PEDCO-120-PR-PI-0019"]
[null,null,"P&ID - LP Flare System",null,null,null,null,null,null,null,null,null,null,null,null,null,null,null,null,null,null,null,"BK-GCS-PEDCO-120-PR-PI-0020"]
[null,null,"P&ID - Oily Water Sewer",null,null,null,null,null,null,null,null,null,null,null,null,null,null,null,null,null,null,null,"BK-GCS-PEDCO-120-PR-PI-0021"]
[null,null,"P&ID - Fuel Gas System",null,null,null,null,null,null,null,null,null,null,null,null,null,null,null,null,null,null,null,"BK-GCS-PEDCO-120-PR-PI-0022"]
[null,null,"P&ID - Diesel Oil System",null,null,null,null,null,null,null,null,null,null,null,null,null,null,null,null,null,null,null,"BK-GCS-PEDCO-120-PR-PI-0023"]
[null,null,"P&ID - Potable Water System",null,null,null,null,null,null,null,null,null,null,null,null,null,null,null,null,null,null,null,"BK-GCS-PEDCO-120-PR-PI-0024"]
[null,null,"P&ID -  Glycol Sump Drum",null,null,null,null,null,null,null,null,null,null,null,null,null,null,null,null,null,null,null,"BK-GCS-PEDCO-120-PR-PI-0025"]
[null,null,"P&ID - Fire Water Network",null,null,null,null,null,null,null,null,null,null,null,null,null,null,null,null,null,null,null,"BK-GCS-PEDCO-120-SA-PI-0001"]
[null,null,"P&ID - Total Flooding System For Extension of Existing Elect. Building   ",null,null,null,null,null,null,null,null,null,null,null,null,null,null,null,null,null,null,null,"BK-GCS-PEDCO-120-SA-PI-0002"]

{"sheet":"Notes","index":4,"n_rows":65,"n_cols":28,"rows_kept":65,"cut":false,"hidden":false,"merged":[[63,3,63,41],[64,3,64,41],[8,20,8,21],[8,16,8,17],[8,18,8,19],[8,12,8,13],[8,14,8,15],[7,32,8,32],[7,33,8,34],[8,22,8,23],[8,24,8,26],[8,27,8,29],[17,3,18,38],[29,3,30,38],[62,3,62,41],[11,3,12,38],[23,3,25,38],[1,3,6,11],[1,30,6,41],[7,3,7,11],[8,3,8,11],[7,30,8,31],[7,20,7,21],[1,12,4,29],[5,12,6,29],[7,12,7,13],[7,14,7,15],[7,16,7,17],[7,22,7,23],[7,24,7,26],[7,27,7,29],[7,18,7,19],[34,3,35,38],[51,1,51,41],[52,1,52,41],[53,1,53,41],[55,1,55,41],[50,3,50,41],[47,6,47,41],[48,5,48,16],[49,6,49,41],[40,3,41,38],[43,3,44,41],[45,3,46,41],[56,1,56,41],[61,3,61,40],[60,1,60,41],[57,1,57,41],[58,1,58,41],[59,1,59,41]]}
[]
[null,null,null,null,null,null,null,null,null,null,null,null,"نگهداشت و افزایش تولید میدان نفتی بینک \nسطح‌الارض \n\nاحداث رديف تراكم گاز در ايستگاه جمع آوري بينك "]
[]
[]
[]
[null,null,null,null,null,null,null,null,null,null,null,null,{"$f":"CONCATENATE(Cover!O7)","v":"Data Sheets For ON/OFF & Shutdown Valves"}]
[]
[null,null,null,"شماره پیمان:",null,null,null,null,null,null,null,null,"پروژه ",null,"بسته کاری",null,"صادرکننده",null,"تسهیلات",null,"رشته ",null,"نوع مدرک ",null,"سریال",null,null,"نسخه"]
[null,null,null,"9184 – 073 - 053",null,null,null,null,null,null,null,null,"BK",null,"GCS",null,"PEDCO",null,"120",null,{"$f":"Cover!W10","v":"IN"},null,{"$f":"Cover!Y10","v":"DT"},null,{"$f":"Cover!AA10","v":"0010"},null,null,{"$f":"Cover!AD10","v":"D04"}]
[]
[null,null,null,"GENERAL NOTES:"]
[null,null,null,"1.  Calculations shall be provided for each completely piped actuated valve assembly (including solenoid valve), the stroking times i.e. to close and to open."]
[]
[null,null,null,"2. The duty, failure action and stroke time shall all be approved by the Purchaser."]
[]
[null,null,null,"3. The actuator shall be designed to operate the valve through its full stroke."]
[]
[null,null,null,"4. The maximum valve stroking time to achieve the safety position shall be defined according to size of the body (5 seconds for body until 4\", 1 second per inch for body greater than 4\"). The maximum fully stroke time shall be 10 seconds."]
[]
[]
[null,null,null,"5. The piping indicates corrosion allowance selected as per document \"Piping & Pipeline Material Specification, No. \" BK-GCS-PEDCO-120-PI-SP-0001 \""]
[]
[null,null,null,"6. Hydro-test duration shall be in accordance with API 6D."]
[null,null,null,"7. All ball valves shall be fitted with suitable 'end of travel' stops at the fully open and fully closed positions and a local position indicator . The design shall prevent the ingress of foreign material and corrosion products which would impair the operation of the stops. Devices capable of locking the valves in their  safe position ( ESDV in open or closed position ) shall be provided for maintenance and shall be vendor's standard proven design.  "]
[]
[]
[]
[null,null,null,"8. Vendor shall guarantee and demonstrate the required stroking speed, during the Functional Test (FAT)."]
[]
[null,null,null,"9. All accessories shall be mounted, together with solenoid valve,  etc, on a 316SS sub-plate. Tubing shall be suitably sized TP 316L stainless steel with stainless steel double ferrule compression fittings"]
[]
[]
[null,null,null,"10. Solenoid valve shall be selected in accordance with low power type."]
[]
[null,null,null,"11. All on/off valves shall be preferably fitted with single acting, spring return pnumatic actuators, completed with mounting kit. Also Partial Stroking test or pilot valve to be considered."]
[]
[]
[null,null,null,"12. The actuator shall be fail safe in operation (as specified in data sheets) in loss of electrical  signal or loss of air supply. "]
[]
[null,null,null,"13. The spring return actoator shall be \"pre stressed\"."]
[null,null,null,"14. Pneumatic actuators will be sized on the basis of a minimum safety factor of 1.5 and a minimum air pressure of 3 Bar g.         \n    The valve actuator torque shall be in excess of the required valve torque under  all operating conditions."]
[]
[]
[null,null,null,"15.All actuators and accessories shall be clearly and permanently identified by nameplate. the nameplate shall be in stainless steel and affixed to the VALVE, actuator and accessories."]
[]
[null,null,null,"16 - Environmental condition for field instrumentation of Binak Oilfield shall be considered as per the followings:"]
[]
[null,null,null,null,null,null,"Maximum ambient temperature: 50 (°C)\nMinimum ambient temperature: 5 (°C)\nMaximum steel surface exposed to sun: 85 (°C)\nMaximum summer dry bulb: 50 (°C)\nDB/RH for Summer HVAC Design: 41 °C  / 61 % \nDB FOR Winter HVAC Design: 6 °C "]
[null,null,null,null,null,"Relative Humidity:"]
[null,null,null,null,null,null,"• Maximum Design relative humidity (%): 100\n• Minimum Design relative humidity (%): 0"]
[null,null,null,"17 - Material Test Certificate and calibration Certificate for all transmitters to be submitted by Vendor."]
[null,"              18 - Flow direction shall be permanently and clearly indicated on the valve body."]
[null,"              19- External grounding shall be provided for each solenoid valve."]
[null,"              20- BDV’s shall have a minimum body size of 2” with tight shutoff (ANSI B16.104, class VI), air volume tanks for larger valves and should be sized for three full open/                             closed operations at 3-barg instrument air pressure."]
[]
[null,"              21- Valves in safety related services should have been fire tested and certification to be provided by Vendor."]
[null,"              22- Seat rings shall be spring loaded and so designed that line pressure will assist in sealing round the ball."]
[null,"              23- Valve stem extension shall be detachable for easy replacements."]
[null,"              24- At least two stem seals shall be provided with facility for injection of secondary sealant and with stainless steel fittings."]
[null,"              25- Stem seal shall be replaceable while the valve is in closed operation position."]
[null,"              26- Short stroke single acting pneumatic piston actuators shall preferably be used on emergency shutdown service."]
[null,null,null,"27- Body of all On/Off Valves except ss316 body material, shall be painted with white color.  Also actuator of ESDV and BDV valves shall be painted with Red color          as well as actuator of XV valves shall be painted by Blue color."]
[null,null,null,"28- In cases where on-off valve has been equipped with two solenoid valves, one shall be SIL certified and the other could be non-SIL (one SOV is connected to ESD system and another, to the process control system)."]
[null,null,null,"29- Valves 2\" and larger shall be as per API 6D."]
[null,null,null,"30- All wet parts in sour service service shall meet requirements of NACE MR0175 and \"Project specification for Material Requirements in Sorur Service\". Document No.:BK-GNRAL-PEDCO-000-PI-SP-0008."]

{"sheet":"ESDV-2102","index":5,"n_rows":70,"n_cols":23,"rows_kept":70,"cut":false,"hidden":false,"merged":[[69,2,70,10],[7,13,8,13],[7,14,8,14],[7,15,8,15],[7,16,8,17],[45,12,52,12],[24,16,24,17],[25,16,25,17],[29,14,29,15],[31,14,31,15],[53,12,56,12],[33,2,34,2],[33,3,34,3],[39,12,44,12],[41,14,41,15],[11,5,11,6],[54,1,60,1],[57,12,62,12],[61,1,67,1],[63,12,67,12],[67,3,67,6],[43,1,53,1],[43,7,43,9],[43,10,43,11],[49,5,49,6],[49,7,49,9],[49,10,49,11],[51,5,51,6],[51,7,51,9],[51,10,51,11],[47,9,47,11],[12,2,12,11],[21,12,21,13],[20,12,20,13],[24,1,26,1],[24,2,25,2],[24,3,25,3],[24,12,38,12],[27,1,42,1],[26,4,26,11],[24,9,25,11],[24,7,25,8],[17,12,17,13],[18,12,18,13],[19,12,19,13],[22,12,22,13],[23,12,23,13],[12,12,12,13],[13,12,13,13],[14,12,14,13],[15,12,15,13],[16,12,16,13],[1,1,6,4],[1,5,4,12],[1,13,6,17],[5,5,6,12],[7,1,7,4],[20,14,20,17],[21,14,21,17],[65,14,65,15],[66,14,66,15],[8,1,8,4],[9,1,9,17],[10,1,10,2],[10,3,10,4],[10,5,10,6],[10,7,10,13],[10,15,10,17],[11,2,11,4],[43,5,43,6],[11,7,11,13],[11,16,11,17],[12,1,23,1]]}
[]
[null,"\n\n\n\n\nNISOC",null,null,null,"نگهداشت و افزایش تولید میدان نفتی بینک \nسطح‌الارض \n\nاحداث رديف تراكم گاز در ايستگاه جمع آوري بينك "]
[]
[]
[]
[null,null,null,null,null,"Data Sheets For ON/OFF & Shutdown Valves"]
[]
[null,"شماره پیمان:",null,null,null,"پروژه ","بسته کاری","صادرکننده","تسهیلات","رشته ","نوع مدرک ","سریال","نسخه"]
[null,"9038 – 073 - 053",null,null,null,"BK","GCS","PEDCO","120","IN","DT","0010",{"$f":"Notes!$AB$9","v":"D04"}]
[null,"Shut Down Valve"]
[null,"TAG NO:",null,"ESDV-2102",null,"P&ID NO :",null,"BK-GCS-PEDCO-120-PR-PI-0003-D08",null,null,null,null,null,null,"SERVICE:","Gas Compression Inlet Gas Pipeline (Golkhari)"]
[null,"FLUID STATE:","PROCESS GAS",null,null,"PHASE:",null,"GAS",null,null,null,null,null,null,"AREA CLASSIFICATION:",null,"Zone2, IIB, T4"]
[null,"SERVICE CONDITION","ITEM ",null,null,null,null,null,null,null,null,null,"UNITS",null,"Max Flow","Norm. Flow","Min. Flow","Shut-Off"]
[null,null,1,"FLOW RATE",null,null,null,null,null,null,null,null,"kg/h",null,12395.9313,11269.02,3380,"-"]
[null,null,2,"INLET PRESSURE",null,null,null,null,null,null,null,null,"bar(g)",null,7.5,7.5,7.5,"-"]
[null,null,3,"OUTLET PRESSURE",null,null,null,null,null,null,null,null,"bar(g)",null,7.5,7.5,7.5,90]
[null,null,4,"DIFFERENTIAL PRESSURE",null,null,null,null,null,null,null,null,"bar(g)",null,"-","-","-","-"]
[null,null,5,"INLET TEMPERATURE",null,null,null,null,null,null,null,null,"°C",null,"15.5 ~ 32","15.5 ~ 32","15.5 ~ 32","-"]
[null,null,6,"DENSITY",null,null,null,null,null,null,null,null,"kg/m3",null,"6.19 ~6.21","6.19 ~6.21","6.19 ~6.21","-"]
[null,null,7,"VISCOSITY ",null,null,null,null,null,null,null,null,"CP",null,1.0999999999999999E-2,1.0999999999999999E-2,1.0999999999999999E-2,"-"]
[null,null,8,"DESIGN PRESSURE",null,null,null,null,null,null,null,null,"bar(g)",null,90]
[null,null,9,"DESIGN TEMPERATURE",null,null,null,null,null,null,null,null,"°C",null,175]
[null,null,10,"VAPOR PRESSURE Pv",null,null,null,null,null,null,null,null,"bar(a)",null,"-","-","-","-"]
[null,null,11,"CRITICAL PRESSURE",null,null,null,null,null,null,null,null,"bar(a)",null,103.1,103.1,103.1,"-"]
[null,"LINE",12,"PIPE LINE SIZE & SCHEDULE","   IN","8\"",100,"CORROSION ALLOWANCE(mm)",null,6,null,null,"ACTUATOR",54," TYPE",null,"Single Acting , Spring Return "]
[null,null,null,null,"   OUT","8\"",100,null,null,null,null,null,null,55,"SIZE",null,"VTA"]
[null,null,13,"LINE NO.","GAS-111-0001-FN07-8\"-PT",null,null,null,null,null,null,null,null,56,"SPRING FAIL ACTION",null,"Fail to Close"]
[null,"VALVE BODY \n& \nBONNET",14,"TYPE",null,null,null,"Full Bore Ball Valve/Trunnion Mounted",null,null,null,null,null,57,"MAX ALLOWABLE PRESSURE",null,"VTA"]
[null,null,15,"SIZE ",null,null,null,"8\"",null,null,null,null,null,58,"MIN REQUIRES PRESSURE",null,"VTA"]
[null,null,16,"MAX PRESS./TEMP.",null,null,null,"As per PMS",null,null,null,null,null,59,"AVAILABLE AIR SUPPLY PRESSURE",null,"MAX/NOR/MIN: 10/7/3 bar-g"]
[null,null,17,"MFR. & MODEL",null,null,null,"Will be finalized later",null,null,null,null,null,60,"BENCH RANGE",null,"VTA"]
[null,null,18," BODY / BONNET MATL",null,null,null,"ASTM A216 Gr. WCB",null,null,null,null,null,61,"TRAVELING TIME",null,"9 S"]
[null,null,19,"LINER MATERIAL / ID",null,null,null,"VTA",null,null,null,null,null,62,"FUNCTION",null,"On/Off"]
[null,null,20,"END CONNECTION","IN",null,null,"8\"  /600#",null,null,null,null,null,63,"LOCAL POSITION INDICATOR",null,"Required",null,null,null,null,null,{"$f":"RIGHT(U34,4)","v":""}]
[null,null,null,null,"OUT",null,null,"8\"  /600#",null,null,null,null,null,64,"ACT. ORIENTATION",null,"VTA"]
[null,null,21,"FLG FACE FINISH",null,null,null,"RF",null,null,null,null,null,65,"HAND WHEEL TYPE",null,"Declutchable side mounted "]
[null,null,22,"END EXT./MATL.",null,null,null,"N/A",null,null,null,null,null,66,"ADJUSTABLE LIMIT STOP",null,"Yes"]
[null,null,23,"FLOW DIRECTION",null,null,null,"(Note 18 in Page 4)",null,null,null,null,null,67,"INPUT SIGNAL",null,"24VDC"]
[null,null,24,"TYPE OF BONNET",null,null,null,"Standard",null,null,null,null,null,68,"MFR. & MODEL",null,"Will be finalized later"]
[null,null,25,"LUBE & ISO VALVE",null,null,null,"No",null,null,null,null,"POSITIONER",69,"TYPE",null,"N/A"]
[null,null,26,"PACKING MATERIAL",null,"PACKING TYPE ",null,"RPTFE",null,null,"Standard",null,null,70,"MFR. & MODEL",null,"Will be finalized later"]
[null,null,27,"ENTRY DESIGN",null,null,null,"Top / Side Entry",null,null,null,null,null,71,"ON INCR SIGNAL OUTPUT INCR / DECR      ",null,"N/A"]
[null,null,28,"NACE REQUIREMENTNACE (MR-0175/ISO 15156)",null,null,null,"Yes",null,null,null,null,null,72,"GAUGES",null,"N/A"]
[null,"TRIM",29,"TRIM ","TYPE","MATERIAL",null,"VTA",null,null,"316 SS+RPTFE",null,null,73,"CAM CHARACTERISTIC",null,"N/A"]
[null,null,30,"SIZE ","RATED TRAVEL",null,null,"VTA",null,null,"VTA",null,null,74,"AIR CONNECTION",null,"N/A"]
[null,null,31,"CHARACTERISTICS",null,null,null,"On/Off",null,null,null,null,"LIMIT \nSWITCHES",75,"TAG NO. :",null,"EZSC-2102 / EZSO-2102"]
[null,null,32,"BALANCED / UNBALANCED",null,null,null,"BALANCED",null,null,null,null,null,76," TYPE","QUANTITY","Magnetically operated ‘REED’ contacts ",2]
[null,null,33,"RATED  Cv","FL","XT",null,"VTA","VTA","VTA",null,null,null,77,"CONTACTS / RATING",null,"110V DC , 10A "]
[null,null,34,"PLUG / BALL / DISK MATERIAL",null,null,null,"316 SS",null,null,null,null,null,78,"ACTUATION POINT",null,"Fully Open/Close"]
[null,null,35,"SEAT ","TYPE","MATERIAL",null,"Soft Seat",null,null,"316 SS+RPTFE",null,null,79,"ENCLOSURE MATERIAL",null,"Die Cast Aluminum"]
[null,null,36,"CAGE / GUIDE MATERIAL",null,null,null,"VTA",null,null,null,null,null,80,"WEATHER PROTECTION",null,"IP-65"]
[null,null,37,"STEM","TYPE","MATERIAL",null,"Anti-Blow Out",null,null,"316 SS",null,null,81,"ELEC. CERTIFICATE","ELEC. CONNECTION","EEx \"d\" ,IIB T4","ISO M20 × 1.5"]
[null,null,38,"LEAKAGE CLASS",null,null,null,"ANSI Class VI",null,null,null,null,null,82,"MFR. & MODEL",null,"Will be finalized later"]
[null,null,39,"VALVE STEM EXTENSION REQUIREMENT",null,null,null,"No",null,null,null,null,"AIR SET",83,"SET PRESSURE",null,"Yes"]
[null,"SOLENOID VALVE  ",40,"TAG NO",null,null,null,"ESOV-2102",null,null,null,null,null,84,"PNEUMATIC CONNECTION",null,"1/4\" NPT"]
[null,null,41,"TYPE",null,null,null,"3 Way ",null,null,null,null,null,85,"GAUGES","FILTER","Required","Required"]
[null,null,42,"BODY MATERIAL",null,"WEATHER IP.",null,"AISI 316 S.S",null,null,"IP-65",null,null,86,"MFR. & MODEL",null,"Will be finalized later"]
[null,null,43,"ELE. CERTIFICATE",null,"ELE. CONNECTION",null,"EEx \"d\" ,IIB T4",null,null,"ISO M20 x 1.5",null,"TEST",87,"ANSI/FCI LEAKAGE CLASS",null,"Required"]
[null,null,44,"MANUAL RESET",null,null,null,"Yes",null,null,null,null,null,88,"HYDRO PRESSURE ",null,"Required"]
[null,null,45,"Power Supply",null,null,null,"24 VDC",null,null,null,null,null,89,"FUNCTIONAL TEST",null,"Required"]
[null,null,46,"Pnu. Connection",null,null,null,"1/4\" NPT ",null,null,null,null,null,90]
[null,"SPECIAL /\nACCESS.",47,"FUSIBLE LEAKAGE",null,null,null,"No",null,null,null,null,null,91]
[null,null,48,"BLOCK RELAY",null,null,null,"No",null,null,null,null,null,92]
[null,null,49,"QUICK EXHUST",null,null,null,"Yes",null,null,null,null,"FIRE PROOF DESIGN",93,"PASSIVE FIRE PROTECTION",null,"Yes"]
[null,null,50,"FILTER REGULATOR",null,null,null,"Yes",null,null,null,null,null,94,"API 6FA REQUIREMENTS",null,"Yes"]
[null,null,51,"VOLUME TANK",null,null,null,"No",null,null,null,null,null,95,"SIL REQUIREMENTS",null,"Yes"]
[null,null,52,"MECHANICAL POSITION INDICATOR",null,null,null,"Required",null,null,null,null,null,96,"PARTIAL STROKING VALVE TEST",null,"Yes",null,null,"ESD LEVEL: ",1]
[null,null,53,"MANUAL PNEUMATIC BYPASS VALVE FOR SOLENOID VALVE",null,null,null,"Yes",null,null,null,null,null,97]
[null,"NOTE:","VTA : VENDOR TO ADVISE AT BIDDING STAGE    ",null,null,null,null,"VTC: VENDOR TO CONIFRM"]
[null,null,"(1) PMS: Piping material specification.\n\n(2) All material shall be suitable for minimum design metal temperature.\n\n(3) Shall be stated by vendor at quotation stage.\n\n(4) Manual Reset to be consider for all Emergency Shut off solenoids as per P&ID."]

{"sheet":"ESDV-2101","index":6,"n_rows":70,"n_cols":23,"rows_kept":70,"cut":false,"hidden":false,"merged":[[69,2,70,10],[49,7,49,9],[9,1,9,17],[24,16,24,17],[25,16,25,17],[11,2,11,4],[11,5,11,6],[11,7,11,13],[11,16,11,17],[24,1,26,1],[24,2,25,2],[24,3,25,3],[12,12,12,13],[13,12,13,13],[14,12,14,13],[43,5,43,6],[43,7,43,9],[43,10,43,11],[43,1,53,1],[45,12,52,12],[53,12,56,12],[54,1,60,1],[57,12,62,12],[61,1,67,1],[63,12,67,12],[67,3,67,6],[51,5,51,6],[51,7,51,9],[51,10,51,11],[49,5,49,6],[49,10,49,11],[47,9,47,11],[27,1,42,1],[27,4,27,6],[28,4,28,6],[12,1,23,1],[33,2,34,2],[33,3,34,3],[31,4,31,6],[32,4,32,6],[29,4,29,6],[30,4,30,6],[26,4,26,11],[24,9,25,11],[12,2,12,11],[24,7,25,8],[66,14,66,15],[10,15,10,17],[8,1,8,4],[1,1,6,4],[1,5,4,12],[1,13,6,17],[5,5,6,12],[7,1,7,4],[23,12,23,13],[10,1,10,2],[10,3,10,4],[10,5,10,6],[10,7,10,13],[16,12,16,13],[17,12,17,13],[18,12,18,13],[65,14,65,15],[19,12,19,13],[22,12,22,13],[29,14,29,15],[31,14,31,15],[39,12,44,12],[41,14,41,15],[24,12,38,12],[21,12,21,13],[20,12,20,13],[20,14,20,17],[21,14,21,17],[7,13,8,13],[7,14,8,14],[7,15,8,15],[7,16,8,17],[15,12,15,13]]}
[]
[null,"\n\n\n\n\nNISOC",null,null,null,"نگهداشت و افزایش تولید میدان نفتی بینک \nسطح‌الارض \n\nاحداث رديف تراكم گاز در ايستگاه جمع آوري بينك "]
[]
[]
[]
[null,null,null,null,null,"Data Sheets For ON/OFF & Shutdown Valves"]
[]
[null,"شماره پیمان:",null,null,null,"پروژه ","بسته کاری","صادرکننده","تسهیلات","رشته ","نوع مدرک ","سریال","نسخه"]
[null,"9038 – 073 - 053",null,null,null,"BK","GCS","PEDCO","120","IN","DT","0010",{"$f":"Notes!$AB$9","v":"D04"}]
[null,"Shut Down Valve"]
[null,"TAG NO:",null,"ESDV-2101",null,"P&ID NO :",null,"BK-GCS-PEDCO-120-PR-PI-0002_D08",null,null,null,null,null,null,"SERVICE:","Gas Compression Inlet Gas Pipeline (Binak)"]
[null,"FLUID STATE:","PROCESS GAS",null,null,"PHASE:",null,"GAS",null,null,null,null,null,null,"AREA CLASSIFICATION:",null,"Zone2, IIB, T4"]
[null,"SERVICE CONDITION","ITEM ",null,null,null,null,null,null,null,null,null,"UNITS",null,"Max Flow","Norm. Flow","Min. Flow","Shut-Off"]
[null,null,1,"FLOW RATE",null,null,null,null,null,null,null,null,"kg/h",null,7220.4928,6564.0839999999998,1969.23,"-"]
[null,null,2,"INLET PRESSURE",null,null,null,null,null,null,null,null,"bar(g)",null,7.5,7.5,7.5,"-"]
[null,null,3,"OUTLET PRESSURE",null,null,null,null,null,null,null,null,"bar(g)",null,7.5,7.5,7.5,"-"]
[null,null,4,"DIFFERENTIAL PRESSURE",null,null,null,null,null,null,null,null,"bar(g)",null,"-","-","-",18.2]
[null,null,5,"INLET TEMPERATURE",null,null,null,null,null,null,null,null,"°C",null,"26.67~46.11","26.67~46.11","26.67~46.11","-"]
[null,null,6,"DENSITY",null,null,null,null,null,null,null,null,"kg/m3",null,"5.43 ~ 6.66","5.43 ~ 6.66","5.43 ~ 6.66","-"]
[null,null,7,"VISCOSITY ",null,null,null,null,null,null,null,null,"CP",null,"0.011 ~ 0.012","0.011 ~ 0.012","0.011 ~ 0.012","-"]
[null,null,8,"DESIGN PRESSURE",null,null,null,null,null,null,null,null,"bar(g)",null,18.2]
[null,null,9,"DESIGN TEMPERATURE",null,null,null,null,null,null,null,null,"°C",null,85]
[null,null,10,"VAPOR PRESSURE Pv",null,null,null,null,null,null,null,null,"bar(a)",null,"-","-","-","-"]
[null,null,11,"CRITICAL PRESSURE",null,null,null,null,null,null,null,null,"bar(a)",null,107.1,107.1,107.1,"-"]
[null,"LINE",12,"PIPE LINE SIZE & SCHEDULE","   IN","6\"",80,"CORROSION ALLOWANCE(mm)",null,6,null,null,"ACTUATOR",54," TYPE",null,"Single Acting , Spring Return "]
[null,null,null,null,"   OUT","6\"",80,null,null,null,null,null,null,55,"SIZE",null,"VTA"]
[null,null,13,"LINE NO.","GAS-111-0001-AN07-6\"-PT",null,null,null,null,null,null,null,null,56,"SPRING FAIL ACTION",null,"Fail to Close"]
[null,"VALVE BODY \n& \nBONNET",14,"TYPE","   OUT",null,null,"Full Bore Ball Valve/Trunnion Mounted",null,null,null,null,null,57,"MAX ALLOWABLE PRESSURE",null,"VTA"]
[null,null,15,"SIZE ","   OUT",null,null,"6\"",null,null,null,null,null,58,"MIN REQUIRES PRESSURE",null,"VTA"]
[null,null,16,"MAX PRESS./TEMP.","   OUT",null,null,"As per PMS",null,null,null,null,null,59,"AVAILABLE AIR SUPPLY PRESSURE",null,"MAX/NOR/MIN: 10/7/3 bar-g"]
[null,null,17,"MFR. & MODEL","   OUT",null,null,"Will be finalized later",null,null,null,null,null,60,"BENCH RANGE",null,"VTA"]
[null,null,18," BODY / BONNET MATL","   OUT",null,null,"ASTM A216 Gr. WCB",null,null,null,null,null,61,"TRAVELING TIME",null,"6 S"]
[null,null,19,"LINER MATERIAL / ID","   OUT",null,null,"VTA",null,null,null,null,null,62,"FUNCTION",null,"On/Off"]
[null,null,20,"END CONNECTION","IN",null,null,"6\"  /300#",null,null,null,null,null,63,"LOCAL POSITION INDICATOR",null,"Required",null,null,null,null,null,{"$f":"RIGHT(U34,4)","v":""}]
[null,null,null,null,"OUT",null,null,"6\"  /300#",null,null,null,null,null,64,"ACT. ORIENTATION",null,"VTA"]
[null,null,21,"FLG FACE FINISH",null,null,null,"RF",null,null,null,null,null,65,"HAND WHEEL TYPE",null,"Declutchable side mounted "]
[null,null,22,"END EXT./MATL.",null,null,null,"N/A",null,null,null,null,null,66,"ADJUSTABLE LIMIT STOP",null,"Yes"]
[null,null,23,"FLOW DIRECTION",null,null,null,"(Note 18 in Page 4)",null,null,null,null,null,67,"INPUT SIGNAL",null,"24VDC"]
[null,null,24,"TYPE OF BONNET",null,null,null,"Standard",null,null,null,null,null,68,"MFR. & MODEL",null,"Will be finalized later"]
[null,null,25,"LUBE & ISO VALVE",null,null,null,"No",null,null,null,null,"POSITIONER",69,"TYPE",null,"N/A"]
[null,null,26,"PACKING MATERIAL",null,"PACKING TYPE ",null,"PTFE",null,null,"Standard",null,null,70,"MFR. & MODEL",null,"Will be finalized later"]
[null,null,27,"ENTRY DESIGN",null,null,null,"Top / Side Entry",null,null,null,null,null,71,"ON INCR SIGNAL OUTPUT INCR / DECR      ",null,"N/A"]
[null,null,28,"NACE REQUIREMENTNACE (MR-0175/ISO 15156)",null,null,null,"Yes",null,null,null,null,null,72,"GAUGES",null,"N/A"]
[null,"TRIM",29,"TRIM ","TYPE","MATERIAL",null,"VTA",null,null,"316 SS+PTFE",null,null,73,"CAM CHARACTERISTIC",null,"N/A"]
[null,null,30,"SIZE ","RATED TRAVEL",null,null,"VTA",null,null,"VTA",null,null,74,"AIR CONNECTION",null,"N/A"]
[null,null,31,"CHARACTERISTICS",null,null,null,"On/Off",null,null,null,null,"LIMIT \nSWITCHES",75,"TAG NO. :",null,"EZSC-2101 / EZSO-2101"]
[null,null,32,"BALANCED / UNBALANCED",null,null,null,"BALANCED",null,null,null,null,null,76," TYPE","QUANTITY","Magnetically operated ‘REED’ contacts ",2]
[null,null,33,"RATED  Cv","FL","XT",null,"VTA","VTA","VTA",null,null,null,77,"CONTACTS / RATING",null,"110V DC , 10A "]
[null,null,34,"PLUG / BALL / DISK MATERIAL",null,null,null,"316 SS",null,null,null,null,null,78,"ACTUATION POINT",null,"Fully Open/Close"]
[null,null,35,"SEAT ","TYPE","MATERIAL",null,"Soft Seat",null,null,"316 SS+PTFE",null,null,79,"ENCLOSURE MATERIAL",null,"Die Cast Aluminum"]
[null,null,36,"CAGE / GUIDE MATERIAL",null,null,null,"VTA",null,null,null,null,null,80,"WEATHER PROTECTION",null,"IP-65"]
[null,null,37,"STEM","TYPE","MATERIAL",null,"Anti-Blow Out",null,null,"316 SS",null,null,81,"ELEC. CERTIFICATE","ELEC. CONNECTION","EEx \"d\" ,IIB T4","ISO M20 × 1.5"]
[null,null,38,"LEAKAGE CLASS",null,null,null,"ANSI Class VI",null,null,null,null,null,82,"MFR. & MODEL",null,"Will be finalized later"]
[null,null,39,"VALVE STEM EXTENSION REQUIREMENT",null,null,null,"No",null,null,null,null,"AIR SET",83,"SET PRESSURE",null,"Yes"]
[null,"SOLENOID VALVE  ",40,"TAG NO",null,null,null,"ESOV-2101",null,null,null,null,null,84,"PNEUMATIC CONNECTION",null,"1/4\" NPT"]
[null,null,41,"TYPE",null,null,null,"3 Way ",null,null,null,null,null,85,"GAUGES","FILTER","Required","Required"]
[null,null,42,"BODY MATERIAL",null,"WEATHER IP.",null,"AISI 316 S.S",null,null,"IP-65",null,null,86,"MFR. & MODEL",null,"Will be finalized later"]
[null,null,43,"ELE. CERTIFICATE",null,"ELE. CONNECTION",null,"EEx \"d\" ,IIB T4",null,null,"ISO M20 x 1.5",null,"TEST",87,"ANSI/FCI LEAKAGE CLASS",null,"Required"]
[null,null,44,"MANUAL RESET",null,null,null,"Yes",null,null,null,null,null,88,"HYDRO PRESSURE ",null,"Required"]
[null,null,45,"Power Supply",null,null,null,"24 VDC",null,null,null,null,null,89,"FUNCTIONAL TEST",null,"Required"]
[null,null,46,"Pnu. Connection",null,null,null,"1/4\" NPT ",null,null,null,null,null,90]
[null,"SPECIAL /\nACCESS.",47,"FUSIBLE LEAKAGE",null,null,null,"No",null,null,null,null,null,91]
[null,null,48,"BLOCK RELAY",null,null,null,"No",null,null,null,null,null,92]
[null,null,49,"QUICK EXHUST",null,null,null,"Yes",null,null,null,null,"FIRE PROOF DESIGN",93,"PASSIVE FIRE PROTECTION",null,"Yes"]
[null,null,50,"FILTER REGULATOR",null,null,null,"Yes",null,null,null,null,null,94,"API 6FA REQUIREMENTS",null,"Yes"]
[null,null,51,"VOLUME TANK",null,null,null,"No",null,null,null,null,null,95,"SIL REQUIREMENTS",null,"Yes"]
[null,null,52,"MECHANICAL POSITION INDICATOR",null,null,null,"Required",null,null,null,null,null,96,"PARTIAL STROKING VALVE TEST",null,"Yes",null,null,"ESD LEVEL: ",1]
[null,null,53,"MANUAL PNEUMATIC BYPASS VALVE FOR SOLENOID VALVE",null,null,null,"Yes",null,null,null,null,null,97]
[null,"NOTE:","VTA : VENDOR TO ADVISE AT BIDDING STAGE    ",null,null,null,null,"VTC: VENDOR TO CONIFRM"]
[null,null,"(1) PMS: Piping material specification.\n\n(2) All material shall be suitable for minimum design metal temperature.\n\n(3) Shall be stated by vendor at quotation stage.\n\n(4) Manual Reset to be consider for all Emergency Shut off solenoids as per P&ID."]

{"sheet":"ESDV-2113","index":7,"n_rows":70,"n_cols":23,"rows_kept":70,"cut":false,"hidden":false,"merged":[[69,2,70,10],[7,13,8,13],[7,14,8,14],[7,15,8,15],[7,16,8,17],[45,12,52,12],[24,16,24,17],[25,16,25,17],[29,14,29,15],[31,14,31,15],[53,12,56,12],[33,2,34,2],[33,3,34,3],[39,12,44,12],[41,14,41,15],[11,5,11,6],[54,1,60,1],[57,12,62,12],[61,1,67,1],[63,12,67,12],[67,3,67,6],[43,1,53,1],[43,7,43,9],[43,10,43,11],[49,5,49,6],[49,7,49,9],[49,10,49,11],[51,5,51,6],[51,7,51,9],[51,10,51,11],[47,9,47,11],[12,2,12,11],[21,12,21,13],[20,12,20,13],[24,1,26,1],[24,2,25,2],[24,3,25,3],[24,12,38,12],[27,1,42,1],[26,4,26,11],[24,9,25,11],[24,7,25,8],[17,12,17,13],[18,12,18,13],[19,12,19,13],[22,12,22,13],[23,12,23,13],[12,12,12,13],[13,12,13,13],[14,12,14,13],[15,12,15,13],[16,12,16,13],[1,1,6,4],[1,5,4,12],[1,13,6,17],[5,5,6,12],[7,1,7,4],[20,14,20,17],[21,14,21,17],[65,14,65,15],[66,14,66,15],[8,1,8,4],[9,1,9,17],[10,1,10,2],[10,3,10,4],[10,5,10,6],[10,7,10,13],[10,15,10,17],[11,2,11,4],[43,5,43,6],[11,7,11,13],[11,16,11,17],[12,1,23,1]]}
[]
[null,"\n\n\n\n\nNISOC",null,null,null,"نگهداشت و افزایش تولید میدان نفتی بینک \nسطح‌الارض \n\nاحداث رديف تراكم گاز در ايستگاه جمع آوري بينك "]
[]
[]
[]
[null,null,null,null,null,"Data Sheets For ON/OFF & Shutdown Valves"]
[]
[null,"شماره پیمان:",null,null,null,"پروژه ","بسته کاری","صادرکننده","تسهیلات","رشته ","نوع مدرک ","سریال","نسخه"]
[null,"9038 – 073 - 053",null,null,null,"BK","GCS","PEDCO","120","IN","DT","0010",{"$f":"Notes!$AB$9","v":"D04"}]
[null,"Shut Down Valve"]
[null,"TAG NO:",null,"ESDV-2113",null,"P&ID NO :",null,"BK-GCS-PEDCO-120-PR-PI-0005-D09",null,null,null,null,null,null,"SERVICE:","Gas Compression Inlet Knock Out Drum to Closed Drain"]
[null,"FLUID STATE:","CLOSED DRAIN HYDROCARBON",null,null,"PHASE:",null,"Lliquid",null,null,null,null,null,null,"AREA CLASSIFICATION:",null,"Zone2, IIB, T4"]
[null,"SERVICE CONDITION","ITEM ",null,null,null,null,null,null,null,null,null,"UNITS",null,"Max Flow","Norm. Flow","Min. Flow","Shut-Off"]
[null,null,1,"FLOW RATE",null,null,null,null,null,null,null,null,"kg/h",null,1119.5286000000001,1017.7533,305.32600000000002,"-"]
[null,null,2,"INLET PRESSURE",null,null,null,null,null,null,null,null,"bar(g)",null,5.3,5.3,5.3,"-"]
[null,null,3,"OUTLET PRESSURE",null,null,null,null,null,null,null,null,"bar(g)",null,5.3,5.3,5.3,"-"]
[null,null,4,"DIFFERENTIAL PRESSURE",null,null,null,null,null,null,null,null,"bar(g)",null,"-","-","-",13.9]
[null,null,5,"INLET TEMPERATURE",null,null,null,null,null,null,null,null,"°C",null,"19.02~36.9","19.02~36.9","19.02~36.9","-"]
[null,null,6,"DENSITY",null,null,null,null,null,null,null,null,"kg/m3",null,"842.6~1012","842.6~1012","842.6~1012","-"]
[null,null,7,"VISCOSITY ",null,null,null,null,null,null,null,null,"CP",null,"0.69 ~ 1.026","0.69 ~ 1.026","0.69 ~ 1.026","-"]
[null,null,8,"DESIGN PRESSURE",null,null,null,null,null,null,null,null,"bar(g)",null,13.9]
[null,null,9,"DESIGN TEMPERATURE",null,null,null,null,null,null,null,null,"°C",null,85]
[null,null,10,"VAPOR PRESSURE Pv",null,null,null,null,null,null,null,null,"bar(a)",null,0.61199999999999999,0.61199999999999999,0.61199999999999999,"-"]
[null,null,11,"CRITICAL PRESSURE",null,null,null,null,null,null,null,null,"bar(a)",null,221.4,221.4,221.4,"-"]
[null,"LINE",12,"PIPE LINE SIZE & SCHEDULE","   IN","2\"","SCH.10S","CORROSION ALLOWANCE(mm)",null,0,null,null,"ACTUATOR",54," TYPE",null,"Single Acting , Spring Return "]
[null,null,null,null,"   OUT","2\"","SCH.10S",null,null,null,null,null,null,55,"SIZE",null,"VTA"]
[null,null,13,"LINE NO.","CDH-111-0019-AS00-2\"-NP",null,null,null,null,null,null,null,null,56,"SPRING FAIL ACTION",null,"Fail to Close"]
[null,"VALVE BODY \n& \nBONNET",14,"TYPE",null,null,null,"Full Bore Ball Valve/Floating Type",null,null,null,null,null,57,"MAX ALLOWABLE PRESSURE",null,"VTA"]
[null,null,15,"SIZE ",null,null,null,"2\"",null,null,null,null,null,58,"MIN REQUIRES PRESSURE",null,"VTA"]
[null,null,16,"MAX PRESS./TEMP.",null,null,null,"As per PMS",null,null,null,null,null,59,"AVAILABLE AIR SUPPLY PRESSURE",null,"MAX/NOR/MIN: 10/7/3 bar-g"]
[null,null,17,"MFR. & MODEL",null,null,null,"Will be finalized later",null,null,null,null,null,60,"BENCH RANGE",null,"VTA"]
[null,null,18," BODY / BONNET MATL",null,null,null,"ASTM A351 GR.CF3M",null,null,null,null,null,61,"TRAVELING TIME",null,"5 S"]
[null,null,19,"LINER MATERIAL / ID",null,null,null,"VTA",null,null,null,null,null,62,"FUNCTION",null,"On/Off"]
[null,null,20,"END CONNECTION","IN",null,null,"2\"  /300#",null,null,null,null,null,63,"LOCAL POSITION INDICATOR",null,"Required",null,null,null,null,null,{"$f":"RIGHT(U34,4)","v":""}]
[null,null,null,null,"OUT",null,null,"2\"  /300#",null,null,null,null,null,64,"ACT. ORIENTATION",null,"VTA"]
[null,null,21,"FLG FACE FINISH",null,null,null,"RF",null,null,null,null,null,65,"HAND WHEEL TYPE",null,"Declutchable side mounted "]
[null,null,22,"END EXT./MATL.",null,null,null,"N/A",null,null,null,null,null,66,"ADJUSTABLE LIMIT STOP",null,"Yes"]
[null,null,23,"FLOW DIRECTION",null,null,null,"(Note 18 in Page 4)",null,null,null,null,null,67,"INPUT SIGNAL",null,"24VDC"]
[null,null,24,"TYPE OF BONNET",null,null,null,"Standard",null,null,null,null,null,68,"MFR. & MODEL",null,"Will be finalized later"]
[null,null,25,"LUBE & ISO VALVE",null,null,null,"No",null,null,null,null,"POSITIONER",69,"TYPE",null,"N/A"]
[null,null,26,"PACKING MATERIAL",null,"PACKING TYPE ",null,"PTFE",null,null,"Standard",null,null,70,"MFR. & MODEL",null,"Will be finalized later"]
[null,null,27,"ENTRY DESIGN",null,null,null,"Top / Side Entry",null,null,null,null,null,71,"ON INCR SIGNAL OUTPUT INCR / DECR      ",null,"N/A"]
[null,null,28,"NACE REQUIREMENTNACE (MR-0175/ISO 15156)",null,null,null,"Yes",null,null,null,null,null,72,"GAUGES",null,"N/A"]
[null,"TRIM",29,"TRIM ","TYPE","MATERIAL",null,"VTA",null,null,"316 SS+PTFE",null,null,73,"CAM CHARACTERISTIC",null,"N/A"]
[null,null,30,"SIZE ","RATED TRAVEL",null,null,"VTA",null,null,"VTA",null,null,74,"AIR CONNECTION",null,"N/A"]
[null,null,31,"CHARACTERISTICS",null,null,null,"On/Off",null,null,null,null,"LIMIT \nSWITCHES",75,"TAG NO. :",null,"EZSC-2113 / EZSO-2113"]
[null,null,32,"BALANCED / UNBALANCED",null,null,null,"BALANCED",null,null,null,null,null,76," TYPE","QUANTITY","Magnetically operated ‘REED’ contacts ",2]
[null,null,33,"RATED  Cv","FL","XT",null,"VTA","VTA","VTA",null,null,null,77,"CONTACTS / RATING",null,"110V DC , 10A "]
[null,null,34,"PLUG / BALL / DISK MATERIAL",null,null,null,"316 SS",null,null,null,null,null,78,"ACTUATION POINT",null,"Fully Open/Close"]
[null,null,35,"SEAT ","TYPE","MATERIAL",null,"Soft Seat",null,null,"316 SS+PTFE",null,null,79,"ENCLOSURE MATERIAL",null,"Die Cast Aluminum"]
[null,null,36,"CAGE / GUIDE MATERIAL",null,null,null,"VTA",null,null,null,null,null,80,"WEATHER PROTECTION",null,"IP-65"]
[null,null,37,"STEM","TYPE","MATERIAL",null,"Anti-Blow Out",null,null,"316 SS",null,null,81,"ELEC. CERTIFICATE","ELEC. CONNECTION","EEx \"d\" ,IIB T4","ISO M20 × 1.5"]
[null,null,38,"LEAKAGE CLASS",null,null,null,"ANSI Class VI",null,null,null,null,null,82,"MFR. & MODEL",null,"Will be finalized later"]
[null,null,39,"VALVE STEM EXTENSION REQUIREMENT",null,null,null,"No",null,null,null,null,"AIR SET",83,"SET PRESSURE",null,"Yes"]
[null,"SOLENOID VALVE  ",40,"TAG NO",null,null,null,"ESOV-2113",null,null,null,null,null,84,"PNEUMATIC CONNECTION",null,"1/4\" NPT"]
[null,null,41,"TYPE",null,null,null,"3 Way ",null,null,null,null,null,85,"GAUGES","FILTER","Required","Required"]
[null,null,42,"BODY MATERIAL",null,"WEATHER IP.",null,"AISI 316 S.S",null,null,"IP-65",null,null,86,"MFR. & MODEL",null,"Will be finalized later"]
[null,null,43,"ELE. CERTIFICATE",null,"ELE. CONNECTION",null,"EEx \"d\" ,IIB T4",null,null,"ISO M20 x 1.5",null,"TEST",87,"ANSI/FCI LEAKAGE CLASS",null,"Required"]
[null,null,44,"MANUAL RESET",null,null,null,"Yes",null,null,null,null,null,88,"HYDRO PRESSURE ",null,"Required"]
[null,null,45,"Power Supply",null,null,null,"24 VDC",null,null,null,null,null,89,"FUNCTIONAL TEST",null,"Required"]
[null,null,46,"Pnu. Connection",null,null,null,"1/4\" NPT ",null,null,null,null,null,90]
[null,"SPECIAL /\nACCESS.",47,"FUSIBLE LEAKAGE",null,null,null,"No",null,null,null,null,null,91]
[null,null,48,"BLOCK RELAY",null,null,null,"No",null,null,null,null,null,92]
[null,null,49,"QUICK EXHUST",null,null,null,"Yes",null,null,null,null,"FIRE PROOF DESIGN",93,"PASSIVE FIRE PROTECTION",null,"No"]
[null,null,50,"FILTER REGULATOR",null,null,null,"Yes",null,null,null,null,null,94,"API 6FA REQUIREMENTS",null,"Yes"]
[null,null,51,"VOLUME TANK",null,null,null,"No",null,null,null,null,null,95,"SIL REQUIREMENTS",null,"Yes"]
[null,null,52,"MECHANICAL POSITION INDICATOR",null,null,null,"Required",null,null,null,null,null,96,"PARTIAL STROKING VALVE TEST",null,"No",null,null,"ESD LEVEL: ",3]
[null,null,53,"MANUAL PNEUMATIC BYPASS VALVE FOR SOLENOID VALVE",null,null,null,"Yes",null,null,null,null,null,97]
[null,"NOTE:","VTA : VENDOR TO ADVISE AT BIDDING STAGE    ",null,null,null,null,"VTC: VENDOR TO CONIFRM"]
[null,null,"(1) PMS: Piping material specification.\n\n(2) All material shall be suitable for minimum design metal temperature.\n\n(3) Shall be stated by vendor at quotation stage.\n\n(4) Manual Reset to be consider for all Emergency Shut off solenoids as per P&ID."]

{"sheet":"ESDV-2272","index":8,"n_rows":70,"n_cols":23,"rows_kept":70,"cut":false,"hidden":false,"merged":[[69,2,70,10],[1,1,6,4],[1,5,4,12],[1,13,6,17],[5,5,6,12],[7,1,7,4],[7,13,8,13],[7,14,8,14],[7,15,8,15],[7,16,8,17],[8,1,8,4],[9,1,9,17],[10,1,10,2],[10,3,10,4],[10,5,10,6],[10,7,10,13],[10,15,10,17],[11,2,11,4],[11,5,11,6],[11,7,11,13],[11,16,11,17],[12,1,23,1],[12,12,12,13],[13,12,13,13],[14,12,14,13],[15,12,15,13],[16,12,16,13],[17,12,17,13],[18,12,18,13],[19,12,19,13],[22,12,22,13],[23,12,23,13],[12,2,12,11],[21,12,21,13],[20,12,20,13],[33,2,34,2],[33,3,34,3],[39,12,44,12],[41,14,41,15],[24,1,26,1],[24,2,25,2],[24,3,25,3],[24,12,38,12],[43,1,53,1],[49,5,49,6],[49,7,49,9],[27,1,42,1],[65,14,65,15],[66,14,66,15],[45,12,52,12],[53,12,56,12],[54,1,60,1],[57,12,62,12],[61,1,67,1],[63,12,67,12],[67,3,67,6],[51,5,51,6],[51,7,51,9],[51,10,51,11],[49,10,49,11],[47,9,47,11],[20,14,20,17],[21,14,21,17],[26,4,26,11],[24,9,25,11],[43,5,43,6],[43,7,43,9],[43,10,43,11],[24,7,25,8],[24,16,24,17],[25,16,25,17],[29,14,29,15],[31,14,31,15]]}
[]
[null,"\n\n\n\n\nNISOC",null,null,null,"نگهداشت و افزایش تولید میدان نفتی بینک \nسطح‌الارض \n\nاحداث رديف تراكم گاز در ايستگاه جمع آوري بينك "]
[]
[]
[]
[null,null,null,null,null,"Data Sheets For ON/OFF & Shutdown Valves"]
[]
[null,"شماره پیمان:",null,null,null,"پروژه ","بسته کاری","صادرکننده","تسهیلات","رشته ","نوع مدرک ","سریال","نسخه"]
[null,"9038 – 073 - 053",null,null,null,"BK","GCS","PEDCO","120","IN","DT","0010",{"$f":"Notes!$AB$9","v":"D04"}]
[null,"Shut Down Valve"]
[null,"TAG NO:",null,"ESDV-2272",null,"P&ID NO :",null,"BK-GCS-PEDCO-120-PR-PI-0022-D09",null,null,null,null,null,null,"SERVICE:","Fuel Gas System"]
[null,"FLUID STATE:","FUEL GAS",null,null,"PHASE:",null,"GAS",null,null,null,null,null,null,"AREA CLASSIFICATION:",null,"Zone2, IIB, T4"]
[null,"SERVICE CONDITION","ITEM ",null,null,null,null,null,null,null,null,null,"UNITS",null,"Max Flow","Norm. Flow","Min. Flow","Shut-Off"]
[null,null,1,"FLOW RATE",null,null,null,null,null,null,null,null,"kg/h",null,556.34730000000002,505.8,151.73099999999999,"-"]
[null,null,2,"INLET PRESSURE",null,null,null,null,null,null,null,null,"bar(g)",null,5.0999999999999996,5.0999999999999996,5.0999999999999996,"-"]
[null,null,3,"OUTLET PRESSURE",null,null,null,null,null,null,null,null,"bar(g)",null,5.0999999999999996,5.0999999999999996,5.0999999999999996,"-"]
[null,null,4,"DIFFERENTIAL PRESSURE",null,null,null,null,null,null,null,null,"bar(g)",null,"-","-","-",18.2]
[null,null,5,"INLET TEMPERATURE",null,null,null,null,null,null,null,null,"°C",null,37,37,37,"-"]
[null,null,6,"DENSITY",null,null,null,null,null,null,null,null,"kg/m3",null,5.77,5.77,5.77,"-"]
[null,null,7,"VISCOSITY ",null,null,null,null,null,null,null,null,"CP",null,1.0999999999999999E-2,1.0999999999999999E-2,1.0999999999999999E-2,"-"]
[null,null,8,"DESIGN PRESSURE",null,null,null,null,null,null,null,null,"bar(g)",null,18.2]
[null,null,9,"DESIGN TEMPERATURE",null,null,null,null,null,null,null,null,"°C",null,85]
[null,null,10,"VAPOR PRESSURE Pv",null,null,null,null,null,null,null,null,"bar(a)",null,"-","-","-","-"]
[null,null,11,"CRITICAL PRESSURE",null,null,null,null,null,null,null,null,"bar(a)",null,94.66,94.66,94.66,"-"]
[null,"LINE",12,"PIPE LINE SIZE & SCHEDULE","   IN","3\"",80,"CORROSION ALLOWANCE(mm)",null,6,null,null,"ACTUATOR",54," TYPE",null,"Single Acting , Spring Return "]
[null,null,null,null,"   OUT","3\"",80,null,null,null,null,null,null,55,"SIZE",null,"VTA"]
[null,null,13,"LINE NO.","GAS-111-0004-AN07-3\"-PT",null,null,null,null,null,null,null,null,56,"SPRING FAIL ACTION",null,"Fail to Close"]
[null,"VALVE BODY \n& \nBONNET",14,"TYPE",null,null,null,"Full Bore Ball Valve/Trunnion Mounted",null,null,null,null,null,57,"MAX ALLOWABLE PRESSURE",null,"VTA"]
[null,null,15,"SIZE ",null,null,null,"3\"",null,null,null,null,null,58,"MIN REQUIRES PRESSURE",null,"VTA"]
[null,null,16,"MAX PRESS./TEMP.",null,null,null,"As per PMS",null,null,null,null,null,59,"AVAILABLE AIR SUPPLY PRESSURE",null,"MAX/NOR/MIN: 10/7/3 bar-g"]
[null,null,17,"MFR. & MODEL",null,null,null,"Will be finalized later",null,null,null,null,null,60,"BENCH RANGE",null,"VTA"]
[null,null,18," BODY / BONNET MATL",null,null,null,"ASTM A216 Gr. WCB",null,null,null,null,null,61,"TRAVELING TIME",null,"5 S"]
[null,null,19,"LINER MATERIAL / ID",null,null,null,"VTA",null,null,null,null,null,62,"FUNCTION",null,"On/Off"]
[null,null,20,"END CONNECTION","IN",null,null,"3\"  /300#",null,null,null,null,null,63,"LOCAL POSITION INDICATOR",null,"Required",null,null,null,null,null,{"$f":"RIGHT(U34,4)","v":""}]
[null,null,null,null,"OUT",null,null,"3\"  /300#",null,null,null,null,null,64,"ACT. ORIENTATION",null,"VTA"]
[null,null,21,"FLG FACE FINISH",null,null,null,"RF",null,null,null,null,null,65,"HAND WHEEL TYPE",null,"Declutchable side mounted "]
[null,null,22,"END EXT./MATL.",null,null,null,"N/A",null,null,null,null,null,66,"ADJUSTABLE LIMIT STOP",null,"Yes"]
[null,null,23,"FLOW DIRECTION",null,null,null,"(Note 18 in Page 4)",null,null,null,null,null,67,"INPUT SIGNAL",null,"24VDC"]
[null,null,24,"TYPE OF BONNET",null,null,null,"Standard",null,null,null,null,null,68,"MFR. & MODEL",null,"Will be finalized later"]
[null,null,25,"LUBE & ISO VALVE",null,null,null,"No",null,null,null,null,"POSITIONER",69,"TYPE",null,"N/A"]
[null,null,26,"PACKING MATERIAL",null,"PACKING TYPE ",null,"PTFE",null,null,"Standard",null,null,70,"MFR. & MODEL",null,"Will be finalized later"]
[null,null,27,"ENTRY DESIGN",null,null,null,"Top / Side Entry",null,null,null,null,null,71,"ON INCR SIGNAL OUTPUT INCR / DECR      ",null,"N/A"]
[null,null,28,"NACE REQUIREMENTNACE (MR-0175/ISO 15156)",null,null,null,"Yes",null,null,null,null,null,72,"GAUGES",null,"N/A"]
[null,"TRIM",29,"TRIM ","TYPE","MATERIAL",null,"VTA",null,null,"316 SS+PTFE",null,null,73,"CAM CHARACTERISTIC",null,"N/A"]
[null,null,30,"SIZE ","RATED TRAVEL",null,null,"VTA",null,null,"VTA",null,null,74,"AIR CONNECTION",null,"N/A"]
[null,null,31,"CHARACTERISTICS",null,null,null,"On/Off",null,null,null,null,"LIMIT \nSWITCHES",75,"TAG NO. :",null,"EZSC-2272 / EZSO-2272"]
[null,null,32,"BALANCED / UNBALANCED",null,null,null,"BALANCED",null,null,null,null,null,76," TYPE","QUANTITY","Magnetically operated ‘REED’ contacts ",2]
[null,null,33,"RATED  Cv","FL","XT",null,"VTA","VTA","VTA",null,null,null,77,"CONTACTS / RATING",null,"110V DC , 10A "]
[null,null,34,"PLUG / BALL / DISK MATERIAL",null,null,null,"316 SS",null,null,null,null,null,78,"ACTUATION POINT",null,"Fully Open/Close"]
[null,null,35,"SEAT ","TYPE","MATERIAL",null,"Soft Seat",null,null,"316 SS+PTFE",null,null,79,"ENCLOSURE MATERIAL",null,"Die Cast Aluminum"]
[null,null,36,"CAGE / GUIDE MATERIAL",null,null,null,"VTA",null,null,null,null,null,80,"WEATHER PROTECTION",null,"IP-65"]
[null,null,37,"STEM","TYPE","MATERIAL",null,"Anti-Blow Out",null,null,"316 SS",null,null,81,"ELEC. CERTIFICATE","ELEC. CONNECTION","EEx \"d\" ,IIB T4","ISO M20 × 1.5"]
[null,null,38,"LEAKAGE CLASS",null,null,null,"ANSI Class VI",null,null,null,null,null,82,"MFR. & MODEL",null,"Will be finalized later"]
[null,null,39,"VALVE STEM EXTENSION REQUIREMENT",null,null,null,"No",null,null,null,null,"AIR SET",83,"SET PRESSURE",null,"Yes"]
[null,"SOLENOID VALVE  ",40,"TAG NO",null,null,null,"ESOV-2272",null,null,null,null,null,84,"PNEUMATIC CONNECTION",null,"1/4\" NPT"]
[null,null,41,"TYPE",null,null,null,"3 Way ",null,null,null,null,null,85,"GAUGES","FILTER","Required","Required"]
[null,null,42,"BODY MATERIAL",null,"WEATHER IP.",null,"AISI 316 S.S",null,null,"IP-65",null,null,86,"MFR. & MODEL",null,"Will be finalized later"]
[null,null,43,"ELE. CERTIFICATE",null,"ELE. CONNECTION",null,"EEx \"d\" ,IIB T4",null,null,"ISO M20 x 1.5",null,"TEST",87,"ANSI/FCI LEAKAGE CLASS",null,"Required"]
[null,null,44,"MANUAL RESET",null,null,null,"Yes",null,null,null,null,null,88,"HYDRO PRESSURE ",null,"Required"]
[null,null,45,"Power Supply",null,null,null,"24 VDC",null,null,null,null,null,89,"FUNCTIONAL TEST",null,"Required"]
[null,null,46,"Pnu. Connection",null,null,null,"1/4\" NPT ",null,null,null,null,null,90]
[null,"SPECIAL /\nACCESS.",47,"FUSIBLE LEAKAGE",null,null,null,"No",null,null,null,null,null,91]
[null,null,48,"BLOCK RELAY",null,null,null,"No",null,null,null,null,null,92]
[null,null,49,"QUICK EXHUST",null,null,null,"Yes",null,null,null,null,"FIRE PROOF DESIGN",93,"PASSIVE FIRE PROTECTION",null,"No"]
[null,null,50,"FILTER REGULATOR",null,null,null,"Yes",null,null,null,null,null,94,"API 6FA REQUIREMENTS",null,"Yes"]
[null,null,51,"VOLUME TANK",null,null,null,"No",null,null,null,null,null,95,"SIL REQUIREMENTS",null,"Yes"]
[null,null,52,"MECHANICAL POSITION INDICATOR",null,null,null,"Required",null,null,null,null,null,96,"PARTIAL STROKING VALVE TEST",null,"No",null,null,"ESD LEVEL: ",3]
[null,null,53,"MANUAL PNEUMATIC BYPASS VALVE FOR SOLENOID VALVE",null,null,null,"Yes",null,null,null,null,null,97]
[null,"NOTE:","VTA : VENDOR TO ADVISE AT BIDDING STAGE    ",null,null,null,null,"VTC: VENDOR TO CONIFRM"]
[null,null,"(1) PMS: Piping material specification.\n\n(2) All material shall be suitable for minimum design metal temperature.\n\n(3) Shall be stated by vendor at quotation stage.\n\n(4) Manual Reset to be consider for all Emergency Shut off solenoids as per P&ID."]

{"sheet":"BDV-2110","index":9,"n_rows":71,"n_cols":22,"rows_kept":71,"cut":false,"hidden":false,"merged":[[70,2,71,10],[57,12,62,12],[61,1,67,1],[63,12,67,12],[67,3,67,6],[54,1,60,1],[24,1,26,1],[24,2,25,2],[24,3,25,3],[24,12,38,12],[45,12,52,12],[27,1,42,1],[43,1,53,1],[53,12,56,12],[26,4,26,11],[24,9,25,11],[11,2,11,4],[11,5,11,6],[11,7,11,13],[11,16,11,17],[12,1,23,1],[12,12,12,13],[13,12,13,13],[14,12,14,13],[15,12,15,13],[16,12,16,13],[17,12,17,13],[18,12,18,13],[19,12,19,13],[22,12,22,13],[23,12,23,13],[21,12,21,13],[9,1,9,17],[10,1,10,2],[10,3,10,4],[10,5,10,6],[10,7,10,13],[10,15,10,17],[8,1,8,4],[1,1,6,4],[1,5,4,12],[1,13,6,17],[5,5,6,12],[7,1,7,4],[7,13,8,13],[7,14,8,14],[7,15,8,15],[7,16,8,17],[12,2,12,11],[51,5,51,6],[51,7,51,9],[51,10,51,11],[43,5,43,6],[43,7,43,9],[43,10,43,11],[49,5,49,6],[49,7,49,9],[49,10,49,11],[47,9,47,11],[24,7,25,8],[33,2,34,2],[33,3,34,3],[20,12,20,13],[20,14,20,17],[21,14,21,17],[65,14,65,15],[66,14,66,15],[25,16,25,17],[24,16,24,17],[29,14,29,15],[31,14,31,15],[39,12,44,12],[41,14,41,15]]}
[]
[null,"\n\n\n\n\nNISOC",null,null,null,"نگهداشت و افزایش تولید میدان نفتی بینک \nسطح‌الارض \n\nاحداث رديف تراكم گاز در ايستگاه جمع آوري بينك "]
[]
[]
[]
[null,null,null,null,null,"Data Sheets For ON/OFF & Shutdown Valves"]
[]
[null,"شماره پیمان:",null,null,null,"پروژه ","بسته کاری","صادرکننده","تسهیلات","رشته ","نوع مدرک ","سریال","نسخه"]
[null,"9038 – 073 - 053",null,null,null,"BK","GCS","PEDCO","120","IN","DT","0010",{"$f":"Notes!$AB$9","v":"D04"}]
[null,"Blow Down Valve"]
[null,"TAG NO:",null,"BDV-2110",null,"P&ID NO :",null,"BK-GCS-PEDCO-120-PR-PI-0005-D09",null,null,null,null,null,null,"SERVICE:","Gas Compression Inlet Knock Out Drum to Flare Header"]
[null,"FLUID STATE:","PROCESS GAS",null,null,"PHASE:",null,"GAS",null,null,null,null,null,null,"AREA CLASSIFICATION:",null,"Zone2, IIB, T4"]
[null,"SERVICE CONDITION","ITEM ",null,null,null,null,null,null,null,null,null,"UNITS",null,"Max Flow","Norm. Flow","Min. Flow","Shut-Off"]
[null,null,1,"FLOW RATE",null,null,null,null,null,null,null,null,"kg/h",null,"-",5665.4,"-","-"]
[null,null,2,"INLET PRESSURE",null,null,null,null,null,null,null,null,"bar(g)",null,"-","5.3 ~ 9","-","-"]
[null,null,3,"OUTLET PRESSURE",null,null,null,null,null,null,null,null,"bar(g)",null,"-","5.3 ~ 9","-","-"]
[null,null,4,"DIFFERENTIAL PRESSURE",null,null,null,null,null,null,null,null,"bar(g)",null,"-","-","-",18.2]
[null,null,5,"INLET TEMPERATURE",null,null,null,null,null,null,null,null,"°C",null,"-","7 ~ 37","-","-"]
[null,null,6,"DENSITY ",null,null,null,null,null,null,null,null,"kg/m3",null,"-",5.96,"-","-",null,null,null,1.1484949733668299E-2]
[null,null,7,"VISCOSITY ",null,null,null,null,null,null,null,null,"CP",null,"-","0.011 ~ 0.0115","-","-",null,null,null,1.10323036939441E-2]
[null,null,8,"DESIGN PRESSURE",null,null,null,null,null,null,null,null,"bar(g)",null,18.2]
[null,null,9,"DESIGN TEMPERATURE",null,null,null,null,null,null,null,null,"°C",null,85]
[null,null,10,"VAPOR PRESSURE Pv",null,null,null,null,null,null,null,null,"bar(a)",null,"-","-","-","-"]
[null,null,11,"CRITICAL PRESSURE",null,null,null,null,null,null,null,null,"bar(a)",null,"-",94.65,"-","-"]
[null,"LINE",12,"PIPE LINE SIZE & SCHEDULE","   IN","3\"",160,"CORROSION ALLOWANCE(mm)",null,6,null,null,"ACTUATOR",54," TYPE",null,"Single Acting, Spring Return "]
[null,null,null,null,"   OUT",3,160,null,null,null,null,null,null,55,"SIZE",null,"VTA"]
[null,null,13,"LINE NO.","GAS-111-0225-AN07-3\"-PT",null,null,null,null,null,null,null,null,56,"SPRING FAIL ACTION",null,"Fail to Open"]
[null,"VALVE BODY \n& \nBONNET",14,"TYPE",null,null,null,"Full Bore Ball Valve/Trunnion Mounted",null,null,null,null,null,57,"MAX ALLOWABLE PRESSURE",null,"VTA"]
[null,null,15,"SIZE ",null,null,null,"3\"",null,null,null,null,null,58,"MIN REQUIRES PRESSURE",null,"VTA"]
[null,null,16,"MAX PRESS./TEMP.",null,null,null,"As per PMS",null,null,null,null,null,59,"AVAILABLE AIR SUPPLY PRESSURE",null,"MAX/NOR/MIN: 10/7/3 bar-g"]
[null,null,17,"MFR. & MODEL",null,null,null,"Will be finalized later",null,null,null,null,null,60,"BENCH RANGE",null,"VTA"]
[null,null,18," BODY / BONNET MATL",null,null,null,"ASTM A216 Gr. WCB",null,null,null,null,null,61,"TRAVELING TIME",null,"5 S"]
[null,null,19,"LINER MATERIAL / ID",null,null,null,"VTA",null,null,null,null,null,62,"FUNCTION",null,"On/Off"]
[null,null,20,"END CONNECTION","IN",null,null,"3\"/300#",null,null,null,null,null,63,"LOCAL POSITION INDICATOR",null,"Required"]
[null,null,null,null,"OUT",null,null,"3\"/300#",null,null,null,null,null,64,"ACT. ORIENTATION",null,"VTA"]
[null,null,21,"FLG FACE FINISH",null,null,null,"RF",null,null,null,null,null,65,"HAND WHEEL TYPE",null,"Declutchable side mounted "]
[null,null,22,"END EXT./MATL.",null,null,null,"N/A",null,null,null,null,null,66,"ADJUSTABLE LIMIT STOP",null,"Yes"]
[null,null,23,"FLOW DIRECTION",null,null,null,"(Note 18 in Page 4)",null,null,null,null,null,67,"INPUT SIGNAL",null,"24VDC"]
[null,null,24,"TYPE OF BONNET",null,null,null,"Standard",null,null,null,null,null,68,"MFR. & MODEL",null,"Will be finalized later"]
[null,null,25,"LUBE & ISO VALVE",null,null,null,"No",null,null,null,null,"POSITIONER",69,"TYPE",null,"N/A"]
[null,null,26,"PACKING MATERIAL",null,"PACKING TYPE ",null,"PTFE",null,null,"Standard",null,null,70,"MFR. & MODEL",null,"Will be finalized later"]
[null,null,27,"ENTRY DESIGN",null,null,null,"Top / Side Entry",null,null,null,null,null,71,"ON INCR SIGNAL OUTPUT INCR / DECR      ",null,"N/A"]
[null,null,28,"NACE REQUIREMENTNACE (MR-0175/ISO 15156)",null,null,null,"Yes",null,null,null,null,null,72,"GAUGES",null,"N/A"]
[null,"TRIM",29,"TRIM ","TYPE","MATERIAL",null,"VTA",null,null,"316 SS+PTFE",null,null,73,"CAM CHARACTERISTIC",null,"N/A"]
[null,null,30,"SIZE ","RATED TRAVEL",null,null,"VTA",null,null,"VTA",null,null,74,"AIR CONNECTION",null,"N/A"]
[null,null,31,"CHARACTERISTICS",null,null,null,"On/Off",null,null,null,null,"LIMIT \nSWITCHES",75,"TAG NO. :",null,"BZSC-2110 / BZSO-2110"]
[null,null,32,"BALANCED / UNBALANCED",null,null,null,"BALANCED",null,null,null,null,null,76," TYPE","QUANTITY","Magnetically operated ‘REED’ contacts ",2]
[null,null,33,"RATED  Cv","FL","XT",null,"VTA","VTA","VTA",null,null,null,77,"CONTACTS / RATING",null,"110V DC , 10A "]
[null,null,34,"PLUG / BALL / DISK MATERIAL",null,null,null,"316 SS",null,null,null,null,null,78,"ACTUATION POINT",null,"Fully Open/Close"]
[null,null,35,"SEAT ","TYPE","MATERIAL",null,"Soft Seat",null,null,"316 SS+PTFE",null,null,79,"ENCLOSURE MATERIAL",null,"Die Cast Aluminum"]
[null,null,36,"CAGE / GUIDE MATERIAL",null,null,null,"VTA",null,null,null,null,null,80,"WEATHER PROTECTION",null,"IP-65"]
[null,null,37,"STEM","TYPE","MATERIAL",null,"Anti-Blow Out",null,null,"316 SS",null,null,81,"ELEC. CERTIFICATE","ELEC. CONNECTION","EEx \"d\" ,IIB T4","ISO M20 × 1.5"]
[null,null,38,"LEAKAGE CLASS",null,null,null,"ANSI Class VI",null,null,null,null,null,82,"MFR. & MODEL",null,"Will be finalized later"]
[null,null,39,"VALVE STEM EXTENSION REQUIREMENT",null,null,null,"No",null,null,null,null,"AIR SET",83,"SET PRESSURE",null,"Yes"]
[null,"SOLENOID VALVE  ",40,"TAG NO",null,null,null,"BSOV-2110",null,null,null,null,null,84,"PNEUMATIC CONNECTION",null,"1/4\" NPT"]
[null,null,41,"TYPE",null,null,null,"3 Way ",null,null,null,null,null,85,"GAUGES","FILTER","Required","Required"]
[null,null,42,"BODY MATERIAL",null,"WEATHER IP.",null,"AISI 316 S.S",null,null,"IP-65",null,null,86,"MFR. & MODEL",null,"Will be finalized later"]
[null,null,43,"ELE. CERTIFICATE",null,"ELE. CONNECTION",null,"EEx \"d\" ,IIB T4",null,null,"ISO M20 x 1.5",null,"TEST",87,"ANSI/FCI LEAKAGE CLASS",null,"Required"]
[null,null,44,"MANUAL RESET",null,null,null,"Yes",null,null,null,null,null,88,"HYDRO PRESSURE ",null,"Required"]
[null,null,45,"Power Supply",null,null,null,"24 VDC",null,null,null,null,null,89,"FUNCTIONAL TEST",null,"Required"]
[null,null,46,"Pnu. Connection",null,null,null,"1/4\" NPT ",null,null,null,null,null,90]
[null,"SPECIAL /\nACCESS.",47,"FUSIBLE LEAKAGE",null,null,null,"No",null,null,null,null,null,91]
[null,null,48,"BLOCK RELAY",null,null,null,"No",null,null,null,null,null,92]
[null,null,49,"QUICK EXHUST",null,null,null,"Yes",null,null,null,null,"FIRE PROOF DESIGN",93,"PASSIVE FIRE PROTECTION",null,"No"]
[null,null,50,"FILTER REGULATOR",null,null,null,"Yes",null,null,null,null,null,94,"API 6FA REQUIREMENTS",null,"Yes"]
[null,null,51,"VOLUME TANK",null,null,null,"Yes",null,null,null,null,null,95,"SIL REQUIREMENTS",null,"Yes"]
[null,null,52,"MECHANICAL POSITION INDICATOR",null,null,null,"Required",null,null,null,null,null,96,"PARTIAL STROKING VALVE TEST",null,"Yes",null,null,"ESD LEVEL: ","1A"]
[null,null,53,"MANUALPNEUMATIC BYPASS VALVE FOR SOLENOID VALVE",null,null,null,"Yes",null,null,null,null,null,97]
[]
[null,"NOTE:","VTA : VENDOR TO ADVISE AT BIDDING STAGE    ",null,null,null,null,"VTC: VENDOR TO CONIFRM"]
[null,null,"(1) PMS: Piping material specification.\n\n(2) All material shall be suitable for minimum design metal temperature.\n\n(3) Shall be stated by vendor at quotation stage.\n\n(4) Manual Reset to be consider for all Emergency Shut off solenoids as per P&ID."]

{"sheet":"BDV-2134A","index":10,"n_rows":70,"n_cols":23,"rows_kept":70,"cut":false,"hidden":false,"merged":[[57,12,62,12],[63,12,67,12],[66,14,66,15],[67,3,67,6],[61,1,67,1],[65,14,65,15],[69,2,70,10],[54,1,60,1],[24,16,24,17],[25,16,25,17],[27,1,42,1],[29,14,29,15],[31,14,31,15],[33,2,34,2],[33,3,34,3],[39,12,44,12],[41,14,41,15],[24,1,26,1],[24,2,25,2],[24,3,25,3],[24,12,38,12],[43,1,53,1],[18,12,18,13],[19,12,19,13],[22,12,22,13],[23,12,23,13],[21,12,21,13],[20,12,20,13],[13,12,13,13],[14,12,14,13],[15,12,15,13],[16,12,16,13],[17,12,17,13],[53,12,56,12],[26,4,26,11],[1,1,6,4],[1,5,4,12],[9,1,9,17],[10,1,10,2],[10,3,10,4],[10,5,10,6],[10,7,10,13],[10,15,10,17],[11,2,11,4],[11,5,11,6],[11,7,11,13],[11,16,11,17],[12,1,23,1],[12,12,12,13],[1,13,6,17],[5,5,6,12],[7,1,7,4],[7,13,8,13],[7,14,8,14],[7,15,8,15],[7,16,8,17],[8,1,8,4],[20,14,20,17],[21,14,21,17],[51,5,51,6],[24,9,25,11],[12,2,12,11],[51,7,51,9],[51,10,51,11],[43,7,43,9],[43,10,43,11],[49,5,49,6],[49,7,49,9],[49,10,49,11],[47,9,47,11],[24,7,25,8],[45,12,52,12],[43,5,43,6]]}
[]
[null,"\n\n\n\n\nNISOC",null,null,null,"نگهداشت و افزایش تولید میدان نفتی بینک \nسطح‌الارض \n\nاحداث رديف تراكم گاز در ايستگاه جمع آوري بينك "]
[]
[]
[]
[null,null,null,null,null,"Data Sheets For ON/OFF & Shutdown Valves"]
[]
[null,"شماره پیمان:",null,null,null,"پروژه ","بسته کاری","صادرکننده","تسهیلات","رشته ","نوع مدرک ","سریال","نسخه"]
[null,"9038 – 073 - 053",null,null,null,"BK","GCS","PEDCO","120","IN","DT","0010",{"$f":"Notes!$AB$9","v":"D04"}]
[null,"Blow Down Valve"]
[null,"TAG NO:",null,"BDV-2134A",null,"P&ID NO :",null,"BK-GCS-PEDCO-120-PR-PI-0009-D09 (1/3)",null,null,null,null,null,null,"SERVICE:","2nd Stage Gas Compression Suction Drums"]
[null,"FLUID STATE:","VENT GAS",null,null,"PHASE:",null,"GAS",null,null,null,null,null,null,"AREA CLASSIFICATION:",null,"Zone2, IIB, T4"]
[null,"SERVICE CONDITION","ITEM ",null,null,null,null,null,null,null,null,null,"UNITS",null,"Max Flow","Norm. Flow","Min. Flow","Shut-Off"]
[null,null,1,"FLOW RATE",null,null,null,null,null,null,null,null,"kg/h",null,"-",796.4,"-","-"]
[null,null,2,"INLET PRESSURE",null,null,null,null,null,null,null,null,"bar(g)",null,"-","18.1~ 22","-","-"]
[null,null,3,"OUTLET PRESSURE",null,null,null,null,null,null,null,null,"bar(g)",null,"-","18.1~ 22","-","-"]
[null,null,4,"DIFFERENTIAL PRESSURE",null,null,null,null,null,null,null,null,"bar(g)",null,"-","-","-",47.7]
[null,null,5,"INLET TEMPERATURE",null,null,null,null,null,null,null,null,"°C",null,"-","14.5 ~ 59.9","-","-"]
[null,null,6,"DENSITY",null,null,null,null,null,null,null,null,"kg/m3",null,"-",18.079999999999998,"-","-"]
[null,null,7,"VISCOSITY ",null,null,null,null,null,null,null,null,"CP",null,"-","0.013","-","-"]
[null,null,8,"DESIGN PRESSURE",null,null,null,null,null,null,null,null,"bar(g)",null,47.7]
[null,null,9,"DESIGN TEMPERATURE",null,null,null,null,null,null,null,null,"°C",null,155]
[null,null,10,"VAPOR PRESSURE Pv",null,null,null,null,null,null,null,null,"bar(a)",null,"-","-","-","-"]
[null,null,11,"CRITICAL PRESSURE",null,null,null,null,null,null,null,null,"bar(a)",null,"-",94.65,"-","-"]
[null,"LINE",12,"PIPE LINE SIZE & SCHEDULE","   IN","2\"",80,"CORROSION ALLOWANCE(mm)",null,3,null,null,"ACTUATOR",54," TYPE",null,"Single Acting , Spring Return "]
[null,null,null,null,"   OUT","2\"",80,null,null,null,null,null,null,55,"SIZE",null,"VTA"]
[null,null,13,"LINE NO.","GAS-111-0160A-CN05-2\"-PT",null,null,null,null,null,null,null,null,56,"SPRING FAIL ACTION",null,"Fail to Open"]
[null,"VALVE BODY \n& \nBONNET",14,"TYPE",null,null,null,"Full Bore Ball Valve/ Floating Type",null,null,null,null,null,57,"MAX ALLOWABLE PRESSURE",null,"VTA"]
[null,null,15,"SIZE ",null,null,null,"2\"",null,null,null,null,null,58,"MIN REQUIRES PRESSURE",null,"VTA"]
[null,null,16,"MAX PRESS./TEMP.",null,null,null,"As per PMS",null,null,null,null,null,59,"AVAILABLE AIR SUPPLY PRESSURE",null,"MAX/NOR/MIN: 10/7/3 bar-g"]
[null,null,17,"MFR. & MODEL",null,null,null,"Will be finalized later",null,null,null,null,null,60,"BENCH RANGE",null,"VTA"]
[null,null,18," BODY / BONNET MATL",null,null,null,"ASTM A216 Gr. WCB",null,null,null,null,null,61,"TRAVELING TIME",null,"5 S"]
[null,null,19,"LINER MATERIAL / ID",null,null,null,"VTA",null,null,null,null,null,62,"FUNCTION",null,"On/Off"]
[null,null,20,"END CONNECTION","IN",null,null,"2\" /300#",null,null,null,null,null,63,"LOCAL POSITION INDICATOR",null,"Required",null,null,null,null,null,{"$f":"RIGHT(U34,4)","v":""}]
[null,null,null,null,"OUT",null,null,"2\"/300#",null,null,null,null,null,64,"ACT. ORIENTATION",null,"VTA"]
[null,null,21,"FLG FACE FINISH",null,null,null,"RF",null,null,null,null,null,65,"HAND WHEEL TYPE",null,"Declutchable side mounted "]
[null,null,22,"END EXT./MATL.",null,null,null,"N/A",null,null,null,null,null,66,"ADJUSTABLE LIMIT STOP",null,"No"]
[null,null,23,"FLOW DIRECTION",null,null,null,"(Note 18 in Page 4)",null,null,null,null,null,67,"INPUT SIGNAL",null,"24VDC"]
[null,null,24,"TYPE OF BONNET",null,null,null,"Standard",null,null,null,null,null,68,"MFR. & MODEL",null,"Will be finalized later"]
[null,null,25,"LUBE & ISO VALVE",null,null,null,"No",null,null,null,null,"POSITIONER",69,"TYPE",null,"N/A"]
[null,null,26,"PACKING MATERIAL",null,"PACKING TYPE ",null,"RPTFE",null,null,"Standard",null,null,70,"MFR. & MODEL",null,"Will be finalized later"]
[null,null,27,"ENTRY DESIGN",null,null,null,"Top / Side Entry",null,null,null,null,null,71,"ON INCR SIGNAL OUTPUT INCR / DECR      ",null,"N/A"]
[null,null,28,"NACE REQUIREMENTNACE (MR-0175/ISO 15156)",null,null,null,"Yes",null,null,null,null,null,72,"GAUGES",null,"N/A"]
[null,"TRIM",29,"TRIM ","TYPE","MATERIAL",null,"VTA",null,null,"316 SS+RPTFE",null,null,73,"CAM CHARACTERISTIC",null,"N/A"]
[null,null,30,"SIZE ","RATED TRAVEL",null,null,"VTA",null,null,"VTA",null,null,74,"AIR CONNECTION",null,"N/A"]
[null,null,31,"CHARACTERISTICS",null,null,null,"On/Off",null,null,null,null,"LIMIT \nSWITCHES",75,"TAG NO. :",null,"BZSC-2134A / BZSO-2134A"]
[null,null,32,"BALANCED / UNBALANCED",null,null,null,"BALANCED",null,null,null,null,null,76," TYPE","QUANTITY","Magnetically operated ‘REED’ contacts ",2]
[null,null,33,"RATED  Cv","FL","XT",null,"VTA","VTA","VTA",null,null,null,77,"CONTACTS / RATING",null,"110V DC , 10A "]
[null,null,34,"PLUG / BALL / DISK MATERIAL",null,null,null,"316 SS",null,null,null,null,null,78,"ACTUATION POINT",null,"Fully Open/Close"]
[null,null,35,"SEAT ","TYPE","MATERIAL",null,"Soft Seat",null,null,"316 SS+RPTFE",null,null,79,"ENCLOSURE MATERIAL",null,"Die Cast Aluminum"]
[null,null,36,"CAGE / GUIDE MATERIAL",null,null,null,"VTA",null,null,null,null,null,80,"WEATHER PROTECTION",null,"IP-65"]
[null,null,37,"STEM","TYPE","MATERIAL",null,"Anti-Blow Out",null,null,"316 SS",null,null,81,"ELEC. CERTIFICATE","ELEC. CONNECTION","EEx \"d\" ,IIB T4","ISO M20 × 1.5"]
[null,null,38,"LEAKAGE CLASS",null,null,null,"ANSI Class VI",null,null,null,null,null,82,"MFR. & MODEL",null,"Will be finalized later"]
[null,null,39,"VALVE STEM EXTENSION REQUIREMENT",null,null,null,"No",null,null,null,null,"AIR SET",83,"SET PRESSURE",null,"Yes"]
[null,"SOLENOID VALVE  ",40,"TAG NO",null,null,null,"BSOV-2134A",null,null,null,null,null,84,"PNEUMATIC CONNECTION",null,"1/4\" NPT"]
[null,null,41,"TYPE",null,null,null,"3 Way ",null,null,null,null,null,85,"GAUGES","FILTER","Required","Required"]
[null,null,42,"BODY MATERIAL",null,"WEATHER IP.",null,"AISI 316 S.S",null,null,"IP-65",null,null,86,"MFR. & MODEL",null,"Will be finalized later"]
[null,null,43,"ELE. CERTIFICATE",null,"ELE. CONNECTION",null,"EEx \"d\" ,IIB T4",null,null,"ISO M20 x 1.5",null,"TEST",87,"ANSI/FCI LEAKAGE CLASS",null,"Required"]
[null,null,44,"MANUAL RESET",null,null,null,"Yes",null,null,null,null,null,88,"HYDRO PRESSURE ",null,"Required"]
[null,null,45,"Power Supply",null,null,null,"24 VDC",null,null,null,null,null,89,"FUNCTIONAL TEST",null,"Required"]
[null,null,46,"Pnu. Connection",null,null,null,"1/4\" NPT ",null,null,null,null,null,90]
[null,"SPECIAL /\nACCESS.",47,"FUSIBLE LEAKAGE",null,null,null,"No",null,null,null,null,null,91]
[null,null,48,"BLOCK RELAY",null,null,null,"No",null,null,null,null,null,92]
[null,null,49,"QUICK EXHUST",null,null,null,"Yes",null,null,null,null,"FIRE PROOF DESIGN",93,"PASSIVE FIRE PROTECTION",null,"No"]
[null,null,50,"FILTER REGULATOR",null,null,null,"Yes",null,null,null,null,null,94,"API 6FA REQUIREMENTS",null,"Yes"]
[null,null,51,"VOLUME TANK",null,null,null,"Yes",null,null,null,null,null,95,"SIL REQUIREMENTS",null,"Yes"]
[null,null,52,"MECHANICAL POSITION INDICATOR",null,null,null,"Required",null,null,null,null,null,96,"PARTIAL STROKING VALVE TEST",null,"No",null,null,"ESD LEVEL: ","2A"]
[null,null,53,"MANUALPNEUMATIC BYPASS VALVE FOR SOLENOID VALVE",null,null,null,"Yes",null,null,null,null,null,97]
[null,"NOTE:","VTA : VENDOR TO ADVISE AT BIDDING STAGE    ",null,null,null,null,"VTC: VENDOR TO CONIFRM"]
[null,null,"(1) PMS: Piping material specification.\n\n(2) All material shall be suitable for minimum design metal temperature.\n\n(3) Shall be stated by vendor at quotation stage.\n\n(4) Manual Reset to be consider for all Emergency Shut off solenoids as per P&ID."]

{"sheet":"BDV-2134B","index":11,"n_rows":70,"n_cols":23,"rows_kept":70,"cut":false,"hidden":false,"merged":[[61,1,67,1],[69,2,70,10],[54,1,60,1],[24,16,24,17],[25,16,25,17],[27,1,42,1],[29,14,29,15],[31,14,31,15],[33,2,34,2],[33,3,34,3],[39,12,44,12],[41,14,41,15],[24,1,26,1],[24,2,25,2],[24,3,25,3],[24,12,38,12],[43,1,53,1],[45,12,52,12],[53,12,56,12],[1,1,6,4],[1,5,4,12],[11,2,11,4],[11,5,11,6],[11,7,11,13],[9,1,9,17],[10,1,10,2],[10,3,10,4],[10,5,10,6],[10,7,10,13],[10,15,10,17],[49,5,49,6],[49,7,49,9],[1,13,6,17],[5,5,6,12],[7,1,7,4],[7,13,8,13],[7,14,8,14],[7,15,8,15],[7,16,8,17],[8,1,8,4],[11,16,11,17],[12,1,23,1],[12,12,12,13],[13,12,13,13],[14,12,14,13],[15,12,15,13],[16,12,16,13],[17,12,17,13],[18,12,18,13],[19,12,19,13],[22,12,22,13],[23,12,23,13],[21,12,21,13],[20,12,20,13],[20,14,20,17],[21,14,21,17],[49,10,49,11],[65,14,65,15],[47,9,47,11],[51,5,51,6],[51,7,51,9],[51,10,51,11],[57,12,62,12],[63,12,67,12],[66,14,66,15],[67,3,67,6],[26,4,26,11],[24,9,25,11],[12,2,12,11],[43,7,43,9],[43,10,43,11],[43,5,43,6],[24,7,25,8]]}
[]
[null,"\n\n\n\n\nNISOC",null,null,null,"نگهداشت و افزایش تولید میدان نفتی بینک \nسطح‌الارض \n\nاحداث رديف تراكم گاز در ايستگاه جمع آوري بينك "]
[]
[]
[]
[null,null,null,null,null,"Data Sheets For ON/OFF & Shutdown Valves"]
[]
[null,"شماره پیمان:",null,null,null,"پروژه ","بسته کاری","صادرکننده","تسهیلات","رشته ","نوع مدرک ","سریال","نسخه"]
[null,"9038 – 073 - 053",null,null,null,"BK","GCS","PEDCO","120","IN","DT","0010",{"$f":"Notes!$AB$9","v":"D04"}]
[null,"Blow Down Valve"]
[null,"TAG NO:",null,"BDV-2134B",null,"P&ID NO :",null,"BK-GCS-PEDCO-120-PR-PI-0009-D09 (2/3)",null,null,null,null,null,null,"SERVICE:","2nd Stage Gas Compression Suction Drums"]
[null,"FLUID STATE:","VENT GAS",null,null,"PHASE:",null,"GAS",null,null,null,null,null,null,"AREA CLASSIFICATION:",null,"Zone2, IIB, T4"]
[null,"SERVICE CONDITION","ITEM ",null,null,null,null,null,null,null,null,null,"UNITS",null,"Max Flow","Norm. Flow","Min. Flow","Shut-Off"]
[null,null,1,"FLOW RATE",null,null,null,null,null,null,null,null,"kg/h",null,"-",796.4,"-","-"]
[null,null,2,"INLET PRESSURE",null,null,null,null,null,null,null,null,"bar(g)",null,"-","18.1~ 22","-","-"]
[null,null,3,"OUTLET PRESSURE",null,null,null,null,null,null,null,null,"bar(g)",null,"-","18.1~ 22","-","-"]
[null,null,4,"DIFFERENTIAL PRESSURE",null,null,null,null,null,null,null,null,"bar(g)",null,"-","-","-",47.7]
[null,null,5,"INLET TEMPERATURE",null,null,null,null,null,null,null,null,"°C",null,"-","14.5 ~ 59.9","-","-"]
[null,null,6,"DENSITY",null,null,null,null,null,null,null,null,"kg/m3",null,"-",18.079999999999998,"-","-"]
[null,null,7,"VISCOSITY ",null,null,null,null,null,null,null,null,"CP",null,"-","0.013","-","-"]
[null,null,8,"DESIGN PRESSURE",null,null,null,null,null,null,null,null,"bar(g)",null,47.7]
[null,null,9,"DESIGN TEMPERATURE",null,null,null,null,null,null,null,null,"°C",null,155]
[null,null,10,"VAPOR PRESSURE Pv",null,null,null,null,null,null,null,null,"bar(a)",null,"-","-","-","-"]
[null,null,11,"CRITICAL PRESSURE",null,null,null,null,null,null,null,null,"bar(a)",null,"-",94.65,"-","-"]
[null,"LINE",12,"PIPE LINE SIZE & SCHEDULE","   IN","2\"",80,"CORROSION ALLOWANCE(mm)",null,3,null,null,"ACTUATOR",54," TYPE",null,"Single Acting , Spring Return "]
[null,null,null,null,"   OUT","2\"",80,null,null,null,null,null,null,55,"SIZE",null,"VTA"]
[null,null,13,"LINE NO.","GAS-111-0160B-CN05-2\"-PT",null,null,null,null,null,null,null,null,56,"SPRING FAIL ACTION",null,"Fail to Open"]
[null,"VALVE BODY \n& \nBONNET",14,"TYPE",null,null,null,"Full Bore Ball Valve/ Floating Type",null,null,null,null,null,57,"MAX ALLOWABLE PRESSURE",null,"VTA"]
[null,null,15,"SIZE ",null,null,null,"2\"",null,null,null,null,null,58,"MIN REQUIRES PRESSURE",null,"VTA"]
[null,null,16,"MAX PRESS./TEMP.",null,null,null,"As per PMS",null,null,null,null,null,59,"AVAILABLE AIR SUPPLY PRESSURE",null,"MAX/NOR/MIN: 10/7/3 bar-g"]
[null,null,17,"MFR. & MODEL",null,null,null,"Will be finalized later",null,null,null,null,null,60,"BENCH RANGE",null,"VTA"]
[null,null,18," BODY / BONNET MATL",null,null,null,"ASTM A216 Gr. WCB",null,null,null,null,null,61,"TRAVELING TIME",null,"5 S"]
[null,null,19,"LINER MATERIAL / ID",null,null,null,"VTA",null,null,null,null,null,62,"FUNCTION",null,"On/Off"]
[null,null,20,"END CONNECTION","IN",null,null,"2\" /300#",null,null,null,null,null,63,"LOCAL POSITION INDICATOR",null,"Required",null,null,null,null,null,{"$f":"RIGHT(U34,4)","v":""}]
[null,null,null,null,"OUT",null,null,"2\"/300#",null,null,null,null,null,64,"ACT. ORIENTATION",null,"VTA"]
[null,null,21,"FLG FACE FINISH",null,null,null,"RF",null,null,null,null,null,65,"HAND WHEEL TYPE",null,"Declutchable side mounted "]
[null,null,22,"END EXT./MATL.",null,null,null,"N/A",null,null,null,null,null,66,"ADJUSTABLE LIMIT STOP",null,"No"]
[null,null,23,"FLOW DIRECTION",null,null,null,"(Note 18 in Page 4)",null,null,null,null,null,67,"INPUT SIGNAL",null,"24VDC"]
[null,null,24,"TYPE OF BONNET",null,null,null,"Standard",null,null,null,null,null,68,"MFR. & MODEL",null,"Will be finalized later"]
[null,null,25,"LUBE & ISO VALVE",null,null,null,"No",null,null,null,null,"POSITIONER",69,"TYPE",null,"N/A"]
[null,null,26,"PACKING MATERIAL",null,"PACKING TYPE ",null,"RPTFE",null,null,"Standard",null,null,70,"MFR. & MODEL",null,"Will be finalized later"]
[null,null,27,"ENTRY DESIGN",null,null,null,"Top / Side Entry",null,null,null,null,null,71,"ON INCR SIGNAL OUTPUT INCR / DECR      ",null,"N/A"]
[null,null,28,"NACE REQUIREMENTNACE (MR-0175/ISO 15156)",null,null,null,"Yes",null,null,null,null,null,72,"GAUGES",null,"N/A"]
[null,"TRIM",29,"TRIM ","TYPE","MATERIAL",null,"VTA",null,null,"316 SS+RPTFE",null,null,73,"CAM CHARACTERISTIC",null,"N/A"]
[null,null,30,"SIZE ","RATED TRAVEL",null,null,"VTA",null,null,"VTA",null,null,74,"AIR CONNECTION",null,"N/A"]
[null,null,31,"CHARACTERISTICS",null,null,null,"On/Off",null,null,null,null,"LIMIT \nSWITCHES",75,"TAG NO. :",null,"BZSC-2134B / BZSO-2134B"]
[null,null,32,"BALANCED / UNBALANCED",null,null,null,"BALANCED",null,null,null,null,null,76," TYPE","QUANTITY","Magnetically operated ‘REED’ contacts ",2]
[null,null,33,"RATED  Cv","FL","XT",null,"VTA","VTA","VTA",null,null,null,77,"CONTACTS / RATING",null,"110V DC , 10A "]
[null,null,34,"PLUG / BALL / DISK MATERIAL",null,null,null,"316 SS",null,null,null,null,null,78,"ACTUATION POINT",null,"Fully Open/Close"]
[null,null,35,"SEAT ","TYPE","MATERIAL",null,"Soft Seat",null,null,"316 SS+RPTFE",null,null,79,"ENCLOSURE MATERIAL",null,"Die Cast Aluminum"]
[null,null,36,"CAGE / GUIDE MATERIAL",null,null,null,"VTA",null,null,null,null,null,80,"WEATHER PROTECTION",null,"IP-65"]
[null,null,37,"STEM","TYPE","MATERIAL",null,"Anti-Blow Out",null,null,"316 SS",null,null,81,"ELEC. CERTIFICATE","ELEC. CONNECTION","EEx \"d\" ,IIB T4","ISO M20 × 1.5"]
[null,null,38,"LEAKAGE CLASS",null,null,null,"ANSI Class VI",null,null,null,null,null,82,"MFR. & MODEL",null,"Will be finalized later"]
[null,null,39,"VALVE STEM EXTENSION REQUIREMENT",null,null,null,"No",null,null,null,null,"AIR SET",83,"SET PRESSURE",null,"Yes"]
[null,"SOLENOID VALVE  ",40,"TAG NO",null,null,null,"BSOV-2134B",null,null,null,null,null,84,"PNEUMATIC CONNECTION",null,"1/4\" NPT"]
[null,null,41,"TYPE",null,null,null,"3 Way ",null,null,null,null,null,85,"GAUGES","FILTER","Required","Required"]
[null,null,42,"BODY MATERIAL",null,"WEATHER IP.",null,"AISI 316 S.S",null,null,"IP-65",null,null,86,"MFR. & MODEL",null,"Will be finalized later"]
[null,null,43,"ELE. CERTIFICATE",null,"ELE. CONNECTION",null,"EEx \"d\" ,IIB T4",null,null,"ISO M20 x 1.5",null,"TEST",87,"ANSI/FCI LEAKAGE CLASS",null,"Required"]
[null,null,44,"MANUAL RESET",null,null,null,"Yes",null,null,null,null,null,88,"HYDRO PRESSURE ",null,"Required"]
[null,null,45,"Power Supply",null,null,null,"24 VDC",null,null,null,null,null,89,"FUNCTIONAL TEST",null,"Required"]
[null,null,46,"Pnu. Connection",null,null,null,"1/4\" NPT ",null,null,null,null,null,90]
[null,"SPECIAL /\nACCESS.",47,"FUSIBLE LEAKAGE",null,null,null,"No",null,null,null,null,null,91]
[null,null,48,"BLOCK RELAY",null,null,null,"No",null,null,null,null,null,92]
[null,null,49,"QUICK EXHUST",null,null,null,"Yes",null,null,null,null,"FIRE PROOF DESIGN",93,"PASSIVE FIRE PROTECTION",null,"No"]
[null,null,50,"FILTER REGULATOR",null,null,null,"Yes",null,null,null,null,null,94,"API 6FA REQUIREMENTS",null,"Yes"]
[null,null,51,"VOLUME TANK",null,null,null,"Yes",null,null,null,null,null,95,"SIL REQUIREMENTS",null,"Yes"]
[null,null,52,"MECHANICAL POSITION INDICATOR",null,null,null,"Required",null,null,null,null,null,96,"PARTIAL STROKING VALVE TEST",null,"No",null,null,"ESD LEVEL: ","2A"]
[null,null,53,"MANUALPNEUMATIC BYPASS VALVE FOR SOLENOID VALVE",null,null,null,"Yes",null,null,null,null,null,97]
[null,"NOTE:","VTA : VENDOR TO ADVISE AT BIDDING STAGE    ",null,null,null,null,"VTC: VENDOR TO CONIFRM"]
[null,null,"(1) PMS: Piping material specification.\n\n(2) All material shall be suitable for minimum design metal temperature.\n\n(3) Shall be stated by vendor at quotation stage.\n\n(4) Manual Reset to be consider for all Emergency Shut off solenoids as per P&ID."]

{"sheet":"BDV-2134C","index":12,"n_rows":70,"n_cols":23,"rows_kept":70,"cut":false,"hidden":false,"merged":[[61,1,67,1],[69,2,70,10],[54,1,60,1],[24,16,24,17],[25,16,25,17],[27,1,42,1],[29,14,29,15],[31,14,31,15],[33,2,34,2],[33,3,34,3],[39,12,44,12],[41,14,41,15],[24,1,26,1],[24,2,25,2],[24,3,25,3],[24,12,38,12],[43,1,53,1],[45,12,52,12],[53,12,56,12],[1,1,6,4],[1,5,4,12],[11,2,11,4],[11,5,11,6],[11,7,11,13],[9,1,9,17],[10,1,10,2],[10,3,10,4],[10,5,10,6],[10,7,10,13],[10,15,10,17],[49,5,49,6],[49,7,49,9],[1,13,6,17],[5,5,6,12],[7,1,7,4],[7,13,8,13],[7,14,8,14],[7,15,8,15],[7,16,8,17],[8,1,8,4],[11,16,11,17],[12,1,23,1],[12,12,12,13],[13,12,13,13],[14,12,14,13],[15,12,15,13],[16,12,16,13],[17,12,17,13],[18,12,18,13],[19,12,19,13],[22,12,22,13],[23,12,23,13],[21,12,21,13],[20,12,20,13],[20,14,20,17],[21,14,21,17],[49,10,49,11],[65,14,65,15],[47,9,47,11],[51,5,51,6],[51,7,51,9],[51,10,51,11],[57,12,62,12],[63,12,67,12],[66,14,66,15],[67,3,67,6],[26,4,26,11],[24,9,25,11],[12,2,12,11],[43,7,43,9],[43,10,43,11],[43,5,43,6],[24,7,25,8]]}
[]
[null,"\n\n\n\n\nNISOC",null,null,null,"نگهداشت و افزایش تولید میدان نفتی بینک \nسطح‌الارض \n\nاحداث رديف تراكم گاز در ايستگاه جمع آوري بينك "]
[]
[]
[]
[null,null,null,null,null,"Data Sheets For ON/OFF & Shutdown Valves"]
[]
[null,"شماره پیمان:",null,null,null,"پروژه ","بسته کاری","صادرکننده","تسهیلات","رشته ","نوع مدرک ","سریال","نسخه"]
[null,"9038 – 073 - 053",null,null,null,"BK","GCS","PEDCO","120","IN","DT","0010",{"$f":"Notes!$AB$9","v":"D04"}]
[null,"Blow Down Valve"]
[null,"TAG NO:",null,"BDV-2134C",null,"P&ID NO :",null,"BK-GCS-PEDCO-120-PR-PI-0009-D09 (3/3)",null,null,null,null,null,null,"SERVICE:","2nd Stage Gas Compression Suction Drums"]
[null,"FLUID STATE:","VENT GAS",null,null,"PHASE:",null,"GAS",null,null,null,null,null,null,"AREA CLASSIFICATION:",null,"Zone2, IIB, T4"]
[null,"SERVICE CONDITION","ITEM ",null,null,null,null,null,null,null,null,null,"UNITS",null,"Max Flow","Norm. Flow","Min. Flow","Shut-Off"]
[null,null,1,"FLOW RATE",null,null,null,null,null,null,null,null,"kg/h",null,"-",796.4,"-","-"]
[null,null,2,"INLET PRESSURE",null,null,null,null,null,null,null,null,"bar(g)",null,"-","18.1~ 22","-","-"]
[null,null,3,"OUTLET PRESSURE",null,null,null,null,null,null,null,null,"bar(g)",null,"-","18.1~ 22","-","-"]
[null,null,4,"DIFFERENTIAL PRESSURE",null,null,null,null,null,null,null,null,"bar(g)",null,"-","-","-",47.7]
[null,null,5,"INLET TEMPERATURE",null,null,null,null,null,null,null,null,"°C",null,"-","14.5 ~ 59.9","-","-"]
[null,null,6,"DENSITY",null,null,null,null,null,null,null,null,"kg/m3",null,"-",18.079999999999998,"-","-"]
[null,null,7,"VISCOSITY ",null,null,null,null,null,null,null,null,"CP",null,"-","0.013","-","-"]
[null,null,8,"DESIGN PRESSURE",null,null,null,null,null,null,null,null,"bar(g)",null,47.7]
[null,null,9,"DESIGN TEMPERATURE",null,null,null,null,null,null,null,null,"°C",null,155]
[null,null,10,"VAPOR PRESSURE Pv",null,null,null,null,null,null,null,null,"bar(a)",null,"-","-","-","-"]
[null,null,11,"CRITICAL PRESSURE",null,null,null,null,null,null,null,null,"bar(a)",null,"-",94.65,"-","-"]
[null,"LINE",12,"PIPE LINE SIZE & SCHEDULE","   IN","2\"",80,"CORROSION ALLOWANCE(mm)",null,3,null,null,"ACTUATOR",54," TYPE",null,"Single Acting , Spring Return "]
[null,null,null,null,"   OUT","2\"",80,null,null,null,null,null,null,55,"SIZE",null,"VTA"]
[null,null,13,"LINE NO.","GAS-111-0160C-CN05-2\"-PT",null,null,null,null,null,null,null,null,56,"SPRING FAIL ACTION",null,"Fail to Open"]
[null,"VALVE BODY \n& \nBONNET",14,"TYPE",null,null,null,"Full Bore Ball Valve/ Floating Type",null,null,null,null,null,57,"MAX ALLOWABLE PRESSURE",null,"VTA"]
[null,null,15,"SIZE ",null,null,null,"2\"",null,null,null,null,null,58,"MIN REQUIRES PRESSURE",null,"VTA"]
[null,null,16,"MAX PRESS./TEMP.",null,null,null,"As per PMS",null,null,null,null,null,59,"AVAILABLE AIR SUPPLY PRESSURE",null,"MAX/NOR/MIN: 10/7/3 bar-g"]
[null,null,17,"MFR. & MODEL",null,null,null,"Will be finalized later",null,null,null,null,null,60,"BENCH RANGE",null,"VTA"]
[null,null,18," BODY / BONNET MATL",null,null,null,"ASTM A216 Gr. WCB",null,null,null,null,null,61,"TRAVELING TIME",null,"5 S"]
[null,null,19,"LINER MATERIAL / ID",null,null,null,"VTA",null,null,null,null,null,62,"FUNCTION",null,"On/Off"]
[null,null,20,"END CONNECTION","IN",null,null,"2\" /300#",null,null,null,null,null,63,"LOCAL POSITION INDICATOR",null,"Required",null,null,null,null,null,{"$f":"RIGHT(U34,4)","v":""}]
[null,null,null,null,"OUT",null,null,"2\"/300#",null,null,null,null,null,64,"ACT. ORIENTATION",null,"VTA"]
[null,null,21,"FLG FACE FINISH",null,null,null,"RF",null,null,null,null,null,65,"HAND WHEEL TYPE",null,"Declutchable side mounted "]
[null,null,22,"END EXT./MATL.",null,null,null,"N/A",null,null,null,null,null,66,"ADJUSTABLE LIMIT STOP",null,"No"]
[null,null,23,"FLOW DIRECTION",null,null,null,"(Note 18 in Page 4)",null,null,null,null,null,67,"INPUT SIGNAL",null,"24VDC"]
[null,null,24,"TYPE OF BONNET",null,null,null,"Standard",null,null,null,null,null,68,"MFR. & MODEL",null,"Will be finalized later"]
[null,null,25,"LUBE & ISO VALVE",null,null,null,"No",null,null,null,null,"POSITIONER",69,"TYPE",null,"N/A"]
[null,null,26,"PACKING MATERIAL",null,"PACKING TYPE ",null,"RPTFE",null,null,"Standard",null,null,70,"MFR. & MODEL",null,"Will be finalized later"]
[null,null,27,"ENTRY DESIGN",null,null,null,"Top / Side Entry",null,null,null,null,null,71,"ON INCR SIGNAL OUTPUT INCR / DECR      ",null,"N/A"]
[null,null,28,"NACE REQUIREMENTNACE (MR-0175/ISO 15156)",null,null,null,"Yes",null,null,null,null,null,72,"GAUGES",null,"N/A"]
[null,"TRIM",29,"TRIM ","TYPE","MATERIAL",null,"VTA",null,null,"316 SS+RPTFE",null,null,73,"CAM CHARACTERISTIC",null,"N/A"]
[null,null,30,"SIZE ","RATED TRAVEL",null,null,"VTA",null,null,"VTA",null,null,74,"AIR CONNECTION",null,"N/A"]
[null,null,31,"CHARACTERISTICS",null,null,null,"On/Off",null,null,null,null,"LIMIT \nSWITCHES",75,"TAG NO. :",null,"BZSC-2134C / BZSO-2134C"]
[null,null,32,"BALANCED / UNBALANCED",null,null,null,"BALANCED",null,null,null,null,null,76," TYPE","QUANTITY","Magnetically operated ‘REED’ contacts ",2]
[null,null,33,"RATED  Cv","FL","XT",null,"VTA","VTA","VTA",null,null,null,77,"CONTACTS / RATING",null,"110V DC , 10A "]
[null,null,34,"PLUG / BALL / DISK MATERIAL",null,null,null,"316 SS",null,null,null,null,null,78,"ACTUATION POINT",null,"Fully Open/Close"]
[null,null,35,"SEAT ","TYPE","MATERIAL",null,"Soft Seat",null,null,"316 SS+RPTFE",null,null,79,"ENCLOSURE MATERIAL",null,"Die Cast Aluminum"]
[null,null,36,"CAGE / GUIDE MATERIAL",null,null,null,"VTA",null,null,null,null,null,80,"WEATHER PROTECTION",null,"IP-65"]
[null,null,37,"STEM","TYPE","MATERIAL",null,"Anti-Blow Out",null,null,"316 SS",null,null,81,"ELEC. CERTIFICATE","ELEC. CONNECTION","EEx \"d\" ,IIB T4","ISO M20 × 1.5"]
[null,null,38,"LEAKAGE CLASS",null,null,null,"ANSI Class VI",null,null,null,null,null,82,"MFR. & MODEL",null,"Will be finalized later"]
[null,null,39,"VALVE STEM EXTENSION REQUIREMENT",null,null,null,"No",null,null,null,null,"AIR SET",83,"SET PRESSURE",null,"Yes"]
[null,"SOLENOID VALVE  ",40,"TAG NO",null,null,null,"BSOV-2134C",null,null,null,null,null,84,"PNEUMATIC CONNECTION",null,"1/4\" NPT"]
[null,null,41,"TYPE",null,null,null,"3 Way ",null,null,null,null,null,85,"GAUGES","FILTER","Required","Required"]
[null,null,42,"BODY MATERIAL",null,"WEATHER IP.",null,"AISI 316 S.S",null,null,"IP-65",null,null,86,"MFR. & MODEL",null,"Will be finalized later"]
[null,null,43,"ELE. CERTIFICATE",null,"ELE. CONNECTION",null,"EEx \"d\" ,IIB T4",null,null,"ISO M20 x 1.5",null,"TEST",87,"ANSI/FCI LEAKAGE CLASS",null,"Required"]
[null,null,44,"MANUAL RESET",null,null,null,"Yes",null,null,null,null,null,88,"HYDRO PRESSURE ",null,"Required"]
[null,null,45,"Power Supply",null,null,null,"24 VDC",null,null,null,null,null,89,"FUNCTIONAL TEST",null,"Required"]
[null,null,46,"Pnu. Connection",null,null,null,"1/4\" NPT ",null,null,null,null,null,90]
[null,"SPECIAL /\nACCESS.",47,"FUSIBLE LEAKAGE",null,null,null,"No",null,null,null,null,null,91]
[null,null,48,"BLOCK RELAY",null,null,null,"No",null,null,null,null,null,92]
[null,null,49,"QUICK EXHUST",null,null,null,"Yes",null,null,null,null,"FIRE PROOF DESIGN",93,"PASSIVE FIRE PROTECTION",null,"No"]
[null,null,50,"FILTER REGULATOR",null,null,null,"Yes",null,null,null,null,null,94,"API 6FA REQUIREMENTS",null,"Yes"]
[null,null,51,"VOLUME TANK",null,null,null,"Yes",null,null,null,null,null,95,"SIL REQUIREMENTS",null,"Yes"]
[null,null,52,"MECHANICAL POSITION INDICATOR",null,null,null,"Required",null,null,null,null,null,96,"PARTIAL STROKING VALVE TEST",null,"No",null,null,"ESD LEVEL: ","2A"]
[null,null,53,"MANUALPNEUMATIC BYPASS VALVE FOR SOLENOID VALVE",null,null,null,"Yes",null,null,null,null,null,97]
[null,"NOTE:","VTA : VENDOR TO ADVISE AT BIDDING STAGE    ",null,null,null,null,"VTC: VENDOR TO CONIFRM"]
[null,null,"(1) PMS: Piping material specification.\n\n(2) All material shall be suitable for minimum design metal temperature.\n\n(3) Shall be stated by vendor at quotation stage.\n\n(4) Manual Reset to be consider for all Emergency Shut off solenoids as per P&ID."]

{"sheet":"BDV-2132A","index":13,"n_rows":70,"n_cols":23,"rows_kept":70,"cut":false,"hidden":false,"merged":[[61,1,67,1],[69,2,70,10],[54,1,60,1],[24,16,24,17],[25,16,25,17],[27,1,42,1],[29,14,29,15],[31,14,31,15],[33,2,34,2],[33,3,34,3],[39,12,44,12],[41,14,41,15],[24,1,26,1],[24,2,25,2],[24,3,25,3],[24,12,38,12],[43,1,53,1],[45,12,52,12],[53,12,56,12],[1,1,6,4],[1,5,4,12],[11,2,11,4],[11,5,11,6],[11,7,11,13],[9,1,9,17],[10,1,10,2],[10,3,10,4],[10,5,10,6],[10,7,10,13],[10,15,10,17],[49,5,49,6],[49,7,49,9],[1,13,6,17],[5,5,6,12],[7,1,7,4],[7,13,8,13],[7,14,8,14],[7,15,8,15],[7,16,8,17],[8,1,8,4],[11,16,11,17],[12,1,23,1],[12,12,12,13],[13,12,13,13],[14,12,14,13],[15,12,15,13],[16,12,16,13],[17,12,17,13],[18,12,18,13],[19,12,19,13],[22,12,22,13],[23,12,23,13],[21,12,21,13],[20,12,20,13],[20,14,20,17],[21,14,21,17],[49,10,49,11],[65,14,65,15],[47,9,47,11],[51,5,51,6],[51,7,51,9],[51,10,51,11],[57,12,62,12],[63,12,67,12],[66,14,66,15],[67,3,67,6],[26,4,26,11],[24,9,25,11],[12,2,12,11],[43,7,43,9],[43,10,43,11],[43,5,43,6],[24,7,25,8]]}
[]
[null,"\n\n\n\n\nNISOC",null,null,null,"نگهداشت و افزایش تولید میدان نفتی بینک \nسطح‌الارض \n\nاحداث رديف تراكم گاز در ايستگاه جمع آوري بينك "]
[]
[]
[]
[null,null,null,null,null,"Data Sheets For ON/OFF & Shutdown Valves"]
[]
[null,"شماره پیمان:",null,null,null,"پروژه ","بسته کاری","صادرکننده","تسهیلات","رشته ","نوع مدرک ","سریال","نسخه"]
[null,"9038 – 073 - 053",null,null,null,"BK","GCS","PEDCO","120","IN","DT","0010",{"$f":"Notes!$AB$9","v":"D04"}]
[null,"Blow Down Valve"]
[null,"TAG NO:",null,"BDV-2132A",null,"P&ID NO :",null,"BK-GCS-PEDCO-120-PR-PI-0011-D09 (1/3)",null,null,null,null,null,null,"SERVICE:","2nd Stage Gas Compression Air Coolers"]
[null,"FLUID STATE:","VENT GAS",null,null,"PHASE:",null,"GAS",null,null,null,null,null,null,"AREA CLASSIFICATION:",null,"Zone2, IIB, T4"]
[null,"SERVICE CONDITION","ITEM ",null,null,null,null,null,null,null,null,null,"UNITS",null,"Max Flow","Norm. Flow","Min. Flow","Shut-Off"]
[null,null,1,"FLOW RATE",null,null,null,null,null,null,null,null,"kg/h",null,"-",1414,"-","-"]
[null,null,2,"INLET PRESSURE",null,null,null,null,null,null,null,null,"bar(g)",null,"-","54.1 ~ 62","-","-"]
[null,null,3,"OUTLET PRESSURE",null,null,null,null,null,null,null,null,"bar(g)",null,"-","54.1 ~ 62","-","-"]
[null,null,4,"DIFFERENTIAL PRESSURE",null,null,null,null,null,null,null,null,"bar(g)",null,"-","-","-",62.4]
[null,null,5,"INLET TEMPERATURE",null,null,null,null,null,null,null,null,"°C",null,"-","14.2 ~ 60","-","-"]
[null,null,6,"DENSITY",null,null,null,null,null,null,null,null,"kg/m3",null,"-",59.63,"-","-"]
[null,null,7,"VISCOSITY ",null,null,null,null,null,null,null,null,"CP",null,"-","0.014","-","-"]
[null,null,8,"DESIGN PRESSURE",null,null,null,null,null,null,null,null,"bar(g)",null,62.4]
[null,null,9,"DESIGN TEMPERATURE",null,null,null,null,null,null,null,null,"°C",null,175]
[null,null,10,"VAPOR PRESSURE Pv",null,null,null,null,null,null,null,null,"bar(a)",null,"-","-","-","-"]
[null,null,11,"CRITICAL PRESSURE",null,null,null,null,null,null,null,null,"bar(a)",null,"-",94.65,"-","-"]
[null,"LINE",12,"PIPE LINE SIZE & SCHEDULE","   IN","1 1/2\"","40S","CORROSION ALLOWANCE(mm)",null,0,null,null,"ACTUATOR",54," TYPE",null,"Single Acting , Spring Return "]
[null,null,null,null,"   OUT","1 1/2\"","40S",null,null,null,null,null,null,55,"SIZE",null,"VTA"]
[null,null,13,"LINE NO.","GAS-111-0054A-FS00-1 1/2\"-IS",null,null,null,null,null,null,null,null,56,"SPRING FAIL ACTION",null,"Fail to Open"]
[null,"VALVE BODY \n& \nBONNET",14,"TYPE",null,null,null,"Full Bore Ball Valve/ Floating Type",null,null,null,null,null,57,"MAX ALLOWABLE PRESSURE",null,"VTA"]
[null,null,15,"SIZE ",null,null,null,"1 1/2\"",null,null,null,null,null,58,"MIN REQUIRES PRESSURE",null,"VTA"]
[null,null,16,"MAX PRESS./TEMP.",null,null,null,"As per PMS",null,null,null,null,null,59,"AVAILABLE AIR SUPPLY PRESSURE",null,"MAX/NOR/MIN: 10/7/3 bar-g"]
[null,null,17,"MFR. & MODEL",null,null,null,"Will be finalized later",null,"`",null,null,null,60,"BENCH RANGE",null,"VTA"]
[null,null,18," BODY / BONNET MATL",null,null,null,"ASTM A182 GR.F316L",null,null,null,null,null,61,"TRAVELING TIME",null,"5 S"]
[null,null,19,"LINER MATERIAL / ID",null,null,null,"VTA",null,null,null,null,null,62,"FUNCTION",null,"On/Off"]
[null,null,20,"END CONNECTION","IN",null,null,"1 1/2\" /600#",null,null,null,null,null,63,"LOCAL POSITION INDICATOR",null,"Required",null,null,null,null,null,{"$f":"RIGHT(U34,4)","v":""}]
[null,null,null,null,"OUT",null,null,"1 1/2\" /600#",null,null,null,null,null,64,"ACT. ORIENTATION",null,"VTA"]
[null,null,21,"FLG FACE FINISH",null,null,null,"RF",null,null,null,null,null,65,"HAND WHEEL TYPE",null,"Declutchable side mounted "]
[null,null,22,"END EXT./MATL.",null,null,null,"N/A",null,null,null,null,null,66,"ADJUSTABLE LIMIT STOP",null,"No"]
[null,null,23,"FLOW DIRECTION",null,null,null,"(Note 18 in Page 4)",null,null,null,null,null,67,"INPUT SIGNAL",null,"24VDC"]
[null,null,24,"TYPE OF BONNET",null,null,null,"Standard",null,null,null,null,null,68,"MFR. & MODEL",null,"Will be finalized later"]
[null,null,25,"LUBE & ISO VALVE",null,null,null,"No",null,null,null,null,"POSITIONER",69,"TYPE",null,"N/A"]
[null,null,26,"PACKING MATERIAL",null,"PACKING TYPE ",null,"RPTFE",null,null,"Standard",null,null,70,"MFR. & MODEL",null,"Will be finalized later"]
[null,null,27,"ENTRY DESIGN",null,null,null,"Top / Side Entry",null,null,null,null,null,71,"ON INCR SIGNAL OUTPUT INCR / DECR      ",null,"N/A"]
[null,null,28,"NACE REQUIREMENTNACE (MR-0175/ISO 15156)",null,null,null,"Yes",null,null,null,null,null,72,"GAUGES",null,"N/A"]
[null,"TRIM",29,"TRIM ","TYPE","MATERIAL",null,"VTA",null,null,"316 SS+RPTFE",null,null,73,"CAM CHARACTERISTIC",null,"N/A"]
[null,null,30,"SIZE ","RATED TRAVEL",null,null,"VTA",null,null,"VTA",null,null,74,"AIR CONNECTION",null,"N/A"]
[null,null,31,"CHARACTERISTICS",null,null,null,"On/Off",null,null,null,null,"LIMIT \nSWITCHES",75,"TAG NO. :",null,"BZSC-2132A / BZSO-2132A"]
[null,null,32,"BALANCED / UNBALANCED",null,null,null,"BALANCED",null,null,null,null,null,76," TYPE","QUANTITY","Magnetically operated ‘REED’ contacts ",2]
[null,null,33,"RATED  Cv","FL","XT",null,"VTA","VTA","VTA",null,null,null,77,"CONTACTS / RATING",null,"110V DC , 10A "]
[null,null,34,"PLUG / BALL / DISK MATERIAL",null,null,null,"316 SS",null,null,null,null,null,78,"ACTUATION POINT",null,"Fully Open/Close"]
[null,null,35,"SEAT ","TYPE","MATERIAL",null,"Soft Seat",null,null,"316 SS+RPTFE",null,null,79,"ENCLOSURE MATERIAL",null,"Die Cast Aluminum"]
[null,null,36,"CAGE / GUIDE MATERIAL",null,null,null,"VTA",null,null,null,null,null,80,"WEATHER PROTECTION",null,"IP-65"]
[null,null,37,"STEM","TYPE","MATERIAL",null,"Anti-Blow Out",null,null,"316 SS",null,null,81,"ELEC. CERTIFICATE","ELEC. CONNECTION","EEx \"d\" ,IIB T4","ISO M20 × 1.5"]
[null,null,38,"LEAKAGE CLASS",null,null,null,"ANSI Class VI",null,null,null,null,null,82,"MFR. & MODEL",null,"Will be finalized later"]
[null,null,39,"VALVE STEM EXTENSION REQUIREMENT",null,null,null,"No",null,null,null,null,"AIR SET",83,"SET PRESSURE",null,"Yes"]
[null,"SOLENOID VALVE  ",40,"TAG NO",null,null,null,"BSOV-2132A , PSOV-2132A",null,null,null,null,null,84,"PNEUMATIC CONNECTION",null,"1/4\" NPT"]
[null,null,41,"TYPE",null,null,null,"3 Way ",null,null,null,null,null,85,"GAUGES","FILTER","Required","Required"]
[null,null,42,"BODY MATERIAL",null,"WEATHER IP.",null,"AISI 316 S.S",null,null,"IP-65",null,null,86,"MFR. & MODEL",null,"Will be finalized later"]
[null,null,43,"ELE. CERTIFICATE",null,"ELE. CONNECTION",null,"EEx \"d\" ,IIB T4",null,null,"ISO M20 x 1.5",null,"TEST",87,"ANSI/FCI LEAKAGE CLASS",null,"Required"]
[null,null,44,"MANUAL RESET",null,null,null,"Yes",null,null,null,null,null,88,"HYDRO PRESSURE ",null,"Required"]
[null,null,45,"Power Supply",null,null,null,"24 VDC",null,null,null,null,null,89,"FUNCTIONAL TEST",null,"Required"]
[null,null,46,"Pnu. Connection",null,null,null,"1/4\" NPT ",null,null,null,null,null,90]
[null,"SPECIAL /\nACCESS.",47,"FUSIBLE LEAKAGE",null,null,null,"No",null,null,null,null,null,91]
[null,null,48,"BLOCK RELAY",null,null,null,"No",null,null,null,null,null,92]
[null,null,49,"QUICK EXHUST",null,null,null,"Yes",null,null,null,null,"FIRE PROOF DESIGN",93,"PASSIVE FIRE PROTECTION",null,"No"]
[null,null,50,"FILTER REGULATOR",null,null,null,"Yes",null,null,null,null,null,94,"API 6FA REQUIREMENTS",null,"Yes"]
[null,null,51,"VOLUME TANK",null,null,null,"Yes",null,null,null,null,null,95,"SIL REQUIREMENTS",null,"Yes"]
[null,null,52,"MECHANICAL POSITION INDICATOR",null,null,null,"Required",null,null,null,null,null,96,"PARTIAL STROKING VALVE TEST",null,"No",null,null,"ESD LEVEL: ","2A"]
[null,null,53,"MANUALPNEUMATIC BYPASS VALVE FOR SOLENOID VALVE",null,null,null,"Yes",null,null,null,null,null,97]
[null,"NOTE:","VTA : VENDOR TO ADVISE AT BIDDING STAGE    ",null,null,null,null,"VTC: VENDOR TO CONIFRM"]
[null,null,"(1) PMS: Piping material specification.\n\n(2) All material shall be suitable for minimum design metal temperature.\n\n(3) Shall be stated by vendor at quotation stage.\n\n(4) Manual Reset to be consider for all Emergency Shut off solenoids as per P&ID."]

{"sheet":"BDV-2132B","index":14,"n_rows":70,"n_cols":23,"rows_kept":70,"cut":false,"hidden":false,"merged":[[61,1,67,1],[69,2,70,10],[54,1,60,1],[24,16,24,17],[25,16,25,17],[27,1,42,1],[29,14,29,15],[31,14,31,15],[33,2,34,2],[33,3,34,3],[39,12,44,12],[41,14,41,15],[24,1,26,1],[24,2,25,2],[24,3,25,3],[24,12,38,12],[43,1,53,1],[45,12,52,12],[53,12,56,12],[1,1,6,4],[1,5,4,12],[11,2,11,4],[11,5,11,6],[11,7,11,13],[9,1,9,17],[10,1,10,2],[10,3,10,4],[10,5,10,6],[10,7,10,13],[10,15,10,17],[49,5,49,6],[49,7,49,9],[1,13,6,17],[5,5,6,12],[7,1,7,4],[7,13,8,13],[7,14,8,14],[7,15,8,15],[7,16,8,17],[8,1,8,4],[11,16,11,17],[12,1,23,1],[12,12,12,13],[13,12,13,13],[14,12,14,13],[15,12,15,13],[16,12,16,13],[17,12,17,13],[18,12,18,13],[19,12,19,13],[22,12,22,13],[23,12,23,13],[21,12,21,13],[20,12,20,13],[20,14,20,17],[21,14,21,17],[49,10,49,11],[65,14,65,15],[47,9,47,11],[51,5,51,6],[51,7,51,9],[51,10,51,11],[57,12,62,12],[63,12,67,12],[66,14,66,15],[67,3,67,6],[26,4,26,11],[24,9,25,11],[12,2,12,11],[43,7,43,9],[43,10,43,11],[43,5,43,6],[24,7,25,8]]}
[]
[null,"\n\n\n\n\nNISOC",null,null,null,"نگهداشت و افزایش تولید میدان نفتی بینک \nسطح‌الارض \n\nاحداث رديف تراكم گاز در ايستگاه جمع آوري بينك "]
[]
[]
[]
[null,null,null,null,null,"Data Sheets For ON/OFF & Shutdown Valves"]
[]
[null,"شماره پیمان:",null,null,null,"پروژه ","بسته کاری","صادرکننده","تسهیلات","رشته ","نوع مدرک ","سریال","نسخه"]
[null,"9038 – 073 - 053",null,null,null,"BK","GCS","PEDCO","120","IN","DT","0010",{"$f":"Notes!$AB$9","v":"D04"}]
[null,"Blow Down Valve"]
[null,"TAG NO:",null,"BDV-2132B",null,"P&ID NO :",null,"BK-GCS-PEDCO-120-PR-PI-0011-D09 (2/3)",null,null,null,null,null,null,"SERVICE:","2nd Stage Gas Compression Air Coolers"]
[null,"FLUID STATE:","VENT GAS",null,null,"PHASE:",null,"GAS",null,null,null,null,null,null,"AREA CLASSIFICATION:",null,"Zone2, IIB, T4"]
[null,"SERVICE CONDITION","ITEM ",null,null,null,null,null,null,null,null,null,"UNITS",null,"Max Flow","Norm. Flow","Min. Flow","Shut-Off"]
[null,null,1,"FLOW RATE",null,null,null,null,null,null,null,null,"kg/h",null,"-",1414,"-","-"]
[null,null,2,"INLET PRESSURE",null,null,null,null,null,null,null,null,"bar(g)",null,"-","54.1 ~ 62","-","-"]
[null,null,3,"OUTLET PRESSURE",null,null,null,null,null,null,null,null,"bar(g)",null,"-","54.1 ~ 62","-","-"]
[null,null,4,"DIFFERENTIAL PRESSURE",null,null,null,null,null,null,null,null,"bar(g)",null,"-","-","-",62.4]
[null,null,5,"INLET TEMPERATURE",null,null,null,null,null,null,null,null,"°C",null,"-","14.2 ~ 60","-","-"]
[null,null,6,"DENSITY",null,null,null,null,null,null,null,null,"kg/m3",null,"-",59.63,"-","-"]
[null,null,7,"VISCOSITY ",null,null,null,null,null,null,null,null,"CP",null,"-","0.014","-","-"]
[null,null,8,"DESIGN PRESSURE",null,null,null,null,null,null,null,null,"bar(g)",null,62.4]
[null,null,9,"DESIGN TEMPERATURE",null,null,null,null,null,null,null,null,"°C",null,175]
[null,null,10,"VAPOR PRESSURE Pv",null,null,null,null,null,null,null,null,"bar(a)",null,"-","-","-","-"]
[null,null,11,"CRITICAL PRESSURE",null,null,null,null,null,null,null,null,"bar(a)",null,"-",94.65,"-","-"]
[null,"LINE",12,"PIPE LINE SIZE & SCHEDULE","   IN","1 1/2\"","40S","CORROSION ALLOWANCE(mm)",null,0,null,null,"ACTUATOR",54," TYPE",null,"Single Acting , Spring Return "]
[null,null,null,null,"   OUT","1 1/2\"","40S",null,null,null,null,null,null,55,"SIZE",null,"VTA"]
[null,null,13,"LINE NO.","GAS-111-0054B-FS00-1 1/2\"-IS",null,null,null,null,null,null,null,null,56,"SPRING FAIL ACTION",null,"Fail to Open"]
[null,"VALVE BODY \n& \nBONNET",14,"TYPE",null,null,null,"Full Bore Ball Valve/ Floating Type",null,null,null,null,null,57,"MAX ALLOWABLE PRESSURE",null,"VTA"]
[null,null,15,"SIZE ",null,null,null,"1 1/2\"",null,null,null,null,null,58,"MIN REQUIRES PRESSURE",null,"VTA"]
[null,null,16,"MAX PRESS./TEMP.",null,null,null,"As per PMS",null,null,null,null,null,59,"AVAILABLE AIR SUPPLY PRESSURE",null,"MAX/NOR/MIN: 10/7/3 bar-g"]
[null,null,17,"MFR. & MODEL",null,null,null,"Will be finalized later",null,null,null,null,null,60,"BENCH RANGE",null,"VTA"]
[null,null,18," BODY / BONNET MATL",null,null,null,"ASTM A182 GR.F316L",null,null,null,null,null,61,"TRAVELING TIME",null,"5 S"]
[null,null,19,"LINER MATERIAL / ID",null,null,null,"VTA",null,null,null,null,null,62,"FUNCTION",null,"On/Off"]
[null,null,20,"END CONNECTION","IN",null,null,"1 1/2\" /600#",null,null,null,null,null,63,"LOCAL POSITION INDICATOR",null,"Required",null,null,null,null,null,{"$f":"RIGHT(U34,4)","v":""}]
[null,null,null,null,"OUT",null,null,"1 1/2\" /600#",null,null,null,null,null,64,"ACT. ORIENTATION",null,"VTA"]
[null,null,21,"FLG FACE FINISH",null,null,null,"RF",null,null,null,null,null,65,"HAND WHEEL TYPE",null,"Declutchable side mounted "]
[null,null,22,"END EXT./MATL.",null,null,null,"N/A",null,null,null,null,null,66,"ADJUSTABLE LIMIT STOP",null,"No"]
[null,null,23,"FLOW DIRECTION",null,null,null,"(Note 18 in Page 4)",null,null,null,null,null,67,"INPUT SIGNAL",null,"24VDC"]
[null,null,24,"TYPE OF BONNET",null,null,null,"Standard",null,null,null,null,null,68,"MFR. & MODEL",null,"Will be finalized later"]
[null,null,25,"LUBE & ISO VALVE",null,null,null,"No",null,null,null,null,"POSITIONER",69,"TYPE",null,"N/A"]
[null,null,26,"PACKING MATERIAL",null,"PACKING TYPE ",null,"RPTFE",null,null,"Standard",null,null,70,"MFR. & MODEL",null,"Will be finalized later"]
[null,null,27,"ENTRY DESIGN",null,null,null,"Top / Side Entry",null,null,null,null,null,71,"ON INCR SIGNAL OUTPUT INCR / DECR      ",null,"N/A"]
[null,null,28,"NACE REQUIREMENTNACE (MR-0175/ISO 15156)",null,null,null,"Yes",null,null,null,null,null,72,"GAUGES",null,"N/A"]
[null,"TRIM",29,"TRIM ","TYPE","MATERIAL",null,"VTA",null,null,"316 SS+RPTFE",null,null,73,"CAM CHARACTERISTIC",null,"N/A"]
[null,null,30,"SIZE ","RATED TRAVEL",null,null,"VTA",null,null,"VTA",null,null,74,"AIR CONNECTION",null,"N/A"]
[null,null,31,"CHARACTERISTICS",null,null,null,"On/Off",null,null,null,null,"LIMIT \nSWITCHES",75,"TAG NO. :",null,"BZSC-2132B / BZSO-2132B"]
[null,null,32,"BALANCED / UNBALANCED",null,null,null,"BALANCED",null,null,null,null,null,76," TYPE","QUANTITY","Magnetically operated ‘REED’ contacts ",2]
[null,null,33,"RATED  Cv","FL","XT",null,"VTA","VTA","VTA",null,null,null,77,"CONTACTS / RATING",null,"110V DC , 10A "]
[null,null,34,"PLUG / BALL / DISK MATERIAL",null,null,null,"316 SS",null,null,null,null,null,78,"ACTUATION POINT",null,"Fully Open/Close"]
[null,null,35,"SEAT ","TYPE","MATERIAL",null,"Soft Seat",null,null,"316 SS+RPTFE",null,null,79,"ENCLOSURE MATERIAL",null,"Die Cast Aluminum"]
[null,null,36,"CAGE / GUIDE MATERIAL",null,null,null,"VTA",null,null,null,null,null,80,"WEATHER PROTECTION",null,"IP-65"]
[null,null,37,"STEM","TYPE","MATERIAL",null,"Anti-Blow Out",null,null,"316 SS",null,null,81,"ELEC. CERTIFICATE","ELEC. CONNECTION","EEx \"d\" ,IIB T4","ISO M20 × 1.5"]
[null,null,38,"LEAKAGE CLASS",null,null,null,"ANSI Class VI",null,null,null,null,null,82,"MFR. & MODEL",null,"Will be finalized later"]
[null,null,39,"VALVE STEM EXTENSION REQUIREMENT",null,null,null,"No",null,null,null,null,"AIR SET",83,"SET PRESSURE",null,"Yes"]
[null,"SOLENOID VALVE  ",40,"TAG NO",null,null,null,"BSOV-2132B , PSOV-2132B",null,null,null,null,null,84,"PNEUMATIC CONNECTION",null,"1/4\" NPT"]
[null,null,41,"TYPE",null,null,null,"3 Way ",null,null,null,null,null,85,"GAUGES","FILTER","Required","Required"]
[null,null,42,"BODY MATERIAL",null,"WEATHER IP.",null,"AISI 316 S.S",null,null,"IP-65",null,null,86,"MFR. & MODEL",null,"Will be finalized later"]
[null,null,43,"ELE. CERTIFICATE",null,"ELE. CONNECTION",null,"EEx \"d\" ,IIB T4",null,null,"ISO M20 x 1.5",null,"TEST",87,"ANSI/FCI LEAKAGE CLASS",null,"Required"]
[null,null,44,"MANUAL RESET",null,null,null,"Yes",null,null,null,null,null,88,"HYDRO PRESSURE ",null,"Required"]
[null,null,45,"Power Supply",null,null,null,"24 VDC",null,null,null,null,null,89,"FUNCTIONAL TEST",null,"Required"]
[null,null,46,"Pnu. Connection",null,null,null,"1/4\" NPT ",null,null,null,null,null,90]
[null,"SPECIAL /\nACCESS.",47,"FUSIBLE LEAKAGE",null,null,null,"No",null,null,null,null,null,91]
[null,null,48,"BLOCK RELAY",null,null,null,"No",null,null,null,null,null,92]
[null,null,49,"QUICK EXHUST",null,null,null,"Yes",null,null,null,null,"FIRE PROOF DESIGN",93,"PASSIVE FIRE PROTECTION",null,"No"]
[null,null,50,"FILTER REGULATOR",null,null,null,"Yes",null,null,null,null,null,94,"API 6FA REQUIREMENTS",null,"Yes"]
[null,null,51,"VOLUME TANK",null,null,null,"Yes",null,null,null,null,null,95,"SIL REQUIREMENTS",null,"Yes"]
[null,null,52,"MECHANICAL POSITION INDICATOR",null,null,null,"Required",null,null,null,null,null,96,"PARTIAL STROKING VALVE TEST",null,"No",null,null,"ESD LEVEL: ","2A"]
[null,null,53,"MANUALPNEUMATIC BYPASS VALVE FOR SOLENOID VALVE",null,null,null,"Yes",null,null,null,null,null,97]
[null,"NOTE:","VTA : VENDOR TO ADVISE AT BIDDING STAGE    ",null,null,null,null,"VTC: VENDOR TO CONIFRM"]
[null,null,"(1) PMS: Piping material specification.\n\n(2) All material shall be suitable for minimum design metal temperature.\n\n(3) Shall be stated by vendor at quotation stage.\n\n(4) Manual Reset to be consider for all Emergency Shut off solenoids as per P&ID."]

{"sheet":"BDV-2132C","index":15,"n_rows":70,"n_cols":23,"rows_kept":70,"cut":false,"hidden":false,"merged":[[61,1,67,1],[69,2,70,10],[54,1,60,1],[24,16,24,17],[25,16,25,17],[27,1,42,1],[29,14,29,15],[31,14,31,15],[33,2,34,2],[33,3,34,3],[39,12,44,12],[41,14,41,15],[24,1,26,1],[24,2,25,2],[24,3,25,3],[24,12,38,12],[43,1,53,1],[45,12,52,12],[53,12,56,12],[1,1,6,4],[1,5,4,12],[11,2,11,4],[11,5,11,6],[11,7,11,13],[9,1,9,17],[10,1,10,2],[10,3,10,4],[10,5,10,6],[10,7,10,13],[10,15,10,17],[49,5,49,6],[49,7,49,9],[1,13,6,17],[5,5,6,12],[7,1,7,4],[7,13,8,13],[7,14,8,14],[7,15,8,15],[7,16,8,17],[8,1,8,4],[11,16,11,17],[12,1,23,1],[12,12,12,13],[13,12,13,13],[14,12,14,13],[15,12,15,13],[16,12,16,13],[17,12,17,13],[18,12,18,13],[19,12,19,13],[22,12,22,13],[23,12,23,13],[21,12,21,13],[20,12,20,13],[20,14,20,17],[21,14,21,17],[49,10,49,11],[65,14,65,15],[47,9,47,11],[51,5,51,6],[51,7,51,9],[51,10,51,11],[57,12,62,12],[63,12,67,12],[66,14,66,15],[67,3,67,6],[26,4,26,11],[24,9,25,11],[12,2,12,11],[43,7,43,9],[43,10,43,11],[43,5,43,6],[24,7,25,8]]}
[]
[null,"\n\n\n\n\nNISOC",null,null,null,"نگهداشت و افزایش تولید میدان نفتی بینک \nسطح‌الارض \n\nاحداث رديف تراكم گاز در ايستگاه جمع آوري بينك "]
[]
[]
[]
[null,null,null,null,null,"Data Sheets For ON/OFF & Shutdown Valves"]
[]
[null,"شماره پیمان:",null,null,null,"پروژه ","بسته کاری","صادرکننده","تسهیلات","رشته ","نوع مدرک ","سریال","نسخه"]
[null,"9038 – 073 - 053",null,null,null,"BK","GCS","PEDCO","120","IN","DT","0010",{"$f":"Notes!$AB$9","v":"D04"}]
[null,"Blow Down Valve"]
[null,"TAG NO:",null,"BDV-2132C",null,"P&ID NO :",null,"BK-GCS-PEDCO-120-PR-PI-0011-D09 (3/3)",null,null,null,null,null,null,"SERVICE:","2nd Stage Gas Compression Air Coolers"]
[null,"FLUID STATE:","VENT GAS",null,null,"PHASE:",null,"GAS",null,null,null,null,null,null,"AREA CLASSIFICATION:",null,"Zone2, IIB, T4"]
[null,"SERVICE CONDITION","ITEM ",null,null,null,null,null,null,null,null,null,"UNITS",null,"Max Flow","Norm. Flow","Min. Flow","Shut-Off"]
[null,null,1,"FLOW RATE",null,null,null,null,null,null,null,null,"kg/h",null,"-",1414,"-","-"]
[null,null,2,"INLET PRESSURE",null,null,null,null,null,null,null,null,"bar(g)",null,"-","54.1 ~ 62","-","-"]
[null,null,3,"OUTLET PRESSURE",null,null,null,null,null,null,null,null,"bar(g)",null,"-","54.1 ~ 62","-","-"]
[null,null,4,"DIFFERENTIAL PRESSURE",null,null,null,null,null,null,null,null,"bar(g)",null,"-","-","-",62.4]
[null,null,5,"INLET TEMPERATURE",null,null,null,null,null,null,null,null,"°C",null,"-","14.2 ~ 60","-","-"]
[null,null,6,"DENSITY",null,null,null,null,null,null,null,null,"kg/m3",null,"-",59.63,"-","-"]
[null,null,7,"VISCOSITY ",null,null,null,null,null,null,null,null,"CP",null,"-","0.014","-","-"]
[null,null,8,"DESIGN PRESSURE",null,null,null,null,null,null,null,null,"bar(g)",null,62.4]
[null,null,9,"DESIGN TEMPERATURE",null,null,null,null,null,null,null,null,"°C",null,175]
[null,null,10,"VAPOR PRESSURE Pv",null,null,null,null,null,null,null,null,"bar(a)",null,"-","-","-","-"]
[null,null,11,"CRITICAL PRESSURE",null,null,null,null,null,null,null,null,"bar(a)",null,"-",94.65,"-","-"]
[null,"LINE",12,"PIPE LINE SIZE & SCHEDULE","   IN","1 1/2\"","40S","إ",null,0,null,null,"ACTUATOR",54," TYPE",null,"Single Acting , Spring Return "]
[null,null,null,null,"   OUT","1 1/2\"","40S",null,null,null,null,null,null,55,"SIZE",null,"VTA"]
[null,null,13,"LINE NO.","GAS-111-0054C-FS00-1 1/2\"-IS",null,null,null,null,null,null,null,null,56,"SPRING FAIL ACTION",null,"Fail to Open"]
[null,"VALVE BODY \n& \nBONNET",14,"TYPE",null,null,null,"Full Bore Ball Valve/ Floating Type",null,null,null,null,null,57,"MAX ALLOWABLE PRESSURE",null,"VTA"]
[null,null,15,"SIZE ",null,null,null,"1 1/2\"",null,null,null,null,null,58,"MIN REQUIRES PRESSURE",null,"VTA"]
[null,null,16,"MAX PRESS./TEMP.",null,null,null,"As per PMS",null,null,null,null,null,59,"AVAILABLE AIR SUPPLY PRESSURE",null,"MAX/NOR/MIN: 10/7/3 bar-g"]
[null,null,17,"MFR. & MODEL",null,null,null,"Will be finalized later",null,null,null,null,null,60,"BENCH RANGE",null,"VTA"]
[null,null,18," BODY / BONNET MATL",null,null,null,"ASTM A182 GR.F316L",null,null,null,null,null,61,"TRAVELING TIME",null,"5 S"]
[null,null,19,"LINER MATERIAL / ID",null,null,null,"VTA",null,null,null,null,null,62,"FUNCTION",null,"On/Off"]
[null,null,20,"END CONNECTION","IN",null,null,"1 1/2\" /600#",null,null,null,null,null,63,"LOCAL POSITION INDICATOR",null,"Required",null,null,null,null,null,{"$f":"RIGHT(U34,4)","v":""}]
[null,null,null,null,"OUT",null,null,"1 1/2\" /600#",null,null,null,null,null,64,"ACT. ORIENTATION",null,"VTA"]
[null,null,21,"FLG FACE FINISH",null,null,null,"RF",null,null,null,null,null,65,"HAND WHEEL TYPE",null,"Declutchable side mounted "]
[null,null,22,"END EXT./MATL.",null,null,null,"N/A",null,null,null,null,null,66,"ADJUSTABLE LIMIT STOP",null,"No"]
[null,null,23,"FLOW DIRECTION",null,null,null,"(Note 18 in Page 4)",null,null,null,null,null,67,"INPUT SIGNAL",null,"24VDC"]
[null,null,24,"TYPE OF BONNET",null,null,null,"Standard",null,null,null,null,null,68,"MFR. & MODEL",null,"Will be finalized later"]
[null,null,25,"LUBE & ISO VALVE",null,null,null,"No",null,null,null,null,"POSITIONER",69,"TYPE",null,"N/A"]
[null,null,26,"PACKING MATERIAL",null,"PACKING TYPE ",null,"RPTFE",null,null,"Standard",null,null,70,"MFR. & MODEL",null,"Will be finalized later"]
[null,null,27,"ENTRY DESIGN",null,null,null,"Top / Side Entry",null,null,null,null,null,71,"ON INCR SIGNAL OUTPUT INCR / DECR      ",null,"N/A"]
[null,null,28,"NACE REQUIREMENTNACE (MR-0175/ISO 15156)",null,null,null,"Yes",null,null,null,null,null,72,"GAUGES",null,"N/A"]
[null,"TRIM",29,"TRIM ","TYPE","MATERIAL",null,"VTA",null,null,"316 SS+RPTFE",null,null,73,"CAM CHARACTERISTIC",null,"N/A"]
[null,null,30,"SIZE ","RATED TRAVEL",null,null,"VTA",null,null,"VTA",null,null,74,"AIR CONNECTION",null,"N/A"]
[null,null,31,"CHARACTERISTICS",null,null,null,"On/Off",null,null,null,null,"LIMIT \nSWITCHES",75,"TAG NO. :",null,"BZSC-2132C / BZSO-2132C"]
[null,null,32,"BALANCED / UNBALANCED",null,null,null,"BALANCED",null,null,null,null,null,76," TYPE","QUANTITY","Magnetically operated ‘REED’ contacts ",2]
[null,null,33,"RATED  Cv","FL","XT",null,"VTA","VTA","VTA",null,null,null,77,"CONTACTS / RATING",null,"110V DC , 10A "]
[null,null,34,"PLUG / BALL / DISK MATERIAL",null,null,null,"316 SS",null,null,null,null,null,78,"ACTUATION POINT",null,"Fully Open/Close"]
[null,null,35,"SEAT ","TYPE","MATERIAL",null,"Soft Seat",null,null,"316 SS+RPTFE",null,null,79,"ENCLOSURE MATERIAL",null,"Die Cast Aluminum"]
[null,null,36,"CAGE / GUIDE MATERIAL",null,null,null,"VTA",null,null,null,null,null,80,"WEATHER PROTECTION",null,"IP-65"]
[null,null,37,"STEM","TYPE","MATERIAL",null,"Anti-Blow Out",null,null,"316 SS",null,null,81,"ELEC. CERTIFICATE","ELEC. CONNECTION","EEx \"d\" ,IIB T4","ISO M20 × 1.5"]
[null,null,38,"LEAKAGE CLASS",null,null,null,"ANSI Class VI",null,null,null,null,null,82,"MFR. & MODEL",null,"Will be finalized later"]
[null,null,39,"VALVE STEM EXTENSION REQUIREMENT",null,null,null,"No",null,null,null,null,"AIR SET",83,"SET PRESSURE",null,"Yes"]
[null,"SOLENOID VALVE  ",40,"TAG NO",null,null,null,"BSOV-2132C , PSOV-2132C",null,null,null,null,null,84,"PNEUMATIC CONNECTION",null,"1/4\" NPT"]
[null,null,41,"TYPE",null,null,null,"3 Way ",null,null,null,null,null,85,"GAUGES","FILTER","Required","Required"]
[null,null,42,"BODY MATERIAL",null,"WEATHER IP.",null,"AISI 316 S.S",null,null,"IP-65",null,null,86,"MFR. & MODEL",null,"Will be finalized later"]
[null,null,43,"ELE. CERTIFICATE",null,"ELE. CONNECTION",null,"EEx \"d\" ,IIB T4",null,null,"ISO M20 x 1.5",null,"TEST",87,"ANSI/FCI LEAKAGE CLASS",null,"Required"]
[null,null,44,"MANUAL RESET",null,null,null,"Yes",null,null,null,null,null,88,"HYDRO PRESSURE ",null,"Required"]
[null,null,45,"Power Supply",null,null,null,"24 VDC",null,null,null,null,null,89,"FUNCTIONAL TEST",null,"Required"]
[null,null,46,"Pnu. Connection",null,null,null,"1/4\" NPT ",null,null,null,null,null,90]
[null,"SPECIAL /\nACCESS.",47,"FUSIBLE LEAKAGE",null,null,null,"No",null,null,null,null,null,91]
[null,null,48,"BLOCK RELAY",null,null,null,"No",null,null,null,null,null,92]
[null,null,49,"QUICK EXHUST",null,null,null,"Yes",null,null,null,null,"FIRE PROOF DESIGN",93,"PASSIVE FIRE PROTECTION",null,"No"]
[null,null,50,"FILTER REGULATOR",null,null,null,"Yes",null,null,null,null,null,94,"API 6FA REQUIREMENTS",null,"Yes"]
[null,null,51,"VOLUME TANK",null,null,null,"Yes",null,null,null,null,null,95,"SIL REQUIREMENTS",null,"Yes"]
[null,null,52,"MECHANICAL POSITION INDICATOR",null,null,null,"Required",null,null,null,null,null,96,"PARTIAL STROKING VALVE TEST",null,"No",null,null,"ESD LEVEL: ","2A"]
[null,null,53,"MANUALPNEUMATIC BYPASS VALVE FOR SOLENOID VALVE",null,null,null,"Yes",null,null,null,null,null,97]
[null,"NOTE:","VTA : VENDOR TO ADVISE AT BIDDING STAGE    ",null,null,null,null,"VTC: VENDOR TO CONIFRM"]
[null,null,"(1) PMS: Piping material specification.\n\n(2) All material shall be suitable for minimum design metal temperature.\n\n(3) Shall be stated by vendor at quotation stage.\n\n(4) Manual Reset to be consider for all Emergency Shut off solenoids as per P&ID."]

{"sheet":"BDV-2141","index":16,"n_rows":70,"n_cols":23,"rows_kept":70,"cut":false,"hidden":false,"merged":[[61,1,67,1],[69,2,70,10],[54,1,60,1],[24,16,24,17],[25,16,25,17],[27,1,42,1],[29,14,29,15],[31,14,31,15],[33,2,34,2],[33,3,34,3],[39,12,44,12],[41,14,41,15],[24,1,26,1],[24,2,25,2],[24,3,25,3],[24,12,38,12],[43,1,53,1],[45,12,52,12],[53,12,56,12],[1,1,6,4],[1,5,4,12],[11,2,11,4],[11,5,11,6],[11,7,11,13],[9,1,9,17],[10,1,10,2],[10,3,10,4],[10,5,10,6],[10,7,10,13],[10,15,10,17],[49,5,49,6],[49,7,49,9],[1,13,6,17],[5,5,6,12],[7,1,7,4],[7,13,8,13],[7,14,8,14],[7,15,8,15],[7,16,8,17],[8,1,8,4],[11,16,11,17],[12,1,23,1],[12,12,12,13],[13,12,13,13],[14,12,14,13],[15,12,15,13],[16,12,16,13],[17,12,17,13],[18,12,18,13],[19,12,19,13],[22,12,22,13],[23,12,23,13],[21,12,21,13],[20,12,20,13],[20,14,20,17],[21,14,21,17],[49,10,49,11],[65,14,65,15],[47,9,47,11],[51,5,51,6],[51,7,51,9],[51,10,51,11],[57,12,62,12],[63,12,67,12],[66,14,66,15],[67,3,67,6],[26,4,26,11],[24,9,25,11],[12,2,12,11],[43,7,43,9],[43,10,43,11],[43,5,43,6],[24,7,25,8]]}
[]
[null,"\n\n\n\n\nNISOC",null,null,null,"نگهداشت و افزایش تولید میدان نفتی بینک \nسطح‌الارض \n\nاحداث رديف تراكم گاز در ايستگاه جمع آوري بينك "]
[]
[]
[]
[null,null,null,null,null,"Data Sheets For ON/OFF & Shutdown Valves"]
[]
[null,"شماره پیمان:",null,null,null,"پروژه ","بسته کاری","صادرکننده","تسهیلات","رشته ","نوع مدرک ","سریال","نسخه"]
[null,"9038 – 073 - 053",null,null,null,"BK","GCS","PEDCO","120","IN","DT","0010",{"$f":"Notes!$AB$9","v":"D04"}]
[null,"Blow Down Valve"]
[null,"TAG NO:",null,"BDV-2141",null,"P&ID NO :",null,"BK-GCS-PEDCO-120-PR-PI-0012-D09",null,null,null,null,null,null,"SERVICE:","2nd Stage Gas Compression Discharge Drum"]
[null,"FLUID STATE:","FLARE GAS",null,null,"PHASE:",null,"GAS",null,null,null,null,null,null,"AREA CLASSIFICATION:",null,"Zone2, IIB, T4"]
[null,"SERVICE CONDITION","ITEM ",null,null,null,null,null,null,null,null,null,"UNITS",null,"Max Flow","Norm. Flow","Min. Flow","Shut-Off"]
[null,null,1,"FLOW RATE",null,null,null,null,null,null,null,null,"kg/h",null,null,1825,null,"-"]
[null,null,2,"INLET PRESSURE",null,null,null,null,null,null,null,null,"bar(g)",null,"53.9 ~ 62","53.9 ~ 62","53.9 ~ 62","-"]
[null,null,3,"OUTLET PRESSURE",null,null,null,null,null,null,null,null,"bar(g)",null,"53.9 ~ 62","53.9 ~ 62","53.9 ~ 62","-"]
[null,null,4,"DIFFERENTIAL PRESSURE",null,null,null,null,null,null,null,null,"bar(g)",null,"-","-","-",90]
[null,null,5,"INLET TEMPERATURE",null,null,null,null,null,null,null,null,"°C",null,"12.5 ~ 59.89","12.5~ 59.89","12.5 ~ 59.89","-"]
[null,null,6,"DENSITY",null,null,null,null,null,null,null,null,"kg/m3",null,59.17,59.17,59.17,"-"]
[null,null,7,"VISCOSITY ",null,null,null,null,null,null,null,null,"CP",null,1.4E-2,1.4E-2,1.4E-2,"-"]
[null,null,8,"DESIGN PRESSURE",null,null,null,null,null,null,null,null,"bar(g)",null,90]
[null,null,9,"DESIGN TEMPERATURE",null,null,null,null,null,null,null,null,"°C",null,175]
[null,null,10,"VAPOR PRESSURE Pv",null,null,null,null,null,null,null,null,"bar(a)",null,"-","-","-","-"]
[null,null,11,"CRITICAL PRESSURE",null,null,null,null,null,null,null,null,"bar(a)",null,106,106,106,"-"]
[null,"LINE",12,"PIPE LINE SIZE & SCHEDULE","   IN","1 1/2\"",160,"CORROSION ALLOWANCE(mm)",null,3,null,null,"ACTUATOR",54," TYPE",null,"Single Acting , Spring Return "]
[null,null,null,null,"   OUT","1 1/2\"",160,null,null,null,null,null,null,55,"SIZE",null,"VTA"]
[null,null,13,"LINE NO.","GAS-111-0065-FN05-1 1/2\"-IS",null,null,null,null,null,null,null,null,56,"SPRING FAIL ACTION",null,"Fail to Open"]
[null,"VALVE BODY \n& \nBONNET",14,"TYPE",null,null,null,"Full Bore Ball Valve/ Floating Type",null,null,null,null,null,57,"MAX ALLOWABLE PRESSURE",null,"VTA"]
[null,null,15,"SIZE ",null,null,null,"1 1/2\"",null,null,null,null,null,58,"MIN REQUIRES PRESSURE",null,"VTA"]
[null,null,16,"MAX PRESS./TEMP.",null,null,null,"As per PMS",null,null,null,null,null,59,"AVAILABLE AIR SUPPLY PRESSURE",null,"MAX/NOR/MIN: 10/7/3 bar-g"]
[null,null,17,"MFR. & MODEL",null,null,null,"Will be finalized later",null,null,null,null,null,60,"BENCH RANGE",null,"VTA"]
[null,null,18," BODY / BONNET MATL",null,null,null,"ASTM A105",null,null,null,null,null,61,"TRAVELING TIME",null,"5 S"]
[null,null,19,"LINER MATERIAL / ID",null,null,null,"VTA",null,null,null,null,null,62,"FUNCTION",null,"On/Off"]
[null,null,20,"END CONNECTION","IN",null,null,"1 1/2\" /600#",null,null,null,null,null,63,"LOCAL POSITION INDICATOR",null,"Required",null,null,null,null,null,{"$f":"RIGHT(U34,4)","v":""}]
[null,null,null,null,"OUT",null,null,"1 1/2\" /600#",null,null,null,null,null,64,"ACT. ORIENTATION",null,"VTA"]
[null,null,21,"FLG FACE FINISH",null,null,null,"RF",null,null,null,null,null,65,"HAND WHEEL TYPE",null,"Declutchable side mounted "]
[null,null,22,"END EXT./MATL.",null,null,null,"N/A",null,null,null,null,null,66,"ADJUSTABLE LIMIT STOP",null,"No"]
[null,null,23,"FLOW DIRECTION",null,null,null,"(Note 18 in Page 4)",null,null,null,null,null,67,"INPUT SIGNAL",null,"24VDC"]
[null,null,24,"TYPE OF BONNET",null,null,null,"Standard",null,null,null,null,null,68,"MFR. & MODEL",null,"Will be finalized later"]
[null,null,25,"LUBE & ISO VALVE",null,null,null,"No",null,null,null,null,"POSITIONER",69,"TYPE",null,"N/A"]
[null,null,26,"PACKING MATERIAL",null,"PACKING TYPE ",null,"RPTFE",null,null,"Standard",null,null,70,"MFR. & MODEL",null,"Will be finalized later"]
[null,null,27,"ENTRY DESIGN",null,null,null,"Top / Side Entry",null,null,null,null,null,71,"ON INCR SIGNAL OUTPUT INCR / DECR      ",null,"N/A"]
[null,null,28,"NACE REQUIREMENTNACE (MR-0175/ISO 15156)",null,null,null,"Yes",null,null,null,null,null,72,"GAUGES",null,"N/A"]
[null,"TRIM",29,"TRIM ","TYPE","MATERIAL",null,"VTA",null,null,"316 SS+RPTFE",null,null,73,"CAM CHARACTERISTIC",null,"N/A"]
[null,null,30,"SIZE ","RATED TRAVEL",null,null,"VTA",null,null,"VTA",null,null,74,"AIR CONNECTION",null,"N/A"]
[null,null,31,"CHARACTERISTICS",null,null,null,"On/Off",null,null,null,null,"LIMIT \nSWITCHES",75,"TAG NO. :",null,"BZSC-2141 / BZSO-2141"]
[null,null,32,"BALANCED / UNBALANCED",null,null,null,"BALANCED",null,null,null,null,null,76," TYPE","QUANTITY","Magnetically operated ‘REED’ contacts ",2]
[null,null,33,"RATED  Cv","FL","XT",null,"VTA","VTA","VTA",null,null,null,77,"CONTACTS / RATING",null,"110V DC , 10A "]
[null,null,34,"PLUG / BALL / DISK MATERIAL",null,null,null,"316 SS",null,null,null,null,null,78,"ACTUATION POINT",null,"Fully Open/Close"]
[null,null,35,"SEAT ","TYPE","MATERIAL",null,"Soft Seat",null,null,"316 SS+RPTFE",null,null,79,"ENCLOSURE MATERIAL",null,"Die Cast Aluminum"]
[null,null,36,"CAGE / GUIDE MATERIAL",null,null,null,"VTA",null,null,null,null,null,80,"WEATHER PROTECTION",null,"IP-65"]
[null,null,37,"STEM","TYPE","MATERIAL",null,"Anti-Blow Out",null,null,"316 SS",null,null,81,"ELEC. CERTIFICATE","ELEC. CONNECTION","EEx \"d\" ,IIB T4","ISO M20 × 1.5"]
[null,null,38,"LEAKAGE CLASS",null,null,null,"ANSI Class VI",null,null,null,null,null,82,"MFR. & MODEL",null,"Will be finalized later"]
[null,null,39,"VALVE STEM EXTENSION REQUIREMENT",null,null,null,"No",null,null,null,null,"AIR SET",83,"SET PRESSURE",null,"Yes"]
[null,"SOLENOID VALVE  ",40,"TAG NO",null,null,null,"BSOV-2141",null,null,null,null,null,84,"PNEUMATIC CONNECTION",null,"1/4\" NPT"]
[null,null,41,"TYPE",null,null,null,"3 Way ",null,null,null,null,null,85,"GAUGES","FILTER","Required","Required"]
[null,null,42,"BODY MATERIAL",null,"WEATHER IP.",null,"AISI 316 S.S",null,null,"IP-65",null,null,86,"MFR. & MODEL",null,"Will be finalized later"]
[null,null,43,"ELE. CERTIFICATE",null,"ELE. CONNECTION",null,"EEx \"d\" ,IIB T4",null,null,"ISO M20 x 1.5",null,"TEST",87,"ANSI/FCI LEAKAGE CLASS",null,"Required"]
[null,null,44,"MANUAL RESET",null,null,null,"Yes",null,null,null,null,null,88,"HYDRO PRESSURE ",null,"Required"]
[null,null,45,"Power Supply",null,null,null,"24 VDC",null,null,null,null,null,89,"FUNCTIONAL TEST",null,"Required"]
[null,null,46,"Pnu. Connection",null,null,null,"1/4\" NPT ",null,null,null,null,null,90]
[null,"SPECIAL /\nACCESS.",47,"FUSIBLE LEAKAGE",null,null,null,"No",null,null,null,null,null,91]
[null,null,48,"BLOCK RELAY",null,null,null,"No",null,null,null,null,null,92]
[null,null,49,"QUICK EXHUST",null,null,null,"Yes",null,null,null,null,"FIRE PROOF DESIGN",93,"PASSIVE FIRE PROTECTION",null,"No"]
[null,null,50,"FILTER REGULATOR",null,null,null,"Yes",null,null,null,null,null,94,"API 6FA REQUIREMENTS",null,"Yes"]
[null,null,51,"VOLUME TANK",null,null,null,"Yes",null,null,null,null,null,95,"SIL REQUIREMENTS",null,"Yes"]
[null,null,52,"MECHANICAL POSITION INDICATOR",null,null,null,"Required",null,null,null,null,null,96,"PARTIAL STROKING VALVE TEST",null,"Yes",null,null,"ESD LEVEL: ","1A"]
[null,null,53,"MANUALPNEUMATIC BYPASS VALVE FOR SOLENOID VALVE",null,null,null,"Yes",null,null,null,null,null,97]
[null,"NOTE:","VTA : VENDOR TO ADVISE AT BIDDING STAGE    ",null,null,null,null,"VTC: VENDOR TO CONIFRM"]
[null,null,"(1) PMS: Piping material specification.\n\n(2) All material shall be suitable for minimum design metal temperature.\n\n(3) Shall be stated by vendor at quotation stage.\n\n(4) Manual Reset to be consider for all Emergency Shut off solenoids as per P&ID."]

{"sheet":"BDV-2151","index":17,"n_rows":70,"n_cols":23,"rows_kept":70,"cut":false,"hidden":false,"merged":[[7,1,7,4],[7,13,8,13],[7,14,8,14],[7,15,8,15],[7,16,8,17],[8,1,8,4],[69,2,70,10],[1,1,6,4],[1,5,4,12],[9,1,9,17],[10,1,10,2],[10,3,10,4],[10,5,10,6],[10,7,10,13],[10,15,10,17],[11,2,11,4],[11,5,11,6],[11,7,11,13],[11,16,11,17],[12,1,23,1],[1,13,6,17],[5,5,6,12],[24,1,26,1],[24,2,25,2],[24,3,25,3],[24,12,38,12],[43,1,53,1],[49,5,49,6],[49,7,49,9],[27,1,42,1],[51,5,51,6],[51,7,51,9],[33,2,34,2],[33,3,34,3],[39,12,44,12],[43,5,43,6],[66,14,66,15],[65,14,65,15],[29,14,29,15],[31,14,31,15],[61,1,67,1],[54,1,60,1],[67,3,67,6],[63,12,67,12],[49,10,49,11],[51,10,51,11],[57,12,62,12],[45,12,52,12],[53,12,56,12],[47,9,47,11],[21,14,21,17],[26,4,26,11],[24,9,25,11],[43,7,43,9],[43,10,43,11],[24,7,25,8],[41,14,41,15],[12,2,12,11],[24,16,24,17],[25,16,25,17],[17,12,17,13],[18,12,18,13],[19,12,19,13],[22,12,22,13],[23,12,23,13],[21,12,21,13],[20,12,20,13],[12,12,12,13],[13,12,13,13],[14,12,14,13],[15,12,15,13],[16,12,16,13],[20,14,20,17]]}
[]
[null,"\n\n\n\n\nNISOC",null,null,null,"نگهداشت و افزایش تولید میدان نفتی بینک \nسطح‌الارض \n\nاحداث رديف تراكم گاز در ايستگاه جمع آوري بينك "]
[]
[]
[]
[null,null,null,null,null,"Data Sheets For ON/OFF & Shutdown Valves"]
[]
[null,"شماره پیمان:",null,null,null,"پروژه ","بسته کاری","صادرکننده","تسهیلات","رشته ","نوع مدرک ","سریال","نسخه"]
[null,"9038 – 073 - 053",null,null,null,"BK","GCS","PEDCO","120","IN","DT","0010",{"$f":"Notes!$AB$9","v":"D04"}]
[null,"Blow Down Valve"]
[null,"TAG NO:",null,"BDV-2151",null,"P&ID NO :",null,"BK-GCS-PEDCO-120-PR-PI-0013-D08 (1/3)",null,null,null,null,null,null,"SERVICE:","Dehydration Package"]
[null,"FLUID STATE:","VENT GAS",null,null,"PHASE:",null,"GAS",null,null,null,null,null,null,"AREA CLASSIFICATION:",null,"Zone2, IIB, T4"]
[null,"SERVICE CONDITION","ITEM ",null,null,null,null,null,null,null,null,null,"UNITS",null,"Max Flow","Norm. Flow","Min. Flow","Shut-Off"]
[null,null,1,"FLOW RATE",null,null,null,null,null,null,null,null,"kg/h",null,"-",4843,"-","-"]
[null,null,2,"INLET PRESSURE",null,null,null,null,null,null,null,null,"bar(g)",null,"-","52.9 ~ 62","-","-"]
[null,null,3,"OUTLET PRESSURE",null,null,null,null,null,null,null,null,"bar(g)",null,"-","52.9 ~ 62","-","-"]
[null,null,4,"DIFFERENTIAL PRESSURE",null,null,null,null,null,null,null,null,"bar(g)",null,"-","-","-",90]
[null,null,5,"INLET TEMPERATURE",null,null,null,null,null,null,null,null,"°C",null,"-","2.8~ 59.4","-","-"]
[null,null,6,"DENSITY",null,null,null,null,null,null,null,null,"kg/m3",null,"-",58.06,"-","-"]
[null,null,7,"VISCOSITY ",null,null,null,null,null,null,null,null,"CP",null,"-",1.2999999999999999E-2,"-","-"]
[null,null,8,"DESIGN PRESSURE",null,null,null,null,null,null,null,null,"bar(g)",null,90]
[null,null,9,"DESIGN TEMPERATURE",null,null,null,null,null,null,null,null,"°C",null,175]
[null,null,10,"VAPOR PRESSURE Pv",null,null,null,null,null,null,null,null,"bar(a)",null,"-","-","-","-"]
[null,null,11,"CRITICAL PRESSURE",null,null,null,null,null,null,null,null,"bar(a)",null,"-",105.9,"-","-"]
[null,"LINE",12,"PIPE LINE SIZE & SCHEDULE","   IN","3\"",80,"CORROSION ALLOWANCE(mm)",null,3,null,null,"ACTUATOR",54," TYPE",null,"Single Acting , Spring Return "]
[null,null,null,null,"   OUT","3\"",80,null,null,null,null,null,null,55,"SIZE",null,"VTA"]
[null,null,13,"LINE NO.","GAS-111-0071-FN05-3\"-IS",null,null,null,null,null,null,null,null,56,"SPRING FAIL ACTION",null,"Fail to Open"]
[null,"VALVE BODY \n& \nBONNET",14,"TYPE",null,null,null,"Full Bore Ball Valve/Trunnion Mounted",null,null,null,null,null,57,"MAX ALLOWABLE PRESSURE",null,"VTA"]
[null,null,15,"SIZE ",null,null,null,"3\"",null,null,null,null,null,58,"MIN REQUIRES PRESSURE",null,"VTA"]
[null,null,16,"MAX PRESS./TEMP.",null,null,null,"As per PMS",null,null,null,null,null,59,"AVAILABLE AIR SUPPLY PRESSURE",null,"MAX/NOR/MIN: 10/7/3 bar-g"]
[null,null,17,"MFR. & MODEL",null,null,null,"Will be finalized later",null,null,null,null,null,60,"BENCH RANGE",null,"VTA"]
[null,null,18," BODY / BONNET MATL",null,null,null,"ASTM A216 Gr. WCB",null,null,null,null,null,61,"TRAVELING TIME",null,"5 S"]
[null,null,19,"LINER MATERIAL / ID",null,null,null,"VTA",null,null,null,null,null,62,"FUNCTION",null,"On/Off"]
[null,null,20,"END CONNECTION","IN",null,null,"3\" /600#",null,null,null,null,null,63,"LOCAL POSITION INDICATOR",null,"Required",null,null,null,null,null,{"$f":"RIGHT(U34,4)","v":""}]
[null,null,null,null,"OUT",null,null,"3\" /600#",null,null,null,null,null,64,"ACT. ORIENTATION",null,"VTA"]
[null,null,21,"FLG FACE FINISH",null,null,null,"RF",null,null,null,null,null,65,"HAND WHEEL TYPE",null,"Declutchable side mounted "]
[null,null,22,"END EXT./MATL.",null,null,null,"N/A",null,null,null,null,null,66,"ADJUSTABLE LIMIT STOP",null,"No"]
[null,null,23,"FLOW DIRECTION",null,null,null,"(Note 18 in Page 4)",null,null,null,null,null,67,"INPUT SIGNAL",null,"24VDC"]
[null,null,24,"TYPE OF BONNET",null,null,null,"Standard",null,null,null,null,null,68,"MFR. & MODEL",null,"Will be finalized later"]
[null,null,25,"LUBE & ISO VALVE",null,null,null,"No",null,null,null,null,"POSITIONER",69,"TYPE",null,"N/A"]
[null,null,26,"PACKING MATERIAL",null,"PACKING TYPE ",null,"RPTFE",null,null,"Standard",null,null,70,"MFR. & MODEL",null,"Will be finalized later"]
[null,null,27,"ENTRY DESIGN",null,null,null,"Top / Side Entry",null,null,null,null,null,71,"ON INCR SIGNAL OUTPUT INCR / DECR      ",null,"N/A"]
[null,null,28,"NACE REQUIREMENTNACE (MR-0175/ISO 15156)",null,null,null,"Yes",null,null,null,null,null,72,"GAUGES",null,"N/A"]
[null,"TRIM",29,"TRIM ","TYPE","MATERIAL",null,"VTA",null,null,"316 SS+RPTFE",null,null,73,"CAM CHARACTERISTIC",null,"N/A"]
[null,null,30,"SIZE ","RATED TRAVEL",null,null,"VTA",null,null,"VTA",null,null,74,"AIR CONNECTION",null,"N/A"]
[null,null,31,"CHARACTERISTICS",null,null,null,"On/Off",null,null,null,null,"LIMIT \nSWITCHES",75,"TAG NO. :",null,"BZSC-2151 / BZSO-2151"]
[null,null,32,"BALANCED / UNBALANCED",null,null,null,"BALANCED",null,null,null,null,null,76," TYPE","QUANTITY","Magnetically operated ‘REED’ contacts ",2]
[null,null,33,"RATED  Cv","FL","XT",null,"VTA","VTA","VTA",null,null,null,77,"CONTACTS / RATING",null,"110V DC , 10A "]
[null,null,34,"PLUG / BALL / DISK MATERIAL",null,null,null,"316 SS",null,null,null,null,null,78,"ACTUATION POINT",null,"Fully Open/Close"]
[null,null,35,"SEAT ","TYPE","MATERIAL",null,"Soft Seat",null,null,"316 SS+RPTFE",null,null,79,"ENCLOSURE MATERIAL",null,"Die Cast Aluminum"]
[null,null,36,"CAGE / GUIDE MATERIAL",null,null,null,"VTA",null,null,null,null,null,80,"WEATHER PROTECTION",null,"IP-65"]
[null,null,37,"STEM","TYPE","MATERIAL",null,"Anti-Blow Out",null,null,"316 SS",null,null,81,"ELEC. CERTIFICATE","ELEC. CONNECTION","EEx \"d\" ,IIB T4","ISO M20 × 1.5"]
[null,null,38,"LEAKAGE CLASS",null,null,null,"ANSI Class VI",null,null,null,null,null,82,"MFR. & MODEL",null,"Will be finalized later"]
[null,null,39,"VALVE STEM EXTENSION REQUIREMENT",null,null,null,"No",null,null,null,null,"AIR SET",83,"SET PRESSURE",null,"Yes"]
[null,"SOLENOID VALVE  ",40,"TAG NO",null,null,null,"BSOV-2151",null,null,null,null,null,84,"PNEUMATIC CONNECTION",null,"1/4\" NPT"]
[null,null,41,"TYPE",null,null,null,"3 Way ",null,null,null,null,null,85,"GAUGES","FILTER","Required","Required"]
[null,null,42,"BODY MATERIAL",null,"WEATHER IP.",null,"AISI 316 S.S",null,null,"IP-65",null,null,86,"MFR. & MODEL",null,"Will be finalized later"]
[null,null,43,"ELE. CERTIFICATE",null,"ELE. CONNECTION",null,"EEx \"d\" ,IIB T4",null,null,"ISO M20 x 1.5",null,"TEST",87,"ANSI/FCI LEAKAGE CLASS",null,"Required"]
[null,null,44,"MANUAL RESET",null,null,null,"Yes",null,null,null,null,null,88,"HYDRO PRESSURE ",null,"Required"]
[null,null,45,"Power Supply",null,null,null,"24 VDC",null,null,null,null,null,89,"FUNCTIONAL TEST",null,"Required"]
[null,null,46,"Pnu. Connection",null,null,null,"1/4\" NPT ",null,null,null,null,null,90]
[null,"SPECIAL /\nACCESS.",47,"FUSIBLE LEAKAGE",null,null,null,"No",null,null,null,null,null,91]
[null,null,48,"BLOCK RELAY",null,null,null,"No",null,null,null,null,null,92]
[null,null,49,"QUICK EXHUST",null,null,null,"Yes",null,null,null,null,"FIRE PROOF DESIGN",93,"PASSIVE FIRE PROTECTION",null,"No"]
[null,null,50,"FILTER REGULATOR",null,null,null,"Yes",null,null,null,null,null,94,"API 6FA REQUIREMENTS",null,"Yes"]
[null,null,51,"VOLUME TANK",null,null,null,"Yes",null,null,null,null,null,95,"SIL REQUIREMENTS",null,"Yes"]
[null,null,52,"MECHANICAL POSITION INDICATOR",null,null,null,"Required",null,null,null,null,null,96,"PARTIAL STROKING VALVE TEST",null,"Yes",null,null,"ESD LEVEL: ","1A"]
[null,null,53,"MANUALPNEUMATIC BYPASS VALVE FOR SOLENOID VALVE",null,null,null,"Yes",null,null,null,null,null,97]
[null,"NOTE:","VTA : VENDOR TO ADVISE AT BIDDING STAGE    ",null,null,null,null,"VTC: VENDOR TO CONIFRM"]
[null,null,"(1) PMS: Piping material specification.\n\n(2) All material shall be suitable for minimum design metal temperature.\n\n(3) Shall be stated by vendor at quotation stage.\n\n(4) Manual Reset to be consider for all Emergency Shut off solenoids as per P&ID."]

{"sheet":"XV-2112","index":18,"n_rows":71,"n_cols":23,"rows_kept":71,"cut":false,"hidden":false,"merged":[[70,2,71,10],[51,10,51,11],[53,12,56,12],[54,1,60,1],[57,12,62,12],[61,1,67,1],[63,12,67,12],[67,3,67,6],[24,1,26,1],[24,2,25,2],[24,3,25,3],[24,12,38,12],[43,1,53,1],[45,12,52,12],[51,5,51,6],[51,7,51,9],[49,5,49,6],[49,7,49,9],[49,10,49,11],[43,5,43,6],[43,7,43,9],[43,10,43,11],[27,1,42,1],[47,9,47,11],[12,1,23,1],[12,12,12,13],[13,12,13,13],[14,12,14,13],[15,12,15,13],[16,12,16,13],[17,12,17,13],[18,12,18,13],[19,12,19,13],[22,12,22,13],[23,12,23,13],[1,13,6,17],[5,5,6,12],[7,1,7,4],[7,13,8,13],[7,14,8,14],[7,15,8,15],[7,16,8,17],[8,1,8,4],[1,1,6,4],[1,5,4,12],[9,1,9,17],[10,1,10,2],[10,3,10,4],[10,5,10,6],[10,7,10,13],[10,15,10,17],[26,4,26,11],[24,9,25,11],[12,2,12,11],[24,16,24,17],[25,16,25,17],[24,7,25,8],[65,14,65,15],[66,14,66,15],[11,2,11,4],[11,5,11,6],[11,7,11,13],[29,14,29,15],[31,14,31,15],[33,2,34,2],[33,3,34,3],[39,12,44,12],[41,14,41,15],[21,12,21,13],[20,12,20,13],[20,14,20,17],[21,14,21,17],[11,16,11,17]]}
[]
[null,"\n\n\n\n\nNISOC",null,null,null,"نگهداشت و افزایش تولید میدان نفتی بینک \nسطح‌الارض \n\nاحداث رديف تراكم گاز در ايستگاه جمع آوري بينك "]
[]
[]
[]
[null,null,null,null,null,"Data Sheets For ON/OFF & Shutdown Valves"]
[]
[null,"شماره پیمان:",null,null,null,"پروژه ","بسته کاری","صادرکننده","تسهیلات","رشته ","نوع مدرک ","سریال","نسخه"]
[null,"9038 – 073 - 053",null,null,null,"BK","GCS","PEDCO","120","IN","DT","0010",{"$f":"Notes!$AB$9","v":"D04"}]
[null,"On-Off Valve"]
[null,"TAG NO:",null,"XV-2112",null,"P&ID NO :",null,"BK-GCS-PEDCO-120-PR-PI-0004-D09 (2/2)",null,null,null,null,null,null,"SERVICE:","Slug Catcher System"]
[null,"FLUID STATE:","SLUG ",null,null,"PHASE:",null,"LIQUID",null,null,null,null,null,null,"AREA CLASSIFICATION:",null,"Zone2, IIB, T4"]
[null,"SERVICE CONDITION","ITEM ",null,null,null,null,null,null,null,null,null,"UNITS",null,"Max Flow","Norm. Flow","Min. Flow","Shut-Off"]
[null,null,1,"FLOW RATE",null,null,null,null,null,null,null,null,"Kg/H",null,7873.8,7158,2505.3000000000002,"-"]
[null,null,2,"INLET PRESSURE",null,null,null,null,null,null,null,null,"bar(g)",null,18.5,18.5,18.5,"-"]
[null,null,3,"OUTLET PRESSURE",null,null,null,null,null,null,null,null,"bar(g)",null,18.5,18.5,18.5,"-"]
[null,null,4,"DIFFERENTIAL PRESSURE",null,null,null,null,null,null,null,null,"bar(g)",null,"-","-","-",47.7]
[null,null,5,"INLET TEMPERATURE",null,null,null,null,null,null,null,null,"°C",null,"15.2~ 32.0","15.2~ 32.0","15.2~ 32.0","-"]
[null,null,6,"DENSITY ",null,null,null,null,null,null,null,null,"kg/m3",null,715,715,715,"-"]
[null,null,7,"VISCOSITY ",null,null,null,null,null,null,null,null,"CP",null,0.57999999999999996,0.57999999999999996,0.57999999999999996,"-"]
[null,null,8,"DESIGN PRESSURE",null,null,null,null,null,null,null,null,"bar(g)",null,47.7]
[null,null,9,"DESIGN TEMPERATURE",null,null,null,null,null,null,null,null,"°C",null,155]
[null,null,10,"VAPOR PRESSURE Pv",null,null,null,null,null,null,null,null,"bar(a)",null,6.4870000000000001,6.4870000000000001,6.4870000000000001,"-"]
[null,null,11,"CRITICAL PRESSURE",null,null,null,null,null,null,null,null,"bar(a)",null,78,78,78,"-"]
[null,"LINE",12,"PIPE LINE SIZE & SCHEDULE","   IN","4\"",120,"CORROSION ALLOWANCE(mm)",null,6,null,null,"ACTUATOR",54," TYPE",null,"Single Acting, Spring Return "]
[null,null,null,null,"   OUT","4\"",120,null,null,null,null,null,null,55,"SIZE",null,"VTA"]
[null,null,13,"LINE NO.","CDH-112-0118-CN07-4\"-PT",null,null,null,null,null,null,null,null,56,"SPRING FAIL ACTION",null,"Fail to Close"]
[null,"VALVE BODY \n& \nBONNET",14,"TYPE",null,null,null,"Full Bore Ball Valve/Trunnion Mounted",null,null,null,null,null,57,"MAX ALLOWABLE PRESSURE",null,"VTA"]
[null,null,15,"SIZE ",null,null,null,"4\"",null,null,null,null,null,58,"MIN REQUIRES PRESSURE",null,"VTA"]
[null,null,16,"MAX PRESS./TEMP.",null,null,null,"As per PMS",null,null,null,null,null,59,"AVAILABLE AIR SUPPLY PRESSURE",null,"MAX/NOR/MIN: 10/7/3 bar-g"]
[null,null,17,"MFR. & MODEL",null,null,null,"Will be finalized later",null,null,null,null,null,60,"BENCH RANGE",null,"VTA"]
[null,null,18," BODY / BONNET MATL",null,null,null,"ASTM A216 Gr. WCB",null,null,null,null,null,61,"TRAVELING TIME",null,"5 S"]
[null,null,19,"LINER MATERIAL / ID",null,null,null,"VTA",null,null,null,null,null,62,"FUNCTION",null,"On/Off"]
[null,null,20,"END CONNECTION","IN",null,null,"4\"/300#",null,null,null,null,null,63,"LOCAL POSITION INDICATOR",null,"Required",null,null,null,null,null,{"$f":"RIGHT(U34,4)","v":""}]
[null,null,null,null,"OUT",null,null,"4\"/300#",null,null,null,null,null,64,"ACT. ORIENTATION",null,"VTA"]
[null,null,21,"FLG FACE FINISH",null,null,null,"RF",null,null,null,null,null,65,"HAND WHEEL TYPE",null,"Declutchable side mounted "]
[null,null,22,"END EXT./MATL.",null,null,null,"N/A",null,null,null,null,null,66,"ADJUSTABLE LIMIT STOP",null,"Yes"]
[null,null,23,"FLOW DIRECTION",null,null,null,"(Note 18 in Page 4)",null,null,null,null,null,67,"INPUT SIGNAL",null,"24VDC"]
[null,null,24,"TYPE OF BONNET",null,null,null,"Standard",null,null,null,null,null,68,"MFR. & MODEL",null,"Will be finalized later"]
[null,null,25,"LUBE & ISO VALVE",null,null,null,"No",null,null,null,null,"POSITIONER",69,"TYPE",null,"N/A"]
[null,null,26,"PACKING MATERIAL",null,"PACKING TYPE ",null,"RPTFE",null,null,"Standard",null,null,70,"MFR. & MODEL",null,"Will be finalized later"]
[null,null,27,"ENTRY DESIGN",null,null,null,"Top / Side Entry",null,null,null,null,null,71,"ON INCR SIGNAL OUTPUT INCR / DECR      ",null,"N/A"]
[null,null,28,"NACE REQUIREMENTNACE (MR-0175/ISO 15156)",null,null,null,"Yes",null,null,null,null,null,72,"GAUGES",null,"N/A"]
[null,"TRIM",29,"TRIM ","TYPE","MATERIAL",null,"VTA",null,null,"316 SS+RPTFE",null,null,73,"CAM CHARACTERISTIC",null,"N/A"]
[null,null,30,"SIZE ","RATED TRAVEL",null,null,"VTA",null,null,"VTA",null,null,74,"AIR CONNECTION",null,"N/A"]
[null,null,31,"CHARACTERISTICS",null,null,null,"On/Off",null,null,null,null,"LIMIT \nSWITCHES",75,"TAG NO. :",null,"XZSC-2112 / XZSO-2112"]
[null,null,32,"BALANCED / UNBALANCED",null,null,null,"BALANCED",null,null,null,null,null,76," TYPE","QUANTITY","Magnetically operated ‘REED’ contacts ",2]
[null,null,33,"RATED  Cv","FL","XT",null,"VTA","VTA","VTA",null,null,null,77,"CONTACTS / RATING",null,"110V DC , 10A "]
[null,null,34,"PLUG / BALL / DISK MATERIAL",null,null,null,"316 SS",null,null,null,null,null,78,"ACTUATION POINT",null,"Fully Open/Close"]
[null,null,35,"SEAT ","TYPE","MATERIAL",null,"Soft Seat",null,null,"316 SS+RPTFE",null,null,79,"ENCLOSURE MATERIAL",null,"Die Cast Aluminum"]
[null,null,36,"CAGE / GUIDE MATERIAL",null,null,null,"VTA",null,null,null,null,null,80,"WEATHER PROTECTION",null,"IP-65"]
[null,null,37,"STEM","TYPE","MATERIAL",null,"Anti-Blow Out",null,null,"316 SS",null,null,81,"ELEC. CERTIFICATE","ELEC. CONNECTION","EEx \"d\" ,IIB T4","ISO M20 × 1.5"]
[null,null,38,"LEAKAGE CLASS",null,null,null,"ANSI Class VI",null,null,null,null,null,82,"MFR. & MODEL",null,"Will be finalized later"]
[null,null,39,"VALVE STEM EXTENSION REQUIREMENT",null,null,null,"No",null,null,null,null,"AIR SET",83,"SET PRESSURE",null,"Yes"]
[null,"SOLENOID VALVE  ",40,"TAG NO",null,null,null,"ESOV-2112",null,null,null,null,null,84,"PNEUMATIC CONNECTION",null,"1/4\" NPT"]
[null,null,41,"TYPE",null,null,null,"3 Way ",null,null,null,null,null,85,"GAUGES","FILTER","Required","Required"]
[null,null,42,"BODY MATERIAL",null,"WEATHER IP.",null,"AISI 316 S.S",null,null,"IP-65",null,null,86,"MFR. & MODEL",null,"Will be finalized later"]
[null,null,43,"ELE. CERTIFICATE",null,"ELE. CONNECTION",null,"EEx \"d\" ,IIB T4",null,null,"ISO M20 x 1.5",null,"TEST",87,"ANSI/FCI LEAKAGE CLASS",null,"Required"]
[null,null,44,"MANUAL RESET",null,null,null,"Yes",null,null,null,null,null,88,"HYDRO PRESSURE ",null,"Required"]
[null,null,45,"Power Supply",null,null,null,"24 VDC",null,null,null,null,null,89,"FUNCTIONAL TEST",null,"Required"]
[null,null,46,"Pnu. Connection",null,null,null,"1/4\" NPT ",null,null,null,null,null,90]
[null,"SPECIAL /\nACCESS.",47,"FUSIBLE LEAKAGE",null,null,null,"No",null,null,null,null,null,91]
[null,null,48,"BLOCK RELAY",null,null,null,"No",null,null,null,null,null,92]
[null,null,49,"QUICK EXHUST",null,null,null,"Yes",null,null,null,null,"FIRE PROOF DESIGN",93,"PASSIVE FIRE PROTECTION",null,"No"]
[null,null,50,"FILTER REGULATOR",null,null,null,"Yes",null,null,null,null,null,94,"API 6FA REQUIREMENTS",null,"Yes"]
[null,null,51,"VOLUME TANK",null,null,null,"No",null,null,null,null,null,95,"SIL REQUIREMENTS",null,"Yes"]
[null,null,52,"MECHANICAL POSITION INDICATOR",null,null,null,"Required",null,null,null,null,null,96,"PARTIAL STROKING VALVE TEST",null,"No",null,null,"ESD LEVEL: ",3]
[null,null,53,"MANUALPNEUMATIC BYPASS VALVE FOR SOLENOID VALVE",null,null,null,"Yes",null,null,null,null,null,97]
[]
[null,"NOTE:","VTA : VENDOR TO ADVISE AT BIDDING STAGE    ",null,null,null,null,"VTC: VENDOR TO CONIFRM"]
[null,null,"(1) PMS: Piping material specification.\n\n(2) All material shall be suitable for minimum design metal temperature.\n\n(3) Shall be stated by vendor at quotation stage.\n\n(4) Manual Reset to be consider for all Emergency Shut off solenoids as per P&ID."]

{"sheet":"XV-2121A","index":19,"n_rows":71,"n_cols":21,"rows_kept":71,"cut":false,"hidden":false,"merged":[[70,2,71,10],[57,12,62,12],[61,1,67,1],[63,12,67,12],[67,3,67,6],[54,1,60,1],[24,1,26,1],[24,2,25,2],[24,3,25,3],[24,12,38,12],[45,12,52,12],[27,1,42,1],[43,1,53,1],[53,12,56,12],[26,4,26,11],[24,9,25,11],[11,2,11,4],[11,5,11,6],[11,7,11,13],[11,16,11,17],[12,1,23,1],[12,12,12,13],[13,12,13,13],[14,12,14,13],[15,12,15,13],[16,12,16,13],[17,12,17,13],[18,12,18,13],[19,12,19,13],[22,12,22,13],[23,12,23,13],[21,12,21,13],[9,1,9,17],[10,1,10,2],[10,3,10,4],[10,5,10,6],[10,7,10,13],[10,15,10,17],[8,1,8,4],[1,1,6,4],[1,5,4,12],[1,13,6,17],[5,5,6,12],[7,1,7,4],[7,13,8,13],[7,14,8,14],[7,15,8,15],[7,16,8,17],[12,2,12,11],[51,5,51,6],[51,7,51,9],[51,10,51,11],[43,5,43,6],[43,7,43,9],[43,10,43,11],[49,5,49,6],[49,7,49,9],[49,10,49,11],[47,9,47,11],[24,7,25,8],[33,2,34,2],[33,3,34,3],[20,12,20,13],[20,14,20,17],[21,14,21,17],[65,14,65,15],[66,14,66,15],[25,16,25,17],[24,16,24,17],[29,14,29,15],[31,14,31,15],[39,12,44,12],[41,14,41,15]]}
[]
[null,"\n\n\n\n\nNISOC",null,null,null,"نگهداشت و افزایش تولید میدان نفتی بینک \nسطح‌الارض \n\nاحداث رديف تراكم گاز در ايستگاه جمع آوري بينك "]
[]
[]
[]
[null,null,null,null,null,"Data Sheets For ON/OFF & Shutdown Valves"]
[]
[null,"شماره پیمان:",null,null,null,"پروژه ","بسته کاری","صادرکننده","تسهیلات","رشته ","نوع مدرک ","سریال","نسخه"]
[null,"9038 – 073 - 053",null,null,null,"BK","GCS","PEDCO","120","IN","DT","0010",{"$f":"Notes!$AB$9","v":"D04"}]
[null,"On-Off Valve"]
[null,"TAG NO:",null,"XV-2121A",null,"P&ID NO :",null,"BK-GCS-PEDCO-120-PR-PI-0006-D09 (1/3)",null,null,null,null,null,null,"SERVICE:","1st Stage Gas Compression Suction Drums"]
[null,"FLUID STATE:","PROCESS GAS",null,null,"PHASE:",null,"GAS",null,null,null,null,null,null,"AREA CLASSIFICATION:",null,"Zone2, IIB, T4"]
[null,"SERVICE CONDITION","ITEM ",null,null,null,null,null,null,null,null,null,"UNITS",null,"Max Flow","Norm. Flow","Min. Flow","Shut-Off"]
[null,null,1,"FLOW RATE",null,null,null,null,null,null,null,null,"kg/h",null,{"$f":"P14*1.1","v":9530.4000000000015},8664,{"$f":"P14*0.35","v":3032.3999999999996},"-"]
[null,null,2,"INLET PRESSURE",null,null,null,null,null,null,null,null,"bar(g)",null,5.0999999999999996,5.0999999999999996,5.0999999999999996,"-"]
[null,null,3,"OUTLET PRESSURE",null,null,null,null,null,null,null,null,"bar(g)",null,5.0999999999999996,5.0999999999999996,5.0999999999999996,"-"]
[null,null,4,"DIFFERENTIAL PRESSURE",null,null,null,null,null,null,null,null,"bar(g)",null,"-","-","-",18.2]
[null,null,5,"INLET TEMPERATURE",null,null,null,null,null,null,null,null,"°C",null,"19.02~ 36.92","19.02~ 36.92","19.02~ 36.92","-"]
[null,null,6,"DENSITY ",null,null,null,null,null,null,null,null,"kg/m3",null,"5.56 ~ 5.96","5.56 ~ 5.96","5.56 ~ 5.96","-"]
[null,null,7,"VISCOSITY ",null,null,null,null,null,null,null,null,"CP",null,1.0999999999999999E-2,1.0999999999999999E-2,1.0999999999999999E-2,"-"]
[null,null,8,"DESIGN PRESSURE",null,null,null,null,null,null,null,null,"bar(g)",null,18.2]
[null,null,9,"DESIGN TEMPERATURE",null,null,null,null,null,null,null,null,"°C",null,85]
[null,null,10,"VAPOR PRESSURE Pv",null,null,null,null,null,null,null,null,"bar(a)",null,"-","-","-","-"]
[null,null,11,"CRITICAL PRESSURE",null,null,null,null,null,null,null,null,"bar(a)",null,94.65,94.65,94.65,"-"]
[null,"LINE",12,"PIPE LINE SIZE & SCHEDULE","   IN","8\"",60,"CORROSION ALLOWANCE(mm)",null,6,null,null,"ACTUATOR",54," TYPE",null,"Single Acting, Spring Return "]
[null,null,null,null,"   OUT","8\"",60,null,null,null,null,null,null,55,"SIZE",null,"VTA"]
[null,null,13,"LINE NO.","GAS-111-0026A-AN07-8\"-PT",null,null,null,null,null,null,null,null,56,"SPRING FAIL ACTION",null,"Fail to Close"]
[null,"VALVE BODY \n& \nBONNET",14,"TYPE",null,null,null,"Full Bore Ball Valve/Trunnion Mounted",null,null,null,null,null,57,"MAX ALLOWABLE PRESSURE",null,"VTA"]
[null,null,15,"SIZE ",null,null,null,"8\"",null,null,null,null,null,58,"MIN REQUIRES PRESSURE",null,"VTA"]
[null,null,16,"MAX PRESS./TEMP.",null,null,null,"As per PMS",null,null,null,null,null,59,"AVAILABLE AIR SUPPLY PRESSURE",null,"MAX/NOR/MIN: 10/7/3 bar-g"]
[null,null,17,"MFR. & MODEL",null,null,null,"Will be finalized later",null,null,null,null,null,60,"BENCH RANGE",null,"VTA"]
[null,null,18," BODY / BONNET MATL",null,null,null,"ASTM A216 Gr. WCB",null,null,null,null,null,61,"TRAVELING TIME",null,"9 S"]
[null,null,19,"LINER MATERIAL / ID",null,null,null,"VTA",null,null,null,null,null,62,"FUNCTION",null,"On/Off"]
[null,null,20,"END CONNECTION","IN",null,null,"8\"/300#",null,null,null,null,null,63,"LOCAL POSITION INDICATOR",null,"Required"]
[null,null,null,null,"OUT",null,null,"8\"/300#",null,null,null,null,null,64,"ACT. ORIENTATION",null,"VTA"]
[null,null,21,"FLG FACE FINISH",null,null,null,"RF",null,null,null,null,null,65,"HAND WHEEL TYPE",null,"Declutchable side mounted "]
[null,null,22,"END EXT./MATL.",null,null,null,"N/A",null,null,null,null,null,66,"ADJUSTABLE LIMIT STOP",null,"Yes"]
[null,null,23,"FLOW DIRECTION",null,null,null,"(Note 18 in Page 4)",null,null,null,null,null,67,"INPUT SIGNAL",null,"24VDC"]
[null,null,24,"TYPE OF BONNET",null,null,null,"Standard",null,null,null,null,null,68,"MFR. & MODEL",null,"Will be finalized later"]
[null,null,25,"LUBE & ISO VALVE",null,null,null,"No",null,null,null,null,"POSITIONER",69,"TYPE",null,"N/A"]
[null,null,26,"PACKING MATERIAL",null,"PACKING TYPE ",null,"PTFE",null,null,"Standard",null,null,70,"MFR. & MODEL",null,"Will be finalized later"]
[null,null,27,"ENTRY DESIGN",null,null,null,"Top / Side Entry",null,null,null,null,null,71,"ON INCR SIGNAL OUTPUT INCR / DECR      ",null,"N/A"]
[null,null,28,"NACE REQUIREMENTNACE (MR-0175/ISO 15156)",null,null,null,"Yes",null,null,null,null,null,72,"GAUGES",null,"N/A"]
[null,"TRIM",29,"TRIM ","TYPE","MATERIAL",null,"VTA",null,null,"316 SS+PTFE",null,null,73,"CAM CHARACTERISTIC",null,"N/A"]
[null,null,30,"SIZE ","RATED TRAVEL",null,null,"VTA",null,null,"VTA",null,null,74,"AIR CONNECTION",null,"N/A"]
[null,null,31,"CHARACTERISTICS",null,null,null,"On/Off",null,null,null,null,"LIMIT \nSWITCHES",75,"TAG NO. :",null,"XZSC-2121A / XZSO-2121A"]
[null,null,32,"BALANCED / UNBALANCED",null,null,null,"BALANCED",null,null,null,null,null,76," TYPE","QUANTITY","Magnetically operated ‘REED’ contacts ",2]
[null,null,33,"RATED  Cv","FL","XT",null,"VTA","VTA","VTA",null,null,null,77,"CONTACTS / RATING",null,"110V DC , 10A "]
[null,null,34,"PLUG / BALL / DISK MATERIAL",null,null,null,"316 SS",null,null,null,null,null,78,"ACTUATION POINT",null,"Fully Open/Close"]
[null,null,35,"SEAT ","TYPE","MATERIAL",null,"Soft Seat",null,null,"316 SS+PTFE",null,null,79,"ENCLOSURE MATERIAL",null,"Die Cast Aluminum"]
[null,null,36,"CAGE / GUIDE MATERIAL",null,null,null,"VTA",null,null,null,null,null,80,"WEATHER PROTECTION",null,"IP-65"]
[null,null,37,"STEM","TYPE","MATERIAL",null,"Anti-Blow Out",null,null,"316 SS",null,null,81,"ELEC. CERTIFICATE","ELEC. CONNECTION","EEx \"d\" ,IIB T4","ISO M20 × 1.5"]
[null,null,38,"LEAKAGE CLASS",null,null,null,"ANSI Class VI",null,null,null,null,null,82,"MFR. & MODEL",null,"Will be finalized later"]
[null,null,39,"VALVE STEM EXTENSION REQUIREMENT",null,null,null,"No",null,null,null,null,"AIR SET",83,"SET PRESSURE",null,"Yes"]
[null,"SOLENOID VALVE  ",40,"TAG NO",null,null,null,"PSOV-2121A , ESOV-2121A",null,null,null,null,null,84,"PNEUMATIC CONNECTION",null,"1/4\" NPT"]
[null,null,41,"TYPE",null,null,null,"3 Way ",null,null,null,null,null,85,"GAUGES","FILTER","Required","Required"]
[null,null,42,"BODY MATERIAL",null,"WEATHER IP.",null,"AISI 316 S.S",null,null,"IP-65",null,null,86,"MFR. & MODEL",null,"Will be finalized later"]
[null,null,43,"ELE. CERTIFICATE",null,"ELE. CONNECTION",null,"EEx \"d\" ,IIB T4",null,null,"ISO M20 x 1.5",null,"TEST",87,"ANSI/FCI LEAKAGE CLASS",null,"Required"]
[null,null,44,"MANUAL RESET",null,null,null,"Yes",null,null,null,null,null,88,"HYDRO PRESSURE ",null,"Required"]
[null,null,45,"Power Supply",null,null,null,"24 VDC",null,null,null,null,null,89,"FUNCTIONAL TEST",null,"Required"]
[null,null,46,"Pnu. Connection",null,null,null,"1/4\" NPT ",null,null,null,null,null,90]
[null,"SPECIAL /\nACCESS.",47,"FUSIBLE LEAKAGE",null,null,null,"No",null,null,null,null,null,91]
[null,null,48,"BLOCK RELAY",null,null,null,"No",null,null,null,null,null,92]
[null,null,49,"QUICK EXHUST",null,null,null,"Yes",null,null,null,null,"FIRE PROOF DESIGN",93,"PASSIVE FIRE PROTECTION",null,"No"]
[null,null,50,"FILTER REGULATOR",null,null,null,"Yes",null,null,null,null,null,94,"API 6FA REQUIREMENTS",null,"Yes"]
[null,null,51,"VOLUME TANK",null,null,null,"No",null,null,null,null,null,95,"SIL REQUIREMENTS",null,"Yes"]
[null,null,52,"MECHANICAL POSITION INDICATOR",null,null,null,"Required",null,null,null,null,null,96,"PARTIAL STROKING VALVE TEST",null,"No",null,null,"ESD LEVEL: ",2]
[null,null,53,"MANUALPNEUMATIC BYPASS VALVE FOR SOLENOID VALVE",null,null,null,"Yes",null,null,null,null,null,97]
[]
[null,"NOTE:","VTA : VENDOR TO ADVISE AT BIDDING STAGE    ",null,null,null,null,"VTC: VENDOR TO CONIFRM"]
[null,null,"(1) PMS: Piping material specification.\n\n(2) All material shall be suitable for minimum design metal temperature.\n\n(3) Shall be stated by vendor at quotation stage.\n\n(4) Manual Reset to be consider for all Emergency Shut off solenoids as per P&ID."]

{"sheet":"XV-2121B","index":20,"n_rows":71,"n_cols":21,"rows_kept":71,"cut":false,"hidden":false,"merged":[[70,2,71,10],[57,12,62,12],[61,1,67,1],[63,12,67,12],[67,3,67,6],[54,1,60,1],[24,1,26,1],[24,2,25,2],[24,3,25,3],[24,12,38,12],[45,12,52,12],[27,1,42,1],[43,1,53,1],[53,12,56,12],[26,4,26,11],[24,9,25,11],[11,2,11,4],[11,5,11,6],[11,7,11,13],[11,16,11,17],[12,1,23,1],[12,12,12,13],[13,12,13,13],[14,12,14,13],[15,12,15,13],[16,12,16,13],[17,12,17,13],[18,12,18,13],[19,12,19,13],[22,12,22,13],[23,12,23,13],[21,12,21,13],[9,1,9,17],[10,1,10,2],[10,3,10,4],[10,5,10,6],[10,7,10,13],[10,15,10,17],[8,1,8,4],[1,1,6,4],[1,5,4,12],[1,13,6,17],[5,5,6,12],[7,1,7,4],[7,13,8,13],[7,14,8,14],[7,15,8,15],[7,16,8,17],[12,2,12,11],[51,5,51,6],[51,7,51,9],[51,10,51,11],[43,5,43,6],[43,7,43,9],[43,10,43,11],[49,5,49,6],[49,7,49,9],[49,10,49,11],[47,9,47,11],[24,7,25,8],[33,2,34,2],[33,3,34,3],[20,12,20,13],[20,14,20,17],[21,14,21,17],[65,14,65,15],[66,14,66,15],[25,16,25,17],[24,16,24,17],[29,14,29,15],[31,14,31,15],[39,12,44,12],[41,14,41,15]]}
[]
[null,"\n\n\n\n\nNISOC",null,null,null,"نگهداشت و افزایش تولید میدان نفتی بینک \nسطح‌الارض \n\nاحداث رديف تراكم گاز در ايستگاه جمع آوري بينك "]
[]
[]
[]
[null,null,null,null,null,"Data Sheets For ON/OFF & Shutdown Valves"]
[]
[null,"شماره پیمان:",null,null,null,"پروژه ","بسته کاری","صادرکننده","تسهیلات","رشته ","نوع مدرک ","سریال","نسخه"]
[null,"9038 – 073 - 053",null,null,null,"BK","GCS","PEDCO","120","IN","DT","0010",{"$f":"Notes!$AB$9","v":"D04"}]
[null,"On-Off Valve"]
[null,"TAG NO:",null,"XV-2121B",null,"P&ID NO :",null,"BK-GCS-PEDCO-120-PR-PI-0006-D09 (2/3)",null,null,null,null,null,null,"SERVICE:","1st Stage Gas Compression Suction Drums"]
[null,"FLUID STATE:","PROCESS GAS",null,null,"PHASE:",null,"GAS",null,null,null,null,null,null,"AREA CLASSIFICATION:",null,"Zone2, IIB, T4"]
[null,"SERVICE CONDITION","ITEM ",null,null,null,null,null,null,null,null,null,"UNITS",null,"Max Flow","Norm. Flow","Min. Flow","Shut-Off"]
[null,null,1,"FLOW RATE",null,null,null,null,null,null,null,null,"kg/h",null,{"$f":"P14*1.1","v":9530.4000000000015},8664,{"$f":"P14*0.35","v":3032.3999999999996},"-"]
[null,null,2,"INLET PRESSURE",null,null,null,null,null,null,null,null,"bar(g)",null,5.0999999999999996,5.0999999999999996,5.0999999999999996,"-"]
[null,null,3,"OUTLET PRESSURE",null,null,null,null,null,null,null,null,"bar(g)",null,5.0999999999999996,5.0999999999999996,5.0999999999999996,"-"]
[null,null,4,"DIFFERENTIAL PRESSURE",null,null,null,null,null,null,null,null,"bar(g)",null,"-","-","-",18.2]
[null,null,5,"INLET TEMPERATURE",null,null,null,null,null,null,null,null,"°C",null,"19.02~ 36.92","19.02~ 36.92","19.02~ 36.92","-"]
[null,null,6,"DENSITY ",null,null,null,null,null,null,null,null,"kg/m3",null,"5.56 ~ 5.96","5.56 ~ 5.96","5.56 ~ 5.96","-"]
[null,null,7,"VISCOSITY ",null,null,null,null,null,null,null,null,"CP",null,1.0999999999999999E-2,1.0999999999999999E-2,1.0999999999999999E-2,"-"]
[null,null,8,"DESIGN PRESSURE",null,null,null,null,null,null,null,null,"bar(g)",null,18.2]
[null,null,9,"DESIGN TEMPERATURE",null,null,null,null,null,null,null,null,"°C",null,85]
[null,null,10,"VAPOR PRESSURE Pv",null,null,null,null,null,null,null,null,"bar(a)",null,"-","-","-","-"]
[null,null,11,"CRITICAL PRESSURE",null,null,null,null,null,null,null,null,"bar(a)",null,94.65,94.65,94.65,"-"]
[null,"LINE",12,"PIPE LINE SIZE & SCHEDULE","   IN","8\"",60,"CORROSION ALLOWANCE(mm)",null,6,null,null,"ACTUATOR",54," TYPE",null,"Single Acting, Spring Return "]
[null,null,null,null,"   OUT","8\"",60,null,null,null,null,null,null,55,"SIZE",null,"VTA"]
[null,null,13,"LINE NO.","GAS-111-0026B-AN07-8\"-PT",null,null,null,null,null,null,null,null,56,"SPRING FAIL ACTION",null,"Fail to Close"]
[null,"VALVE BODY \n& \nBONNET",14,"TYPE",null,null,null,"Full Bore Ball Valve/Trunnion Mounted",null,null,null,null,null,57,"MAX ALLOWABLE PRESSURE",null,"VTA"]
[null,null,15,"SIZE ",null,null,null,"8\"",null,null,null,null,null,58,"MIN REQUIRES PRESSURE",null,"VTA"]
[null,null,16,"MAX PRESS./TEMP.",null,null,null,"As per PMS",null,null,null,null,null,59,"AVAILABLE AIR SUPPLY PRESSURE",null,"MAX/NOR/MIN: 10/7/3 bar-g"]
[null,null,17,"MFR. & MODEL",null,null,null,"Will be finalized later",null,null,null,null,null,60,"BENCH RANGE",null,"VTA"]
[null,null,18," BODY / BONNET MATL",null,null,null,"ASTM A216 Gr. WCB",null,null,null,null,null,61,"TRAVELING TIME",null,"9 S"]
[null,null,19,"LINER MATERIAL / ID",null,null,null,"VTA",null,null,null,null,null,62,"FUNCTION",null,"On/Off"]
[null,null,20,"END CONNECTION","IN",null,null,"8\"/300#",null,null,null,null,null,63,"LOCAL POSITION INDICATOR",null,"Required"]
[null,null,null,null,"OUT",null,null,"8\"/300#",null,null,null,null,null,64,"ACT. ORIENTATION",null,"VTA"]
[null,null,21,"FLG FACE FINISH",null,null,null,"RF",null,null,null,null,null,65,"HAND WHEEL TYPE",null,"Declutchable side mounted "]
[null,null,22,"END EXT./MATL.",null,null,null,"N/A",null,null,null,null,null,66,"ADJUSTABLE LIMIT STOP",null,"Yes"]
[null,null,23,"FLOW DIRECTION",null,null,null,"(Note 18 in Page 4)",null,null,null,null,null,67,"INPUT SIGNAL",null,"24VDC"]
[null,null,24,"TYPE OF BONNET",null,null,null,"Standard",null,null,null,null,null,68,"MFR. & MODEL",null,"Will be finalized later"]
[null,null,25,"LUBE & ISO VALVE",null,null,null,"No",null,null,null,null,"POSITIONER",69,"TYPE",null,"N/A"]
[null,null,26,"PACKING MATERIAL",null,"PACKING TYPE ",null,"PTFE",null,null,"Standard",null,null,70,"MFR. & MODEL",null,"Will be finalized later"]
[null,null,27,"ENTRY DESIGN",null,null,null,"Top / Side Entry",null,null,null,null,null,71,"ON INCR SIGNAL OUTPUT INCR / DECR      ",null,"N/A"]
[null,null,28,"NACE REQUIREMENTNACE (MR-0175/ISO 15156)",null,null,null,"Yes",null,null,null,null,null,72,"GAUGES",null,"N/A"]
[null,"TRIM",29,"TRIM ","TYPE","MATERIAL",null,"VTA",null,null,"316 SS+PTFE",null,null,73,"CAM CHARACTERISTIC",null,"N/A"]
[null,null,30,"SIZE ","RATED TRAVEL",null,null,"VTA",null,null,"VTA",null,null,74,"AIR CONNECTION",null,"N/A"]
[null,null,31,"CHARACTERISTICS",null,null,null,"On/Off",null,null,null,null,"LIMIT \nSWITCHES",75,"TAG NO. :",null,"XZSC-2121B / XZSO-2121B"]
[null,null,32,"BALANCED / UNBALANCED",null,null,null,"BALANCED",null,null,null,null,null,76," TYPE","QUANTITY","Magnetically operated ‘REED’ contacts ",2]
[null,null,33,"RATED  Cv","FL","XT",null,"VTA","VTA","VTA",null,null,null,77,"CONTACTS / RATING",null,"110V DC , 10A "]
[null,null,34,"PLUG / BALL / DISK MATERIAL",null,null,null,"316 SS",null,null,null,null,null,78,"ACTUATION POINT",null,"Fully Open/Close"]
[null,null,35,"SEAT ","TYPE","MATERIAL",null,"Soft Seat",null,null,"316 SS+PTFE",null,null,79,"ENCLOSURE MATERIAL",null,"Die Cast Aluminum"]
[null,null,36,"CAGE / GUIDE MATERIAL",null,null,null,"VTA",null,null,null,null,null,80,"WEATHER PROTECTION",null,"IP-65"]
[null,null,37,"STEM","TYPE","MATERIAL",null,"Anti-Blow Out",null,null,"316 SS",null,null,81,"ELEC. CERTIFICATE","ELEC. CONNECTION","EEx \"d\" ,IIB T4","ISO M20 × 1.5"]
[null,null,38,"LEAKAGE CLASS",null,null,null,"ANSI Class VI",null,null,null,null,null,82,"MFR. & MODEL",null,"Will be finalized later"]
[null,null,39,"VALVE STEM EXTENSION REQUIREMENT",null,null,null,"No",null,null,null,null,"AIR SET",83,"SET PRESSURE",null,"Yes"]
[null,"SOLENOID VALVE  ",40,"TAG NO",null,null,null,"PSOV-2121B, ESOV-2121B",null,null,null,null,null,84,"PNEUMATIC CONNECTION",null,"1/4\" NPT"]
[null,null,41,"TYPE",null,null,null,"3 Way ",null,null,null,null,null,85,"GAUGES","FILTER","Required","Required"]
[null,null,42,"BODY MATERIAL",null,"WEATHER IP.",null,"AISI 316 S.S",null,null,"IP-65",null,null,86,"MFR. & MODEL",null,"Will be finalized later"]
[null,null,43,"ELE. CERTIFICATE",null,"ELE. CONNECTION",null,"EEx \"d\" ,IIB T4",null,null,"ISO M20 x 1.5",null,"TEST",87,"ANSI/FCI LEAKAGE CLASS",null,"Required"]
[null,null,44,"MANUAL RESET",null,null,null,"Yes",null,null,null,null,null,88,"HYDRO PRESSURE ",null,"Required"]
[null,null,45,"Power Supply",null,null,null,"24 VDC",null,null,null,null,null,89,"FUNCTIONAL TEST",null,"Required"]
[null,null,46,"Pnu. Connection",null,null,null,"1/4\" NPT ",null,null,null,null,null,90]
[null,"SPECIAL /\nACCESS.",47,"FUSIBLE LEAKAGE",null,null,null,"No",null,null,null,null,null,91]
[null,null,48,"BLOCK RELAY",null,null,null,"No",null,null,null,null,null,92]
[null,null,49,"QUICK EXHUST",null,null,null,"Yes",null,null,null,null,"FIRE PROOF DESIGN",93,"PASSIVE FIRE PROTECTION",null,"No"]
[null,null,50,"FILTER REGULATOR",null,null,null,"Yes",null,null,null,null,null,94,"API 6FA REQUIREMENTS",null,"Yes"]
[null,null,51,"VOLUME TANK",null,null,null,"No",null,null,null,null,null,95,"SIL REQUIREMENTS",null,"Yes"]
[null,null,52,"MECHANICAL POSITION INDICATOR",null,null,null,"Required",null,null,null,null,null,96,"PARTIAL STROKING VALVE TEST",null,"No",null,null,"ESD LEVEL: ",2]
[null,null,53,"MANUALPNEUMATIC BYPASS VALVE FOR SOLENOID VALVE",null,null,null,"Yes",null,null,null,null,null,97]
[]
[null,"NOTE:","VTA : VENDOR TO ADVISE AT BIDDING STAGE    ",null,null,null,null,"VTC: VENDOR TO CONIFRM"]
[null,null,"(1) PMS: Piping material specification.\n\n(2) All material shall be suitable for minimum design metal temperature.\n\n(3) Shall be stated by vendor at quotation stage.\n\n(4) Manual Reset to be consider for all Emergency Shut off solenoids as per P&ID."]

{"sheet":"XV-2121C","index":21,"n_rows":71,"n_cols":21,"rows_kept":71,"cut":false,"hidden":false,"merged":[[70,2,71,10],[57,12,62,12],[61,1,67,1],[63,12,67,12],[67,3,67,6],[54,1,60,1],[24,1,26,1],[24,2,25,2],[24,3,25,3],[24,12,38,12],[45,12,52,12],[27,1,42,1],[43,1,53,1],[53,12,56,12],[11,2,11,4],[11,5,11,6],[11,7,11,13],[11,16,11,17],[12,1,23,1],[12,12,12,13],[13,12,13,13],[14,12,14,13],[15,12,15,13],[16,12,16,13],[17,12,17,13],[18,12,18,13],[19,12,19,13],[22,12,22,13],[23,12,23,13],[21,12,21,13],[9,1,9,17],[10,1,10,2],[10,3,10,4],[10,5,10,6],[10,7,10,13],[10,15,10,17],[8,1,8,4],[1,1,6,4],[1,5,4,12],[1,13,6,17],[5,5,6,12],[7,1,7,4],[7,13,8,13],[7,14,8,14],[7,15,8,15],[7,16,8,17],[12,2,12,11],[51,5,51,6],[51,7,51,9],[51,10,51,11],[30,7,30,9],[43,5,43,6],[43,7,43,9],[43,10,43,11],[49,5,49,6],[49,7,49,9],[49,10,49,11],[47,9,47,11],[24,7,25,8],[33,2,34,2],[33,3,34,3],[20,14,20,17],[21,14,21,17],[65,14,65,15],[66,14,66,15],[26,4,26,11],[24,9,25,11],[20,12,20,13],[25,16,25,17],[24,16,24,17],[29,14,29,15],[31,14,31,15],[39,12,44,12],[41,14,41,15]]}
[]
[null,"\n\n\n\n\nNISOC",null,null,null,"نگهداشت و افزایش تولید میدان نفتی بینک \nسطح‌الارض \n\nاحداث رديف تراكم گاز در ايستگاه جمع آوري بينك "]
[]
[]
[]
[null,null,null,null,null,"Data Sheets For ON/OFF & Shutdown Valves"]
[]
[null,"شماره پیمان:",null,null,null,"پروژه ","بسته کاری","صادرکننده","تسهیلات","رشته ","نوع مدرک ","سریال","نسخه"]
[null,"9038 – 073 - 053",null,null,null,"BK","GCS","PEDCO","120","IN","DT","0010",{"$f":"Notes!$AB$9","v":"D04"}]
[null,"On-Off Valve"]
[null,"TAG NO:",null,"XV-2121C",null,"P&ID NO :",null,"BK-GCS-PEDCO-120-PR-PI-0006-D09 (3/3)",null,null,null,null,null,null,"SERVICE:","1st Stage Gas Compression Suction Drums"]
[null,"FLUID STATE:","PROCESS GAS",null,null,"PHASE:",null,"GAS",null,null,null,null,null,null,"AREA CLASSIFICATION:",null,"Zone2, IIB, T4"]
[null,"SERVICE CONDITION","ITEM ",null,null,null,null,null,null,null,null,null,"UNITS",null,"Max Flow","Norm. Flow","Min. Flow","Shut-Off"]
[null,null,1,"FLOW RATE",null,null,null,null,null,null,null,null,"kg/h",null,{"$f":"P14*1.1","v":9530.4000000000015},8664,{"$f":"P14*0.35","v":3032.3999999999996},"-"]
[null,null,2,"INLET PRESSURE",null,null,null,null,null,null,null,null,"bar(g)",null,5.0999999999999996,5.0999999999999996,5.0999999999999996,"-"]
[null,null,3,"OUTLET PRESSURE",null,null,null,null,null,null,null,null,"bar(g)",null,5.0999999999999996,5.0999999999999996,5.0999999999999996,"-"]
[null,null,4,"DIFFERENTIAL PRESSURE",null,null,null,null,null,null,null,null,"bar(g)",null,"-","-","-",18.2]
[null,null,5,"INLET TEMPERATURE",null,null,null,null,null,null,null,null,"°C",null,"19.02~ 36.92","19.02~ 36.92","19.02~ 36.92","-"]
[null,null,6,"DENSITY ",null,null,null,null,null,null,null,null,"kg/m3",null,"5.56 ~ 5.96","5.56 ~ 5.96","5.56 ~ 5.96","-"]
[null,null,7,"VISCOSITY ",null,null,null,null,null,null,null,null,"CP",null,1.0999999999999999E-2,1.0999999999999999E-2,1.0999999999999999E-2,"-"]
[null,null,8,"DESIGN PRESSURE",null,null,null,null,null,null,null,null,"bar(g)",null,18.2]
[null,null,9,"DESIGN TEMPERATURE",null,null,null,null,null,null,null,null,"°C",null,85]
[null,null,10,"VAPOR PRESSURE Pv",null,null,null,null,null,null,null,null,"bar(a)",null,"-","-","-","-"]
[null,null,11,"CRITICAL PRESSURE",null,null,null,null,null,null,null,null,"bar(a)",null,94.65,94.65,94.65,"-"]
[null,"LINE",12,"PIPE LINE SIZE & SCHEDULE","   IN","8\"",60,"CORROSION ALLOWANCE(mm)",null,6,null,null,"ACTUATOR",54," TYPE",null,"Single Acting, Spring Return "]
[null,null,null,null,"   OUT","8\"",60,null,null,null,null,null,null,55,"SIZE",null,"VTA"]
[null,null,13,"LINE NO.","GAS-111-0026C-AN07-8\"-PT",null,null,null,null,null,null,null,null,56,"SPRING FAIL ACTION",null,"Fail to Close"]
[null,"VALVE BODY \n& \nBONNET",14,"TYPE",null,null,null,"Full Bore Ball Valve/Trunnion Mounted",null,null,null,null,null,57,"MAX ALLOWABLE PRESSURE",null,"VTA"]
[null,null,15,"SIZE ",null,null,null,"8\"",null,null,null,null,null,58,"MIN REQUIRES PRESSURE",null,"VTA"]
[null,null,16,"MAX PRESS./TEMP.",null,null,null,"As per PMS",null,null,null,null,null,59,"AVAILABLE AIR SUPPLY PRESSURE",null,"MAX/NOR/MIN: 10/7/3 bar-g"]
[null,null,17,"MFR. & MODEL",null,null,null,"Will be finalized later",null,null,null,null,null,60,"BENCH RANGE",null,"VTA"]
[null,null,18," BODY / BONNET MATL",null,null,null,"ASTM A216 Gr. WCB",null,null,null,null,null,61,"TRAVELING TIME",null,"9 S"]
[null,null,19,"LINER MATERIAL / ID",null,null,null,"VTA",null,null,null,null,null,62,"FUNCTION",null,"On/Off"]
[null,null,20,"END CONNECTION","IN",null,null,"8\"/300#",null,null,null,null,null,63,"LOCAL POSITION INDICATOR",null,"Required"]
[null,null,null,null,"OUT",null,null,"8\"/300#",null,null,null,null,null,64,"ACT. ORIENTATION",null,"VTA"]
[null,null,21,"FLG FACE FINISH",null,null,null,"RF",null,null,null,null,null,65,"HAND WHEEL TYPE",null,"Declutchable side mounted "]
[null,null,22,"END EXT./MATL.",null,null,null,"N/A",null,null,null,null,null,66,"ADJUSTABLE LIMIT STOP",null,"Yes"]
[null,null,23,"FLOW DIRECTION",null,null,null,"(Note 18 in Page 4)",null,null,null,null,null,67,"INPUT SIGNAL",null,"24VDC"]
[null,null,24,"TYPE OF BONNET",null,null,null,"Standard",null,null,null,null,null,68,"MFR. & MODEL",null,"Will be finalized later"]
[null,null,25,"LUBE & ISO VALVE",null,null,null,"No",null,null,null,null,"POSITIONER",69,"TYPE",null,"N/A"]
[null,null,26,"PACKING MATERIAL",null,"PACKING TYPE ",null,"PTFE",null,null,"Standard",null,null,70,"MFR. & MODEL",null,"Will be finalized later"]
[null,null,27,"ENTRY DESIGN",null,null,null,"Top / Side Entry",null,null,null,null,null,71,"ON INCR SIGNAL OUTPUT INCR / DECR      ",null,"N/A"]
[null,null,28,"NACE REQUIREMENTNACE (MR-0175/ISO 15156)",null,null,null,"Yes",null,null,null,null,null,72,"GAUGES",null,"N/A"]
[null,"TRIM",29,"TRIM ","TYPE","MATERIAL",null,"VTA",null,null,"316 SS+PTFE",null,null,73,"CAM CHARACTERISTIC",null,"N/A"]
[null,null,30,"SIZE ","RATED TRAVEL",null,null,"VTA",null,null,"VTA",null,null,74,"AIR CONNECTION",null,"N/A"]
[null,null,31,"CHARACTERISTICS",null,null,null,"On/Off",null,null,null,null,"LIMIT \nSWITCHES",75,"TAG NO. :",null,"XZSC-2121C / XZSO-2121C"]
[null,null,32,"BALANCED / UNBALANCED",null,null,null,"BALANCED",null,null,null,null,null,76," TYPE","QUANTITY","Magnetically operated ‘REED’ contacts ",2]
[null,null,33,"RATED  Cv","FL","XT",null,"VTA","VTA","VTA",null,null,null,77,"CONTACTS / RATING",null,"110V DC , 10A "]
[null,null,34,"PLUG / BALL / DISK MATERIAL",null,null,null,"316 SS",null,null,null,null,null,78,"ACTUATION POINT",null,"Fully Open/Close"]
[null,null,35,"SEAT ","TYPE","MATERIAL",null,"Soft Seat",null,null,"316 SS+PTFE",null,null,79,"ENCLOSURE MATERIAL",null,"Die Cast Aluminum"]
[null,null,36,"CAGE / GUIDE MATERIAL",null,null,null,"VTA",null,null,null,null,null,80,"WEATHER PROTECTION",null,"IP-65"]
[null,null,37,"STEM","TYPE","MATERIAL",null,"Anti-Blow Out",null,null,"316 SS",null,null,81,"ELEC. CERTIFICATE","ELEC. CONNECTION","EEx \"d\" ,IIB T4","ISO M20 × 1.5"]
[null,null,38,"LEAKAGE CLASS",null,null,null,"ANSI Class VI",null,null,null,null,null,82,"MFR. & MODEL",null,"Will be finalized later"]
[null,null,39,"VALVE STEM EXTENSION REQUIREMENT",null,null,null,"No",null,null,null,null,"AIR SET",83,"SET PRESSURE",null,"Yes"]
[null,"SOLENOID VALVE  ",40,"TAG NO",null,null,null,"PSOV-2121C, ESOV-2121C",null,null,null,null,null,84,"PNEUMATIC CONNECTION",null,"1/4\" NPT"]
[null,null,41,"TYPE",null,null,null,"3 Way ",null,null,null,null,null,85,"GAUGES","FILTER","Required","Required"]
[null,null,42,"BODY MATERIAL",null,"WEATHER IP.",null,"AISI 316 S.S",null,null,"IP-65",null,null,86,"MFR. & MODEL",null,"Will be finalized later"]
[null,null,43,"ELE. CERTIFICATE",null,"ELE. CONNECTION",null,"EEx \"d\" ,IIB T4",null,null,"ISO M20 x 1.5",null,"TEST",87,"ANSI/FCI LEAKAGE CLASS",null,"Required"]
[null,null,44,"MANUAL RESET",null,null,null,"Yes",null,null,null,null,null,88,"HYDRO PRESSURE ",null,"Required"]
[null,null,45,"Power Supply",null,null,null,"24 VDC",null,null,null,null,null,89,"FUNCTIONAL TEST",null,"Required"]
[null,null,46,"Pnu. Connection",null,null,null,"1/4\" NPT ",null,null,null,null,null,90]
[null,"SPECIAL /\nACCESS.",47,"FUSIBLE LEAKAGE",null,null,null,"No",null,null,null,null,null,91]
[null,null,48,"BLOCK RELAY",null,null,null,"No",null,null,null,null,null,92]
[null,null,49,"QUICK EXHUST",null,null,null,"Yes",null,null,null,null,"FIRE PROOF DESIGN",93,"PASSIVE FIRE PROTECTION",null,"No"]
[null,null,50,"FILTER REGULATOR",null,null,null,"Yes",null,null,null,null,null,94,"API 6FA REQUIREMENTS",null,"Yes"]
[null,null,51,"VOLUME TANK",null,null,null,"No",null,null,null,null,null,95,"SIL REQUIREMENTS",null,"Yes"]
[null,null,52,"MECHANICAL POSITION INDICATOR",null,null,null,"Required",null,null,null,null,null,96,"PARTIAL STROKING VALVE TEST",null,"No",null,null,"ESD LEVEL: ",2]
[null,null,53,"MANUALPNEUMATIC BYPASS VALVE FOR SOLENOID VALVE",null,null,null,"Yes",null,null,null,null,null,97]
[]
[null,"NOTE:","VTA : VENDOR TO ADVISE AT BIDDING STAGE    ",null,null,null,null,"VTC: VENDOR TO CONIFRM"]
[null,null,"(1) PMS: Piping material specification.\n\n(2) All material shall be suitable for minimum design metal temperature.\n\n(3) Shall be stated by vendor at quotation stage.\n\n(4) Manual Reset to be consider for all Emergency Shut off solenoids as per P&ID."]

{"sheet":"XV-2122A","index":22,"n_rows":71,"n_cols":21,"rows_kept":71,"cut":false,"hidden":false,"merged":[[70,2,71,10],[57,12,62,12],[61,1,67,1],[63,12,67,12],[67,3,67,6],[54,1,60,1],[24,1,26,1],[24,2,25,2],[24,3,25,3],[24,12,38,12],[45,12,52,12],[27,1,42,1],[43,1,53,1],[53,12,56,12],[26,4,26,11],[24,9,25,11],[11,2,11,4],[11,5,11,6],[11,7,11,13],[11,16,11,17],[12,1,23,1],[12,12,12,13],[13,12,13,13],[14,12,14,13],[15,12,15,13],[16,12,16,13],[17,12,17,13],[18,12,18,13],[19,12,19,13],[22,12,22,13],[23,12,23,13],[21,12,21,13],[9,1,9,17],[10,1,10,2],[10,3,10,4],[10,5,10,6],[10,7,10,13],[10,15,10,17],[8,1,8,4],[1,1,6,4],[1,5,4,12],[1,13,6,17],[5,5,6,12],[7,1,7,4],[7,13,8,13],[7,14,8,14],[7,15,8,15],[7,16,8,17],[12,2,12,11],[51,5,51,6],[51,7,51,9],[51,10,51,11],[43,5,43,6],[43,7,43,9],[43,10,43,11],[49,5,49,6],[49,7,49,9],[49,10,49,11],[47,9,47,11],[24,7,25,8],[33,2,34,2],[33,3,34,3],[20,12,20,13],[20,14,20,17],[21,14,21,17],[65,14,65,15],[66,14,66,15],[25,16,25,17],[24,16,24,17],[29,14,29,15],[31,14,31,15],[39,12,44,12],[41,14,41,15]]}
[]
[null,"\n\n\n\n\nNISOC",null,null,null,"نگهداشت و افزایش تولید میدان نفتی بینک \nسطح‌الارض \n\nاحداث رديف تراكم گاز در ايستگاه جمع آوري بينك "]
[]
[]
[]
[null,null,null,null,null,"Data Sheets For ON/OFF & Shutdown Valves"]
[]
[null,"شماره پیمان:",null,null,null,"پروژه ","بسته کاری","صادرکننده","تسهیلات","رشته ","نوع مدرک ","سریال","نسخه"]
[null,"9038 – 073 - 053",null,null,null,"BK","GCS","PEDCO","120","IN","DT","0010",{"$f":"Notes!$AB$9","v":"D04"}]
[null,"On-Off Valve"]
[null,"TAG NO:",null,"XV-2122A",null,"P&ID NO :",null,"BK-GCS-PEDCO-120-PR-PI-0006-D09 (1/3)",null,null,null,null,null,null,"SERVICE:","1st Stage Gas Compression Suction Drums"]
[null,"FLUID STATE:","CLOSED DRAIN",null,null,"PHASE:",null,"LIQUID",null,null,null,null,null,null,"AREA CLASSIFICATION:",null,"Zone2, IIB, T4"]
[null,"SERVICE CONDITION","ITEM ",null,null,null,null,null,null,null,null,null,"UNITS",null,"Max Flow","Norm. Flow","Min. Flow","Shut-Off"]
[null,null,1,"FLOW RATE",null,null,null,null,null,null,null,null,"kg/h",null,"-",10000,"-","-"]
[null,null,2,"INLET PRESSURE",null,null,null,null,null,null,null,null,"bar(g)",null,"-",4.9000000000000004,"-","-"]
[null,null,3,"OUTLET PRESSURE",null,null,null,null,null,null,null,null,"bar(g)",null,"-",4.9000000000000004,"-","-"]
[null,null,4,"DIFFERENTIAL PRESSURE",null,null,null,null,null,null,null,null,"bar(g)",null,"-","-","-",30.3]
[null,null,5,"INLET TEMPERATURE",null,null,null,null,null,null,null,null,"°C",null,"-",36.78,"-","-"]
[null,null,6,"DENSITY ",null,null,null,null,null,null,null,null,"kg/m3",null,"-",998.5,"-","-"]
[null,null,7,"VISCOSITY ",null,null,null,null,null,null,null,null,"CP",null,"-",0.69,"-","-"]
[null,null,8,"DESIGN PRESSURE",null,null,null,null,null,null,null,null,"bar(g)",null,30.3]
[null,null,9,"DESIGN TEMPERATURE",null,null,null,null,null,null,null,null,"°C",null,155]
[null,null,10,"VAPOR PRESSURE Pv",null,null,null,null,null,null,null,null,"bar(a)",null,0.61,0.61,0.61,"-"]
[null,null,11,"CRITICAL PRESSURE",null,null,null,null,null,null,null,null,"bar(a)",null,221.3,221.3,221.3,"-"]
[null,"LINE",12,"PIPE LINE SIZE & SCHEDULE","   IN","2\"","10S","CORROSION ALLOWANCE(mm)",null,0,null,null,"ACTUATOR",54," TYPE",null,"Single Acting, Spring Return "]
[null,null,null,null,"   OUT","2\"","10S",null,null,null,null,null,null,55,"SIZE",null,"VTA"]
[null,null,13,"LINE NO.","CDH-112-0021A-CS00-2\"-NP",null,null,null,null,null,null,null,null,56,"SPRING FAIL ACTION",null,"Fail to Close"]
[null,"VALVE BODY \n& \nBONNET",14,"TYPE",null,null,null,"Full Bore Ball Valve/Floating Type",null,null,null,null,null,57,"MAX ALLOWABLE PRESSURE",null,"VTA"]
[null,null,15,"SIZE ",null,null,null,"2\"",null,null,null,null,null,58,"MIN REQUIRES PRESSURE",null,"VTA"]
[null,null,16,"MAX PRESS./TEMP.",null,null,null,"As per PMS",null,null,null,null,null,59,"AVAILABLE AIR SUPPLY PRESSURE",null,"MAX/NOR/MIN: 10/7/3 bar-g"]
[null,null,17,"MFR. & MODEL",null,null,null,"Will be finalized later",null,null,null,null,null,60,"BENCH RANGE",null,"VTA"]
[null,null,18," BODY / BONNET MATL",null,null,null,"ASTM A351 GR.CF3M",null,null,null,null,null,61,"TRAVELING TIME",null,"5 S"]
[null,null,19,"LINER MATERIAL / ID",null,null,null,"VTA",null,null,null,null,null,62,"FUNCTION",null,"On/Off"]
[null,null,20,"END CONNECTION","IN",null,null,"2\"/300#",null,null,null,null,null,63,"LOCAL POSITION INDICATOR",null,"Required"]
[null,null,null,null,"OUT",null,null,"2\"/300#",null,null,null,null,null,64,"ACT. ORIENTATION",null,"VTA"]
[null,null,21,"FLG FACE FINISH",null,null,null,"RF",null,null,null,null,null,65,"HAND WHEEL TYPE",null,"Declutchable side mounted "]
[null,null,22,"END EXT./MATL.",null,null,null,"N/A",null,null,null,null,null,66,"ADJUSTABLE LIMIT STOP",null,"Yes"]
[null,null,23,"FLOW DIRECTION",null,null,null,"(Note 18 in Page 4)",null,null,null,null,null,67,"INPUT SIGNAL",null,"24VDC"]
[null,null,24,"TYPE OF BONNET",null,null,null,"Standard",null,null,null,null,null,68,"MFR. & MODEL",null,"Will be finalized later"]
[null,null,25,"LUBE & ISO VALVE",null,null,null,"No",null,null,null,null,"POSITIONER",69,"TYPE",null,"N/A"]
[null,null,26,"PACKING MATERIAL",null,"PACKING TYPE ",null,"RPTFE",null,null,"Standard",null,null,70,"MFR. & MODEL",null,"Will be finalized later"]
[null,null,27,"ENTRY DESIGN",null,null,null,"Top / Side Entry",null,null,null,null,null,71,"ON INCR SIGNAL OUTPUT INCR / DECR      ",null,"N/A"]
[null,null,28,"NACE REQUIREMENTNACE (MR-0175/ISO 15156)",null,null,null,"Yes",null,null,null,null,null,72,"GAUGES",null,"N/A"]
[null,"TRIM",29,"TRIM ","TYPE","MATERIAL",null,"VTA",null,null,"316 SS+RPTFE",null,null,73,"CAM CHARACTERISTIC",null,"N/A"]
[null,null,30,"SIZE ","RATED TRAVEL",null,null,"VTA",null,null,"VTA",null,null,74,"AIR CONNECTION",null,"N/A"]
[null,null,31,"CHARACTERISTICS",null,null,null,"On/Off",null,null,null,null,"LIMIT \nSWITCHES",75,"TAG NO. :",null,"XZSC-2122A / XZSO-2122A"]
[null,null,32,"BALANCED / UNBALANCED",null,null,null,"BALANCED",null,null,null,null,null,76," TYPE","QUANTITY","Magnetically operated ‘REED’ contacts ",2]
[null,null,33,"RATED  Cv","FL","XT",null,"VTA","VTA","VTA",null,null,null,77,"CONTACTS / RATING",null,"110V DC , 10A "]
[null,null,34,"PLUG / BALL / DISK MATERIAL",null,null,null,"316 SS",null,null,null,null,null,78,"ACTUATION POINT",null,"Fully Open/Close"]
[null,null,35,"SEAT ","TYPE","MATERIAL",null,"Soft Seat",null,null,"316 SS+RPTFE",null,null,79,"ENCLOSURE MATERIAL",null,"Die Cast Aluminum"]
[null,null,36,"CAGE / GUIDE MATERIAL",null,null,null,"VTA",null,null,null,null,null,80,"WEATHER PROTECTION",null,"IP-65"]
[null,null,37,"STEM","TYPE","MATERIAL",null,"Anti-Blow Out",null,null,"316 SS",null,null,81,"ELEC. CERTIFICATE","ELEC. CONNECTION","EEx \"d\" ,IIB T4","ISO M20 × 1.5"]
[null,null,38,"LEAKAGE CLASS",null,null,null,"ANSI Class VI",null,null,null,null,null,82,"MFR. & MODEL",null,"Will be finalized later"]
[null,null,39,"VALVE STEM EXTENSION REQUIREMENT",null,null,null,"No",null,null,null,null,"AIR SET",83,"SET PRESSURE",null,"Yes"]
[null,"SOLENOID VALVE  ",40,"TAG NO",null,null,null,"PSOV-2122A , ESOV-2122A",null,null,null,null,null,84,"PNEUMATIC CONNECTION",null,"1/4\" NPT"]
[null,null,41,"TYPE",null,null,null,"3 Way ",null,null,null,null,null,85,"GAUGES","FILTER","Required","Required"]
[null,null,42,"BODY MATERIAL",null,"WEATHER IP.",null,"AISI 316 S.S",null,null,"IP-65",null,null,86,"MFR. & MODEL",null,"Will be finalized later"]
[null,null,43,"ELE. CERTIFICATE",null,"ELE. CONNECTION",null,"EEx \"d\" ,IIB T4",null,null,"ISO M20 x 1.5",null,"TEST",87,"ANSI/FCI LEAKAGE CLASS",null,"Required"]
[null,null,44,"MANUAL RESET",null,null,null,"Yes",null,null,null,null,null,88,"HYDRO PRESSURE ",null,"Required"]
[null,null,45,"Power Supply",null,null,null,"24 VDC",null,null,null,null,null,89,"FUNCTIONAL TEST",null,"Required"]
[null,null,46,"Pnu. Connection",null,null,null,"1/4\" NPT ",null,null,null,null,null,90]
[null,"SPECIAL /\nACCESS.",47,"FUSIBLE LEAKAGE",null,null,null,"No",null,null,null,null,null,91]
[null,null,48,"BLOCK RELAY",null,null,null,"No",null,null,null,null,null,92]
[null,null,49,"QUICK EXHUST",null,null,null,"Yes",null,null,null,null,"FIRE PROOF DESIGN",93,"PASSIVE FIRE PROTECTION",null,"No"]
[null,null,50,"FILTER REGULATOR",null,null,null,"Yes",null,null,null,null,null,94,"API 6FA REQUIREMENTS",null,"Yes"]
[null,null,51,"VOLUME TANK",null,null,null,"No",null,null,null,null,null,95,"SIL REQUIREMENTS",null,"Yes"]
[null,null,52,"MECHANICAL POSITION INDICATOR",null,null,null,"Required",null,null,null,null,null,96,"PARTIAL STROKING VALVE TEST",null,"No",null,null,"ESD LEVEL: ",3]
[null,null,53,"MANUALPNEUMATIC BYPASS VALVE FOR SOLENOID VALVE",null,null,null,"Yes",null,null,null,null,null,97]
[]
[null,"NOTE:","VTA : VENDOR TO ADVISE AT BIDDING STAGE    ",null,null,null,null,"VTC: VENDOR TO CONIFRM"]
[null,null,"(1) PMS: Piping material specification.\n\n(2) All material shall be suitable for minimum design metal temperature.\n\n(3) Shall be stated by vendor at quotation stage.\n\n(4) Manual Reset to be consider for all Emergency Shut off solenoids as per P&ID."]

{"sheet":"XV-2122B","index":23,"n_rows":71,"n_cols":21,"rows_kept":71,"cut":false,"hidden":false,"merged":[[70,2,71,10],[57,12,62,12],[61,1,67,1],[63,12,67,12],[67,3,67,6],[54,1,60,1],[24,1,26,1],[24,2,25,2],[24,3,25,3],[24,12,38,12],[45,12,52,12],[27,1,42,1],[43,1,53,1],[53,12,56,12],[26,4,26,11],[24,9,25,11],[11,2,11,4],[11,5,11,6],[11,7,11,13],[11,16,11,17],[12,1,23,1],[12,12,12,13],[13,12,13,13],[14,12,14,13],[15,12,15,13],[16,12,16,13],[17,12,17,13],[18,12,18,13],[19,12,19,13],[22,12,22,13],[23,12,23,13],[21,12,21,13],[9,1,9,17],[10,1,10,2],[10,3,10,4],[10,5,10,6],[10,7,10,13],[10,15,10,17],[8,1,8,4],[1,1,6,4],[1,5,4,12],[1,13,6,17],[5,5,6,12],[7,1,7,4],[7,13,8,13],[7,14,8,14],[7,15,8,15],[7,16,8,17],[12,2,12,11],[51,5,51,6],[51,7,51,9],[51,10,51,11],[43,5,43,6],[43,7,43,9],[43,10,43,11],[49,5,49,6],[49,7,49,9],[49,10,49,11],[47,9,47,11],[24,7,25,8],[33,2,34,2],[33,3,34,3],[20,12,20,13],[20,14,20,17],[21,14,21,17],[65,14,65,15],[66,14,66,15],[25,16,25,17],[24,16,24,17],[29,14,29,15],[31,14,31,15],[39,12,44,12],[41,14,41,15]]}
[]
[null,"\n\n\n\n\nNISOC",null,null,null,"نگهداشت و افزایش تولید میدان نفتی بینک \nسطح‌الارض \n\nاحداث رديف تراكم گاز در ايستگاه جمع آوري بينك "]
[]
[]
[]
[null,null,null,null,null,"Data Sheets For ON/OFF & Shutdown Valves"]
[]
[null,"شماره پیمان:",null,null,null,"پروژه ","بسته کاری","صادرکننده","تسهیلات","رشته ","نوع مدرک ","سریال","نسخه"]
[null,"9038 – 073 - 053",null,null,null,"BK","GCS","PEDCO","120","IN","DT","0010",{"$f":"Notes!$AB$9","v":"D04"}]
[null,"On-Off Valve"]
[null,"TAG NO:",null,"XV-2122B",null,"P&ID NO :",null,"BK-GCS-PEDCO-120-PR-PI-0006-D09 (2/3)",null,null,null,null,null,null,"SERVICE:","1st Stage Gas Compression Suction Drums"]
[null,"FLUID STATE:"," CLOSED DRAIN",null,null,"PHASE:",null,"LIQUID",null,null,null,null,null,null,"AREA CLASSIFICATION:",null,"Zone2, IIB, T4"]
[null,"SERVICE CONDITION","ITEM ",null,null,null,null,null,null,null,null,null,"UNITS",null,"Max Flow","Norm. Flow","Min. Flow","Shut-Off"]
[null,null,1,"FLOW RATE",null,null,null,null,null,null,null,null,"kg/h",null,"-",10000,"-","-"]
[null,null,2,"INLET PRESSURE",null,null,null,null,null,null,null,null,"bar(g)",null,"-",4.9000000000000004,"-","-"]
[null,null,3,"OUTLET PRESSURE",null,null,null,null,null,null,null,null,"bar(g)",null,"-",4.9000000000000004,"-","-"]
[null,null,4,"DIFFERENTIAL PRESSURE",null,null,null,null,null,null,null,null,"bar(g)",null,"-","-","-",30.3]
[null,null,5,"INLET TEMPERATURE",null,null,null,null,null,null,null,null,"°C",null,"-",36.78,"-","-"]
[null,null,6,"DENSITY ",null,null,null,null,null,null,null,null,"kg/m3",null,"-",998.5,"-","-"]
[null,null,7,"VISCOSITY ",null,null,null,null,null,null,null,null,"CP",null,"-",0.69,"-","-"]
[null,null,8,"DESIGN PRESSURE",null,null,null,null,null,null,null,null,"bar(g)",null,30.3]
[null,null,9,"DESIGN TEMPERATURE",null,null,null,null,null,null,null,null,"°C",null,155]
[null,null,10,"VAPOR PRESSURE Pv",null,null,null,null,null,null,null,null,"bar(a)",null,0.61,0.61,0.61,"-"]
[null,null,11,"CRITICAL PRESSURE",null,null,null,null,null,null,null,null,"bar(a)",null,221.3,221.3,221.3,"-"]
[null,"LINE",12,"PIPE LINE SIZE & SCHEDULE","   IN","2\"","10S","CORROSION ALLOWANCE(mm)",null,0,null,null,"ACTUATOR",54," TYPE",null,"Single Acting, Spring Return "]
[null,null,null,null,"   OUT","2\"","10S",null,null,null,null,null,null,55,"SIZE",null,"VTA"]
[null,null,13,"LINE NO.","CDH-112-0021B-CS00-2\"-NP",null,null,null,null,null,null,null,null,56,"SPRING FAIL ACTION",null,"Fail to Close"]
[null,"VALVE BODY \n& \nBONNET",14,"TYPE",null,null,null,"Full Bore Ball Valve/Floating Type",null,null,null,null,null,57,"MAX ALLOWABLE PRESSURE",null,"VTA"]
[null,null,15,"SIZE ",null,null,null,"2\"",null,null,null,null,null,58,"MIN REQUIRES PRESSURE",null,"VTA"]
[null,null,16,"MAX PRESS./TEMP.",null,null,null,"As per PMS",null,null,null,null,null,59,"AVAILABLE AIR SUPPLY PRESSURE",null,"MAX/NOR/MIN: 10/7/3 bar-g"]
[null,null,17,"MFR. & MODEL",null,null,null,"Will be finalized later",null,null,null,null,null,60,"BENCH RANGE",null,"VTA"]
[null,null,18," BODY / BONNET MATL",null,null,null,"ASTM A351 GR.CF3M",null,null,null,null,null,61,"TRAVELING TIME",null,"5 S"]
[null,null,19,"LINER MATERIAL / ID",null,null,null,"VTA",null,null,null,null,null,62,"FUNCTION",null,"On/Off"]
[null,null,20,"END CONNECTION","IN",null,null,"2\"/300#",null,null,null,null,null,63,"LOCAL POSITION INDICATOR",null,"Required"]
[null,null,null,null,"OUT",null,null,"2\"/300#",null,null,null,null,null,64,"ACT. ORIENTATION",null,"VTA"]
[null,null,21,"FLG FACE FINISH",null,null,null,"RF",null,null,null,null,null,65,"HAND WHEEL TYPE",null,"Declutchable side mounted "]
[null,null,22,"END EXT./MATL.",null,null,null,"N/A",null,null,null,null,null,66,"ADJUSTABLE LIMIT STOP",null,"Yes"]
[null,null,23,"FLOW DIRECTION",null,null,null,"(Note 18 in Page 4)",null,null,null,null,null,67,"INPUT SIGNAL",null,"24VDC"]
[null,null,24,"TYPE OF BONNET",null,null,null,"Standard",null,null,null,null,null,68,"MFR. & MODEL",null,"Will be finalized later"]
[null,null,25,"LUBE & ISO VALVE",null,null,null,"No",null,null,null,null,"POSITIONER",69,"TYPE",null,"N/A"]
[null,null,26,"PACKING MATERIAL",null,"PACKING TYPE ",null,"RPTFE",null,null,"Standard",null,null,70,"MFR. & MODEL",null,"Will be finalized later"]
[null,null,27,"ENTRY DESIGN",null,null,null,"Top / Side Entry",null,null,null,null,null,71,"ON INCR SIGNAL OUTPUT INCR / DECR      ",null,"N/A"]
[null,null,28,"NACE REQUIREMENTNACE (MR-0175/ISO 15156)",null,null,null,"Yes",null,null,null,null,null,72,"GAUGES",null,"N/A"]
[null,"TRIM",29,"TRIM ","TYPE","MATERIAL",null,"VTA",null,null,"316 SS+RPTFE",null,null,73,"CAM CHARACTERISTIC",null,"N/A"]
[null,null,30,"SIZE ","RATED TRAVEL",null,null,"VTA",null,null,"VTA",null,null,74,"AIR CONNECTION",null,"N/A"]
[null,null,31,"CHARACTERISTICS",null,null,null,"On/Off",null,null,null,null,"LIMIT \nSWITCHES",75,"TAG NO. :",null,"XZSC-2122B / XZSO-2122B"]
[null,null,32,"BALANCED / UNBALANCED",null,null,null,"BALANCED",null,null,null,null,null,76," TYPE","QUANTITY","Magnetically operated ‘REED’ contacts ",2]
[null,null,33,"RATED  Cv","FL","XT",null,"VTA","VTA","VTA",null,null,null,77,"CONTACTS / RATING",null,"110V DC , 10A "]
[null,null,34,"PLUG / BALL / DISK MATERIAL",null,null,null,"316 SS",null,null,null,null,null,78,"ACTUATION POINT",null,"Fully Open/Close"]
[null,null,35,"SEAT ","TYPE","MATERIAL",null,"Soft Seat",null,null,"316 SS+RPTFE",null,null,79,"ENCLOSURE MATERIAL",null,"Die Cast Aluminum"]
[null,null,36,"CAGE / GUIDE MATERIAL",null,null,null,"VTA",null,null,null,null,null,80,"WEATHER PROTECTION",null,"IP-65"]
[null,null,37,"STEM","TYPE","MATERIAL",null,"Anti-Blow Out",null,null,"316 SS",null,null,81,"ELEC. CERTIFICATE","ELEC. CONNECTION","EEx \"d\" ,IIB T4","ISO M20 × 1.5"]
[null,null,38,"LEAKAGE CLASS",null,null,null,"ANSI Class VI",null,null,null,null,null,82,"MFR. & MODEL",null,"Will be finalized later"]
[null,null,39,"VALVE STEM EXTENSION REQUIREMENT",null,null,null,"No",null,null,null,null,"AIR SET",83,"SET PRESSURE",null,"Yes"]
[null,"SOLENOID VALVE  ",40,"TAG NO",null,null,null,"PSOV-2122B , ESOV-2122B",null,null,null,null,null,84,"PNEUMATIC CONNECTION",null,"1/4\" NPT"]
[null,null,41,"TYPE",null,null,null,"3 Way ",null,null,null,null,null,85,"GAUGES","FILTER","Required","Required"]
[null,null,42,"BODY MATERIAL",null,"WEATHER IP.",null,"AISI 316 S.S",null,null,"IP-65",null,null,86,"MFR. & MODEL",null,"Will be finalized later"]
[null,null,43,"ELE. CERTIFICATE",null,"ELE. CONNECTION",null,"EEx \"d\" ,IIB T4",null,null,"ISO M20 x 1.5",null,"TEST",87,"ANSI/FCI LEAKAGE CLASS",null,"Required"]
[null,null,44,"MANUAL RESET",null,null,null,"Yes",null,null,null,null,null,88,"HYDRO PRESSURE ",null,"Required"]
[null,null,45,"Power Supply",null,null,null,"24 VDC",null,null,null,null,null,89,"FUNCTIONAL TEST",null,"Required"]
[null,null,46,"Pnu. Connection",null,null,null,"1/4\" NPT ",null,null,null,null,null,90]
[null,"SPECIAL /\nACCESS.",47,"FUSIBLE LEAKAGE",null,null,null,"No",null,null,null,null,null,91]
[null,null,48,"BLOCK RELAY",null,null,null,"No",null,null,null,null,null,92]
[null,null,49,"QUICK EXHUST",null,null,null,"Yes",null,null,null,null,"FIRE PROOF DESIGN",93,"PASSIVE FIRE PROTECTION",null,"No"]
[null,null,50,"FILTER REGULATOR",null,null,null,"Yes",null,null,null,null,null,94,"API 6FA REQUIREMENTS",null,"Yes"]
[null,null,51,"VOLUME TANK",null,null,null,"No",null,null,null,null,null,95,"SIL REQUIREMENTS",null,"Yes"]
[null,null,52,"MECHANICAL POSITION INDICATOR",null,null,null,"Required",null,null,null,null,null,96,"PARTIAL STROKING VALVE TEST",null,"No",null,null,"ESD LEVEL: ",3]
[null,null,53,"MANUALPNEUMATIC BYPASS VALVE FOR SOLENOID VALVE",null,null,null,"Yes",null,null,null,null,null,97]
[]
[null,"NOTE:","VTA : VENDOR TO ADVISE AT BIDDING STAGE    ",null,null,null,null,"VTC: VENDOR TO CONIFRM"]
[null,null,"(1) PMS: Piping material specification.\n\n(2) All material shall be suitable for minimum design metal temperature.\n\n(3) Shall be stated by vendor at quotation stage.\n\n(4) Manual Reset to be consider for all Emergency Shut off solenoids as per P&ID."]

{"sheet":"XV-2122C","index":24,"n_rows":71,"n_cols":21,"rows_kept":71,"cut":false,"hidden":false,"merged":[[70,2,71,10],[57,12,62,12],[61,1,67,1],[63,12,67,12],[67,3,67,6],[54,1,60,1],[24,1,26,1],[24,2,25,2],[24,3,25,3],[24,12,38,12],[45,12,52,12],[27,1,42,1],[43,1,53,1],[53,12,56,12],[26,4,26,11],[24,9,25,11],[11,2,11,4],[11,5,11,6],[11,7,11,13],[11,16,11,17],[12,1,23,1],[12,12,12,13],[13,12,13,13],[14,12,14,13],[15,12,15,13],[16,12,16,13],[17,12,17,13],[18,12,18,13],[19,12,19,13],[22,12,22,13],[23,12,23,13],[21,12,21,13],[9,1,9,17],[10,1,10,2],[10,3,10,4],[10,5,10,6],[10,7,10,13],[10,15,10,17],[8,1,8,4],[1,1,6,4],[1,5,4,12],[1,13,6,17],[5,5,6,12],[7,1,7,4],[7,13,8,13],[7,14,8,14],[7,15,8,15],[7,16,8,17],[12,2,12,11],[51,5,51,6],[51,7,51,9],[51,10,51,11],[43,5,43,6],[43,7,43,9],[43,10,43,11],[49,5,49,6],[49,7,49,9],[49,10,49,11],[47,9,47,11],[24,7,25,8],[33,2,34,2],[33,3,34,3],[20,12,20,13],[20,14,20,17],[21,14,21,17],[65,14,65,15],[66,14,66,15],[25,16,25,17],[24,16,24,17],[29,14,29,15],[31,14,31,15],[39,12,44,12],[41,14,41,15]]}
[]
[null,"\n\n\n\n\nNISOC",null,null,null,"نگهداشت و افزایش تولید میدان نفتی بینک \nسطح‌الارض \n\nاحداث رديف تراكم گاز در ايستگاه جمع آوري بينك "]
[]
[]
[]
[null,null,null,null,null,"Data Sheets For ON/OFF & Shutdown Valves"]
[]
[null,"شماره پیمان:",null,null,null,"پروژه ","بسته کاری","صادرکننده","تسهیلات","رشته ","نوع مدرک ","سریال","نسخه"]
[null,"9038 – 073 - 053",null,null,null,"BK","GCS","PEDCO","120","IN","DT","0010",{"$f":"Notes!$AB$9","v":"D04"}]
[null,"On-Off Valve"]
[null,"TAG NO:",null,"XV-2122C",null,"P&ID NO :",null,"BK-GCS-PEDCO-120-PR-PI-0006-D09 (3/3)",null,null,null,null,null,null,"SERVICE:","1st Stage Gas Compression Suction Drums"]
[null,"FLUID STATE:"," CLOSED DRAIN",null,null,"PHASE:",null,"LIQUID",null,null,null,null,null,null,"AREA CLASSIFICATION:",null,"Zone2, IIB, T4"]
[null,"SERVICE CONDITION","ITEM ",null,null,null,null,null,null,null,null,null,"UNITS",null,"Max Flow","Norm. Flow","Min. Flow","Shut-Off"]
[null,null,1,"FLOW RATE",null,null,null,null,null,null,null,null,"kg/h",null,"-",10000,"-","-"]
[null,null,2,"INLET PRESSURE",null,null,null,null,null,null,null,null,"bar(g)",null,"-",4.9000000000000004,"-","-"]
[null,null,3,"OUTLET PRESSURE",null,null,null,null,null,null,null,null,"bar(g)",null,"-",4.9000000000000004,"-","-"]
[null,null,4,"DIFFERENTIAL PRESSURE",null,null,null,null,null,null,null,null,"bar(g)",null,"-","-","-",30.3]
[null,null,5,"INLET TEMPERATURE",null,null,null,null,null,null,null,null,"°C",null,"-",36.78,"-","-"]
[null,null,6,"DENSITY ",null,null,null,null,null,null,null,null,"kg/m3",null,"-",998.5,"-","-"]
[null,null,7,"VISCOSITY ",null,null,null,null,null,null,null,null,"CP",null,"-",0.69,"-","-"]
[null,null,8,"DESIGN PRESSURE",null,null,null,null,null,null,null,null,"bar(g)",null,30.3]
[null,null,9,"DESIGN TEMPERATURE",null,null,null,null,null,null,null,null,"°C",null,155]
[null,null,10,"VAPOR PRESSURE Pv",null,null,null,null,null,null,null,null,"bar(a)",null,0.61,0.61,0.61,"-"]
[null,null,11,"CRITICAL PRESSURE",null,null,null,null,null,null,null,null,"bar(a)",null,221.3,221.3,221.3,"-"]
[null,"LINE",12,"PIPE LINE SIZE & SCHEDULE","   IN","2\"","10S","CORROSION ALLOWANCE(mm)",null,0,null,null,"ACTUATOR",54," TYPE",null,"Single Acting, Spring Return "]
[null,null,null,null,"   OUT","2\"","10S",null,null,null,null,null,null,55,"SIZE",null,"VTA"]
[null,null,13,"LINE NO.","CDH-112-0021C-CS00-2\"-NP",null,null,null,null,null,null,null,null,56,"SPRING FAIL ACTION",null,"Fail to Close"]
[null,"VALVE BODY \n& \nBONNET",14,"TYPE",null,null,null,"Full Bore Ball Valve/Floating Type",null,null,null,null,null,57,"MAX ALLOWABLE PRESSURE",null,"VTA"]
[null,null,15,"SIZE ",null,null,null,"2\"",null,null,null,null,null,58,"MIN REQUIRES PRESSURE",null,"VTA"]
[null,null,16,"MAX PRESS./TEMP.",null,null,null,"As per PMS",null,null,null,null,null,59,"AVAILABLE AIR SUPPLY PRESSURE",null,"MAX/NOR/MIN: 10/7/3 bar-g"]
[null,null,17,"MFR. & MODEL",null,null,null,"Will be finalized later",null,null,null,null,null,60,"BENCH RANGE",null,"VTA"]
[null,null,18," BODY / BONNET MATL",null,null,null,"ASTM A351 GR.CF3M",null,null,null,null,null,61,"TRAVELING TIME",null,"5 S"]
[null,null,19,"LINER MATERIAL / ID",null,null,null,"VTA",null,null,null,null,null,62,"FUNCTION",null,"On/Off"]
[null,null,20,"END CONNECTION","IN",null,null,"2\"/300#",null,null,null,null,null,63,"LOCAL POSITION INDICATOR",null,"Required"]
[null,null,null,null,"OUT",null,null,"2\"/300#",null,null,null,null,null,64,"ACT. ORIENTATION",null,"VTA"]
[null,null,21,"FLG FACE FINISH",null,null,null,"RF",null,null,null,null,null,65,"HAND WHEEL TYPE",null,"Declutchable side mounted "]
[null,null,22,"END EXT./MATL.",null,null,null,"N/A",null,null,null,null,null,66,"ADJUSTABLE LIMIT STOP",null,"Yes"]
[null,null,23,"FLOW DIRECTION",null,null,null,"(Note 18 in Page 4)",null,null,null,null,null,67,"INPUT SIGNAL",null,"24VDC"]
[null,null,24,"TYPE OF BONNET",null,null,null,"Standard",null,null,null,null,null,68,"MFR. & MODEL",null,"Will be finalized later"]
[null,null,25,"LUBE & ISO VALVE",null,null,null,"No",null,null,null,null,"POSITIONER",69,"TYPE",null,"N/A"]
[null,null,26,"PACKING MATERIAL",null,"PACKING TYPE ",null,"RPTFE",null,null,"Standard",null,null,70,"MFR. & MODEL",null,"Will be finalized later"]
[null,null,27,"ENTRY DESIGN",null,null,null,"Top / Side Entry",null,null,null,null,null,71,"ON INCR SIGNAL OUTPUT INCR / DECR      ",null,"N/A"]
[null,null,28,"NACE REQUIREMENTNACE (MR-0175/ISO 15156)",null,null,null,"Yes",null,null,null,null,null,72,"GAUGES",null,"N/A"]
[null,"TRIM",29,"TRIM ","TYPE","MATERIAL",null,"VTA",null,null,"316 SS+RPTFE",null,null,73,"CAM CHARACTERISTIC",null,"N/A"]
[null,null,30,"SIZE ","RATED TRAVEL",null,null,"VTA",null,null,"VTA",null,null,74,"AIR CONNECTION",null,"N/A"]
[null,null,31,"CHARACTERISTICS",null,null,null,"On/Off",null,null,null,null,"LIMIT \nSWITCHES",75,"TAG NO. :",null,"XZSC-2122C  / XZSO-2122C"]
[null,null,32,"BALANCED / UNBALANCED",null,null,null,"BALANCED",null,null,null,null,null,76," TYPE","QUANTITY","Magnetically operated ‘REED’ contacts ",2]
[null,null,33,"RATED  Cv","FL","XT",null,"VTA","VTA","VTA",null,null,null,77,"CONTACTS / RATING",null,"110V DC , 10A "]
[null,null,34,"PLUG / BALL / DISK MATERIAL",null,null,null,"316 SS",null,null,null,null,null,78,"ACTUATION POINT",null,"Fully Open/Close"]
[null,null,35,"SEAT ","TYPE","MATERIAL",null,"Soft Seat",null,null,"316 SS+RPTFE",null,null,79,"ENCLOSURE MATERIAL",null,"Die Cast Aluminum"]
[null,null,36,"CAGE / GUIDE MATERIAL",null,null,null,"VTA",null,null,null,null,null,80,"WEATHER PROTECTION",null,"IP-65"]
[null,null,37,"STEM","TYPE","MATERIAL",null,"Anti-Blow Out",null,null,"316 SS",null,null,81,"ELEC. CERTIFICATE","ELEC. CONNECTION","EEx \"d\" ,IIB T4","ISO M20 × 1.5"]
[null,null,38,"LEAKAGE CLASS",null,null,null,"ANSI Class VI",null,null,null,null,null,82,"MFR. & MODEL",null,"Will be finalized later"]
[null,null,39,"VALVE STEM EXTENSION REQUIREMENT",null,null,null,"No",null,null,null,null,"AIR SET",83,"SET PRESSURE",null,"Yes"]
[null,"SOLENOID VALVE  ",40,"TAG NO",null,null,null,"PSOV-2122C , ESOV-2122C",null,null,null,null,null,84,"PNEUMATIC CONNECTION",null,"1/4\" NPT"]
[null,null,41,"TYPE",null,null,null,"3 Way ",null,null,null,null,null,85,"GAUGES","FILTER","Required","Required"]
[null,null,42,"BODY MATERIAL",null,"WEATHER IP.",null,"AISI 316 S.S",null,null,"IP-65",null,null,86,"MFR. & MODEL",null,"Will be finalized later"]
[null,null,43,"ELE. CERTIFICATE",null,"ELE. CONNECTION",null,"EEx \"d\" ,IIB T4",null,null,"ISO M20 x 1.5",null,"TEST",87,"ANSI/FCI LEAKAGE CLASS",null,"Required"]
[null,null,44,"MANUAL RESET",null,null,null,"Yes",null,null,null,null,null,88,"HYDRO PRESSURE ",null,"Required"]
[null,null,45,"Power Supply",null,null,null,"24 VDC",null,null,null,null,null,89,"FUNCTIONAL TEST",null,"Required"]
[null,null,46,"Pnu. Connection",null,null,null,"1/4\" NPT ",null,null,null,null,null,90]
[null,"SPECIAL /\nACCESS.",47,"FUSIBLE LEAKAGE",null,null,null,"No",null,null,null,null,null,91]
[null,null,48,"BLOCK RELAY",null,null,null,"No",null,null,null,null,null,92]
[null,null,49,"QUICK EXHUST",null,null,null,"Yes",null,null,null,null,"FIRE PROOF DESIGN",93,"PASSIVE FIRE PROTECTION",null,"No"]
[null,null,50,"FILTER REGULATOR",null,null,null,"Yes",null,null,null,null,null,94,"API 6FA REQUIREMENTS",null,"Yes"]
[null,null,51,"VOLUME TANK",null,null,null,"No",null,null,null,null,null,95,"SIL REQUIREMENTS",null,"Yes"]
[null,null,52,"MECHANICAL POSITION INDICATOR",null,null,null,"Required",null,null,null,null,null,96,"PARTIAL STROKING VALVE TEST",null,"No",null,null,"ESD LEVEL: ",3]
[null,null,53,"MANUALPNEUMATIC BYPASS VALVE FOR SOLENOID VALVE",null,null,null,"Yes",null,null,null,null,null,97]
[]
[null,"NOTE:","VTA : VENDOR TO ADVISE AT BIDDING STAGE    ",null,null,null,null,"VTC: VENDOR TO CONIFRM"]
[null,null,"(1) PMS: Piping material specification.\n\n(2) All material shall be suitable for minimum design metal temperature.\n\n(3) Shall be stated by vendor at quotation stage.\n\n(4) Manual Reset to be consider for all Emergency Shut off solenoids as per P&ID."]

{"sheet":"XV-2131A","index":25,"n_rows":71,"n_cols":21,"rows_kept":71,"cut":false,"hidden":false,"merged":[[70,2,71,10],[57,12,62,12],[61,1,67,1],[63,12,67,12],[67,3,67,6],[54,1,60,1],[24,1,26,1],[24,2,25,2],[24,3,25,3],[24,12,38,12],[45,12,52,12],[27,1,42,1],[43,1,53,1],[53,12,56,12],[26,4,26,11],[24,9,25,11],[11,2,11,4],[11,5,11,6],[11,7,11,13],[11,16,11,17],[12,1,23,1],[12,12,12,13],[13,12,13,13],[14,12,14,13],[15,12,15,13],[16,12,16,13],[17,12,17,13],[18,12,18,13],[19,12,19,13],[22,12,22,13],[23,12,23,13],[21,12,21,13],[9,1,9,17],[10,1,10,2],[10,3,10,4],[10,5,10,6],[10,7,10,13],[10,15,10,17],[8,1,8,4],[1,1,6,4],[1,5,4,12],[1,13,6,17],[5,5,6,12],[7,1,7,4],[7,13,8,13],[7,14,8,14],[7,15,8,15],[7,16,8,17],[12,2,12,11],[51,5,51,6],[51,7,51,9],[51,10,51,11],[43,5,43,6],[43,7,43,9],[43,10,43,11],[49,5,49,6],[49,7,49,9],[49,10,49,11],[47,9,47,11],[24,7,25,8],[33,2,34,2],[33,3,34,3],[20,12,20,13],[20,14,20,17],[21,14,21,17],[65,14,65,15],[66,14,66,15],[25,16,25,17],[24,16,24,17],[29,14,29,15],[31,14,31,15],[39,12,44,12],[41,14,41,15]]}
[]
[null,"\n\n\n\n\nNISOC",null,null,null,"نگهداشت و افزایش تولید میدان نفتی بینک \nسطح‌الارض \n\nاحداث رديف تراكم گاز در ايستگاه جمع آوري بينك "]
[]
[]
[]
[null,null,null,null,null,"Data Sheets For ON/OFF & Shutdown Valves"]
[]
[null,"شماره پیمان:",null,null,null,"پروژه ","بسته کاری","صادرکننده","تسهیلات","رشته ","نوع مدرک ","سریال","نسخه"]
[null,"9038 – 073 - 053",null,null,null,"BK","GCS","PEDCO","120","IN","DT","0010",{"$f":"Notes!$AB$9","v":"D04"}]
[null,"On-Off Valve"]
[null,"TAG NO:",null,"XV-2131A",null,"P&ID NO :",null,"BK-GCS-PEDCO-120-PR-PI-0009-D09 (1 of 3)",null,null,null,null,null,null,"SERVICE:","2nd Stage Gas Compression Suction Drums"]
[null,"FLUID STATE:"," CLOSED DRAIN",null,null,"PHASE:",null,"LIQUID",null,null,null,null,null,null,"AREA CLASSIFICATION:",null,"Zone2, IIB, T4"]
[null,"SERVICE CONDITION","ITEM ",null,null,null,null,null,null,null,null,null,"UNITS",null,"Max Flow","Norm. Flow","Min. Flow","Shut-Off"]
[null,null,1,"FLOW RATE",null,null,null,null,null,null,null,null,"kg/h",null,"-",10000,"-","-"]
[null,null,2,"INLET PRESSURE",null,null,null,null,null,null,null,null,"bar(g)",null,"-",18.100000000000001,"-","-"]
[null,null,3,"OUTLET PRESSURE",null,null,null,null,null,null,null,null,"bar(g)",null,"-",18.100000000000001,"-","-"]
[null,null,4,"DIFFERENTIAL PRESSURE",null,null,null,null,null,null,null,null,"bar(g)",null,"-","-","-",30.3]
[null,null,5,"INLET TEMPERATURE",null,null,null,null,null,null,null,null,"°C",null,"-",59.88,"-","-"]
[null,null,6,"DENSITY ",null,null,null,null,null,null,null,null,"kg/m3",null,"-",981.1,"-","-"]
[null,null,7,"VISCOSITY ",null,null,null,null,null,null,null,null,"CP",null,"-",0.496,"-","-"]
[null,null,8,"DESIGN PRESSURE",null,null,null,null,null,null,null,null,"bar(g)",null,30.3]
[null,null,9,"DESIGN TEMPERATURE",null,null,null,null,null,null,null,null,"°C",null,155]
[null,null,10,"VAPOR PRESSURE Pv",null,null,null,null,null,null,null,null,"bar(a)",null,"-",3.23,"-","-"]
[null,null,11,"CRITICAL PRESSURE",null,null,null,null,null,null,null,null,"bar(a)",null,221.5,221.5,221.5,"-"]
[null,"LINE",12,"PIPE LINE SIZE & SCHEDULE","   IN","2\"","10S","CORROSION ALLOWANCE(mm)",null,0,null,null,"ACTUATOR",54," TYPE",null,"Single Acting, Spring Return "]
[null,null,null,null,"   OUT","2\"","10S",null,null,null,null,null,null,55,"SIZE",null,"VTA"]
[null,null,13,"LINE NO.","CDH-111-0023A-CS00-2\"-NP",null,null,null,null,null,null,null,null,56,"SPRING FAIL ACTION",null,"Fail to Close"]
[null,"VALVE BODY \n& \nBONNET",14,"TYPE",null,null,null,"Full Bore Ball Valve/Floating Type",null,null,null,null,null,57,"MAX ALLOWABLE PRESSURE",null,"VTA"]
[null,null,15,"SIZE ",null,null,null,"2\"",null,null,null,null,null,58,"MIN REQUIRES PRESSURE",null,"VTA"]
[null,null,16,"MAX PRESS./TEMP.",null,null,null,"As per PMS",null,null,null,null,null,59,"AVAILABLE AIR SUPPLY PRESSURE",null,"MAX/NOR/MIN: 10/7/3 bar-g"]
[null,null,17,"MFR. & MODEL",null,null,null,"Will be finalized later",null,null,null,null,null,60,"BENCH RANGE",null,"VTA"]
[null,null,18," BODY / BONNET MATL",null,null,null,"ASTM A351 GR.CF3M",null,null,null,null,null,61,"TRAVELING TIME",null,"5 S"]
[null,null,19,"LINER MATERIAL / ID",null,null,null,"VTA",null,null,null,null,null,62,"FUNCTION",null,"On/Off"]
[null,null,20,"END CONNECTION","IN",null,null,"2\"/300#",null,null,null,null,null,63,"LOCAL POSITION INDICATOR",null,"Required"]
[null,null,null,null,"OUT",null,null,"2\"/300#",null,null,null,null,null,64,"ACT. ORIENTATION",null,"VTA"]
[null,null,21,"FLG FACE FINISH",null,null,null,"RF",null,null,null,null,null,65,"HAND WHEEL TYPE",null,"Declutchable side mounted "]
[null,null,22,"END EXT./MATL.",null,null,null,"N/A",null,null,null,null,null,66,"ADJUSTABLE LIMIT STOP",null,"Yes"]
[null,null,23,"FLOW DIRECTION",null,null,null,"(Note 18 in Page 4)",null,null,null,null,null,67,"INPUT SIGNAL",null,"24VDC"]
[null,null,24,"TYPE OF BONNET",null,null,null,"Standard",null,null,null,null,null,68,"MFR. & MODEL",null,"Will be finalized later"]
[null,null,25,"LUBE & ISO VALVE",null,null,null,"No",null,null,null,null,"POSITIONER",69,"TYPE",null,"N/A"]
[null,null,26,"PACKING MATERIAL",null,"PACKING TYPE ",null,"RPTFE",null,null,"Standard",null,null,70,"MFR. & MODEL",null,"Will be finalized later"]
[null,null,27,"ENTRY DESIGN",null,null,null,"Top / Side Entry",null,null,null,null,null,71,"ON INCR SIGNAL OUTPUT INCR / DECR      ",null,"N/A"]
[null,null,28,"NACE REQUIREMENTNACE (MR-0175/ISO 15156)",null,null,null,"Yes",null,null,null,null,null,72,"GAUGES",null,"N/A"]
[null,"TRIM",29,"TRIM ","TYPE","MATERIAL",null,"VTA",null,null,"316 SS+RPTFE",null,null,73,"CAM CHARACTERISTIC",null,"N/A"]
[null,null,30,"SIZE ","RATED TRAVEL",null,null,"VTA",null,null,"VTA",null,null,74,"AIR CONNECTION",null,"N/A"]
[null,null,31,"CHARACTERISTICS",null,null,null,"On/Off",null,null,null,null,"LIMIT \nSWITCHES",75,"TAG NO. :",null,"XZSC-2131A / XZSO-2131A"]
[null,null,32,"BALANCED / UNBALANCED",null,null,null,"BALANCED",null,null,null,null,null,76," TYPE","QUANTITY","Magnetically operated ‘REED’ contacts ",2]
[null,null,33,"RATED  Cv","FL","XT",null,"VTA","VTA","VTA",null,null,null,77,"CONTACTS / RATING",null,"110V DC , 10A "]
[null,null,34,"PLUG / BALL / DISK MATERIAL",null,null,null,"316 SS",null,null,null,null,null,78,"ACTUATION POINT",null,"Fully Open/Close"]
[null,null,35,"SEAT ","TYPE","MATERIAL",null,"Soft Seat",null,null,"316 SS+RPTFE",null,null,79,"ENCLOSURE MATERIAL",null,"Die Cast Aluminum"]
[null,null,36,"CAGE / GUIDE MATERIAL",null,null,null,"VTA",null,null,null,null,null,80,"WEATHER PROTECTION",null,"IP-65"]
[null,null,37,"STEM","TYPE","MATERIAL",null,"Anti-Blow Out",null,null,"316 SS",null,null,81,"ELEC. CERTIFICATE","ELEC. CONNECTION","EEx \"d\" ,IIB T4","ISO M20 × 1.5"]
[null,null,38,"LEAKAGE CLASS",null,null,null,"ANSI Class VI",null,null,null,null,null,82,"MFR. & MODEL",null,"Will be finalized later"]
[null,null,39,"VALVE STEM EXTENSION REQUIREMENT",null,null,null,"No",null,null,null,null,"AIR SET",83,"SET PRESSURE",null,"Yes"]
[null,"SOLENOID VALVE  ",40,"TAG NO",null,null,null,"PSOV-2131A , ESOV-2131A",null,null,null,null,null,84,"PNEUMATIC CONNECTION",null,"1/4\" NPT"]
[null,null,41,"TYPE",null,null,null,"3 Way ",null,null,null,null,null,85,"GAUGES","FILTER","Required","Required"]
[null,null,42,"BODY MATERIAL",null,"WEATHER IP.",null,"AISI 316 S.S",null,null,"IP-65",null,null,86,"MFR. & MODEL",null,"Will be finalized later"]
[null,null,43,"ELE. CERTIFICATE",null,"ELE. CONNECTION",null,"EEx \"d\" ,IIB T4",null,null,"ISO M20 x 1.5",null,"TEST",87,"ANSI/FCI LEAKAGE CLASS",null,"Required"]
[null,null,44,"MANUAL RESET",null,null,null,"Yes",null,null,null,null,null,88,"HYDRO PRESSURE ",null,"Required"]
[null,null,45,"Power Supply",null,null,null,"24 VDC",null,null,null,null,null,89,"FUNCTIONAL TEST",null,"Required"]
[null,null,46,"Pnu. Connection",null,null,null,"1/4\" NPT ",null,null,null,null,null,90]
[null,"SPECIAL /\nACCESS.",47,"FUSIBLE LEAKAGE",null,null,null,"No",null,null,null,null,null,91]
[null,null,48,"BLOCK RELAY",null,null,null,"No",null,null,null,null,null,92]
[null,null,49,"QUICK EXHUST",null,null,null,"Yes",null,null,null,null,"FIRE PROOF DESIGN",93,"PASSIVE FIRE PROTECTION",null,"No"]
[null,null,50,"FILTER REGULATOR",null,null,null,"Yes",null,null,null,null,null,94,"API 6FA REQUIREMENTS",null,"Yes"]
[null,null,51,"VOLUME TANK",null,null,null,"No",null,null,null,null,null,95,"SIL REQUIREMENTS",null,"Yes"]
[null,null,52,"MECHANICAL POSITION INDICATOR",null,null,null,"Required",null,null,null,null,null,96,"PARTIAL STROKING VALVE TEST",null,"No",null,null,"ESD LEVEL: ",3]
[null,null,53,"MANUALPNEUMATIC BYPASS VALVE FOR SOLENOID VALVE",null,null,null,"Yes",null,null,null,null,null,97]
[]
[null,"NOTE:","VTA : VENDOR TO ADVISE AT BIDDING STAGE    ",null,null,null,null,"VTC: VENDOR TO CONIFRM"]
[null,null,"(1) PMS: Piping material specification.\n\n(2) All material shall be suitable for minimum design metal temperature.\n\n(3) Shall be stated by vendor at quotation stage.\n\n(4) Manual Reset to be consider for all Emergency Shut off solenoids as per P&ID."]

{"sheet":"XV-2131B","index":26,"n_rows":71,"n_cols":21,"rows_kept":71,"cut":false,"hidden":false,"merged":[[70,2,71,10],[57,12,62,12],[61,1,67,1],[63,12,67,12],[67,3,67,6],[54,1,60,1],[24,1,26,1],[24,2,25,2],[24,3,25,3],[24,12,38,12],[45,12,52,12],[27,1,42,1],[43,1,53,1],[53,12,56,12],[11,2,11,4],[11,5,11,6],[11,7,11,13],[11,16,11,17],[12,1,23,1],[12,12,12,13],[13,12,13,13],[14,12,14,13],[15,12,15,13],[16,12,16,13],[17,12,17,13],[18,12,18,13],[19,12,19,13],[22,12,22,13],[23,12,23,13],[21,12,21,13],[9,1,9,17],[10,1,10,2],[10,3,10,4],[10,5,10,6],[10,7,10,13],[10,15,10,17],[8,1,8,4],[1,1,6,4],[1,5,4,12],[1,13,6,17],[5,5,6,12],[7,1,7,4],[7,13,8,13],[7,14,8,14],[7,15,8,15],[7,16,8,17],[12,2,12,11],[51,5,51,6],[51,7,51,9],[51,10,51,11],[30,7,30,9],[43,5,43,6],[43,7,43,9],[43,10,43,11],[49,5,49,6],[49,7,49,9],[49,10,49,11],[47,9,47,11],[24,7,25,8],[33,2,34,2],[33,3,34,3],[20,14,20,17],[21,14,21,17],[65,14,65,15],[66,14,66,15],[26,4,26,11],[24,9,25,11],[20,12,20,13],[25,16,25,17],[24,16,24,17],[29,14,29,15],[31,14,31,15],[39,12,44,12],[41,14,41,15]]}
[]
[null,"\n\n\n\n\nNISOC",null,null,null,"نگهداشت و افزایش تولید میدان نفتی بینک \nسطح‌الارض \n\nاحداث رديف تراكم گاز در ايستگاه جمع آوري بينك "]
[]
[]
[]
[null,null,null,null,null,"Data Sheets For ON/OFF & Shutdown Valves"]
[]
[null,"شماره پیمان:",null,null,null,"پروژه ","بسته کاری","صادرکننده","تسهیلات","رشته ","نوع مدرک ","سریال","نسخه"]
[null,"9038 – 073 - 053",null,null,null,"BK","GCS","PEDCO","120","IN","DT","0010",{"$f":"Notes!$AB$9","v":"D04"}]
[null,"On-Off Valve"]
[null,"TAG NO:",null,"XV-2131B",null,"P&ID NO :",null,"BK-GCS-PEDCO-120-PR-PI-0009-D09 (2 of 3)",null,null,null,null,null,null,"SERVICE:","2nd Stage Gas Compression Suction Drums"]
[null,"FLUID STATE:"," CLOSED DRAIN",null,null,"PHASE:",null,"LIQUID",null,null,null,null,null,null,"AREA CLASSIFICATION:",null,"Zone2, IIB, T4"]
[null,"SERVICE CONDITION","ITEM ",null,null,null,null,null,null,null,null,null,"UNITS",null,"Max Flow","Norm. Flow","Min. Flow","Shut-Off"]
[null,null,1,"FLOW RATE",null,null,null,null,null,null,null,null,"kg/h",null,"-",10000,"-","-"]
[null,null,2,"INLET PRESSURE",null,null,null,null,null,null,null,null,"bar(g)",null,"-",18.100000000000001,"-","-"]
[null,null,3,"OUTLET PRESSURE",null,null,null,null,null,null,null,null,"bar(g)",null,"-",18.100000000000001,"-","-"]
[null,null,4,"DIFFERENTIAL PRESSURE",null,null,null,null,null,null,null,null,"bar(g)",null,"-","-","-",30.3]
[null,null,5,"INLET TEMPERATURE",null,null,null,null,null,null,null,null,"°C",null,"-",59.88,"-","-"]
[null,null,6,"DENSITY ",null,null,null,null,null,null,null,null,"kg/m3",null,"-",981.1,"-","-"]
[null,null,7,"VISCOSITY ",null,null,null,null,null,null,null,null,"CP",null,"-",0.496,"-","-"]
[null,null,8,"DESIGN PRESSURE",null,null,null,null,null,null,null,null,"bar(g)",null,30.3]
[null,null,9,"DESIGN TEMPERATURE",null,null,null,null,null,null,null,null,"°C",null,155]
[null,null,10,"VAPOR PRESSURE Pv",null,null,null,null,null,null,null,null,"bar(a)",null,"-",3.23,"-","-"]
[null,null,11,"CRITICAL PRESSURE",null,null,null,null,null,null,null,null,"bar(a)",null,221.5,221.5,221.5,"-"]
[null,"LINE",12,"PIPE LINE SIZE & SCHEDULE","   IN","2\"","10S","CORROSION ALLOWANCE(mm)",null,0,null,null,"ACTUATOR",54," TYPE",null,"Single Acting, Spring Return "]
[null,null,null,null,"   OUT","2\"","10S",null,null,null,null,null,null,55,"SIZE",null,"VTA"]
[null,null,13,"LINE NO.","CDH-111-0023B-CS00-2\"-NP",null,null,null,null,null,null,null,null,56,"SPRING FAIL ACTION",null,"Fail to Close"]
[null,"VALVE BODY \n& \nBONNET",14,"TYPE",null,null,null,"Full Bore Ball Valve/Floating Type",null,null,null,null,null,57,"MAX ALLOWABLE PRESSURE",null,"VTA"]
[null,null,15,"SIZE ",null,null,null,"2\"",null,null,null,null,null,58,"MIN REQUIRES PRESSURE",null,"VTA"]
[null,null,16,"MAX PRESS./TEMP.",null,null,null,"As per PMS",null,null,null,null,null,59,"AVAILABLE AIR SUPPLY PRESSURE",null,"MAX/NOR/MIN: 10/7/3 bar-g"]
[null,null,17,"MFR. & MODEL",null,null,null,"Will be finalized later",null,null,null,null,null,60,"BENCH RANGE",null,"VTA"]
[null,null,18," BODY / BONNET MATL",null,null,null,"ASTM A351 GR.CF3M",null,null,null,null,null,61,"TRAVELING TIME",null,"5 S"]
[null,null,19,"LINER MATERIAL / ID",null,null,null,"VTA",null,null,null,null,null,62,"FUNCTION",null,"On/Off"]
[null,null,20,"END CONNECTION","IN",null,null,"2\"/300#",null,null,null,null,null,63,"LOCAL POSITION INDICATOR",null,"Required"]
[null,null,null,null,"OUT",null,null,"2\"/300#",null,null,null,null,null,64,"ACT. ORIENTATION",null,"VTA"]
[null,null,21,"FLG FACE FINISH",null,null,null,"RF",null,null,null,null,null,65,"HAND WHEEL TYPE",null,"Declutchable side mounted "]
[null,null,22,"END EXT./MATL.",null,null,null,"N/A",null,null,null,null,null,66,"ADJUSTABLE LIMIT STOP",null,"Yes"]
[null,null,23,"FLOW DIRECTION",null,null,null,"(Note 18 in Page 4)",null,null,null,null,null,67,"INPUT SIGNAL",null,"24VDC"]
[null,null,24,"TYPE OF BONNET",null,null,null,"Standard",null,null,null,null,null,68,"MFR. & MODEL",null,"Will be finalized later"]
[null,null,25,"LUBE & ISO VALVE",null,null,null,"No",null,null,null,null,"POSITIONER",69,"TYPE",null,"N/A"]
[null,null,26,"PACKING MATERIAL",null,"PACKING TYPE ",null,"RPTFE",null,null,"Standard",null,null,70,"MFR. & MODEL",null,"Will be finalized later"]
[null,null,27,"ENTRY DESIGN",null,null,null,"Top / Side Entry",null,null,null,null,null,71,"ON INCR SIGNAL OUTPUT INCR / DECR      ",null,"N/A"]
[null,null,28,"NACE REQUIREMENTNACE (MR-0175/ISO 15156)",null,null,null,"Yes",null,null,null,null,null,72,"GAUGES",null,"N/A"]
[null,"TRIM",29,"TRIM ","TYPE","MATERIAL",null,"VTA",null,null,"316 SS+RPTFE",null,null,73,"CAM CHARACTERISTIC",null,"N/A"]
[null,null,30,"SIZE ","RATED TRAVEL",null,null,"VTA",null,null,"VTA",null,null,74,"AIR CONNECTION",null,"N/A"]
[null,null,31,"CHARACTERISTICS",null,null,null,"On/Off",null,null,null,null,"LIMIT \nSWITCHES",75,"TAG NO. :",null,"XZSC-2131B / XZSO-2131B"]
[null,null,32,"BALANCED / UNBALANCED",null,null,null,"BALANCED",null,null,null,null,null,76," TYPE","QUANTITY","Magnetically operated ‘REED’ contacts ",2]
[null,null,33,"RATED  Cv","FL","XT",null,"VTA","VTA","VTA",null,null,null,77,"CONTACTS / RATING",null,"110V DC , 10A "]
[null,null,34,"PLUG / BALL / DISK MATERIAL",null,null,null,"316 SS",null,null,null,null,null,78,"ACTUATION POINT",null,"Fully Open/Close"]
[null,null,35,"SEAT ","TYPE","MATERIAL",null,"Soft Seat",null,null,"316 SS+RPTFE",null,null,79,"ENCLOSURE MATERIAL",null,"Die Cast Aluminum"]
[null,null,36,"CAGE / GUIDE MATERIAL",null,null,null,"VTA",null,null,null,null,null,80,"WEATHER PROTECTION",null,"IP-65"]
[null,null,37,"STEM","TYPE","MATERIAL",null,"Anti-Blow Out",null,null,"316 SS",null,null,81,"ELEC. CERTIFICATE","ELEC. CONNECTION","EEx \"d\" ,IIB T4","ISO M20 × 1.5"]
[null,null,38,"LEAKAGE CLASS",null,null,null,"ANSI Class VI",null,null,null,null,null,82,"MFR. & MODEL",null,"Will be finalized later"]
[null,null,39,"VALVE STEM EXTENSION REQUIREMENT",null,null,null,"No",null,null,null,null,"AIR SET",83,"SET PRESSURE",null,"Yes"]
[null,"SOLENOID VALVE  ",40,"TAG NO",null,null,null,"PSOV-2131B, ESOV-2131B",null,null,null,null,null,84,"PNEUMATIC CONNECTION",null,"1/4\" NPT"]
[null,null,41,"TYPE",null,null,null,"3 Way ",null,null,null,null,null,85,"GAUGES","FILTER","Required","Required"]
[null,null,42,"BODY MATERIAL",null,"WEATHER IP.",null,"AISI 316 S.S",null,null,"IP-65",null,null,86,"MFR. & MODEL",null,"Will be finalized later"]
[null,null,43,"ELE. CERTIFICATE",null,"ELE. CONNECTION",null,"EEx \"d\" ,IIB T4",null,null,"ISO M20 x 1.5",null,"TEST",87,"ANSI/FCI LEAKAGE CLASS",null,"Required"]
[null,null,44,"MANUAL RESET",null,null,null,"Yes",null,null,null,null,null,88,"HYDRO PRESSURE ",null,"Required"]
[null,null,45,"Power Supply",null,null,null,"24 VDC",null,null,null,null,null,89,"FUNCTIONAL TEST",null,"Required"]
[null,null,46,"Pnu. Connection",null,null,null,"1/4\" NPT ",null,null,null,null,null,90]
[null,"SPECIAL /\nACCESS.",47,"FUSIBLE LEAKAGE",null,null,null,"No",null,null,null,null,null,91]
[null,null,48,"BLOCK RELAY",null,null,null,"No",null,null,null,null,null,92]
[null,null,49,"QUICK EXHUST",null,null,null,"Yes",null,null,null,null,"FIRE PROOF DESIGN",93,"PASSIVE FIRE PROTECTION",null,"No"]
[null,null,50,"FILTER REGULATOR",null,null,null,"Yes",null,null,null,null,null,94,"API 6FA REQUIREMENTS",null,"Yes"]
[null,null,51,"VOLUME TANK",null,null,null,"No",null,null,null,null,null,95,"SIL REQUIREMENTS",null,"Yes"]
[null,null,52,"MECHANICAL POSITION INDICATOR",null,null,null,"Required",null,null,null,null,null,96,"PARTIAL STROKING VALVE TEST",null,"No",null,null,"ESD LEVEL: ",3]
[null,null,53,"MANUALPNEUMATIC BYPASS VALVE FOR SOLENOID VALVE",null,null,null,"Yes",null,null,null,null,null,97]
[]
[null,"NOTE:","VTA : VENDOR TO ADVISE AT BIDDING STAGE    ",null,null,null,null,"VTC: VENDOR TO CONIFRM"]
[null,null,"(1) PMS: Piping material specification.\n\n(2) All material shall be suitable for minimum design metal temperature.\n\n(3) Shall be stated by vendor at quotation stage.\n\n(4) Manual Reset to be consider for all Emergency Shut off solenoids as per P&ID."]

{"sheet":"XV-2131C","index":27,"n_rows":71,"n_cols":21,"rows_kept":71,"cut":false,"hidden":false,"merged":[[70,2,71,10],[57,12,62,12],[61,1,67,1],[63,12,67,12],[67,3,67,6],[54,1,60,1],[24,1,26,1],[24,2,25,2],[24,3,25,3],[24,12,38,12],[45,12,52,12],[27,1,42,1],[43,1,53,1],[53,12,56,12],[11,2,11,4],[11,5,11,6],[11,7,11,13],[11,16,11,17],[12,1,23,1],[12,12,12,13],[13,12,13,13],[14,12,14,13],[15,12,15,13],[16,12,16,13],[17,12,17,13],[18,12,18,13],[19,12,19,13],[22,12,22,13],[23,12,23,13],[21,12,21,13],[9,1,9,17],[10,1,10,2],[10,3,10,4],[10,5,10,6],[10,7,10,13],[10,15,10,17],[8,1,8,4],[1,1,6,4],[1,5,4,12],[1,13,6,17],[5,5,6,12],[7,1,7,4],[7,13,8,13],[7,14,8,14],[7,15,8,15],[7,16,8,17],[12,2,12,11],[51,5,51,6],[51,7,51,9],[51,10,51,11],[30,7,30,9],[43,5,43,6],[43,7,43,9],[43,10,43,11],[49,5,49,6],[49,7,49,9],[49,10,49,11],[47,9,47,11],[24,7,25,8],[33,2,34,2],[33,3,34,3],[20,14,20,17],[21,14,21,17],[65,14,65,15],[66,14,66,15],[26,4,26,11],[24,9,25,11],[20,12,20,13],[25,16,25,17],[24,16,24,17],[29,14,29,15],[31,14,31,15],[39,12,44,12],[41,14,41,15]]}
[]
[null,"\n\n\n\n\nNISOC",null,null,null,"نگهداشت و افزایش تولید میدان نفتی بینک \nسطح‌الارض \n\nاحداث رديف تراكم گاز در ايستگاه جمع آوري بينك "]
[]
[]
[]
[null,null,null,null,null,"Data Sheets For ON/OFF & Shutdown Valves"]
[]
[null,"شماره پیمان:",null,null,null,"پروژه ","بسته کاری","صادرکننده","تسهیلات","رشته ","نوع مدرک ","سریال","نسخه"]
[null,"9038 – 073 - 053",null,null,null,"BK","GCS","PEDCO","120","IN","DT","0010",{"$f":"Notes!$AB$9","v":"D04"}]
[null,"On-Off Valve"]
[null,"TAG NO:",null,"XV-2131C",null,"P&ID NO :",null,"BK-GCS-PEDCO-120-PR-PI-0009-D09 (3 of 3)",null,null,null,null,null,null,"SERVICE:","2nd Stage Gas Compression Suction Drums"]
[null,"FLUID STATE:"," CLOSED DRAIN",null,null,"PHASE:",null,"LIQUID",null,null,null,null,null,null,"AREA CLASSIFICATION:",null,"Zone2, IIB, T4"]
[null,"SERVICE CONDITION","ITEM ",null,null,null,null,null,null,null,null,null,"UNITS",null,"Max Flow","Norm. Flow","Min. Flow","Shut-Off"]
[null,null,1,"FLOW RATE",null,null,null,null,null,null,null,null,"kg/h",null,"-",10000,"-","-"]
[null,null,2,"INLET PRESSURE",null,null,null,null,null,null,null,null,"bar(g)",null,"-",18.100000000000001,"-","-"]
[null,null,3,"OUTLET PRESSURE",null,null,null,null,null,null,null,null,"bar(g)",null,"-",18.100000000000001,"-","-"]
[null,null,4,"DIFFERENTIAL PRESSURE",null,null,null,null,null,null,null,null,"bar(g)",null,"-","-","-",30.3]
[null,null,5,"INLET TEMPERATURE",null,null,null,null,null,null,null,null,"°C",null,"-",59.88,"-","-"]
[null,null,6,"DENSITY ",null,null,null,null,null,null,null,null,"kg/m3",null,"-",981.1,"-","-"]
[null,null,7,"VISCOSITY ",null,null,null,null,null,null,null,null,"CP",null,"-",0.496,"-","-"]
[null,null,8,"DESIGN PRESSURE",null,null,null,null,null,null,null,null,"bar(g)",null,30.3]
[null,null,9,"DESIGN TEMPERATURE",null,null,null,null,null,null,null,null,"°C",null,155]
[null,null,10,"VAPOR PRESSURE Pv",null,null,null,null,null,null,null,null,"bar(a)",null,"-",3.23,"-","-"]
[null,null,11,"CRITICAL PRESSURE",null,null,null,null,null,null,null,null,"bar(a)",null,221.5,221.5,221.5,"-"]
[null,"LINE",12,"PIPE LINE SIZE & SCHEDULE","   IN","2\"","10S","CORROSION ALLOWANCE(mm)",null,0,null,null,"ACTUATOR",54," TYPE",null,"Single Acting, Spring Return "]
[null,null,null,null,"   OUT","2\"","10S",null,null,null,null,null,null,55,"SIZE",null,"VTA"]
[null,null,13,"LINE NO.","CDH-111-0023C-CS00-2\"-NP",null,null,null,null,null,null,null,null,56,"SPRING FAIL ACTION",null,"Fail to Close"]
[null,"VALVE BODY \n& \nBONNET",14,"TYPE",null,null,null,"Full Bore Ball Valve/Floating Type",null,null,null,null,null,57,"MAX ALLOWABLE PRESSURE",null,"VTA"]
[null,null,15,"SIZE ",null,null,null,"2\"",null,null,null,null,null,58,"MIN REQUIRES PRESSURE",null,"VTA"]
[null,null,16,"MAX PRESS./TEMP.",null,null,null,"As per PMS",null,null,null,null,null,59,"AVAILABLE AIR SUPPLY PRESSURE",null,"MAX/NOR/MIN: 10/7/3 bar-g"]
[null,null,17,"MFR. & MODEL",null,null,null,"Will be finalized later",null,null,null,null,null,60,"BENCH RANGE",null,"VTA"]
[null,null,18," BODY / BONNET MATL",null,null,null,"ASTM A351 GR.CF3M",null,null,null,null,null,61,"TRAVELING TIME",null,"5 S"]
[null,null,19,"LINER MATERIAL / ID",null,null,null,"VTA",null,null,null,null,null,62,"FUNCTION",null,"On/Off"]
[null,null,20,"END CONNECTION","IN",null,null,"2\"/300#",null,null,null,null,null,63,"LOCAL POSITION INDICATOR",null,"Required"]
[null,null,null,null,"OUT",null,null,"2\"/300#",null,null,null,null,null,64,"ACT. ORIENTATION",null,"VTA"]
[null,null,21,"FLG FACE FINISH",null,null,null,"RF",null,null,null,null,null,65,"HAND WHEEL TYPE",null,"Declutchable side mounted "]
[null,null,22,"END EXT./MATL.",null,null,null,"N/A",null,null,null,null,null,66,"ADJUSTABLE LIMIT STOP",null,"Yes"]
[null,null,23,"FLOW DIRECTION",null,null,null,"(Note 18 in Page 4)",null,null,null,null,null,67,"INPUT SIGNAL",null,"24VDC"]
[null,null,24,"TYPE OF BONNET",null,null,null,"Standard",null,null,null,null,null,68,"MFR. & MODEL",null,"Will be finalized later"]
[null,null,25,"LUBE & ISO VALVE",null,null,null,"No",null,null,null,null,"POSITIONER",69,"TYPE",null,"N/A"]
[null,null,26,"PACKING MATERIAL",null,"PACKING TYPE ",null,"RPTFE",null,null,"Standard",null,null,70,"MFR. & MODEL",null,"Will be finalized later"]
[null,null,27,"ENTRY DESIGN",null,null,null,"Top / Side Entry",null,null,null,null,null,71,"ON INCR SIGNAL OUTPUT INCR / DECR      ",null,"N/A"]
[null,null,28,"NACE REQUIREMENTNACE (MR-0175/ISO 15156)",null,null,null,"Yes",null,null,null,null,null,72,"GAUGES",null,"N/A"]
[null,"TRIM",29,"TRIM ","TYPE","MATERIAL",null,"VTA",null,null,"316 SS+RPTFE",null,null,73,"CAM CHARACTERISTIC",null,"N/A"]
[null,null,30,"SIZE ","RATED TRAVEL",null,null,"VTA",null,null,"VTA",null,null,74,"AIR CONNECTION",null,"N/A"]
[null,null,31,"CHARACTERISTICS",null,null,null,"On/Off",null,null,null,null,"LIMIT \nSWITCHES",75,"TAG NO. :",null,"XZSC-2131C / XZSO-2131C"]
[null,null,32,"BALANCED / UNBALANCED",null,null,null,"BALANCED",null,null,null,null,null,76," TYPE","QUANTITY","Magnetically operated ‘REED’ contacts ",2]
[null,null,33,"RATED  Cv","FL","XT",null,"VTA","VTA","VTA",null,null,null,77,"CONTACTS / RATING",null,"110V DC , 10A "]
[null,null,34,"PLUG / BALL / DISK MATERIAL",null,null,null,"316 SS",null,null,null,null,null,78,"ACTUATION POINT",null,"Fully Open/Close"]
[null,null,35,"SEAT ","TYPE","MATERIAL",null,"Soft Seat",null,null,"316 SS+RPTFE",null,null,79,"ENCLOSURE MATERIAL",null,"Die Cast Aluminum"]
[null,null,36,"CAGE / GUIDE MATERIAL",null,null,null,"VTA",null,null,null,null,null,80,"WEATHER PROTECTION",null,"IP-65"]
[null,null,37,"STEM","TYPE","MATERIAL",null,"Anti-Blow Out",null,null,"316 SS",null,null,81,"ELEC. CERTIFICATE","ELEC. CONNECTION","EEx \"d\" ,IIB T4","ISO M20 × 1.5"]
[null,null,38,"LEAKAGE CLASS",null,null,null,"ANSI Class VI",null,null,null,null,null,82,"MFR. & MODEL",null,"Will be finalized later"]
[null,null,39,"VALVE STEM EXTENSION REQUIREMENT",null,null,null,"No",null,null,null,null,"AIR SET",83,"SET PRESSURE",null,"Yes"]
[null,"SOLENOID VALVE  ",40,"TAG NO",null,null,null,"PSOV-2131C, ESOV-2131C",null,null,null,null,null,84,"PNEUMATIC CONNECTION",null,"1/4\" NPT"]
[null,null,41,"TYPE",null,null,null,"3 Way ",null,null,null,null,null,85,"GAUGES","FILTER","Required","Required"]
[null,null,42,"BODY MATERIAL",null,"WEATHER IP.",null,"AISI 316 S.S",null,null,"IP-65",null,null,86,"MFR. & MODEL",null,"Will be finalized later"]
[null,null,43,"ELE. CERTIFICATE",null,"ELE. CONNECTION",null,"EEx \"d\" ,IIB T4",null,null,"ISO M20 x 1.5",null,"TEST",87,"ANSI/FCI LEAKAGE CLASS",null,"Required"]
[null,null,44,"MANUAL RESET",null,null,null,"Yes",null,null,null,null,null,88,"HYDRO PRESSURE ",null,"Required"]
[null,null,45,"Power Supply",null,null,null,"24 VDC",null,null,null,null,null,89,"FUNCTIONAL TEST",null,"Required"]
[null,null,46,"Pnu. Connection",null,null,null,"1/4\" NPT ",null,null,null,null,null,90]
[null,"SPECIAL /\nACCESS.",47,"FUSIBLE LEAKAGE",null,null,null,"No",null,null,null,null,null,91]
[null,null,48,"BLOCK RELAY",null,null,null,"No",null,null,null,null,null,92]
[null,null,49,"QUICK EXHUST",null,null,null,"Yes",null,null,null,null,"FIRE PROOF DESIGN",93,"PASSIVE FIRE PROTECTION",null,"No"]
[null,null,50,"FILTER REGULATOR",null,null,null,"Yes",null,null,null,null,null,94,"API 6FA REQUIREMENTS",null,"Yes"]
[null,null,51,"VOLUME TANK",null,null,null,"No",null,null,null,null,null,95,"SIL REQUIREMENTS",null,"Yes"]
[null,null,52,"MECHANICAL POSITION INDICATOR",null,null,null,"Required",null,null,null,null,null,96,"PARTIAL STROKING VALVE TEST",null,"No",null,null,"ESD LEVEL: ",3]
[null,null,53,"MANUALPNEUMATIC BYPASS VALVE FOR SOLENOID VALVE",null,null,null,"Yes",null,null,null,null,null,97]
[]
[null,"NOTE:","VTA : VENDOR TO ADVISE AT BIDDING STAGE    ",null,null,null,null,"VTC: VENDOR TO CONIFRM"]
[null,null,"(1) PMS: Piping material specification.\n\n(2) All material shall be suitable for minimum design metal temperature.\n\n(3) Shall be stated by vendor at quotation stage.\n\n(4) Manual Reset to be consider for all Emergency Shut off solenoids as per P&ID."]

{"sheet":"XV-2133A","index":28,"n_rows":71,"n_cols":21,"rows_kept":71,"cut":false,"hidden":false,"merged":[[70,2,71,10],[57,12,62,12],[61,1,67,1],[63,12,67,12],[67,3,67,6],[54,1,60,1],[24,1,26,1],[24,2,25,2],[24,3,25,3],[24,12,38,12],[45,12,52,12],[27,1,42,1],[43,1,53,1],[53,12,56,12],[26,4,26,11],[24,9,25,11],[11,2,11,4],[11,5,11,6],[11,7,11,13],[11,16,11,17],[12,1,23,1],[12,12,12,13],[13,12,13,13],[14,12,14,13],[15,12,15,13],[16,12,16,13],[17,12,17,13],[18,12,18,13],[19,12,19,13],[22,12,22,13],[23,12,23,13],[21,12,21,13],[9,1,9,17],[10,1,10,2],[10,3,10,4],[10,5,10,6],[10,7,10,13],[10,15,10,17],[8,1,8,4],[1,1,6,4],[1,5,4,12],[1,13,6,17],[5,5,6,12],[7,1,7,4],[7,13,8,13],[7,14,8,14],[7,15,8,15],[7,16,8,17],[12,2,12,11],[51,5,51,6],[51,7,51,9],[51,10,51,11],[43,5,43,6],[43,7,43,9],[43,10,43,11],[49,5,49,6],[49,7,49,9],[49,10,49,11],[47,9,47,11],[24,7,25,8],[33,2,34,2],[33,3,34,3],[20,12,20,13],[20,14,20,17],[21,14,21,17],[65,14,65,15],[66,14,66,15],[25,16,25,17],[24,16,24,17],[29,14,29,15],[31,14,31,15],[39,12,44,12],[41,14,41,15]]}
[]
[null,"\n\n\n\n\nNISOC",null,null,null,"نگهداشت و افزایش تولید میدان نفتی بینک \nسطح‌الارض \n\nاحداث رديف تراكم گاز در ايستگاه جمع آوري بينك "]
[]
[]
[]
[null,null,null,null,null,"Data Sheets For ON/OFF & Shutdown Valves"]
[]
[null,"شماره پیمان:",null,null,null,"پروژه ","بسته کاری","صادرکننده","تسهیلات","رشته ","نوع مدرک ","سریال","نسخه"]
[null,"9038 – 073 - 053",null,null,null,"BK","GCS","PEDCO","120","IN","DT","0010",{"$f":"Notes!$AB$9","v":"D04"}]
[null,"On-Off Valve"]
[null,"TAG NO:",null,"XV-2133A",null,"P&ID NO :",null,"BK-GCS-PEDCO-120-PR-PI-0011-D09 (1 of 3)",null,null,null,null,null,null,"SERVICE:","2nd Stage Gas Compression Air Coolers"]
[null,"FLUID STATE:","PROCESS GAS",null,null,"PHASE:",null,"GAS",null,null,null,null,null,null,"AREA CLASSIFICATION:",null,"Zone2, IIB, T4"]
[null,"SERVICE CONDITION","ITEM ",null,null,null,null,null,null,null,null,null,"UNITS",null,"Max Flow","Norm. Flow","Min. Flow","Shut-Off"]
[null,null,1,"FLOW RATE",null,null,null,null,null,null,null,null,"kg/h",null,{"$f":"P14*1.1","v":9530.4000000000015},8664,{"$f":"P14*0.35","v":3032.3999999999996},"-"]
[null,null,2,"INLET PRESSURE",null,null,null,null,null,null,null,null,"bar(g)",null,54.1,54.1,54.1,"-"]
[null,null,3,"OUTLET PRESSURE",null,null,null,null,null,null,null,null,"bar(g)",null,54.1,54.1,54.1,"-"]
[null,null,4,"DIFFERENTIAL PRESSURE",null,null,null,null,null,null,null,null,"bar(g)",null,"-","-","-",62.4]
[null,null,5,"INLET TEMPERATURE",null,null,null,null,null,null,null,null,"°C",null,"-",60,"-","-"]
[null,null,6,"DENSITY ",null,null,null,null,null,null,null,null,"kg/m3",null,"49.41 ~ 59.63","49.41 ~ 59.63","49.41 ~ 59.63","-"]
[null,null,7,"VISCOSITY ",null,null,null,null,null,null,null,null,"CP",null,1.4E-2,1.4E-2,1.4E-2,"-",null,null,1.39090217970812E-2]
[null,null,8,"DESIGN PRESSURE",null,null,null,null,null,null,null,null,"bar(g)",null,62.4]
[null,null,9,"DESIGN TEMPERATURE",null,null,null,null,null,null,null,null,"°C",null,175]
[null,null,10,"VAPOR PRESSURE Pv",null,null,null,null,null,null,null,null,"bar(a)",null,"-","-","-","-"]
[null,null,11,"CRITICAL PRESSURE",null,null,null,null,null,null,null,null,"bar(a)",null,94.66,94.66,94.66,"-"]
[null,"LINE",12,"PIPE LINE SIZE & SCHEDULE","   IN","6\"","40S","CORROSION ALLOWANCE(mm)",null,0,null,null,"ACTUATOR",54," TYPE",null,"Single Acting, Spring Return "]
[null,null,null,null,"   OUT","6\"","40S",null,null,null,null,null,null,55,"SIZE",null,"VTA"]
[null,null,13,"LINE NO.","GAS-111-0055A-FS00-6\"-IS",null,null,null,null,null,null,null,null,56,"SPRING FAIL ACTION",null,"Fail to Close"]
[null,"VALVE BODY \n& \nBONNET",14,"TYPE",null,null,null,"Full Bore Ball Valve/Trunnion Mounted",null,null,null,null,null,57,"MAX ALLOWABLE PRESSURE",null,"VTA"]
[null,null,15,"SIZE ",null,null,null,"6\"",null,null,null,null,null,58,"MIN REQUIRES PRESSURE",null,"VTA"]
[null,null,16,"MAX PRESS./TEMP.",null,null,null,"As per PMS",null,null,null,null,null,59,"AVAILABLE AIR SUPPLY PRESSURE",null,"MAX/NOR/MIN: 10/7/3 bar-g"]
[null,null,17,"MFR. & MODEL",null,null,null,"Will be finalized later",null,null,null,null,null,60,"BENCH RANGE",null,"VTA"]
[null,null,18," BODY / BONNET MATL",null,null,null,"ASTM A351 GR.CF3M",null,null,null,null,null,61,"TRAVELING TIME",null,"7 S"]
[null,null,19,"LINER MATERIAL / ID",null,null,null,"VTA",null,null,null,null,null,62,"FUNCTION",null,"On/Off"]
[null,null,20,"END CONNECTION","IN",null,null,"6\"/600#",null,null,null,null,null,63,"LOCAL POSITION INDICATOR",null,"Required"]
[null,null,null,null,"OUT",null,null,"6\"/600#",null,null,null,null,null,64,"ACT. ORIENTATION",null,"VTA"]
[null,null,21,"FLG FACE FINISH",null,null,null,"RF",null,null,null,null,null,65,"HAND WHEEL TYPE",null,"Declutchable side mounted "]
[null,null,22,"END EXT./MATL.",null,null,null,"N/A",null,null,null,null,null,66,"ADJUSTABLE LIMIT STOP",null,"Yes"]
[null,null,23,"FLOW DIRECTION",null,null,null,"(Note 18 in Page 4)",null,null,null,null,null,67,"INPUT SIGNAL",null,"24VDC"]
[null,null,24,"TYPE OF BONNET",null,null,null,"Standard",null,null,null,null,null,68,"MFR. & MODEL",null,"Will be finalized later"]
[null,null,25,"LUBE & ISO VALVE",null,null,null,"No",null,null,null,null,"POSITIONER",69,"TYPE",null,"N/A"]
[null,null,26,"PACKING MATERIAL",null,"PACKING TYPE ",null,"RPTFE",null,null,"Standard",null,null,70,"MFR. & MODEL",null,"Will be finalized later"]
[null,null,27,"ENTRY DESIGN",null,null,null,"Top / Side Entry",null,null,null,null,null,71,"ON INCR SIGNAL OUTPUT INCR / DECR      ",null,"N/A"]
[null,null,28,"NACE REQUIREMENTNACE (MR-0175/ISO 15156)",null,null,null,"Yes",null,null,null,null,null,72,"GAUGES",null,"N/A"]
[null,"TRIM",29,"TRIM ","TYPE","MATERIAL",null,"VTA",null,null,"316 SS+RPTFE",null,null,73,"CAM CHARACTERISTIC",null,"N/A"]
[null,null,30,"SIZE ","RATED TRAVEL",null,null,"VTA",null,null,"VTA",null,null,74,"AIR CONNECTION",null,"N/A"]
[null,null,31,"CHARACTERISTICS",null,null,null,"On/Off",null,null,null,null,"LIMIT \nSWITCHES",75,"TAG NO. :",null,"XZSC-2133A / XZSO-2133A"]
[null,null,32,"BALANCED / UNBALANCED",null,null,null,"BALANCED",null,null,null,null,null,76," TYPE","QUANTITY","Magnetically operated ‘REED’ contacts ",2]
[null,null,33,"RATED  Cv","FL","XT",null,"VTA","VTA","VTA",null,null,null,77,"CONTACTS / RATING",null,"110V DC , 10A "]
[null,null,34,"PLUG / BALL / DISK MATERIAL",null,null,null,"316 SS",null,null,null,null,null,78,"ACTUATION POINT",null,"Fully Open/Close"]
[null,null,35,"SEAT ","TYPE","MATERIAL",null,"Soft Seat",null,null,"316 SS+RPTFE",null,null,79,"ENCLOSURE MATERIAL",null,"Die Cast Aluminum"]
[null,null,36,"CAGE / GUIDE MATERIAL",null,null,null,"VTA",null,null,null,null,null,80,"WEATHER PROTECTION",null,"IP-65"]
[null,null,37,"STEM","TYPE","MATERIAL",null,"Anti-Blow Out",null,null,"316 SS",null,null,81,"ELEC. CERTIFICATE","ELEC. CONNECTION","EEx \"d\" ,IIB T4","ISO M20 × 1.5"]
[null,null,38,"LEAKAGE CLASS",null,null,null,"ANSI Class VI",null,null,null,null,null,82,"MFR. & MODEL",null,"Will be finalized later"]
[null,null,39,"VALVE STEM EXTENSION REQUIREMENT",null,null,null,"No",null,null,null,null,"AIR SET",83,"SET PRESSURE",null,"Yes"]
[null,"SOLENOID VALVE  ",40,"TAG NO",null,null,null,"PSOV-2133A, ESOV-2133A",null,null,null,null,null,84,"PNEUMATIC CONNECTION",null,"1/4\" NPT"]
[null,null,41,"TYPE",null,null,null,"3 Way ",null,null,null,null,null,85,"GAUGES","FILTER","Required","Required"]
[null,null,42,"BODY MATERIAL",null,"WEATHER IP.",null,"AISI 316 S.S",null,null,"IP-65",null,null,86,"MFR. & MODEL",null,"Will be finalized later"]
[null,null,43,"ELE. CERTIFICATE",null,"ELE. CONNECTION",null,"EEx \"d\" ,IIB T4",null,null,"ISO M20 x 1.5",null,"TEST",87,"ANSI/FCI LEAKAGE CLASS",null,"Required"]
[null,null,44,"MANUAL RESET",null,null,null,"Yes",null,null,null,null,null,88,"HYDRO PRESSURE ",null,"Required"]
[null,null,45,"Power Supply",null,null,null,"24 VDC",null,null,null,null,null,89,"FUNCTIONAL TEST",null,"Required"]
[null,null,46,"Pnu. Connection",null,null,null,"1/4\" NPT ",null,null,null,null,null,90]
[null,"SPECIAL /\nACCESS.",47,"FUSIBLE LEAKAGE",null,null,null,"No",null,null,null,null,null,91]
[null,null,48,"BLOCK RELAY",null,null,null,"No",null,null,null,null,null,92]
[null,null,49,"QUICK EXHUST",null,null,null,"Yes",null,null,null,null,"FIRE PROOF DESIGN",93,"PASSIVE FIRE PROTECTION",null,"No"]
[null,null,50,"FILTER REGULATOR",null,null,null,"Yes",null,null,null,null,null,94,"API 6FA REQUIREMENTS",null,"Yes"]
[null,null,51,"VOLUME TANK",null,null,null,"No",null,null,null,null,null,95,"SIL REQUIREMENTS",null,"Yes"]
[null,null,52,"MECHANICAL POSITION INDICATOR",null,null,null,"Required",null,null,null,null,null,96,"PARTIAL STROKING VALVE TEST",null,"No",null,null,"ESD LEVEL: ",2]
[null,null,53,"MANUALPNEUMATIC BYPASS VALVE FOR SOLENOID VALVE",null,null,null,"Yes",null,null,null,null,null,97]
[]
[null,"NOTE:","VTA : VENDOR TO ADVISE AT BIDDING STAGE    ",null,null,null,null,"VTC: VENDOR TO CONIFRM"]
[null,null,"(1) PMS: Piping material specification.\n\n(2) All material shall be suitable for minimum design metal temperature.\n\n(3) Shall be stated by vendor at quotation stage.\n\n(4) Manual Reset to be consider for all Emergency Shut off solenoids as per P&ID."]

{"sheet":"XV-2133B","index":29,"n_rows":71,"n_cols":21,"rows_kept":71,"cut":false,"hidden":false,"merged":[[70,2,71,10],[57,12,62,12],[61,1,67,1],[63,12,67,12],[67,3,67,6],[54,1,60,1],[24,1,26,1],[24,2,25,2],[24,3,25,3],[24,12,38,12],[45,12,52,12],[27,1,42,1],[43,1,53,1],[53,12,56,12],[26,4,26,11],[24,9,25,11],[11,2,11,4],[11,5,11,6],[11,7,11,13],[11,16,11,17],[12,1,23,1],[12,12,12,13],[13,12,13,13],[14,12,14,13],[15,12,15,13],[16,12,16,13],[17,12,17,13],[18,12,18,13],[19,12,19,13],[22,12,22,13],[23,12,23,13],[21,12,21,13],[9,1,9,17],[10,1,10,2],[10,3,10,4],[10,5,10,6],[10,7,10,13],[10,15,10,17],[8,1,8,4],[1,1,6,4],[1,5,4,12],[1,13,6,17],[5,5,6,12],[7,1,7,4],[7,13,8,13],[7,14,8,14],[7,15,8,15],[7,16,8,17],[12,2,12,11],[51,5,51,6],[51,7,51,9],[51,10,51,11],[43,5,43,6],[43,7,43,9],[43,10,43,11],[49,5,49,6],[49,7,49,9],[49,10,49,11],[47,9,47,11],[24,7,25,8],[33,2,34,2],[33,3,34,3],[20,12,20,13],[20,14,20,17],[21,14,21,17],[65,14,65,15],[66,14,66,15],[25,16,25,17],[24,16,24,17],[29,14,29,15],[31,14,31,15],[39,12,44,12],[41,14,41,15]]}
[]
[null,"\n\n\n\n\nNISOC",null,null,null,"نگهداشت و افزایش تولید میدان نفتی بینک \nسطح‌الارض \n\nاحداث رديف تراكم گاز در ايستگاه جمع آوري بينك "]
[]
[]
[]
[null,null,null,null,null,"Data Sheets For ON/OFF & Shutdown Valves"]
[]
[null,"شماره پیمان:",null,null,null,"پروژه ","بسته کاری","صادرکننده","تسهیلات","رشته ","نوع مدرک ","سریال","نسخه"]
[null,"9038 – 073 - 053",null,null,null,"BK","GCS","PEDCO","120","IN","DT","0010",{"$f":"Notes!$AB$9","v":"D04"}]
[null,"On-Off Valve"]
[null,"TAG NO:",null,"XV-2133B",null,"P&ID NO :",null,"BK-GCS-PEDCO-120-PR-PI-0011-D09 (2 of 3)",null,null,null,null,null,null,"SERVICE:","2nd Stage Gas Compression Air Coolers"]
[null,"FLUID STATE:","PROCESS GAS",null,null,"PHASE:",null,"GAS",null,null,null,null,null,null,"AREA CLASSIFICATION:",null,"Zone2, IIB, T4"]
[null,"SERVICE CONDITION","ITEM ",null,null,null,null,null,null,null,null,null,"UNITS",null,"Max Flow","Norm. Flow","Min. Flow","Shut-Off"]
[null,null,1,"FLOW RATE",null,null,null,null,null,null,null,null,"kg/h",null,{"$f":"P14*1.1","v":9530.4000000000015},8664,{"$f":"P14*0.35","v":3032.3999999999996},"-"]
[null,null,2,"INLET PRESSURE",null,null,null,null,null,null,null,null,"bar(g)",null,54.1,54.1,54.1,"-"]
[null,null,3,"OUTLET PRESSURE",null,null,null,null,null,null,null,null,"bar(g)",null,54.1,54.1,54.1,"-"]
[null,null,4,"DIFFERENTIAL PRESSURE",null,null,null,null,null,null,null,null,"bar(g)",null,"-","-","-",62.4]
[null,null,5,"INLET TEMPERATURE",null,null,null,null,null,null,null,null,"°C",null,"-",60,"-","-"]
[null,null,6,"DENSITY ",null,null,null,null,null,null,null,null,"kg/m3",null,"49.41 ~ 59.63","49.41 ~ 59.63","49.41 ~ 59.63","-"]
[null,null,7,"VISCOSITY ",null,null,null,null,null,null,null,null,"CP",null,1.4E-2,1.4E-2,1.4E-2,"-"]
[null,null,8,"DESIGN PRESSURE",null,null,null,null,null,null,null,null,"bar(g)",null,62.4]
[null,null,9,"DESIGN TEMPERATURE",null,null,null,null,null,null,null,null,"°C",null,175]
[null,null,10,"VAPOR PRESSURE Pv",null,null,null,null,null,null,null,null,"bar(a)",null,"-","-","-","-"]
[null,null,11,"CRITICAL PRESSURE",null,null,null,null,null,null,null,null,"bar(a)",null,94.66,94.66,94.66,"-"]
[null,"LINE",12,"PIPE LINE SIZE & SCHEDULE","   IN","6\"","40S","CORROSION ALLOWANCE(mm)",null,0,null,null,"ACTUATOR",54," TYPE",null,"Single Acting, Spring Return "]
[null,null,null,null,"   OUT","6\"","40S",null,null,null,null,null,null,55,"SIZE",null,"VTA"]
[null,null,13,"LINE NO.","GAS-111-0055B-FS00-6\"-IS",null,null,null,null,null,null,null,null,56,"SPRING FAIL ACTION",null,"Fail to Close"]
[null,"VALVE BODY \n& \nBONNET",14,"TYPE",null,null,null,"Full Bore Ball Valve/Trunnion Mounted",null,null,null,null,null,57,"MAX ALLOWABLE PRESSURE",null,"VTA"]
[null,null,15,"SIZE ",null,null,null,"6\"",null,null,null,null,null,58,"MIN REQUIRES PRESSURE",null,"VTA"]
[null,null,16,"MAX PRESS./TEMP.",null,null,null,"As per PMS",null,null,null,null,null,59,"AVAILABLE AIR SUPPLY PRESSURE",null,"MAX/NOR/MIN: 10/7/3 bar-g"]
[null,null,17,"MFR. & MODEL",null,null,null,"Will be finalized later",null,null,null,null,null,60,"BENCH RANGE",null,"VTA"]
[null,null,18," BODY / BONNET MATL",null,null,null,"ASTM A351 GR.CF3M",null,null,null,null,null,61,"TRAVELING TIME",null,"7 S"]
[null,null,19,"LINER MATERIAL / ID",null,null,null,"VTA",null,null,null,null,null,62,"FUNCTION",null,"On/Off"]
[null,null,20,"END CONNECTION","IN",null,null,"6\"/600#",null,null,null,null,null,63,"LOCAL POSITION INDICATOR",null,"Required"]
[null,null,null,null,"OUT",null,null,"6\"/600#",null,null,null,null,null,64,"ACT. ORIENTATION",null,"VTA"]
[null,null,21,"FLG FACE FINISH",null,null,null,"RF",null,null,null,null,null,65,"HAND WHEEL TYPE",null,"Declutchable side mounted "]
[null,null,22,"END EXT./MATL.",null,null,null,"N/A",null,null,null,null,null,66,"ADJUSTABLE LIMIT STOP",null,"Yes"]
[null,null,23,"FLOW DIRECTION",null,null,null,"(Note 18 in Page 4)",null,null,null,null,null,67,"INPUT SIGNAL",null,"24VDC"]
[null,null,24,"TYPE OF BONNET",null,null,null,"Standard",null,null,null,null,null,68,"MFR. & MODEL",null,"Will be finalized later"]
[null,null,25,"LUBE & ISO VALVE",null,null,null,"No",null,null,null,null,"POSITIONER",69,"TYPE",null,"N/A"]
[null,null,26,"PACKING MATERIAL",null,"PACKING TYPE ",null,"RPTFE",null,null,"Standard",null,null,70,"MFR. & MODEL",null,"Will be finalized later"]
[null,null,27,"ENTRY DESIGN",null,null,null,"Top / Side Entry",null,null,null,null,null,71,"ON INCR SIGNAL OUTPUT INCR / DECR      ",null,"N/A"]
[null,null,28,"NACE REQUIREMENTNACE (MR-0175/ISO 15156)",null,null,null,"Yes",null,null,null,null,null,72,"GAUGES",null,"N/A"]
[null,"TRIM",29,"TRIM ","TYPE","MATERIAL",null,"VTA",null,null,"316 SS+RPTFE",null,null,73,"CAM CHARACTERISTIC",null,"N/A"]
[null,null,30,"SIZE ","RATED TRAVEL",null,null,"VTA",null,null,"VTA",null,null,74,"AIR CONNECTION",null,"N/A"]
[null,null,31,"CHARACTERISTICS",null,null,null,"On/Off",null,null,null,null,"LIMIT \nSWITCHES",75,"TAG NO. :",null,"XZSC-2133B / XZSO-2133B"]
[null,null,32,"BALANCED / UNBALANCED",null,null,null,"BALANCED",null,null,null,null,null,76," TYPE","QUANTITY","Magnetically operated ‘REED’ contacts ",2]
[null,null,33,"RATED  Cv","FL","XT",null,"VTA","VTA","VTA",null,null,null,77,"CONTACTS / RATING",null,"110V DC , 10A "]
[null,null,34,"PLUG / BALL / DISK MATERIAL",null,null,null,"316 SS",null,null,null,null,null,78,"ACTUATION POINT",null,"Fully Open/Close"]
[null,null,35,"SEAT ","TYPE","MATERIAL",null,"Soft Seat",null,null,"316 SS+RPTFE",null,null,79,"ENCLOSURE MATERIAL",null,"Die Cast Aluminum"]
[null,null,36,"CAGE / GUIDE MATERIAL",null,null,null,"VTA",null,null,null,null,null,80,"WEATHER PROTECTION",null,"IP-65"]
[null,null,37,"STEM","TYPE","MATERIAL",null,"Anti-Blow Out",null,null,"316 SS",null,null,81,"ELEC. CERTIFICATE","ELEC. CONNECTION","EEx \"d\" ,IIB T4","ISO M20 × 1.5"]
[null,null,38,"LEAKAGE CLASS",null,null,null,"ANSI Class VI",null,null,null,null,null,82,"MFR. & MODEL",null,"Will be finalized later"]
[null,null,39,"VALVE STEM EXTENSION REQUIREMENT",null,null,null,"No",null,null,null,null,"AIR SET",83,"SET PRESSURE",null,"Yes"]
[null,"SOLENOID VALVE  ",40,"TAG NO",null,null,null,"PSOV-2133B, ESOV-2133B",null,null,null,null,null,84,"PNEUMATIC CONNECTION",null,"1/4\" NPT"]
[null,null,41,"TYPE",null,null,null,"3 Way ",null,null,null,null,null,85,"GAUGES","FILTER","Required","Required"]
[null,null,42,"BODY MATERIAL",null,"WEATHER IP.",null,"AISI 316 S.S",null,null,"IP-65",null,null,86,"MFR. & MODEL",null,"Will be finalized later"]
[null,null,43,"ELE. CERTIFICATE",null,"ELE. CONNECTION",null,"EEx \"d\" ,IIB T4",null,null,"ISO M20 x 1.5",null,"TEST",87,"ANSI/FCI LEAKAGE CLASS",null,"Required"]
[null,null,44,"MANUAL RESET",null,null,null,"Yes",null,null,null,null,null,88,"HYDRO PRESSURE ",null,"Required"]
[null,null,45,"Power Supply",null,null,null,"24 VDC",null,null,null,null,null,89,"FUNCTIONAL TEST",null,"Required"]
[null,null,46,"Pnu. Connection",null,null,null,"1/4\" NPT ",null,null,null,null,null,90]
[null,"SPECIAL /\nACCESS.",47,"FUSIBLE LEAKAGE",null,null,null,"No",null,null,null,null,null,91]
[null,null,48,"BLOCK RELAY",null,null,null,"No",null,null,null,null,null,92]
[null,null,49,"QUICK EXHUST",null,null,null,"Yes",null,null,null,null,"FIRE PROOF DESIGN",93,"PASSIVE FIRE PROTECTION",null,"No"]
[null,null,50,"FILTER REGULATOR",null,null,null,"Yes",null,null,null,null,null,94,"API 6FA REQUIREMENTS",null,"Yes"]
[null,null,51,"VOLUME TANK",null,null,null,"No",null,null,null,null,null,95,"SIL REQUIREMENTS",null,"Yes"]
[null,null,52,"MECHANICAL POSITION INDICATOR",null,null,null,"Required",null,null,null,null,null,96,"PARTIAL STROKING VALVE TEST",null,"No",null,null,"ESD LEVEL: ",2]
[null,null,53,"MANUALPNEUMATIC BYPASS VALVE FOR SOLENOID VALVE",null,null,null,"Yes",null,null,null,null,null,97]
[]
[null,"NOTE:","VTA : VENDOR TO ADVISE AT BIDDING STAGE    ",null,null,null,null,"VTC: VENDOR TO CONIFRM"]
[null,null,"(1) PMS: Piping material specification.\n\n(2) All material shall be suitable for minimum design metal temperature.\n\n(3) Shall be stated by vendor at quotation stage.\n\n(4) Manual Reset to be consider for all Emergency Shut off solenoids as per P&ID."]

{"sheet":"XV-2133C","index":30,"n_rows":71,"n_cols":21,"rows_kept":71,"cut":false,"hidden":false,"merged":[[70,2,71,10],[57,12,62,12],[61,1,67,1],[63,12,67,12],[67,3,67,6],[54,1,60,1],[24,1,26,1],[24,2,25,2],[24,3,25,3],[24,12,38,12],[45,12,52,12],[27,1,42,1],[43,1,53,1],[53,12,56,12],[26,4,26,11],[24,9,25,11],[11,2,11,4],[11,5,11,6],[11,7,11,13],[11,16,11,17],[12,1,23,1],[12,12,12,13],[13,12,13,13],[14,12,14,13],[15,12,15,13],[16,12,16,13],[17,12,17,13],[18,12,18,13],[19,12,19,13],[22,12,22,13],[23,12,23,13],[21,12,21,13],[9,1,9,17],[10,1,10,2],[10,3,10,4],[10,5,10,6],[10,7,10,13],[10,15,10,17],[8,1,8,4],[1,1,6,4],[1,5,4,12],[1,13,6,17],[5,5,6,12],[7,1,7,4],[7,13,8,13],[7,14,8,14],[7,15,8,15],[7,16,8,17],[12,2,12,11],[51,5,51,6],[51,7,51,9],[51,10,51,11],[43,5,43,6],[43,7,43,9],[43,10,43,11],[49,5,49,6],[49,7,49,9],[49,10,49,11],[47,9,47,11],[24,7,25,8],[33,2,34,2],[33,3,34,3],[20,12,20,13],[20,14,20,17],[21,14,21,17],[65,14,65,15],[66,14,66,15],[25,16,25,17],[24,16,24,17],[29,14,29,15],[31,14,31,15],[39,12,44,12],[41,14,41,15]]}
[]
[null,"\n\n\n\n\nNISOC",null,null,null,"نگهداشت و افزایش تولید میدان نفتی بینک \nسطح‌الارض \n\nاحداث رديف تراكم گاز در ايستگاه جمع آوري بينك "]
[]
[]
[]
[null,null,null,null,null,"Data Sheets For ON/OFF & Shutdown Valves"]
[]
[null,"شماره پیمان:",null,null,null,"پروژه ","بسته کاری","صادرکننده","تسهیلات","رشته ","نوع مدرک ","سریال","نسخه"]
[null,"9038 – 073 - 053",null,null,null,"BK","GCS","PEDCO","120","IN","DT","0010",{"$f":"Notes!$AB$9","v":"D04"}]
[null,"On-Off Valve"]
[null,"TAG NO:",null,"XV-2133C",null,"P&ID NO :",null,"BK-GCS-PEDCO-120-PR-PI-0011-D09 (3 of 3)",null,null,null,null,null,null,"SERVICE:","2nd Stage Gas Compression Air Coolers"]
[null,"FLUID STATE:","PROCESS GAS",null,null,"PHASE:",null,"GAS",null,null,null,null,null,null,"AREA CLASSIFICATION:",null,"Zone2, IIB, T4"]
[null,"SERVICE CONDITION","ITEM ",null,null,null,null,null,null,null,null,null,"UNITS",null,"Max Flow","Norm. Flow","Min. Flow","Shut-Off"]
[null,null,1,"FLOW RATE",null,null,null,null,null,null,null,null,"kg/h",null,{"$f":"P14*1.1","v":9530.4000000000015},8664,{"$f":"P14*0.35","v":3032.3999999999996},"-"]
[null,null,2,"INLET PRESSURE",null,null,null,null,null,null,null,null,"bar(g)",null,54.1,54.1,54.1,"-"]
[null,null,3,"OUTLET PRESSURE",null,null,null,null,null,null,null,null,"bar(g)",null,54.1,54.1,54.1,"-"]
[null,null,4,"DIFFERENTIAL PRESSURE",null,null,null,null,null,null,null,null,"bar(g)",null,"-","-","-",62.4]
[null,null,5,"INLET TEMPERATURE",null,null,null,null,null,null,null,null,"°C",null,"-",60,"-","-"]
[null,null,6,"DENSITY ",null,null,null,null,null,null,null,null,"kg/m3",null,"49.41 ~ 59.63","49.41 ~ 59.63","49.41 ~ 59.63","-"]
[null,null,7,"VISCOSITY ",null,null,null,null,null,null,null,null,"CP",null,1.4E-2,1.4E-2,1.4E-2,"-"]
[null,null,8,"DESIGN PRESSURE",null,null,null,null,null,null,null,null,"bar(g)",null,62.4]
[null,null,9,"DESIGN TEMPERATURE",null,null,null,null,null,null,null,null,"°C",null,175]
[null,null,10,"VAPOR PRESSURE Pv",null,null,null,null,null,null,null,null,"bar(a)",null,"-","-","-","-"]
[null,null,11,"CRITICAL PRESSURE",null,null,null,null,null,null,null,null,"bar(a)",null,94.66,94.66,94.66,"-"]
[null,"LINE",12,"PIPE LINE SIZE & SCHEDULE","   IN","6\"","40S","CORROSION ALLOWANCE(mm)",null,0,null,null,"ACTUATOR",54," TYPE",null,"Single Acting, Spring Return "]
[null,null,null,null,"   OUT","6\"","40S",null,null,null,null,null,null,55,"SIZE",null,"VTA"]
[null,null,13,"LINE NO.","GAS-111-0055C-FS00-6\"-IS",null,null,null,null,null,null,null,null,56,"SPRING FAIL ACTION",null,"Fail to Close"]
[null,"VALVE BODY \n& \nBONNET",14,"TYPE",null,null,null,"Full Bore Ball Valve/Trunnion Mounted",null,null,null,null,null,57,"MAX ALLOWABLE PRESSURE",null,"VTA"]
[null,null,15,"SIZE ",null,null,null,"6\"",null,null,null,null,null,58,"MIN REQUIRES PRESSURE",null,"VTA"]
[null,null,16,"MAX PRESS./TEMP.",null,null,null,"As per PMS",null,null,null,null,null,59,"AVAILABLE AIR SUPPLY PRESSURE",null,"MAX/NOR/MIN: 10/7/3 bar-g"]
[null,null,17,"MFR. & MODEL",null,null,null,"Will be finalized later",null,null,null,null,null,60,"BENCH RANGE",null,"VTA"]
[null,null,18," BODY / BONNET MATL",null,null,null,"ASTM A351 GR.CF3M",null,null,null,null,null,61,"TRAVELING TIME",null,"7 S"]
[null,null,19,"LINER MATERIAL / ID",null,null,null,"VTA",null,null,null,null,null,62,"FUNCTION",null,"On/Off"]
[null,null,20,"END CONNECTION","IN",null,null,"6\"/600#",null,null,null,null,null,63,"LOCAL POSITION INDICATOR",null,"Required"]
[null,null,null,null,"OUT",null,null,"6\"/600#",null,null,null,null,null,64,"ACT. ORIENTATION",null,"VTA"]
[null,null,21,"FLG FACE FINISH",null,null,null,"RF",null,null,null,null,null,65,"HAND WHEEL TYPE",null,"Declutchable side mounted "]
[null,null,22,"END EXT./MATL.",null,null,null,"N/A",null,null,null,null,null,66,"ADJUSTABLE LIMIT STOP",null,"Yes"]
[null,null,23,"FLOW DIRECTION",null,null,null,"(Note 18 in Page 4)",null,null,null,null,null,67,"INPUT SIGNAL",null,"24VDC"]
[null,null,24,"TYPE OF BONNET",null,null,null,"Standard",null,null,null,null,null,68,"MFR. & MODEL",null,"Will be finalized later"]
[null,null,25,"LUBE & ISO VALVE",null,null,null,"No",null,null,null,null,"POSITIONER",69,"TYPE",null,"N/A"]
[null,null,26,"PACKING MATERIAL",null,"PACKING TYPE ",null,"RPTFE",null,null,"Standard",null,null,70,"MFR. & MODEL",null,"Will be finalized later"]
[null,null,27,"ENTRY DESIGN",null,null,null,"Top / Side Entry",null,null,null,null,null,71,"ON INCR SIGNAL OUTPUT INCR / DECR      ",null,"N/A"]
[null,null,28,"NACE REQUIREMENTNACE (MR-0175/ISO 15156)",null,null,null,"Yes",null,null,null,null,null,72,"GAUGES",null,"N/A"]
[null,"TRIM",29,"TRIM ","TYPE","MATERIAL",null,"VTA",null,null,"316 SS+RPTFE",null,null,73,"CAM CHARACTERISTIC",null,"N/A"]
[null,null,30,"SIZE ","RATED TRAVEL",null,null,"VTA",null,null,"VTA",null,null,74,"AIR CONNECTION",null,"N/A"]
[null,null,31,"CHARACTERISTICS",null,null,null,"On/Off",null,null,null,null,"LIMIT \nSWITCHES",75,"TAG NO. :",null,"XZSC-2133C / XZSO-2133C"]
[null,null,32,"BALANCED / UNBALANCED",null,null,null,"BALANCED",null,null,null,null,null,76," TYPE","QUANTITY","Magnetically operated ‘REED’ contacts ",2]
[null,null,33,"RATED  Cv","FL","XT",null,"VTA","VTA","VTA",null,null,null,77,"CONTACTS / RATING",null,"110V DC , 10A "]
[null,null,34,"PLUG / BALL / DISK MATERIAL",null,null,null,"316 SS",null,null,null,null,null,78,"ACTUATION POINT",null,"Fully Open/Close"]
[null,null,35,"SEAT ","TYPE","MATERIAL",null,"Soft Seat",null,null,"316 SS+RPTFE",null,null,79,"ENCLOSURE MATERIAL",null,"Die Cast Aluminum"]
[null,null,36,"CAGE / GUIDE MATERIAL",null,null,null,"VTA",null,null,null,null,null,80,"WEATHER PROTECTION",null,"IP-65"]
[null,null,37,"STEM","TYPE","MATERIAL",null,"Anti-Blow Out",null,null,"316 SS",null,null,81,"ELEC. CERTIFICATE","ELEC. CONNECTION","EEx \"d\" ,IIB T4","ISO M20 × 1.5"]
[null,null,38,"LEAKAGE CLASS",null,null,null,"ANSI Class VI",null,null,null,null,null,82,"MFR. & MODEL",null,"Will be finalized later"]
[null,null,39,"VALVE STEM EXTENSION REQUIREMENT",null,null,null,"No",null,null,null,null,"AIR SET",83,"SET PRESSURE",null,"Yes"]
[null,"SOLENOID VALVE  ",40,"TAG NO",null,null,null,"PSOV-2133C, ESOV-2133C",null,null,null,null,null,84,"PNEUMATIC CONNECTION",null,"1/4\" NPT"]
[null,null,41,"TYPE",null,null,null,"3 Way ",null,null,null,null,null,85,"GAUGES","FILTER","Required","Required"]
[null,null,42,"BODY MATERIAL",null,"WEATHER IP.",null,"AISI 316 S.S",null,null,"IP-65",null,null,86,"MFR. & MODEL",null,"Will be finalized later"]
[null,null,43,"ELE. CERTIFICATE",null,"ELE. CONNECTION",null,"EEx \"d\" ,IIB T4",null,null,"ISO M20 x 1.5",null,"TEST",87,"ANSI/FCI LEAKAGE CLASS",null,"Required"]
[null,null,44,"MANUAL RESET",null,null,null,"Yes",null,null,null,null,null,88,"HYDRO PRESSURE ",null,"Required"]
[null,null,45,"Power Supply",null,null,null,"24 VDC",null,null,null,null,null,89,"FUNCTIONAL TEST",null,"Required"]
[null,null,46,"Pnu. Connection",null,null,null,"1/4\" NPT ",null,null,null,null,null,90]
[null,"SPECIAL /\nACCESS.",47,"FUSIBLE LEAKAGE",null,null,null,"No",null,null,null,null,null,91]
[null,null,48,"BLOCK RELAY",null,null,null,"No",null,null,null,null,null,92]
[null,null,49,"QUICK EXHUST",null,null,null,"Yes",null,null,null,null,"FIRE PROOF DESIGN",93,"PASSIVE FIRE PROTECTION",null,"No"]
[null,null,50,"FILTER REGULATOR",null,null,null,"Yes",null,null,null,null,null,94,"API 6FA REQUIREMENTS",null,"Yes"]
[null,null,51,"VOLUME TANK",null,null,null,"No",null,null,null,null,null,95,"SIL REQUIREMENTS",null,"Yes"]
[null,null,52,"MECHANICAL POSITION INDICATOR",null,null,null,"Required",null,null,null,null,null,96,"PARTIAL STROKING VALVE TEST",null,"No",null,null,"ESD LEVEL: ",2]
[null,null,53,"MANUALPNEUMATIC BYPASS VALVE FOR SOLENOID VALVE",null,null,null,"Yes",null,null,null,null,null,97]
[]
[null,"NOTE:","VTA : VENDOR TO ADVISE AT BIDDING STAGE    ",null,null,null,null,"VTC: VENDOR TO CONIFRM"]
[null,null,"(1) PMS: Piping material specification.\n\n(2) All material shall be suitable for minimum design metal temperature.\n\n(3) Shall be stated by vendor at quotation stage.\n\n(4) Manual Reset to be consider for all Emergency Shut off solenoids as per P&ID."]

{"sheet":"XV-2142","index":31,"n_rows":71,"n_cols":21,"rows_kept":71,"cut":false,"hidden":false,"merged":[[70,2,71,10],[57,12,62,12],[61,1,67,1],[63,12,67,12],[67,3,67,6],[54,1,60,1],[24,1,26,1],[24,2,25,2],[24,3,25,3],[24,12,38,12],[45,12,52,12],[27,1,42,1],[43,1,53,1],[53,12,56,12],[11,2,11,4],[11,5,11,6],[11,7,11,13],[11,16,11,17],[12,1,23,1],[12,12,12,13],[13,12,13,13],[14,12,14,13],[15,12,15,13],[16,12,16,13],[17,12,17,13],[18,12,18,13],[19,12,19,13],[22,12,22,13],[23,12,23,13],[21,12,21,13],[9,1,9,17],[10,1,10,2],[10,3,10,4],[10,5,10,6],[10,7,10,13],[10,15,10,17],[8,1,8,4],[1,1,6,4],[1,5,4,12],[1,13,6,17],[5,5,6,12],[7,1,7,4],[7,13,8,13],[7,14,8,14],[7,15,8,15],[7,16,8,17],[12,2,12,11],[51,5,51,6],[51,7,51,9],[51,10,51,11],[30,7,30,9],[43,5,43,6],[43,7,43,9],[43,10,43,11],[49,5,49,6],[49,7,49,9],[49,10,49,11],[47,9,47,11],[24,7,25,8],[33,2,34,2],[33,3,34,3],[20,14,20,17],[21,14,21,17],[65,14,65,15],[66,14,66,15],[26,4,26,11],[24,9,25,11],[20,12,20,13],[25,16,25,17],[24,16,24,17],[29,14,29,15],[31,14,31,15],[39,12,44,12],[41,14,41,15]]}
[]
[null,"\n\n\n\n\nNISOC",null,null,null,"نگهداشت و افزایش تولید میدان نفتی بینک \nسطح‌الارض \n\nاحداث رديف تراكم گاز در ايستگاه جمع آوري بينك "]
[]
[]
[]
[null,null,null,null,null,"Data Sheets For ON/OFF & Shutdown Valves"]
[]
[null,"شماره پیمان:",null,null,null,"پروژه ","بسته کاری","صادرکننده","تسهیلات","رشته ","نوع مدرک ","سریال","نسخه"]
[null,"9038 – 073 - 053",null,null,null,"BK","GCS","PEDCO","120","IN","DT","0010",{"$f":"Notes!$AB$9","v":"D04"}]
[null,"On-Off Valve"]
[null,"TAG NO:",null,"XV-2142",null,"P&ID NO :",null,"BK-GCS-PEDCO-120-PR-PI-0012-D09",null,null,null,null,null,null,"SERVICE:","2nd Stage Gas Compression Discharge Drum"]
[null,"FLUID STATE:","PROCESS GAS",null,null,"PHASE:",null,"GAS",null,null,null,null,null,null,"AREA CLASSIFICATION:",null,"Zone2, IIB, T4"]
[null,"SERVICE CONDITION","ITEM ",null,null,null,null,null,null,null,null,null,"UNITS",null,"Max Flow","Norm. Flow","Min. Flow","Shut-Off"]
[null,null,1,"FLOW RATE",null,null,null,null,null,null,null,null,"kg/h",null,{"$f":"P14*1.1","v":18977.739000000005},17252.490000000002,{"$f":"P14*0.35","v":6038.3715000000002},"-"]
[null,null,2,"INLET PRESSURE",null,null,null,null,null,null,null,null,"bar(g)",null,53.9,53.9,53.9,"-"]
[null,null,3,"OUTLET PRESSURE",null,null,null,null,null,null,null,null,"bar(g)",null,53.9,53.9,53.9,"-"]
[null,null,4,"DIFFERENTIAL PRESSURE",null,null,null,null,null,null,null,null,"bar(g)",null,"-","-","-",90]
[null,null,5,"INLET TEMPERATURE",null,null,null,null,null,null,null,null,"°C",null,59.89,59.89,59.89,"-"]
[null,null,6,"DENSITY ",null,null,null,null,null,null,null,null,"kg/m3",null,"49.41~ 59.17","49.41~ 59.17","49.41~ 59.17","-"]
[null,null,7,"VISCOSITY ",null,null,null,null,null,null,null,null,"CP",null,1.4E-2,1.4E-2,1.4E-2,"-"]
[null,null,8,"DESIGN PRESSURE",null,null,null,null,null,null,null,null,"bar(g)",null,90]
[null,null,9,"DESIGN TEMPERATURE",null,null,null,null,null,null,null,null,"°C",null,175]
[null,null,10,"VAPOR PRESSURE Pv",null,null,null,null,null,null,null,null,"bar(a)",null,3.23,3.23,3.23,"-"]
[null,null,11,"CRITICAL PRESSURE",null,null,null,null,null,null,null,null,"bar(a)",null,106,106,106,"-"]
[null,"LINE",12,"PIPE LINE SIZE & SCHEDULE","   IN","6\"",80,"CORROSION ALLOWANCE(mm)",null,3,null,null,"ACTUATOR",54," TYPE",null,"Single Acting, Spring Return "]
[null,null,null,null,"   OUT","6\"",80,null,null,null,null,null,null,55,"SIZE",null,"VTA"]
[null,null,13,"LINE NO.","GAS-111-0066-FN05-6\"-IS",null,null,null,null,null,null,null,null,56,"SPRING FAIL ACTION",null,"Fail to Close"]
[null,"VALVE BODY \n& \nBONNET",14,"TYPE",null,null,null,"Full Bore Ball Valve/Trunnion Mounted",null,null,null,null,null,57,"MAX ALLOWABLE PRESSURE",null,"VTA"]
[null,null,15,"SIZE ",null,null,null,"6\"",null,null,null,null,null,58,"MIN REQUIRES PRESSURE",null,"VTA"]
[null,null,16,"MAX PRESS./TEMP.",null,null,null,"As per PMS",null,null,null,null,null,59,"AVAILABLE AIR SUPPLY PRESSURE",null,"MAX/NOR/MIN: 10/7/3 bar-g"]
[null,null,17,"MFR. & MODEL",null,null,null,"Will be finalized later",null,null,null,null,null,60,"BENCH RANGE",null,"VTA"]
[null,null,18," BODY / BONNET MATL",null,null,null,"ASTM A216 Gr. WCB",null,null,null,null,null,61,"TRAVELING TIME",null,"7 S"]
[null,null,19,"LINER MATERIAL / ID",null,null,null,"VTA",null,null,null,null,null,62,"FUNCTION",null,"On/Off"]
[null,null,20,"END CONNECTION","IN",null,null,"6\" /600#",null,null,null,null,null,63,"LOCAL POSITION INDICATOR",null,"Required"]
[null,null,null,null,"OUT",null,null,"6\" /600#",null,null,null,null,null,64,"ACT. ORIENTATION",null,"VTA"]
[null,null,21,"FLG FACE FINISH",null,null,null,"RF",null,null,null,null,null,65,"HAND WHEEL TYPE",null,"Declutchable side mounted "]
[null,null,22,"END EXT./MATL.",null,null,null,"N/A",null,null,null,null,null,66,"ADJUSTABLE LIMIT STOP",null,"Yes"]
[null,null,23,"FLOW DIRECTION",null,null,null,"(Note 18 in Page 4)",null,null,null,null,null,67,"INPUT SIGNAL",null,"24VDC"]
[null,null,24,"TYPE OF BONNET",null,null,null,"Standard",null,null,null,null,null,68,"MFR. & MODEL",null,"Will be finalized later"]
[null,null,25,"LUBE & ISO VALVE",null,null,null,"No",null,null,null,null,"POSITIONER",69,"TYPE",null,"N/A"]
[null,null,26,"PACKING MATERIAL",null,"PACKING TYPE ",null,"RPTFE",null,null,"Standard",null,null,70,"MFR. & MODEL",null,"Will be finalized later"]
[null,null,27,"ENTRY DESIGN",null,null,null,"Top / Side Entry",null,null,null,null,null,71,"ON INCR SIGNAL OUTPUT INCR / DECR      ",null,"N/A"]
[null,null,28,"NACE REQUIREMENTNACE (MR-0175/ISO 15156)",null,null,null,"Yes",null,null,null,null,null,72,"GAUGES",null,"N/A"]
[null,"TRIM",29,"TRIM ","TYPE","MATERIAL",null,"VTA",null,null,"316 SS+RPTFE",null,null,73,"CAM CHARACTERISTIC",null,"N/A"]
[null,null,30,"SIZE ","RATED TRAVEL",null,null,"VTA",null,null,"VTA",null,null,74,"AIR CONNECTION",null,"N/A"]
[null,null,31,"CHARACTERISTICS",null,null,null,"On/Off",null,null,null,null,"LIMIT \nSWITCHES",75,"TAG NO. :",null,"XZSC-2142 / XZSO-2142"]
[null,null,32,"BALANCED / UNBALANCED",null,null,null,"BALANCED",null,null,null,null,null,76," TYPE","QUANTITY","Magnetically operated ‘REED’ contacts ",2]
[null,null,33,"RATED  Cv","FL","XT",null,"VTA","VTA","VTA",null,null,null,77,"CONTACTS / RATING",null,"110V DC , 10A "]
[null,null,34,"PLUG / BALL / DISK MATERIAL",null,null,null,"316 SS",null,null,null,null,null,78,"ACTUATION POINT",null,"Fully Open/Close"]
[null,null,35,"SEAT ","TYPE","MATERIAL",null,"Soft Seat",null,null,"316 SS+RPTFE",null,null,79,"ENCLOSURE MATERIAL",null,"Die Cast Aluminum"]
[null,null,36,"CAGE / GUIDE MATERIAL",null,null,null,"VTA",null,null,null,null,null,80,"WEATHER PROTECTION",null,"IP-65"]
[null,null,37,"STEM","TYPE","MATERIAL",null,"Anti-Blow Out",null,null,"316 SS",null,null,81,"ELEC. CERTIFICATE","ELEC. CONNECTION","EEx \"d\" ,IIB T4","ISO M20 × 1.5"]
[null,null,38,"LEAKAGE CLASS",null,null,null,"ANSI Class VI",null,null,null,null,null,82,"MFR. & MODEL",null,"Will be finalized later"]
[null,null,39,"VALVE STEM EXTENSION REQUIREMENT",null,null,null,"No",null,null,null,null,"AIR SET",83,"SET PRESSURE",null,"Yes"]
[null,"SOLENOID VALVE  ",40,"TAG NO",null,null,null,"PSOV-2142, ESOV-2142",null,null,null,null,null,84,"PNEUMATIC CONNECTION",null,"1/4\" NPT"]
[null,null,41,"TYPE",null,null,null,"3 Way ",null,null,null,null,null,85,"GAUGES","FILTER","Required","Required"]
[null,null,42,"BODY MATERIAL",null,"WEATHER IP.",null,"AISI 316 S.S",null,null,"IP-65",null,null,86,"MFR. & MODEL",null,"Will be finalized later"]
[null,null,43,"ELE. CERTIFICATE",null,"ELE. CONNECTION",null,"EEx \"d\" ,IIB T4",null,null,"ISO M20 x 1.5",null,"TEST",87,"ANSI/FCI LEAKAGE CLASS",null,"Required"]
[null,null,44,"MANUAL RESET",null,null,null,"Yes",null,null,null,null,null,88,"HYDRO PRESSURE ",null,"Required"]
[null,null,45,"Power Supply",null,null,null,"24 VDC",null,null,null,null,null,89,"FUNCTIONAL TEST",null,"Required"]
[null,null,46,"Pnu. Connection",null,null,null,"1/4\" NPT ",null,null,null,null,null,90]
[null,"SPECIAL /\nACCESS.",47,"FUSIBLE LEAKAGE",null,null,null,"No",null,null,null,null,null,91]
[null,null,48,"BLOCK RELAY",null,null,null,"No",null,null,null,null,null,92]
[null,null,49,"QUICK EXHUST",null,null,null,"Yes",null,null,null,null,"FIRE PROOF DESIGN",93,"PASSIVE FIRE PROTECTION",null,"No"]
[null,null,50,"FILTER REGULATOR",null,null,null,"Yes",null,null,null,null,null,94,"API 6FA REQUIREMENTS",null,"Yes"]
[null,null,51,"VOLUME TANK",null,null,null,"No",null,null,null,null,null,95,"SIL REQUIREMENTS",null,"Yes"]
[null,null,52,"MECHANICAL POSITION INDICATOR",null,null,null,"Required",null,null,null,null,null,96,"PARTIAL STROKING VALVE TEST",null,"Yes",null,null,"ESD LEVEL: ",1]
[null,null,53,"MANUALPNEUMATIC BYPASS VALVE FOR SOLENOID VALVE",null,null,null,"Yes",null,null,null,null,null,97]
[]
[null,"NOTE:","VTA : VENDOR TO ADVISE AT BIDDING STAGE    ",null,null,null,null,"VTC: VENDOR TO CONIFRM"]
[null,null,"(1) PMS: Piping material specification.\n\n(2) All material shall be suitable for minimum design metal temperature.\n\n(3) Shall be stated by vendor at quotation stage.\n\n(4) Manual Reset to be consider for all Emergency Shut off solenoids as per P&ID."]

{"sheet":"XV-2143","index":32,"n_rows":71,"n_cols":23,"rows_kept":71,"cut":false,"hidden":false,"merged":[[70,2,71,10],[7,13,8,13],[7,14,8,14],[7,15,8,15],[7,16,8,17],[45,12,52,12],[24,16,24,17],[25,16,25,17],[29,14,29,15],[31,14,31,15],[53,12,56,12],[33,2,34,2],[33,3,34,3],[39,12,44,12],[41,14,41,15],[11,5,11,6],[54,1,60,1],[57,12,62,12],[61,1,67,1],[63,12,67,12],[67,3,67,6],[43,1,53,1],[43,7,43,9],[43,10,43,11],[49,5,49,6],[49,7,49,9],[49,10,49,11],[51,5,51,6],[51,7,51,9],[51,10,51,11],[47,9,47,11],[12,2,12,11],[21,12,21,13],[20,12,20,13],[24,1,26,1],[24,2,25,2],[24,3,25,3],[24,12,38,12],[27,1,42,1],[26,4,26,11],[24,9,25,11],[24,7,25,8],[17,12,17,13],[18,12,18,13],[19,12,19,13],[22,12,22,13],[23,12,23,13],[12,12,12,13],[13,12,13,13],[14,12,14,13],[15,12,15,13],[16,12,16,13],[1,1,6,4],[1,5,4,12],[1,13,6,17],[5,5,6,12],[7,1,7,4],[20,14,20,17],[21,14,21,17],[65,14,65,15],[66,14,66,15],[8,1,8,4],[9,1,9,17],[10,1,10,2],[10,3,10,4],[10,5,10,6],[10,7,10,13],[10,15,10,17],[11,2,11,4],[43,5,43,6],[11,7,11,13],[11,16,11,17],[12,1,23,1]]}
[]
[null,"\n\n\n\n\nNISOC",null,null,null,"نگهداشت و افزایش تولید میدان نفتی بینک \nسطح‌الارض \n\nاحداث رديف تراكم گاز در ايستگاه جمع آوري بينك "]
[]
[]
[]
[null,null,null,null,null,"Data Sheets For ON/OFF & Shutdown Valves"]
[]
[null,"شماره پیمان:",null,null,null,"پروژه ","بسته کاری","صادرکننده","تسهیلات","رشته ","نوع مدرک ","سریال","نسخه"]
[null,"9038 – 073 - 053",null,null,null,"BK","GCS","PEDCO","120","IN","DT","0010",{"$f":"Notes!$AB$9","v":"D04"}]
[null,"On-Off Valve"]
[null,"TAG NO:",null,"XV-2143",null,"P&ID NO :",null,"BK-GCS-PEDCO-120-PR-PI-0012-D09",null,null,null,null,null,null,"SERVICE:","2nd Stage Gas Compression Discharge Drum"]
[null,"FLUID STATE:","PROCESS GAS",null,null,"PHASE:",null,"GAS",null,null,null,null,null,null,"AREA CLASSIFICATION:",null,"Zone2, IIB, T4"]
[null,"SERVICE CONDITION","ITEM ",null,null,null,null,null,null,null,null,null,"UNITS",null,"Max Flow","Norm. Flow","Min. Flow","Shut-Off"]
[null,null,1,"FLOW RATE",null,null,null,null,null,null,null,null,"kg/h",null,"-",1500,"-","-"]
[null,null,2,"INLET PRESSURE",null,null,null,null,null,null,null,null,"bar(g)",null,53.9,53.9,53.9,"-"]
[null,null,3,"OUTLET PRESSURE",null,null,null,null,null,null,null,null,"bar(g)",null,53.9,53.9,53.9,"-"]
[null,null,4,"DIFFERENTIAL PRESSURE",null,null,null,null,null,null,null,null,"bar(g)",null,"-","-","-",90]
[null,null,5,"INLET TEMPERATURE",null,null,null,null,null,null,null,null,"°C",null,59.89,59.89,59.89,"-"]
[null,null,6,"DENSITY",null,null,null,null,null,null,null,null,"kg/m3",null,"49.23~ 59.17","49.23~ 59.17","49.23~ 59.17","-"]
[null,null,7,"VISCOSITY ",null,null,null,null,null,null,null,null,"CP",null,1.4E-2,1.4E-2,1.4E-2,"-"]
[null,null,8,"DESIGN PRESSURE",null,null,null,null,null,null,null,null,"bar(g)",null,90]
[null,null,9,"DESIGN TEMPERATURE",null,null,null,null,null,null,null,null,"°C",null,175]
[null,null,10,"VAPOR PRESSURE Pv",null,null,null,null,null,null,null,null,"bar(a)",null,"-","-","-","-"]
[null,null,11,"CRITICAL PRESSURE",null,null,null,null,null,null,null,null,"bar(a)",null,106,106,106,"-"]
[null,"LINE",12,"PIPE LINE SIZE & SCHEDULE","   IN","2\"",160,"CORROSION ALLOWANCE(mm)",null,3,null,null,"ACTUATOR",54," TYPE",null,"Single Acting, Spring Return "]
[null,null,null,null,"   OUT","2\"",160,null,null,null,null,null,null,55,"SIZE",null,"VTA"]
[null,null,13,"LINE NO.","GAS-111-0366-FN05-2\"-IS",null,null,null,null,null,null,null,null,56,"SPRING FAIL ACTION",null,"Fail to Close"]
[null,"VALVE BODY \n& \nBONNET",14,"TYPE",null,null,null,"Full Bore Ball Valve/Trunnion Mounted",null,null,null,null,null,57,"MAX ALLOWABLE PRESSURE",null,"VTA"]
[null,null,15,"SIZE ",null,null,null,"2\"",null,null,null,null,null,58,"MIN REQUIRES PRESSURE",null,"VTA"]
[null,null,16,"MAX PRESS./TEMP.",null,null,null,"As per PMS",null,null,null,null,null,59,"AVAILABLE AIR SUPPLY PRESSURE",null,"MAX/NOR/MIN: 10/7/3 bar-g"]
[null,null,17,"MFR. & MODEL",null,null,null,"Will be finalized later",null,null,null,null,null,60,"BENCH RANGE",null,"VTA"]
[null,null,18," BODY / BONNET MATL",null,null,null,"ASTM A216 Gr. WCB",null,null,null,null,null,61,"TRAVELING TIME",null,"7 S"]
[null,null,19,"LINER MATERIAL / ID",null,null,null,"VTA",null,null,null,null,null,62,"FUNCTION",null,"On/Off"]
[null,null,20,"END CONNECTION","IN",null,null,"2\"  /600#",null,null,null,null,null,63,"LOCAL POSITION INDICATOR",null,"Required",null,null,null,null,null,{"$f":"RIGHT(U34,4)","v":""}]
[null,null,null,null,"OUT",null,null,"2\"  /600#",null,null,null,null,null,64,"ACT. ORIENTATION",null,"VTA"]
[null,null,21,"FLG FACE FINISH",null,null,null,"RF",null,null,null,null,null,65,"HAND WHEEL TYPE",null,"Declutchable side mounted "]
[null,null,22,"END EXT./MATL.",null,null,null,"N/A",null,null,null,null,null,66,"ADJUSTABLE LIMIT STOP",null,"Yes"]
[null,null,23,"FLOW DIRECTION",null,null,null,"(Note 18 in Page 4)",null,null,null,null,null,67,"INPUT SIGNAL",null,"24VDC"]
[null,null,24,"TYPE OF BONNET",null,null,null,"Standard",null,null,null,null,null,68,"MFR. & MODEL",null,"Will be finalized later"]
[null,null,25,"LUBE & ISO VALVE",null,null,null,"No",null,null,null,null,"POSITIONER",69,"TYPE",null,"N/A"]
[null,null,26,"PACKING MATERIAL",null,"PACKING TYPE ",null,"RPTFE",null,null,"Standard",null,null,70,"MFR. & MODEL",null,"Will be finalized later"]
[null,null,27,"ENTRY DESIGN",null,null,null,"Top / Side Entry",null,null,null,null,null,71,"ON INCR SIGNAL OUTPUT INCR / DECR      ",null,"N/A"]
[null,null,28,"NACE REQUIREMENTNACE (MR-0175/ISO 15156)",null,null,null,"Yes",null,null,null,null,null,72,"GAUGES",null,"N/A"]
[null,"TRIM",29,"TRIM ","TYPE","MATERIAL",null,"VTA",null,null,"316 SS+RPTFE",null,null,73,"CAM CHARACTERISTIC",null,"N/A"]
[null,null,30,"SIZE ","RATED TRAVEL",null,null,"VTA",null,null,"VTA",null,null,74,"AIR CONNECTION",null,"N/A"]
[null,null,31,"CHARACTERISTICS",null,null,null,"On/Off",null,null,null,null,"LIMIT \nSWITCHES",75,"TAG NO. :",null,"XZSC-2143 / XZSO-2143"]
[null,null,32,"BALANCED / UNBALANCED",null,null,null,"BALANCED",null,null,null,null,null,76," TYPE","QUANTITY","Magnetically operated ‘REED’ contacts ",2]
[null,null,33,"RATED  Cv","FL","XT",null,"VTA","VTA","VTA",null,null,null,77,"CONTACTS / RATING",null,"110V DC , 10A "]
[null,null,34,"PLUG / BALL / DISK MATERIAL",null,null,null,"316 SS",null,null,null,null,null,78,"ACTUATION POINT",null,"Fully Open/Close"]
[null,null,35,"SEAT ","TYPE","MATERIAL",null,"Soft Seat",null,null,"316 SS+RPTFE",null,null,79,"ENCLOSURE MATERIAL",null,"Die Cast Aluminum"]
[null,null,36,"CAGE / GUIDE MATERIAL",null,null,null,"VTA",null,null,null,null,null,80,"WEATHER PROTECTION",null,"IP-65"]
[null,null,37,"STEM","TYPE","MATERIAL",null,"Anti-Blow Out",null,null,"316 SS",null,null,81,"ELEC. CERTIFICATE","ELEC. CONNECTION","EEx \"d\" ,IIB T4","ISO M20 × 1.5"]
[null,null,38,"LEAKAGE CLASS",null,null,null,"ANSI Class VI",null,null,null,null,null,82,"MFR. & MODEL",null,"Will be finalized later"]
[null,null,39,"VALVE STEM EXTENSION REQUIREMENT",null,null,null,"No",null,null,null,null,"AIR SET",83,"SET PRESSURE",null,"Yes"]
[null,"SOLENOID VALVE  ",40,"TAG NO",null,null,null,"ESOV-2143, PSOV-2143",null,null,null,null,null,84,"PNEUMATIC CONNECTION",null,"1/4\" NPT"]
[null,null,41,"TYPE",null,null,null,"3 Way ",null,null,null,null,null,85,"GAUGES","FILTER","Required","Required"]
[null,null,42,"BODY MATERIAL",null,"WEATHER IP.",null,"AISI 316 S.S",null,null,"IP-65",null,null,86,"MFR. & MODEL",null,"Will be finalized later"]
[null,null,43,"ELE. CERTIFICATE",null,"ELE. CONNECTION",null,"EEx \"d\" ,IIB T4",null,null,"ISO M20 x 1.5",null,"TEST",87,"ANSI/FCI LEAKAGE CLASS",null,"Required"]
[null,null,44,"MANUAL RESET",null,null,null,"Yes",null,null,null,null,null,88,"HYDRO PRESSURE ",null,"Required"]
[null,null,45,"Power Supply",null,null,null,"24 VDC",null,null,null,null,null,89,"FUNCTIONAL TEST",null,"Required"]
[null,null,46,"Pnu. Connection",null,null,null,"1/4\" NPT ",null,null,null,null,null,90]
[null,"SPECIAL /\nACCESS.",47,"FUSIBLE LEAKAGE",null,null,null,"No",null,null,null,null,null,91]
[null,null,48,"BLOCK RELAY",null,null,null,"No",null,null,null,null,null,92]
[null,null,49,"QUICK EXHUST",null,null,null,"Yes",null,null,null,null,"FIRE PROOF DESIGN",93,"PASSIVE FIRE PROTECTION",null,"No"]
[null,null,50,"FILTER REGULATOR",null,null,null,"Yes",null,null,null,null,null,94,"API 6FA REQUIREMENTS",null,"Yes"]
[null,null,51,"VOLUME TANK",null,null,null,"No",null,null,null,null,null,95,"SIL REQUIREMENTS",null,"Yes"]
[null,null,52,"MECHANICAL POSITION INDICATOR",null,null,null,"Required",null,null,null,null,null,96,"PARTIAL STROKING VALVE TEST",null,"Yes",null,null,"ESD LEVEL: ",1]
[null,null,53,"MANUAL PNEUMATIC BYPASS VALVE FOR SOLENOID VALVE",null,null,null,"Yes",null,null,null,null,null,97]
[]
[null,"NOTE:","VTA : VENDOR TO ADVISE AT BIDDING STAGE    ",null,null,null,null,"VTC: VENDOR TO CONIFRM"]
[null,null,"(1) PMS: Piping material specification.\n\n(2) All material shall be suitable for minimum design metal temperature.\n\n(3) Shall be stated by vendor at quotation stage.\n\n(4) Manual Reset to be consider for all Emergency Shut off solenoids as per P&ID."]

{"sheet":"XV-2144","index":33,"n_rows":71,"n_cols":21,"rows_kept":71,"cut":false,"hidden":false,"merged":[[70,2,71,10],[57,12,62,12],[61,1,67,1],[63,12,67,12],[67,3,67,6],[54,1,60,1],[24,1,26,1],[24,2,25,2],[24,3,25,3],[24,12,38,12],[45,12,52,12],[27,1,42,1],[43,1,53,1],[53,12,56,12],[26,4,26,11],[24,9,25,11],[11,2,11,4],[11,5,11,6],[11,7,11,13],[11,16,11,17],[12,1,23,1],[12,12,12,13],[13,12,13,13],[14,12,14,13],[15,12,15,13],[16,12,16,13],[17,12,17,13],[18,12,18,13],[19,12,19,13],[22,12,22,13],[23,12,23,13],[21,12,21,13],[9,1,9,17],[10,1,10,2],[10,3,10,4],[10,5,10,6],[10,7,10,13],[10,15,10,17],[8,1,8,4],[1,1,6,4],[1,5,4,12],[1,13,6,17],[5,5,6,12],[7,1,7,4],[7,13,8,13],[7,14,8,14],[7,15,8,15],[7,16,8,17],[12,2,12,11],[51,5,51,6],[51,7,51,9],[51,10,51,11],[43,5,43,6],[43,7,43,9],[43,10,43,11],[49,5,49,6],[49,7,49,9],[49,10,49,11],[47,9,47,11],[24,7,25,8],[33,2,34,2],[33,3,34,3],[20,12,20,13],[20,14,20,17],[21,14,21,17],[65,14,65,15],[66,14,66,15],[25,16,25,17],[24,16,24,17],[29,14,29,15],[31,14,31,15],[39,12,44,12],[41,14,41,15]]}
[]
[null,"\n\n\n\n\nNISOC",null,null,null,"نگهداشت و افزایش تولید میدان نفتی بینک \nسطح‌الارض \n\nاحداث رديف تراكم گاز در ايستگاه جمع آوري بينك "]
[]
[]
[]
[null,null,null,null,null,"Data Sheets For ON/OFF & Shutdown Valves"]
[]
[null,"شماره پیمان:",null,null,null,"پروژه ","بسته کاری","صادرکننده","تسهیلات","رشته ","نوع مدرک ","سریال","نسخه"]
[null,"9038 – 073 - 053",null,null,null,"BK","GCS","PEDCO","120","IN","DT","0010",{"$f":"Notes!$AB$9","v":"D04"}]
[null,"On-Off Valve"]
[null,"TAG NO:",null,"XV-2144",null,"P&ID NO :",null,"BK-GCS-PEDCO-120-PR-PI-0012-D09",null,null,null,null,null,null,"SERVICE:","2nd Stage Gas Compression Discharge Drum"]
[null,"FLUID STATE:","CLOSED DRAIN",null,null,"PHASE:",null,"LIQUID",null,null,null,null,null,null,"AREA CLASSIFICATION:",null,"Zone2, IIB, T4"]
[null,"SERVICE CONDITION","ITEM ",null,null,null,null,null,null,null,null,null,"UNITS",null,"Max Flow","Norm. Flow","Min. Flow","Shut-Off"]
[null,null,1,"FLOW RATE",null,null,null,null,null,null,null,null,"kg/h",null,"-",11500,"-","-"]
[null,null,2,"INLET PRESSURE",null,null,null,null,null,null,null,null,"bar(g)",null,"-",53.9,"-","-"]
[null,null,3,"OUTLET PRESSURE",null,null,null,null,null,null,null,null,"bar(g)",null,"-",53.9,"-","-"]
[null,null,4,"DIFFERENTIAL PRESSURE",null,null,null,null,null,null,null,null,"bar(g)",null,"-","-","-",62.4]
[null,null,5,"INLET TEMPERATURE",null,null,null,null,null,null,null,null,"°C",null,"-",59.9,"-","-"]
[null,null,6,"DENSITY ",null,null,null,null,null,null,null,null,"kg/m3",null,"-","830~ 982","-","-"]
[null,null,7,"VISCOSITY ",null,null,null,null,null,null,null,null,"CP",null,"-","0.442~ 0.495","-","-"]
[null,null,8,"DESIGN PRESSURE",null,null,null,null,null,null,null,null,"bar(g)",null,62.4]
[null,null,9,"DESIGN TEMPERATURE",null,null,null,null,null,null,null,null,"°C",null,175]
[null,null,10,"VAPOR PRESSURE Pv",null,null,null,null,null,null,null,null,"bar(a)",null,4.43,4.43,4.43,"-"]
[null,null,11,"CRITICAL PRESSURE",null,null,null,null,null,null,null,null,"bar(a)",null,221.9,221.9,221.9,"-"]
[null,"LINE",12,"PIPE LINE SIZE & SCHEDULE","   IN","2\"","40S","CORROSION ALLOWANCE(mm)",null,0,null,null,"ACTUATOR",54," TYPE",null,"Single Acting, Spring Return "]
[null,null,null,null,"   OUT","2\"","40S",null,null,null,null,null,null,55,"SIZE",null,"VTA"]
[null,null,13,"LINE NO.","CDH-112-0025-FS00-2\"-NP",null,null,null,null,null,null,null,null,56,"SPRING FAIL ACTION",null,"Fail to Close"]
[null,"VALVE BODY \n& \nBONNET",14,"TYPE",null,null,null,"Full Bore Ball Valve/Floating Type",null,null,null,null,null,57,"MAX ALLOWABLE PRESSURE",null,"VTA"]
[null,null,15,"SIZE ",null,null,null,"2\"",null,null,null,null,null,58,"MIN REQUIRES PRESSURE",null,"VTA"]
[null,null,16,"MAX PRESS./TEMP.",null,null,null,"As per PMS",null,null,null,null,null,59,"AVAILABLE AIR SUPPLY PRESSURE",null,"MAX/NOR/MIN: 10/7/3 bar-g"]
[null,null,17,"MFR. & MODEL",null,null,null,"Will be finalized later",null,null,null,null,null,60,"BENCH RANGE",null,"VTA"]
[null,null,18," BODY / BONNET MATL",null,null,null,"ASTM A351 GR.CF3M",null,null,null,null,null,61,"TRAVELING TIME",null,"5 S"]
[null,null,19,"LINER MATERIAL / ID",null,null,null,"VTA",null,null,null,null,null,62,"FUNCTION",null,"On/Off"]
[null,null,20,"END CONNECTION","IN",null,null,"2\" /600#",null,null,null,null,null,63,"LOCAL POSITION INDICATOR",null,"Required"]
[null,null,null,null,"OUT",null,null,"2\" /600#",null,null,null,null,null,64,"ACT. ORIENTATION",null,"VTA"]
[null,null,21,"FLG FACE FINISH",null,null,null,"RF",null,null,null,null,null,65,"HAND WHEEL TYPE",null,"Declutchable side mounted "]
[null,null,22,"END EXT./MATL.",null,null,null,"N/A",null,null,null,null,null,66,"ADJUSTABLE LIMIT STOP",null,"Yes"]
[null,null,23,"FLOW DIRECTION",null,null,null,"(Note 18 in Page 4)",null,null,null,null,null,67,"INPUT SIGNAL",null,"24VDC"]
[null,null,24,"TYPE OF BONNET",null,null,null,"Standard",null,null,null,null,null,68,"MFR. & MODEL",null,"Will be finalized later"]
[null,null,25,"LUBE & ISO VALVE",null,null,null,"No",null,null,null,null,"POSITIONER",69,"TYPE",null,"N/A"]
[null,null,26,"PACKING MATERIAL",null,"PACKING TYPE ",null,"RPTFE",null,null,"Standard",null,null,70,"MFR. & MODEL",null,"Will be finalized later"]
[null,null,27,"ENTRY DESIGN",null,null,null,"Top / Side Entry",null,null,null,null,null,71,"ON INCR SIGNAL OUTPUT INCR / DECR      ",null,"N/A"]
[null,null,28,"NACE REQUIREMENTNACE (MR-0175/ISO 15156)",null,null,null,"Yes",null,null,null,null,null,72,"GAUGES",null,"N/A"]
[null,"TRIM",29,"TRIM ","TYPE","MATERIAL",null,"VTA",null,null,"316 SS+RPTFE",null,null,73,"CAM CHARACTERISTIC",null,"N/A"]
[null,null,30,"SIZE ","RATED TRAVEL",null,null,"VTA",null,null,"VTA",null,null,74,"AIR CONNECTION",null,"N/A"]
[null,null,31,"CHARACTERISTICS",null,null,null,"On/Off",null,null,null,null,"LIMIT \nSWITCHES",75,"TAG NO. :",null,"XZSC-2144 / XZSO-2144"]
[null,null,32,"BALANCED / UNBALANCED",null,null,null,"BALANCED",null,null,null,null,null,76," TYPE","QUANTITY","Magnetically operated ‘REED’ contacts ",2]
[null,null,33,"RATED  Cv","FL","XT",null,"VTA","VTA","VTA",null,null,null,77,"CONTACTS / RATING",null,"110V DC , 10A "]
[null,null,34,"PLUG / BALL / DISK MATERIAL",null,null,null,"316 SS",null,null,null,null,null,78,"ACTUATION POINT",null,"Fully Open/Close"]
[null,null,35,"SEAT ","TYPE","MATERIAL",null,"Soft Seat",null,null,"316 SS+RPTFE",null,null,79,"ENCLOSURE MATERIAL",null,"Die Cast Aluminum"]
[null,null,36,"CAGE / GUIDE MATERIAL",null,null,null,"VTA",null,null,null,null,null,80,"WEATHER PROTECTION",null,"IP-65"]
[null,null,37,"STEM","TYPE","MATERIAL",null,"Anti-Blow Out",null,null,"316 SS",null,null,81,"ELEC. CERTIFICATE","ELEC. CONNECTION","EEx \"d\" ,IIB T4","ISO M20 × 1.5"]
[null,null,38,"LEAKAGE CLASS",null,null,null,"ANSI Class VI",null,null,null,null,null,82,"MFR. & MODEL",null,"Will be finalized later"]
[null,null,39,"VALVE STEM EXTENSION REQUIREMENT",null,null,null,"No",null,null,null,null,"AIR SET",83,"SET PRESSURE",null,"Yes"]
[null,"SOLENOID VALVE  ",40,"TAG NO",null,null,null,"PSOV-2144, ESOV-2144",null,null,null,null,null,84,"PNEUMATIC CONNECTION",null,"1/4\" NPT"]
[null,null,41,"TYPE",null,null,null,"3 Way ",null,null,null,null,null,85,"GAUGES","FILTER","Required","Required"]
[null,null,42,"BODY MATERIAL",null,"WEATHER IP.",null,"AISI 316 S.S",null,null,"IP-65",null,null,86,"MFR. & MODEL",null,"Will be finalized later"]
[null,null,43,"ELE. CERTIFICATE",null,"ELE. CONNECTION",null,"EEx \"d\" ,IIB T4",null,null,"ISO M20 x 1.5",null,"TEST",87,"ANSI/FCI LEAKAGE CLASS",null,"Required"]
[null,null,44,"MANUAL RESET",null,null,null,"Yes",null,null,null,null,null,88,"HYDRO PRESSURE ",null,"Required"]
[null,null,45,"Power Supply",null,null,null,"24 VDC",null,null,null,null,null,89,"FUNCTIONAL TEST",null,"Required"]
[null,null,46,"Pnu. Connection",null,null,null,"1/4\" NPT ",null,null,null,null,null,90]
[null,"SPECIAL /\nACCESS.",47,"FUSIBLE LEAKAGE",null,null,null,"No",null,null,null,null,null,91]
[null,null,48,"BLOCK RELAY",null,null,null,"No",null,null,null,null,null,92]
[null,null,49,"QUICK EXHUST",null,null,null,"Yes",null,null,null,null,"FIRE PROOF DESIGN",93,"PASSIVE FIRE PROTECTION",null,"No"]
[null,null,50,"FILTER REGULATOR",null,null,null,"Yes",null,null,null,null,null,94,"API 6FA REQUIREMENTS",null,"Yes"]
[null,null,51,"VOLUME TANK",null,null,null,"No",null,null,null,null,null,95,"SIL REQUIREMENTS",null,"Yes"]
[null,null,52,"MECHANICAL POSITION INDICATOR",null,null,null,"Required",null,null,null,null,null,96,"PARTIAL STROKING VALVE TEST",null,"No",null,null,"ESD LEVEL: ",3]
[null,null,53,"MANUALPNEUMATIC BYPASS VALVE FOR SOLENOID VALVE",null,null,null,"Yes",null,null,null,null,null,97]
[]
[null,"NOTE:","VTA : VENDOR TO ADVISE AT BIDDING STAGE    ",null,null,null,null,"VTC: VENDOR TO CONIFRM"]
[null,null,"(1) PMS: Piping material specification.\n\n(2) All material shall be suitable for minimum design metal temperature.\n\n(3) Shall be stated by vendor at quotation stage.\n\n(4) Manual Reset to be consider for all Emergency Shut off solenoids as per P&ID."]

{"sheet":"XV-2271","index":34,"n_rows":71,"n_cols":21,"rows_kept":71,"cut":false,"hidden":false,"merged":[[70,2,71,10],[1,1,6,4],[1,5,4,12],[1,13,6,17],[5,5,6,12],[7,1,7,4],[7,13,8,13],[7,14,8,14],[7,15,8,15],[7,16,8,17],[8,1,8,4],[9,1,9,17],[10,1,10,2],[10,3,10,4],[10,5,10,6],[10,7,10,13],[10,15,10,17],[11,2,11,4],[11,5,11,6],[11,7,11,13],[11,16,11,17],[12,1,23,1],[12,12,12,13],[13,12,13,13],[14,12,14,13],[15,12,15,13],[16,12,16,13],[17,12,17,13],[18,12,18,13],[19,12,19,13],[22,12,22,13],[23,12,23,13],[21,12,21,13],[20,12,20,13],[12,2,12,11],[24,1,26,1],[24,2,25,2],[24,3,25,3],[24,12,38,12],[45,12,52,12],[27,1,42,1],[43,1,53,1],[53,12,56,12],[54,1,60,1],[57,12,62,12],[61,1,67,1],[63,12,67,12],[67,3,67,6],[51,5,51,6],[51,7,51,9],[51,10,51,11],[33,2,34,2],[33,3,34,3],[39,12,44,12],[41,14,41,15],[43,5,43,6],[43,7,43,9],[43,10,43,11],[20,14,20,17],[21,14,21,17],[65,14,65,15],[66,14,66,15],[26,4,26,11],[24,9,25,11],[24,16,24,17],[25,16,25,17],[49,5,49,6],[49,7,49,9],[49,10,49,11],[47,9,47,11],[24,7,25,8],[29,14,29,15],[31,14,31,15]]}
[]
[null,"\n\n\n\n\nNISOC",null,null,null,"نگهداشت و افزایش تولید میدان نفتی بینک \nسطح‌الارض \n\nاحداث رديف تراكم گاز در ايستگاه جمع آوري بينك "]
[]
[]
[]
[null,null,null,null,null,"Data Sheets For ON/OFF & Shutdown Valves"]
[]
[null,"شماره پیمان:",null,null,null,"پروژه ","بسته کاری","صادرکننده","تسهیلات","رشته ","نوع مدرک ","سریال","نسخه"]
[null,"9038 – 073 - 053",null,null,null,"BK","GCS","PEDCO","120","IN","DT","0010",{"$f":"Notes!$AB$9","v":"D04"}]
[null,"On-Off Valve"]
[null,"TAG NO:",null,"XV-2271",null,"P&ID NO :",null,"BK-GCS-PEDCO-120-PR-PI-0022-D08",null,null,null,null,null,null,"SERVICE:","Fuel Gas System"]
[null,"FLUID STATE:"," CLOSED DRAIN",null,null,"PHASE:",null,"LIQUID",null,null,null,null,null,null,"AREA CLASSIFICATION:",null,"Zone2, IIB, T4"]
[null,"SERVICE CONDITION","ITEM ",null,null,null,null,null,null,null,null,null,"UNITS",null,"Max Flow","Norm. Flow","Min. Flow","Shut-Off"]
[null,null,1,"FLOW RATE",null,null,null,null,null,null,null,null,"kg/h",null,"-",603.15,"-","-"]
[null,null,2,"INLET PRESSURE",null,null,null,null,null,null,null,null,"bar(g)",null,"-",4.9000000000000004,"-","-"]
[null,null,3,"OUTLET PRESSURE",null,null,null,null,null,null,null,null,"bar(g)",null,"-",4.9000000000000004,"-","-"]
[null,null,4,"DIFFERENTIAL PRESSURE",null,null,null,null,null,null,null,null,"bar(g)",null,"-","-","-",18.2]
[null,null,5,"INLET TEMPERATURE",null,null,null,null,null,null,null,null,"°C",null,"-","18.88~ 36.7","-","-"]
[null,null,6,"DENSITY ",null,null,null,null,null,null,null,null,"kg/m3",null,"-","842~ 852","-","-"]
[null,null,7,"VISCOSITY ",null,null,null,null,null,null,null,null,"CP",null,"-","0.6934 ~ 1.03","-","-"]
[null,null,8,"DESIGN PRESSURE",null,null,null,null,null,null,null,null,"bar(g)",null,18.2]
[null,null,9,"DESIGN TEMPERATURE",null,null,null,null,null,null,null,null,"°C",null,85]
[null,null,10,"VAPOR PRESSURE Pv",null,null,null,null,null,null,null,null,"bar(a)",null,"-",0.44800000000000001,"-","-"]
[null,null,11,"CRITICAL PRESSURE",null,null,null,null,null,null,null,null,"bar(a)",null,"-",221.3,"-","-"]
[null,"LINE",12,"PIPE LINE SIZE & SCHEDULE","   IN","2\"",160,"CORROSION ALLOWANCE(mm)",null,6,null,null,"ACTUATOR",54," TYPE",null,"Single Acting, Spring Return "]
[null,null,null,null,"   OUT","2\"",160,null,null,null,null,null,null,55,"SIZE",null,"VTA"]
[null,null,13,"LINE NO.","CDH-112-0004-AN07-2\"-PT",null,null,null,null,null,null,null,null,56,"SPRING FAIL ACTION",null,"Fail to Close"]
[null,"VALVE BODY \n& \nBONNET",14,"TYPE",null,null,null,"Full Bore Ball Valve/Floating Type",null,null,null,null,null,57,"MAX ALLOWABLE PRESSURE",null,"VTA"]
[null,null,15,"SIZE ",null,null,null,"2\"",null,null,null,null,null,58,"MIN REQUIRES PRESSURE",null,"VTA"]
[null,null,16,"MAX PRESS./TEMP.",null,null,null,"As per PMS",null,null,null,null,null,59,"AVAILABLE AIR SUPPLY PRESSURE",null,"MAX/NOR/MIN: 10/7/3 bar-g"]
[null,null,17,"MFR. & MODEL",null,null,null,"Will be finalized later",null,null,null,null,null,60,"BENCH RANGE",null,"VTA"]
[null,null,18," BODY / BONNET MATL",null,null,null,"ASTM A216 Gr. WCB",null,null,null,null,null,61,"TRAVELING TIME",null,"5 S"]
[null,null,19,"LINER MATERIAL / ID",null,null,null,"VTA",null,null,null,null,null,62,"FUNCTION",null,"On/Off"]
[null,null,20,"END CONNECTION","IN",null,null,"2\" /300#",null,null,null,null,null,63,"LOCAL POSITION INDICATOR",null,"Required"]
[null,null,null,null,"OUT",null,null,"2\" /300#",null,null,null,null,null,64,"ACT. ORIENTATION",null,"VTA"]
[null,null,21,"FLG FACE FINISH",null,null,null,"RF",null,null,null,null,null,65,"HAND WHEEL TYPE",null,"Declutchable side mounted "]
[null,null,22,"END EXT./MATL.",null,null,null,"N/A",null,null,null,null,null,66,"ADJUSTABLE LIMIT STOP",null,"Yes"]
[null,null,23,"FLOW DIRECTION",null,null,null,"(Note 18 in Page 4)",null,null,null,null,null,67,"INPUT SIGNAL",null,"24VDC"]
[null,null,24,"TYPE OF BONNET",null,null,null,"Standard",null,null,null,null,null,68,"MFR. & MODEL",null,"Will be finalized later"]
[null,null,25,"LUBE & ISO VALVE",null,null,null,"No",null,null,null,null,"POSITIONER",69,"TYPE",null,"N/A"]
[null,null,26,"PACKING MATERIAL",null,"PACKING TYPE ",null,"PTFE",null,null,"Standard",null,null,70,"MFR. & MODEL",null,"Will be finalized later"]
[null,null,27,"ENTRY DESIGN",null,null,null,"Top / Side Entry",null,null,null,null,null,71,"ON INCR SIGNAL OUTPUT INCR / DECR      ",null,"N/A"]
[null,null,28,"NACE REQUIREMENTNACE (MR-0175/ISO 15156)",null,null,null,"Yes",null,null,null,null,null,72,"GAUGES",null,"N/A"]
[null,"TRIM",29,"TRIM ","TYPE","MATERIAL",null,"VTA",null,null,"316 SS+PTFE",null,null,73,"CAM CHARACTERISTIC",null,"N/A"]
[null,null,30,"SIZE ","RATED TRAVEL",null,null,"VTA",null,null,"VTA",null,null,74,"AIR CONNECTION",null,"N/A"]
[null,null,31,"CHARACTERISTICS",null,null,null,"On/Off",null,null,null,null,"LIMIT \nSWITCHES",75,"TAG NO. :",null,"XZSC-2271 / XZSO-2271"]
[null,null,32,"BALANCED / UNBALANCED",null,null,null,"BALANCED",null,null,null,null,null,76," TYPE","QUANTITY","Magnetically operated ‘REED’ contacts ",2]
[null,null,33,"RATED  Cv","FL","XT",null,"VTA","VTA","VTA",null,null,null,77,"CONTACTS / RATING",null,"110V DC , 10A "]
[null,null,34,"PLUG / BALL / DISK MATERIAL",null,null,null,"316 SS",null,null,null,null,null,78,"ACTUATION POINT",null,"Fully Open/Close"]
[null,null,35,"SEAT ","TYPE","MATERIAL",null,"Soft Seat",null,null,"316 SS+PTFE",null,null,79,"ENCLOSURE MATERIAL",null,"Die Cast Aluminum"]
[null,null,36,"CAGE / GUIDE MATERIAL",null,null,null,"VTA",null,null,null,null,null,80,"WEATHER PROTECTION",null,"IP-65"]
[null,null,37,"STEM","TYPE","MATERIAL",null,"Anti-Blow Out",null,null,"316 SS",null,null,81,"ELEC. CERTIFICATE","ELEC. CONNECTION","EEx \"d\" ,IIB T4","ISO M20 × 1.5"]
[null,null,38,"LEAKAGE CLASS",null,null,null,"ANSI Class VI",null,null,null,null,null,82,"MFR. & MODEL",null,"Will be finalized later"]
[null,null,39,"VALVE STEM EXTENSION REQUIREMENT",null,null,null,"No",null,null,null,null,"AIR SET",83,"SET PRESSURE",null,"Yes"]
[null,"SOLENOID VALVE  ",40,"TAG NO",null,null,null,"PSOV-2271, ESOV-2271",null,null,null,null,null,84,"PNEUMATIC CONNECTION",null,"1/4\" NPT"]
[null,null,41,"TYPE",null,null,null,"3 Way ",null,null,null,null,null,85,"GAUGES","FILTER","Required","Required"]
[null,null,42,"BODY MATERIAL",null,"WEATHER IP.",null,"AISI 316 S.S",null,null,"IP-65",null,null,86,"MFR. & MODEL",null,"Will be finalized later"]
[null,null,43,"ELE. CERTIFICATE",null,"ELE. CONNECTION",null,"EEx \"d\" ,IIB T4",null,null,"ISO M20 x 1.5",null,"TEST",87,"ANSI/FCI LEAKAGE CLASS",null,"Required"]
[null,null,44,"MANUAL RESET",null,null,null,"Yes",null,null,null,null,null,88,"HYDRO PRESSURE ",null,"Required"]
[null,null,45,"Power Supply",null,null,null,"24 VDC",null,null,null,null,null,89,"FUNCTIONAL TEST",null,"Required"]
[null,null,46,"Pnu. Connection",null,null,null,"1/4\" NPT ",null,null,null,null,null,90]
[null,"SPECIAL /\nACCESS.",47,"FUSIBLE LEAKAGE",null,null,null,"No",null,null,null,null,null,91]
[null,null,48,"BLOCK RELAY",null,null,null,"No",null,null,null,null,null,92]
[null,null,49,"QUICK EXHUST",null,null,null,"Yes",null,null,null,null,"FIRE PROOF DESIGN",93,"PASSIVE FIRE PROTECTION",null,"No"]
[null,null,50,"FILTER REGULATOR",null,null,null,"Yes",null,null,null,null,null,94,"API 6FA REQUIREMENTS",null,"Yes"]
[null,null,51,"VOLUME TANK",null,null,null,"No",null,null,null,null,null,95,"SIL REQUIREMENTS",null,"Yes"]
[null,null,52,"MECHANICAL POSITION INDICATOR",null,null,null,"Required",null,null,null,null,null,96,"PARTIAL STROKING VALVE TEST",null,"No",null,null,"ESD LEVEL: ",3]
[null,null,53,"MANUALPNEUMATIC BYPASS VALVE FOR SOLENOID VALVE",null,null,null,"Yes",null,null,null,null,null,97]
[]
[null,"NOTE:","VTA : VENDOR TO ADVISE AT BIDDING STAGE    ",null,null,null,null,"VTC: VENDOR TO CONIFRM"]
[null,null,"(1) PMS: Piping material specification.\n\n(2) All material shall be suitable for minimum design metal temperature.\n\n(3) Shall be stated by vendor at quotation stage.\n\n(4) Manual Reset to be consider for all Emergency Shut off solenoids as per P&ID."]

{"sheet":"XV-2301","index":35,"n_rows":71,"n_cols":21,"rows_kept":71,"cut":false,"hidden":false,"merged":[[70,2,71,10],[1,1,6,4],[1,5,4,12],[1,13,6,17],[5,5,6,12],[7,1,7,4],[7,13,8,13],[7,14,8,14],[7,15,8,15],[7,16,8,17],[8,1,8,4],[9,1,9,17],[10,1,10,2],[10,3,10,4],[10,5,10,6],[10,7,10,13],[10,15,10,17],[11,2,11,4],[11,5,11,6],[11,7,11,13],[11,16,11,17],[12,1,23,1],[12,12,12,13],[13,12,13,13],[14,12,14,13],[15,12,15,13],[16,12,16,13],[17,12,17,13],[18,12,18,13],[19,12,19,13],[22,12,22,13],[23,12,23,13],[21,12,21,13],[20,12,20,13],[12,2,12,11],[24,1,26,1],[24,2,25,2],[24,3,25,3],[24,12,38,12],[45,12,52,12],[27,1,42,1],[43,1,53,1],[53,12,56,12],[54,1,60,1],[57,12,62,12],[61,1,67,1],[63,12,67,12],[67,3,67,6],[51,5,51,6],[51,7,51,9],[51,10,51,11],[33,2,34,2],[33,3,34,3],[39,12,44,12],[41,14,41,15],[43,5,43,6],[43,7,43,9],[43,10,43,11],[20,14,20,17],[21,14,21,17],[65,14,65,15],[66,14,66,15],[26,4,26,11],[24,9,25,11],[24,16,24,17],[25,16,25,17],[49,5,49,6],[49,7,49,9],[49,10,49,11],[47,9,47,11],[24,7,25,8],[29,14,29,15],[31,14,31,15]]}
[]
[null,"\n\n\n\n\nNISOC",null,null,null,"نگهداشت و افزایش تولید میدان نفتی بینک \nسطح‌الارض \n\nاحداث رديف تراكم گاز در ايستگاه جمع آوري بينك "]
[]
[]
[]
[null,null,null,null,null,"Data Sheets For ON/OFF & Shutdown Valves"]
[]
[null,"شماره پیمان:",null,null,null,"پروژه ","بسته کاری","صادرکننده","تسهیلات","رشته ","نوع مدرک ","سریال","نسخه"]
[null,"9038 – 073 - 053",null,null,null,"BK","GCS","PEDCO","120","IN","DT","0010",{"$f":"Notes!$AB$9","v":"D04"}]
[null,"On-Off Valve"]
[null,"TAG NO:",null,"XV-2301",null,"P&ID NO :",null,"BK-GCS-PEDCO-120-SA-PI-0001-D05 (1/8)",null,null,null,null,null,null,"SERVICE:","Fire Water System"]
[null,"FLUID STATE:","FIRE WATER",null,null,"PHASE:",null,"Liquid",null,null,null,null,null,null,"AREA CLASSIFICATION:",null,"Zone2, IIB, T4"]
[null,"SERVICE CONDITION","ITEM ",null,null,null,null,null,null,null,null,null,"UNITS",null,"Max Flow","Norm. Flow","Min. Flow","Shut-Off"]
[null,null,1,"FLOW RATE",null,null,null,null,null,null,null,null,"kg/h",null,"-",29910,"-","-"]
[null,null,2,"INLET PRESSURE",null,null,null,null,null,null,null,null,"bar(g)",null,"-",1,"-","-"]
[null,null,3,"OUTLET PRESSURE",null,null,null,null,null,null,null,null,"bar(g)",null,"-",0.95,"-","-"]
[null,null,4,"DIFFERENTIAL PRESSURE",null,null,null,null,null,null,null,null,"bar(g)",null,"-",0.05,"-",18.2]
[null,null,5,"INLET TEMPERATURE",null,null,null,null,null,null,null,null,"°C",null,55,"AMB",5,"-"]
[null,null,6,"DENSITY ",null,null,null,null,null,null,null,null,"kg/m3",null,"-",997,"-","-"]
[null,null,7,"VISCOSITY ",null,null,null,null,null,null,null,null,"CP",null,"-",0.81,"-","-"]
[null,null,8,"DESIGN PRESSURE",null,null,null,null,null,null,null,null,"bar(g)",null,18.2]
[null,null,9,"DESIGN TEMPERATURE",null,null,null,null,null,null,null,null,"°C",null,85]
[null,null,10,"VAPOR PRESSURE Pv",null,null,null,null,null,null,null,null," ",null,"-","-","-","-"]
[null,null,11,"CRITICAL PRESSURE",null,null,null,null,null,null,null,null,"bar(a)",null,"-","-","-","-"]
[null,"LINE",12,"PIPE LINE SIZE & SCHEDULE","   IN","3\"",40,"CORROSION ALLOWANCE(mm)",null,3,null,null,"ACTUATOR",54," TYPE",null,"Single Acting, Spring Return "]
[null,null,null,null,"   OUT","3\"",40,null,null,null,null,null,null,55,"SIZE",null,"VTA"]
[null,null,13,"LINE NO.","PTW-112-0007-AN04-3\"-PT",null,null,null,null,null,null,null,null,56,"SPRING FAIL ACTION",null,"Fail to Close"]
[null,"VALVE BODY \n& \nBONNET",14,"TYPE",null,null,null,"Full Bore Ball Valve/Trunnion Mounted",null,null,null,null,null,57,"MAX ALLOWABLE PRESSURE",null,"VTA"]
[null,null,15,"SIZE ",null,null,null,"3\"",null,null,null,null,null,58,"MIN REQUIRES PRESSURE",null,"VTA"]
[null,null,16,"MAX PRESS./TEMP.",null,null,null,"As per PMS",null,null,null,null,null,59,"AVAILABLE AIR SUPPLY PRESSURE",null,"MAX/NOR/MIN: 10/7/3 bar-g"]
[null,null,17,"MFR. & MODEL",null,null,null,"Will be finalized later",null,null,null,null,null,60,"BENCH RANGE",null,"VTA"]
[null,null,18," BODY / BONNET MATL",null,null,null,"ASTM A216 Gr. WCB",null,null,null,null,null,61,"TRAVELING TIME",null,"5 S"]
[null,null,19,"LINER MATERIAL / ID",null,null,null,"VTA",null,null,null,null,null,62,"FUNCTION",null,"On/Off"]
[null,null,20,"END CONNECTION","IN",null,null,"3\" /300#",null,null,null,null,null,63,"LOCAL POSITION INDICATOR",null,"Required"]
[null,null,null,null,"OUT",null,null,"3\" /300#",null,null,null,null,null,64,"ACT. ORIENTATION",null,"VTA"]
[null,null,21,"FLG FACE FINISH",null,null,null,"RF",null,null,null,null,null,65,"HAND WHEEL TYPE",null,"Declutchable side mounted "]
[null,null,22,"END EXT./MATL.",null,null,null,"N/A",null,null,null,null,null,66,"ADJUSTABLE LIMIT STOP",null,"Yes"]
[null,null,23,"FLOW DIRECTION",null,null,null,"(Note 18 in Page 4)",null,null,null,null,null,67,"INPUT SIGNAL",null,"24VDC"]
[null,null,24,"TYPE OF BONNET",null,null,null,"Standard",null,null,null,null,null,68,"MFR. & MODEL",null,"Will be finalized later"]
[null,null,25,"LUBE & ISO VALVE",null,null,null,"No",null,null,null,null,"POSITIONER",69,"TYPE",null,"N/A"]
[null,null,26,"PACKING MATERIAL",null,"PACKING TYPE ",null,"PTFE",null,null,"Standard",null,null,70,"MFR. & MODEL",null,"Will be finalized later"]
[null,null,27,"ENTRY DESIGN",null,null,null,"Top / Side Entry",null,null,null,null,null,71,"ON INCR SIGNAL OUTPUT INCR / DECR      ",null,"N/A"]
[null,null,28,"NACE REQUIREMENTNACE (MR-0175/ISO 15156)",null,null,null,"No",null,null,null,null,null,72,"GAUGES",null,"N/A"]
[null,"TRIM",29,"TRIM ","TYPE","MATERIAL",null,"VTA",null,null,"316 SS+PTFE",null,null,73,"CAM CHARACTERISTIC",null,"N/A"]
[null,null,30,"SIZE ","RATED TRAVEL",null,null,"VTA",null,null,"VTA",null,null,74,"AIR CONNECTION",null,"N/A"]
[null,null,31,"CHARACTERISTICS",null,null,null,"On/Off",null,null,null,null,"LIMIT \nSWITCHES",75,"TAG NO. :",null,"XZSC-2301 / XZSO-2301"]
[null,null,32,"BALANCED / UNBALANCED",null,null,null,"BALANCED",null,null,null,null,null,76," TYPE","QUANTITY","Magnetically operated ‘REED’ contacts ",2]
[null,null,33,"RATED  Cv","FL","XT",null,"VTA","VTA","VTA",null,null,null,77,"CONTACTS / RATING",null,"110V DC , 10A "]
[null,null,34,"PLUG / BALL / DISK MATERIAL",null,null,null,"316 SS",null,null,null,null,null,78,"ACTUATION POINT",null,"Fully Open/Close"]
[null,null,35,"SEAT ","TYPE","MATERIAL",null,"Soft Seat",null,null,"316 SS+PTFE",null,null,79,"ENCLOSURE MATERIAL",null,"Die Cast Aluminum"]
[null,null,36,"CAGE / GUIDE MATERIAL",null,null,null,"VTA",null,null,null,null,null,80,"WEATHER PROTECTION",null,"IP-65"]
[null,null,37,"STEM","TYPE","MATERIAL",null,"Anti-Blow Out",null,null,"316 SS",null,null,81,"ELEC. CERTIFICATE","ELEC. CONNECTION","EEx \"d\" ,IIB T4","ISO M20 × 1.5"]
[null,null,38,"LEAKAGE CLASS",null,null,null,"ANSI Class VI",null,null,null,null,null,82,"MFR. & MODEL",null,"Will be finalized later"]
[null,null,39,"VALVE STEM EXTENSION REQUIREMENT",null,null,null,"No",null,null,null,null,"AIR SET",83,"SET PRESSURE",null,"Yes"]
[null,"SOLENOID VALVE  ",40,"TAG NO",null,null,null,"PSOV-2301",null,null,null,null,null,84,"PNEUMATIC CONNECTION",null,"1/4\" NPT"]
[null,null,41,"TYPE",null,null,null,"3 Way ",null,null,null,null,null,85,"GAUGES","FILTER","Required","Required"]
[null,null,42,"BODY MATERIAL",null,"WEATHER IP.",null,"AISI 316 S.S",null,null,"IP-65",null,null,86,"MFR. & MODEL",null,"Will be finalized later"]
[null,null,43,"ELE. CERTIFICATE",null,"ELE. CONNECTION",null,"EEx \"d\" ,IIB T4",null,null,"ISO M20 x 1.5",null,"TEST",87,"ANSI/FCI LEAKAGE CLASS",null,"Required"]
[null,null,44,"MANUAL RESET",null,null,null,"Yes",null,null,null,null,null,88,"HYDRO PRESSURE ",null,"Required"]
[null,null,45,"Power Supply",null,null,null,"24 VDC",null,null,null,null,null,89,"FUNCTIONAL TEST",null,"Required"]
[null,null,46,"Pnu. Connection",null,null,null,"1/4\" NPT ",null,null,null,null,null,90]
[null,"SPECIAL /\nACCESS.",47,"FUSIBLE LEAKAGE",null,null,null,"No",null,null,null,null,null,91]
[null,null,48,"BLOCK RELAY",null,null,null,"No",null,null,null,null,null,92]
[null,null,49,"QUICK EXHUST",null,null,null,"Yes",null,null,null,null,"FIRE PROOF DESIGN",93,"PASSIVE FIRE PROTECTION",null,"No"]
[null,null,50,"FILTER REGULATOR",null,null,null,"Yes",null,null,null,null,null,94,"API 6FA REQUIREMENTS",null,"Yes"]
[null,null,51,"VOLUME TANK",null,null,null,"No",null,null,null,null,null,95,"SIL REQUIREMENTS",null,"No"]
[null,null,52,"MECHANICAL POSITION INDICATOR",null,null,null,"Required",null,null,null,null,null,96,"PARTIAL STROKING VALVE TEST",null,"No",null,null,"ESD LEVEL: ","N/A"]
[null,null,53,"MANUALPNEUMATIC BYPASS VALVE FOR SOLENOID VALVE",null,null,null,"No",null,null,null,null,null,97]
[]
[null,"NOTE:","VTA : VENDOR TO ADVISE AT BIDDING STAGE    ",null,null,null,null,"VTC: VENDOR TO CONIFRM"]
[null,null,"(1) PMS: Piping material specification.\n\n(2) All material shall be suitable for minimum design metal temperature.\n\n(3) Shall be stated by vendor at quotation stage.\n\n(4) Manual Reset to be consider for all Emergency Shut off solenoids as per P&ID."]